Workbook

Sheet Sample Report (hidden)
A2: Date
A3: Hen
A4: Program
A5: Start at 999999
A6: Sequence component 1 | B6: Time 1 | C6: Seqeunce Component 2 | D6: Time 2 | E6: Seqeunce Component 3 | F6: Time 3 | G6: Correct 0 = No 1=Yes | J6: Seqeunce | K6: Time
A7: 12 | B7: 7 | C7: 12 | D7: 42 | E7: 13 | F7: 18 | G7: if 77 new line, if 31 or 41 = yes new line on 77, | J7: =string of Seqeunce compponent 1, 2 & 3 | K7: =time 3
A8: This continues until ther is a 1 on its own to indicate start of summary data
J9: 10-19 =1
A10: Summary Data | J10: 20-29 =2
A11: Correct | B11: Incorrect | C11: Rft | D11: total | E11: Av Correct | F11: Av Incorrect | G11: Percent correct | H11: Time | J11: in this example the seqeunce would be 111
A12: 40 | B12: 33 | C12: 40 | D12: 73 | E12: 23.95 | F12: 15 | G12: 54 | H12: 806

Sheet Summary
A2: Day | B2: Date | C2: Average Response Rate | D2: Target % | E2: RF for non correct sequence | F2: U Value | K2: Block 1 | L2: Block 2 | M2: Block 3 | N2: Block 4 | O2: Block 5 | P2: Block 6
A3: 1 | B3: ='!N325820.010'!B2:C2 -> <date> | C3: =('!N325820.010'!F51/60)/'!N325820.010'!Q3 -> 1.915555556 | D3: ='!N325820.010'!N20/'!N325820.010'!Q3 -> 0.8888888889 | E3: =SUM('!N325820.010'!L20:Q20)/'!N325820.010'!Q3 -> 5.911111111 | F3: ='!N325820.010'!Q16 -> 0.1112815153 | J3: Average Response Rate | K3: =AVERAGE(C3:C7) -> 2.102444974 | L3: =AVERAGE(C8:C12) -> 2.200950042 | M3: =AVERAGE(C13:C17) -> 2.099206113 | N3: =AVERAGE(C18:C22) -> 1.96063882 | O3: =AVERAGE(C23:C27) -> 1.65673852 | P3: =AVERAGE(C28:C32) -> 2.111862477
A4: 2 | B4: ='!N326820.010'!B2:C2 -> <date> | C4: =('!N326820.010'!F8/60)/'!N326820.010'!Q3 -> 2.525 | D4: ='!N326820.010'!N20/'!N326820.010'!Q3 -> 0 | E4: =SUM('!N326820.010'!L20:Q20)/'!N326820.010'!Q3 -> 0.5 | F4: ='!N326820.010'!Q16 -> 1 | J4: Target % | K4: =AVERAGE(D3:D7) -> 0.6548412698 | L4: =AVERAGE(D8:D12) -> 0.2851445663 | M4: =AVERAGE(D13:D17) -> 0.1455026455 | N4: =AVERAGE(D18:D22) -> 0 | O4: =AVERAGE(D23:D27) -> 0.000956937799 | P4: =AVERAGE(D28:D32) -> 0.001951219512
A5: 3 | B5: ='!N327800.010'!B2:C2 -> <date> | C5: =('!N327800.010'!F51/60)/'!N327800.010'!Q3 -> 2.020740741 | D5: ='!N327800.010'!N20/'!N327800.010'!Q3 -> 0.8888888889 | E5: =SUM('!N327800.010'!L20:Q20)/'!N327800.010'!Q3 -> 5.911111111 | F5: ='!N327800.010'!Q16 -> 0.09163725357 | J5: CCRF | K5: =AVERAGE(E3:E7) -> 4.49715873 | L5: =AVERAGE(E8:E12) -> 2.54663906 | M5: =AVERAGE(E13:E17) -> 1.356422771 | N5: =AVERAGE(E18:E22) -> 0.8783499033 | O5: =AVERAGE(E23:E27) -> 0.7280764373 | P5: =AVERAGE(E28:E32) -> 0.9221599768
A6: 4 | B6: ='!N328830.010'!B2:C2 -> <date> | C6: =('!N328830.010'!F56/60)/'!N328830.010'!Q3 -> 2.017 | D6: ='!N328830.010'!N20/'!N328830.010'!Q3 -> 0.8 | E6: =SUM('!N328830.010'!L20:Q20)/'!N328830.010'!Q3 -> 5.36 | F6: ='!N328830.010'!Q16 -> 0.1279139777 | J6: U Value | K6: =AVERAGE(F3:F7) -> 0.3135371696 | L6: =AVERAGE(F8:F12) -> 0.1862021684 | M6: =AVERAGE(F13:F17) -> 0.06219416915 | N6: =AVERAGE(F18:F22) -> 0.004717689898 | O6: =AVERAGE(F23:F27) -> 0.03069706702 | P6: =AVERAGE(F28:F32) -> 0.07449794309
A7: 5 | B7: ='!N330800.010'!B2:C2 -> <date> | C7: =('!N330800.010'!F62/60)/'!N330800.010'!Q3 -> 2.033928571 | D7: ='!N330800.010'!N20/'!N330800.010'!Q3 -> 0.6964285714 | E7: =SUM('!N330800.010'!L20:Q20)/'!N330800.010'!Q3 -> 4.803571429 | F7: ='!N330800.010'!Q16 -> 0.2368531012
A8: 6 | B8: ='!N331750.010'!B2:C2 -> <date> | C8: =('!N331750.010'!F57/60)/'!N331750.010'!Q3 -> 2.040849673 | D8: ='!N331750.010'!N20/'!N331750.010'!Q3 -> 0.7647058824 | E8: =SUM('!N331750.010'!L20:Q20)/'!N331750.010'!Q3 -> 5.235294118 | F8: ='!N331750.010'!Q16 -> 0.2126265558
A9: 7 | B9: ='!N401840.010'!B2:C2 -> <date> | C9: =('!N401840.010'!F65/60)/'!N401840.010'!Q3 -> 2.070903955 | D9: ='!N401840.010'!N20/'!N401840.010'!Q3 -> 0.6610169492 | E9: =SUM('!N401840.010'!L20:Q20)/'!N401840.010'!Q3 -> 4.576271186 | F9: ='!N401840.010'!Q16 -> 0.2539404434 | G9: =K3 -> 2.102444974 | H9: 2.200950042 | I9: 2.099206113 | J9: 1.96063882 | K9: 1.65673852 | L9: 2.111862477 | M9: =K4 -> 0.6548412698 | N9: 0.2851445663 | O9: 0.1455026455 | P9: 0 | Q9: 0.000956937799 | R9: 0.001951219512 | S9: =K6 -> 0.3135371696 | T9: 0.1862021684 | U9: 0.06219416915 | V9: 0.004717689898 | W9: 0.03069706702 | X9: 0.07449794309
A10: 8 | B10: ='!N402740.010'!B2:C2 -> <date> | C10: =('!N402740.010'!F173/60)/'!N402740.010'!Q3 -> 2.387325349 | D10: ='!N402740.010'!N20/'!N402740.010'!Q3 -> 0 | E10: =SUM('!N402740.010'!L20:Q20)/'!N402740.010'!Q3 -> 1 | F10: ='!N402740.010'!Q16 -> 0.1572855754
A11: 9 | B11: ='!N403740.010'!B2:C2 -> <date> | C11: =('!N403740.010'!F186/60)/'!N403740.010'!Q3 -> 2.200276243 | D11: ='!N403740.010'!N20/'!N403740.010'!Q3 -> 0 | E11: =SUM('!N403740.010'!L20:Q20)/'!N403740.010'!Q3 -> 0.9447513812 | F11: ='!N403740.010'!Q16 -> 0.1375429505
A12: 10 | B12: ='!N404820.010'!B2:C2 -> <date> | C12: =('!N404820.010'!F179/60)/'!N404820.010'!Q3 -> 2.30539499 | D12: ='!N404820.010'!N20/'!N404820.010'!Q3 -> 0 | E12: =SUM('!N404820.010'!L20:Q20)/'!N404820.010'!Q3 -> 0.9768786127 | F12: ='!N404820.010'!Q16 -> 0.1696153169
A13: 11 | B13: ='!N405930.010'!B2:C2 -> <date> | C13: =('!N405930.010'!F60/60)/'!N405930.010'!Q3 -> 2.144135802 | D13: ='!N405930.010'!N20/'!N405930.010'!Q3 -> 0.7222222222 | E13: =SUM('!N405930.010'!L20:Q20)/'!N405930.010'!Q3 -> 3.111111111 | F13: ='!N405930.010'!Q16 -> 0.1989439516
A14: 12 | B14: ='!N406840.010'!B2:C2 -> <date> | C14: =('!N406840.010'!F193/60)/'!N406840.010'!Q3 -> 2.135204991 | D14: ='!N406840.010'!N20/'!N406840.010'!Q3 -> 0 | E14: =SUM('!N406840.010'!L20:Q20)/'!N406840.010'!Q3 -> 0.9251336898 | F14: ='!N406840.010'!Q16 -> 0.04664866405
A15: 13 | B15: ='!N407950.010'!B2:C2 -> <date> | C15: =('!N407950.010'!F196/60)/'!N407950.010'!Q3 -> 2.085253054 | D15: ='!N407950.010'!N20/'!N407950.010'!Q3 -> 0 | E15: =SUM('!N407950.010'!L20:Q20)/'!N407950.010'!Q3 -> 0.9214659686 | F15: ='!N407950.010'!Q16 -> 0.02656805727
A16: 14 | B16: ='!N408850.010'!B2:C2 -> <date> | C16: =('!N408850.010'!F203/60)/'!N408850.010'!Q3 -> 2.02605753 | D16: ='!N408850.010'!N20/'!N408850.010'!Q3 -> 0 | E16: =SUM('!N408850.010'!L20:Q20)/'!N408850.010'!Q3 -> 0.8984771574 | F16: ='!N408850.010'!Q16 -> 0.01492212445
A17: 15 | B17: ='!N409910.010'!B2:C2 -> <date> | C17: =('!N409910.010'!F194/60)/'!N409910.010'!Q3 -> 2.105379189 | D17: ='!N409910.010'!N20/'!N409910.010'!Q3 -> 0.005291005291 | E17: =SUM('!N409910.010'!L20:Q20)/'!N409910.010'!Q3 -> 0.9259259259 | F17: ='!N409910.010'!Q16 -> 0.02388804839
A18: 16 | B18: ='!N410830.010'!B2:C2 -> <date> | C18: =('!N410830.010'!F208/60)/'!N410830.010'!Q3 -> 1.972772277 | D18: ='!N410830.010'!N20/'!N410830.010'!Q3 -> 0 | E18: =SUM('!N410830.010'!L20:Q20)/'!N410830.010'!Q3 -> 0.8811881188 | F18: ='!N410830.010'!Q16 -> 0.005880783678
A19: 17 | B19: ='!N411B00.010'!B2:C2 -> <date> | C19: =('!N411B00.010'!F204/60)/'!N411B00.010'!Q3 -> 2.013047138 | D19: ='!N411B00.010'!N20/'!N411B00.010'!Q3 -> 0 | E19: =SUM('!N411B00.010'!L20:Q20)/'!N411B00.010'!Q3 -> 0.8939393939 | F19: ='!N411B00.010'!Q16 -> 0.01200141002
A20: 18 | B20: ='!N412930.010'!B2:C2 -> <date> | C20: =('!N412930.010'!F210/60)/'!N412930.010'!Q3 -> 1.958823529 | D20: ='!N412930.010'!N20/'!N412930.010'!Q3 -> 0 | E20: =SUM('!N412930.010'!L20:Q20)/'!N412930.010'!Q3 -> 0.8774509804 | F20: ='!N412930.010'!Q16 -> 0
A21: 19 | B21: ='!N413A10.010'!B2:C2 -> <date> | C21: =('!N413A10.010'!F214/60)/'!N413A10.010'!Q3 -> 1.919230769 | D21: ='!N413A10.010'!N20/'!N413A10.010'!Q3 -> 0 | E21: =SUM('!N413A10.010'!L20:Q20)/'!N413A10.010'!Q3 -> 0.8653846154 | F21: ='!N413A10.010'!Q16 -> 0.005706255787
A22: 20 | B22: ='!N414820.010'!B2:C2 -> <date> | C22: =('!N414820.010'!F212/60)/'!N414820.010'!Q3 -> 1.939320388 | D22: ='!N414820.010'!N20/'!N414820.010'!Q3 -> 0 | E22: =SUM('!N414820.010'!L20:Q20)/'!N414820.010'!Q3 -> 0.8737864078 | F22: ='!N414820.010'!Q16 -> 0
A23: 21 | B23: ='!N415900.010'!B2:C2 -> <date> | C23: =('!N415900.010'!F215/60)/'!N415900.010'!Q3 -> 1.913875598 | D23: ='!N415900.010'!N20/'!N415900.010'!Q3 -> 0.004784688995 | E23: =SUM('!N415900.010'!L20:Q20)/'!N415900.010'!Q3 -> 0.8708133971 | F23: ='!N415900.010'!Q16 -> 0.01577995371
A24: 22 | B24: ='!N416810.010'!B2:C2 -> <date> | C24: =('!N416810.010'!F180/60)/'!N416810.010'!Q3 -> 2.292145594 | D24: ='!N416810.010'!N20/'!N416810.010'!Q3 -> 0 | E24: =SUM('!N416810.010'!L20:Q20)/'!N416810.010'!Q3 -> 0.9712643678 | F24: ='!N416810.010'!Q16 -> 0.06216386606
A25: 23 | B25: ='!N417820.010'!B2:C2 -> <date> | C25: =('!N417820.010'!F192/60)/'!N417820.010'!Q3 -> 2.127183601 | D25: ='!N417820.010'!N20/'!N417820.010'!Q3 -> 0 | E25: =SUM('!N417820.010'!L20:Q20)/'!N417820.010'!Q3 -> 0.9251336898 | F25: ='!N417820.010'!Q16 -> 0.04689669897
A26: 24 | B26: ='!N418D30.010'!B2:C2 -> <date> | C26: 0 | D26: 0 | E26: 0 | F26: 0
A27: 25 | B27: ='!N419900.010'!B2:C2 -> <date> | C27: =('!N419900.010'!F211/60)/'!N419900.010'!Q3 -> 1.950487805 | D27: ='!N419900.010'!N20/'!N419900.010'!Q3 -> 0 | E27: =SUM('!N419900.010'!L20:Q20)/'!N419900.010'!Q3 -> 0.8731707317 | F27: ='!N419900.010'!Q16 -> 0.02864481635
A28: 26 | B28: ='!N420900.010'!B2:C2 -> <date> | C28: =('!N420900.010'!F211/60)/'!N420900.010'!Q3 -> 1.94398374 | D28: ='!N420900.010'!N20/'!N420900.010'!Q3 -> 0 | E28: =SUM('!N420900.010'!L20:Q20)/'!N420900.010'!Q3 -> 0.8731707317 | F28: ='!N420900.010'!Q16 -> 0
A29: 27 | B29: ='!N421900.010'!B2:C2 -> <date> | C29: =('!N421900.010'!F157/60)/'!N421900.010'!Q3 -> 2.637969095 | D29: ='!N421900.010'!N20/'!N421900.010'!Q3 -> 0 | E29: =SUM('!N421900.010'!L20:Q20)/'!N421900.010'!Q3 -> 1.066225166 | F29: ='!N421900.010'!Q16 -> 0.2027829602
A30: 28 | B30: ='!N422800.010'!B2:C2 -> <date> | C30: =('!N422800.010'!F206/60)/'!N422800.010'!Q3 -> 2.000083333 | D30: ='!N422800.010'!N20/'!N422800.010'!Q3 -> 0 | E30: =SUM('!N422800.010'!L20:Q20)/'!N422800.010'!Q3 -> 0.89 | F30: ='!N422800.010'!Q16 -> 0.05095450344
A31: 29 | B31: ='!N423840.010'!B2:C2 -> <date> | C31: =('!N423840.010'!F203/60)/'!N423840.010'!Q3 -> 2.030203046 | D31: ='!N423840.010'!N20/'!N423840.010'!Q3 -> 0 | E31: =SUM('!N423840.010'!L20:Q20)/'!N423840.010'!Q3 -> 0.8984771574 | F31: ='!N423840.010'!Q16 -> 0.07670122779
A32: 30 | B32: ='!N424830.010'!B2:C2 -> <date> | C32: =('!N424830.010'!F211/60)/'!N424830.010'!Q3 -> 1.947073171 | D32: ='!N424830.010'!N20/'!N424830.010'!Q3 -> 0.009756097561 | E32: =SUM('!N424830.010'!L20:Q20)/'!N424830.010'!Q3 -> 0.8829268293 | F32: ='!N424830.010'!Q16 -> 0.04205102405

Sheet Start
F1: Use Folder 51 | H1: Auto Clean Up | J1: Correct sequence
F2: FALSE | H2: TRUE | J2: 211
A4: Working with Folder | G4: Process All/Or Pick A number: ALL or an integer
A5: E:\Hen Data\Raw Data\101_181\redo phase 1\ | G5: ALL
A6: Filenames:
A7: !N424830.010 | G7: Paint Cells
A8: !N423840.010 | G8: FALSE
A9: !N422800.010
A10: !N421900.010
A11: !N420900.010
A12: !N419900.010
A13: !N418D30.010
A14: !N417820.010
A15: !N416810.010
A16: !N415900.010
A17: !N414820.010
A18: !N413A10.010
A19: !N412930.010
A20: !N411B00.010
A21: !N410830.010
A22: !N409910.010
A23: !N408850.010
A24: !N407950.010
A25: !N406840.010
A26: !N405930.010
A27: !N404820.010
A28: !N403740.010
A29: !N402740.010
A30: !N401840.010
A31: !N331750.010
A32: !N330800.010
A33: !N328830.010
A34: !N327800.010
A35: !N326820.010
A36: !N325820.010

Sheet !N325820.010
A1: Report for:!N325820.010
A2: Date: | B2: <date>
A3: Hen: | B3: <hen> | F3: Correct Sequence | G3: =Start!J2 -> 211 | P3: Total Sequences in Data | Q3: =4994-COUNTBLANK(L7:L5000) -> 45 | V3: Total Sequences in Block Data | W3: =COUNTA(L7:L14) -> 8 | AA3: Total Sequences in Block Data | AB3: =COUNTA(L15:L21) -> 7 | AF3: Total Sequences in Block Data | AG3: =COUNTA(L22:L29) -> 8 | AK3: Total Sequences in Block Data | AL3: =COUNTA(L30:L36) -> 7 | AP3: Total Sequences in Block Data | AQ3: =COUNTA(L37:L44) -> 8 | AU3: Total Sequences in Block Data | AV3: =COUNTA(L45:L51) -> 7
P4: Total Sequences in Summary | Q4: =SUM(O7:O14) -> 45 | V4: Total Sequences in Block Summary | W4: =SUM(U7:U14) -> 8 | AA4: Total Sequences in Block Summary | AB4: =SUM(Z7:Z14) -> 7 | AF4: Total Sequences in Block Summary | AG4: =SUM(AE7:AE14) -> 8 | AK4: Total Sequences in Block Summary | AL4: =SUM(AJ7:AJ14) -> 7 | AP4: Total Sequences in Block Summary | AQ4: =SUM(AO7:AO14) -> 8 | AU4: Total Sequences in Block Summary | AV4: =SUM(AT7:AT14) -> 7
T5: Block 1 | Y5: Block 2 | AD5: Block 3 | AI5: Block 4 | AN5: Block 5 | AS5: Block 6
A6: Sequence Component 1 | B6: Time 1 | C6: Sequence Component 2 | D6: Time 2 | E6: Sequence Component 3 | F6: Time 3 | G6: Sequence Component 4 | H6: Time 4 | I6: Sequence Component 5 | J6: Time 5 | K6: Correct? 0=No 1=Yes | L6: Sequence | N6: Frequency | P6: Relative Frequency | Q6: Variability | T6: Frequency | V6: Relative Frequency | W6: Variability | Y6: Frequency | AA6: Relative Frequency | AB6: Variability | AD6: Frequency | AF6: Relative Frequency | AG6: Variability | AI6: Frequency | AK6: Relative Frequency | AL6: Variability | AN6: Frequency | AP6: Relative Frequency | AQ6: Variability | AS6: Frequency | AU6: Relative Frequency | AV6: Variability
A7: 21 | B7: 10 | C7: 11 | D7: 29 | E7: 11 | F7: 37 | K7: 0 | L7: 211 | N7: 111 | O7: =COUNTIF($L$7:$L$500,N7) -> 2 | P7: =O7/$Q$4 -> 0.04444444444 | Q7: =IF(P7=0,0,(P7*((LOG(P7))/LOG(2)))) -> -0.1996379154 | T7: =N7 -> 111 | U7: =COUNTIF(L7:L14,T7) -> 1 | V7: =U7/(W4-U11) -> 0.3333333333 | W7: =IF(V7=0,0,(V7*((LOG(V7))/LOG(2)))) -> -0.5283208336 | Y7: =N7 -> 111 | Z7: =COUNTIF(L15:L21,Y7) -> 0 | AA7: =Z7/(AB4-Z11) ->  | AB7: =IF(AA7=0,0,(AA7*((LOG(AA7))/LOG(2)))) ->  | AD7: =N7 -> 111 | AE7: =COUNTIF(L22:L29,AD7) -> 1 | AF7: =AE7/(AG4-AE11) -> 1 | AG7: =IF(AF7=0,0,(AF7*((LOG(AF7))/LOG(2)))) -> 0 | AI7: =N7 -> 111 | AJ7: =COUNTIF(L30:L36,AI7) -> 0 | AK7: =AJ7/(AL4-AJ11) ->  | AL7: =IF(AK7=0,0,(AK7*((LOG(AK7))/LOG(2)))) ->  | AN7: =N7 -> 111 | AO7: =COUNTIF(L37:L44,AN7) -> 0 | AP7: =AO7/(AQ4-AO11) -> 0 | AQ7: =IF(AP7=0,0,(AP7*((LOG(AP7))/LOG(2)))) -> 0 | AS7: =N7 -> 111 | AT7: =COUNTIF(L45:L51,AS7) -> 0 | AU7: =AT7/(AV4-AT11) ->  | AV7: =IF(AU7=0,0,(AU7*((LOG(AU7))/LOG(2)))) -> 
A8: 21 | B8: 128 | C8: 22 | D8: 133 | E8: 13 | F8: 148 | K8: 0 | L8: 221 | N8: 112 | O8: =COUNTIF($L$7:$L$500,N8) -> 0 | P8: =O8/$Q$4 -> 0 | Q8: =IF(P8=0,0,(P8*((LOG(P8))/LOG(2)))) -> 0 | T8: =N8 -> 112 | U8: =COUNTIF(L7:L14,T8) -> 0 | V8: =U8/(W4-U11) -> 0 | W8: =IF(V8=0,0,(V8*((LOG(V8))/LOG(2)))) -> 0 | Y8: =N8 -> 112 | Z8: =COUNTIF(L15:L21,Y8) -> 0 | AA8: =Z8/(AB4-Z11) ->  | AB8: =IF(AA8=0,0,(AA8*((LOG(AA8))/LOG(2)))) ->  | AD8: =N8 -> 112 | AE8: =COUNTIF(L22:L29,AD8) -> 0 | AF8: =AE8/(AG4-AE11) -> 0 | AG8: =IF(AF8=0,0,(AF8*((LOG(AF8))/LOG(2)))) -> 0 | AI8: =N8 -> 112 | AJ8: =COUNTIF(L30:L36,AI8) -> 0 | AK8: =AJ8/(AL4-AJ11) ->  | AL8: =IF(AK8=0,0,(AK8*((LOG(AK8))/LOG(2)))) ->  | AN8: =N8 -> 112 | AO8: =COUNTIF(L37:L44,AN8) -> 0 | AP8: =AO8/(AQ4-AO11) -> 0 | AQ8: =IF(AP8=0,0,(AP8*((LOG(AP8))/LOG(2)))) -> 0 | AS8: =N8 -> 112 | AT8: =COUNTIF(L45:L51,AS8) -> 0 | AU8: =AT8/(AV4-AT11) ->  | AV8: =IF(AU8=0,0,(AU8*((LOG(AU8))/LOG(2)))) -> 
A9: 21 | B9: 253 | C9: 11 | D9: 268 | E9: 11 | F9: 276 | K9: 0 | L9: 211 | N9: 121 | O9: =COUNTIF($L$7:$L$500,N9) -> 0 | P9: =O9/$Q$4 -> 0 | Q9: =IF(P9=0,0,(P9*((LOG(P9))/LOG(2)))) -> 0 | T9: =N9 -> 121 | U9: =COUNTIF(L7:L14,T9) -> 0 | V9: =U9/(W4-U11) -> 0 | W9: =IF(V9=0,0,(V9*((LOG(V9))/LOG(2)))) -> 0 | Y9: =N9 -> 121 | Z9: =COUNTIF(L15:L21,Y9) -> 0 | AA9: =Z9/(AB4-Z11) ->  | AB9: =IF(AA9=0,0,(AA9*((LOG(AA9))/LOG(2)))) ->  | AD9: =N9 -> 121 | AE9: =COUNTIF(L22:L29,AD9) -> 0 | AF9: =AE9/(AG4-AE11) -> 0 | AG9: =IF(AF9=0,0,(AF9*((LOG(AF9))/LOG(2)))) -> 0 | AI9: =N9 -> 121 | AJ9: =COUNTIF(L30:L36,AI9) -> 0 | AK9: =AJ9/(AL4-AJ11) ->  | AL9: =IF(AK9=0,0,(AK9*((LOG(AK9))/LOG(2)))) ->  | AN9: =N9 -> 121 | AO9: =COUNTIF(L37:L44,AN9) -> 0 | AP9: =AO9/(AQ4-AO11) -> 0 | AQ9: =IF(AP9=0,0,(AP9*((LOG(AP9))/LOG(2)))) -> 0 | AS9: =N9 -> 121 | AT9: =COUNTIF(L45:L51,AS9) -> 0 | AU9: =AT9/(AV4-AT11) ->  | AV9: =IF(AU9=0,0,(AU9*((LOG(AU9))/LOG(2)))) -> 
A10: 21 | B10: 373 | C10: 11 | D10: 383 | E10: 11 | F10: 393 | K10: 0 | L10: 211 | N10: 122 | O10: =COUNTIF($L$7:$L$500,N10) -> 0 | P10: =O10/$Q$4 -> 0 | Q10: =IF(P10=0,0,(P10*((LOG(P10))/LOG(2)))) -> 0 | T10: =N10 -> 122 | U10: =COUNTIF(L7:L14,T10) -> 0 | V10: =U10/(W4-U11) -> 0 | W10: =IF(V10=0,0,(V10*((LOG(V10))/LOG(2)))) -> 0 | Y10: =N10 -> 122 | Z10: =COUNTIF(L15:L21,Y10) -> 0 | AA10: =Z10/(AB4-Z11) ->  | AB10: =IF(AA10=0,0,(AA10*((LOG(AA10))/LOG(2)))) ->  | AD10: =N10 -> 122 | AE10: =COUNTIF(L22:L29,AD10) -> 0 | AF10: =AE10/(AG4-AE11) -> 0 | AG10: =IF(AF10=0,0,(AF10*((LOG(AF10))/LOG(2)))) -> 0 | AI10: =N10 -> 122 | AJ10: =COUNTIF(L30:L36,AI10) -> 0 | AK10: =AJ10/(AL4-AJ11) ->  | AL10: =IF(AK10=0,0,(AK10*((LOG(AK10))/LOG(2)))) ->  | AN10: =N10 -> 122 | AO10: =COUNTIF(L37:L44,AN10) -> 0 | AP10: =AO10/(AQ4-AO11) -> 0 | AQ10: =IF(AP10=0,0,(AP10*((LOG(AP10))/LOG(2)))) -> 0 | AS10: =N10 -> 122 | AT10: =COUNTIF(L45:L51,AS10) -> 0 | AU10: =AT10/(AV4-AT11) ->  | AV10: =IF(AU10=0,0,(AU10*((LOG(AU10))/LOG(2)))) -> 
A11: 21 | B11: 491 | C11: 11 | D11: 504 | E11: 11 | F11: 511 | K11: 0 | L11: 211 | N11: 211 | O11: =COUNTIF($L$7:$L$500,N11) -> 40 | P11: =O11/$Q$4 -> 0.8888888889 | Q11: =IF(P11=0,0,(P11*((LOG(P11))/LOG(2)))) -> -0.1510444457 | T11: =N11 -> 211 | U11: =COUNTIF(L7:L14,T11) -> 5 | Y11: =N11 -> 211 | Z11: =COUNTIF(L15:L21,Y11) -> 7 | AD11: =N11 -> 211 | AE11: =COUNTIF(L22:L29,AD11) -> 7 | AI11: =N11 -> 211 | AJ11: =COUNTIF(L30:L36,AI11) -> 7 | AN11: =N11 -> 211 | AO11: =COUNTIF(L37:L44,AN11) -> 7 | AS11: =N11 -> 211 | AT11: =COUNTIF(L45:L51,AS11) -> 7
A12: 21 | B12: 602 | C12: 22 | D12: 606 | E12: 13 | F12: 620 | K12: 0 | L12: 221 | N12: 212 | O12: =COUNTIF($L$7:$L$500,N12) -> 0 | P12: =O12/$Q$4 -> 0 | Q12: =IF(P12=0,0,(P12*((LOG(P12))/LOG(2)))) -> 0 | T12: =N12 -> 212 | U12: =COUNTIF(L7:L14,T12) -> 0 | V12: =U12/(W4-U11) -> 0 | W12: =IF(V12=0,0,(V12*((LOG(V12))/LOG(2)))) -> 0 | Y12: =N12 -> 212 | Z12: =COUNTIF(L15:L21,Y12) -> 0 | AA12: =Z12/(AB4-Z11) ->  | AB12: =IF(AA12=0,0,(AA12*((LOG(AA12))/LOG(2)))) ->  | AD12: =N12 -> 212 | AE12: =COUNTIF(L22:L29,AD12) -> 0 | AF12: =AE12/(AG4-AE11) -> 0 | AG12: =IF(AF12=0,0,(AF12*((LOG(AF12))/LOG(2)))) -> 0 | AI12: =N12 -> 212 | AJ12: =COUNTIF(L30:L36,AI12) -> 0 | AK12: =AJ12/(AL4-AJ11) ->  | AL12: =IF(AK12=0,0,(AK12*((LOG(AK12))/LOG(2)))) ->  | AN12: =N12 -> 212 | AO12: =COUNTIF(L37:L44,AN12) -> 0 | AP12: =AO12/(AQ4-AO11) -> 0 | AQ12: =IF(AP12=0,0,(AP12*((LOG(AP12))/LOG(2)))) -> 0 | AS12: =N12 -> 212 | AT12: =COUNTIF(L45:L51,AS12) -> 0 | AU12: =AT12/(AV4-AT11) ->  | AV12: =IF(AU12=0,0,(AU12*((LOG(AU12))/LOG(2)))) -> 
A13: 12 | B13: 732 | C13: 13 | D13: 738 | E13: 13 | F13: 748 | K13: 0 | L13: 111 | N13: 221 | O13: =COUNTIF($L$7:$L$500,N13) -> 3 | P13: =O13/$Q$4 -> 0.06666666667 | Q13: =IF(P13=0,0,(P13*((LOG(P13))/LOG(2)))) -> -0.260459373 | T13: =N13 -> 221 | U13: =COUNTIF(L7:L14,T13) -> 2 | V13: =U13/(W4-U11) -> 0.6666666667 | W13: =IF(V13=0,0,(V13*((LOG(V13))/LOG(2)))) -> -0.3899750005 | Y13: =N13 -> 221 | Z13: =COUNTIF(L15:L21,Y13) -> 0 | AA13: =Z13/(AB4-Z11) ->  | AB13: =IF(AA13=0,0,(AA13*((LOG(AA13))/LOG(2)))) ->  | AD13: =N13 -> 221 | AE13: =COUNTIF(L22:L29,AD13) -> 0 | AF13: =AE13/(AG4-AE11) -> 0 | AG13: =IF(AF13=0,0,(AF13*((LOG(AF13))/LOG(2)))) -> 0 | AI13: =N13 -> 221 | AJ13: =COUNTIF(L30:L36,AI13) -> 0 | AK13: =AJ13/(AL4-AJ11) ->  | AL13: =IF(AK13=0,0,(AK13*((LOG(AK13))/LOG(2)))) ->  | AN13: =N13 -> 221 | AO13: =COUNTIF(L37:L44,AN13) -> 1 | AP13: =AO13/(AQ4-AO11) -> 1 | AQ13: =IF(AP13=0,0,(AP13*((LOG(AP13))/LOG(2)))) -> 0 | AS13: =N13 -> 221 | AT13: =COUNTIF(L45:L51,AS13) -> 0 | AU13: =AT13/(AV4-AT11) ->  | AV13: =IF(AU13=0,0,(AU13*((LOG(AU13))/LOG(2)))) -> 
A14: 21 | B14: 850 | C14: 11 | D14: 864 | E14: 11 | F14: 873 | K14: 0 | L14: 211 | N14: 222 | O14: =COUNTIF($L$7:$L$500,N14) -> 0 | P14: =O14/$Q$4 -> 0 | Q14: =IF(P14=0,0,(P14*((LOG(P14))/LOG(2)))) -> 0 | T14: =N14 -> 222 | U14: =COUNTIF(L7:L14,T14) -> 0 | V14: =U14/(W4-U11) -> 0 | W14: =IF(V14=0,0,(V14*((LOG(V14))/LOG(2)))) -> 0 | Y14: =N14 -> 222 | Z14: =COUNTIF(L15:L21,Y14) -> 0 | AA14: =Z14/(AB4-Z11) ->  | AB14: =IF(AA14=0,0,(AA14*((LOG(AA14))/LOG(2)))) ->  | AD14: =N14 -> 222 | AE14: =COUNTIF(L22:L29,AD14) -> 0 | AF14: =AE14/(AG4-AE11) -> 0 | AG14: =IF(AF14=0,0,(AF14*((LOG(AF14))/LOG(2)))) -> 0 | AI14: =N14 -> 222 | AJ14: =COUNTIF(L30:L36,AI14) -> 0 | AK14: =AJ14/(AL4-AJ11) ->  | AL14: =IF(AK14=0,0,(AK14*((LOG(AK14))/LOG(2)))) ->  | AN14: =N14 -> 222 | AO14: =COUNTIF(L37:L44,AN14) -> 0 | AP14: =AO14/(AQ4-AO11) -> 0 | AQ14: =IF(AP14=0,0,(AP14*((LOG(AP14))/LOG(2)))) -> 0 | AS14: =N14 -> 222 | AT14: =COUNTIF(L45:L51,AS14) -> 0 | AU14: =AT14/(AV4-AT11) ->  | AV14: =IF(AU14=0,0,(AU14*((LOG(AU14))/LOG(2)))) -> 
A15: 21 | B15: 961 | C15: 11 | D15: 977 | E15: 11 | F15: 986 | K15: 0 | L15: 211 | P15: =SUM(P7:P14) -> 1 | Q15: =-SUM(Q7:Q14) -> 0.6111417342 | V15: =SUM(V7:V14) -> 1 | W15: =-SUM(W7:W14) -> 0.9182958341 | AA15: =SUM(AA7:AA14) ->  | AB15: =-SUM(AB7:AB14) ->  | AF15: =SUM(AF7:AF14) -> 1 | AG15: =-SUM(AG7:AG14) -> 0 | AK15: =SUM(AK7:AK14) ->  | AL15: =-SUM(AL7:AL14) ->  | AP15: =SUM(AP7:AP14) -> 1 | AQ15: =-SUM(AQ7:AQ14) -> 0 | AU15: =SUM(AU7:AU14) ->  | AV15: =-SUM(AV7:AV14) -> 
A16: 21 | B16: 1079 | C16: 11 | D16: 1092 | E16: 11 | F16: 1101 | K16: 0 | L16: 211 | P16: U= | Q16: =Q15/(LOG(Q4)/LOG(2)) -> 0.1112815153 | V16: U1= | W16: =W15/(LOG(W4)/LOG(2)) -> 0.3060986114 | AA16: U2= | AB16: =AB15/(LOG(AB4)/LOG(2)) ->  | AF16: U3= | AG16: =AG15/(LOG(AG4)/LOG(2)) -> 0 | AK16: U4= | AL16: =AL15/(LOG(AL4)/LOG(2)) ->  | AP16: U5= | AQ16: =AQ15/(LOG(AQ4)/LOG(2)) -> 0 | AU16: U6= | AV16: =AV15/(LOG(AV4)/LOG(2)) -> 
A17: 21 | B17: 1189 | C17: 11 | D17: 1206 | E17: 11 | F17: 1215 | K17: 0 | L17: 211
A18: 21 | B18: 1303 | C18: 11 | D18: 1317 | E18: 11 | F18: 1322 | K18: 0 | L18: 211
A19: 21 | B19: 1417 | C19: 11 | D19: 1431 | E19: 11 | F19: 1440 | K19: 0 | L19: 211 | N19: Total Target Seq
A20: 21 | B20: 1531 | C20: 11 | D20: 1547 | E20: 11 | F20: 1556 | K20: 0 | L20: 211 | N20: =COUNTIF(L7:L51,G3) -> 40 | P20: 8 | Q20: 7 | R20: 8 | S20: 7 | T20: 8 | U20: 7
A21: 21 | B21: 1643 | C21: 11 | D21: 1652 | E21: 11 | F21: 1657 | K21: 0 | L21: 211 | P21: % of reinforcement given in 6 equal intervals based on number of trials
A22: 21 | B22: 1750 | C22: 11 | D22: 1763 | E22: 11 | F22: 1777 | K22: 0 | L22: 211 | P22: %_1 | Q22: %_2 | R22: %_3 | S22: %_4 | T22: %_5 | U22: %_6
A23: 21 | B23: 1868 | C23: 11 | D23: 1881 | E23: 11 | F23: 1887 | K23: 0 | L23: 211 | O23: target sequence | P23: =$G$3 -> 211 | Q23: =$G$3 -> 211 | R23: =$G$3 -> 211 | S23: =$G$3 -> 211 | T23: =$G$3 -> 211 | U23: =$G$3 -> 211
A24: 21 | B24: 1982 | C24: 11 | D24: 1992 | E24: 11 | F24: 1998 | K24: 0 | L24: 211 | O24: total reinforcement | P24: =U11 -> 5 | Q24: =Z11 -> 7 | R24: =AE11 -> 7 | S24: =AJ11 -> 7 | T24: =AO11 -> 7 | U24: =AT11 -> 7
A25: 12 | B25: 2098 | C25: 13 | D25: 2103 | E25: 13 | F25: 2125 | K25: 0 | L25: 111 | O25: % target
A26: 21 | B26: 2226 | C26: 11 | D26: 2242 | E26: 11 | F26: 2248 | K26: 0 | L26: 211 | O26: CCRF
A27: 21 | B27: 2343 | C27: 11 | D27: 2356 | E27: 11 | F27: 2365 | K27: 0 | L27: 211 | O27: % CCRf
A28: 21 | B28: 2458 | C28: 11 | D28: 2472 | E28: 11 | F28: 2481 | K28: 0 | L28: 211 | O28: average response rate | P28: =F14/P20 -> 109.125 | Q28: =(F21-F14)/Q20 -> 112 | R28: =(F29-F21)/R20 -> 116.75 | S28: =(F36-F29)/S20 -> 114.8571429 | T28: =(F44-F36)/T20 -> 121.375 | U28: =(F51-F44)/U20 -> 115.1428571
A29: 21 | B29: 2573 | C29: 11 | D29: 2582 | E29: 11 | F29: 2591 | K29: 0 | L29: 211
A30: 21 | B30: 2686 | C30: 11 | D30: 2700 | E30: 11 | F30: 2706 | K30: 0 | L30: 211
A31: 21 | B31: 2799 | C31: 11 | D31: 2812 | E31: 11 | F31: 2820 | K31: 0 | L31: 211
A32: 21 | B32: 2917 | C32: 11 | D32: 2926 | E32: 11 | F32: 2936 | K32: 0 | L32: 211
A33: 21 | B33: 3027 | C33: 11 | D33: 3041 | E33: 11 | F33: 3055 | K33: 0 | L33: 211
A34: 21 | B34: 3149 | C34: 11 | D34: 3163 | E34: 11 | F34: 3169 | K34: 0 | L34: 211
A35: 21 | B35: 3260 | C35: 11 | D35: 3269 | E35: 11 | F35: 3274 | K35: 0 | L35: 211
A36: 21 | B36: 3371 | C36: 11 | D36: 3385 | E36: 11 | F36: 3395 | K36: 0 | L36: 211
A37: 21 | B37: 3488 | C37: 11 | D37: 3502 | E37: 11 | F37: 3507 | K37: 0 | L37: 211
A38: 21 | B38: 3604 | C38: 11 | D38: 3623 | E38: 11 | F38: 3651 | K38: 0 | L38: 211
A39: 21 | B39: 3743 | C39: 11 | D39: 3758 | E39: 11 | F39: 3763 | K39: 0 | L39: 211
A40: 21 | B40: 3853 | C40: 11 | D40: 3870 | E40: 11 | F40: 3881 | K40: 0 | L40: 211
A41: 21 | B41: 3973 | C41: 11 | D41: 3986 | E41: 11 | F41: 3995 | K41: 0 | L41: 211
A42: 21 | B42: 4091 | C42: 22 | D42: 4098 | E42: 13 | F42: 4108 | K42: 0 | L42: 221
A43: 21 | B43: 4221 | C43: 11 | D43: 4232 | E43: 11 | F43: 4245 | K43: 0 | L43: 211
A44: 21 | B44: 4339 | C44: 11 | D44: 4353 | E44: 11 | F44: 4366 | K44: 0 | L44: 211
A45: 21 | B45: 4460 | C45: 11 | D45: 4473 | E45: 11 | F45: 4498 | K45: 0 | L45: 211
A46: 21 | B46: 4590 | C46: 11 | D46: 4600 | E46: 11 | F46: 4608 | K46: 0 | L46: 211
A47: 21 | B47: 4698 | C47: 11 | D47: 4710 | E47: 11 | F47: 4719 | K47: 0 | L47: 211
A48: 21 | B48: 4811 | C48: 11 | D48: 4824 | E48: 11 | F48: 4829 | K48: 0 | L48: 211
A49: 21 | B49: 4918 | C49: 11 | D49: 4928 | E49: 11 | F49: 4939 | K49: 0 | L49: 211
A50: 21 | B50: 5031 | C50: 11 | D50: 5043 | E50: 11 | F50: 5048 | K50: 0 | L50: 211
A51: 21 | B51: 5139 | C51: 11 | D51: 5157 | E51: 11 | F51: 5172 | K51: 1 | L51: 211

Sheet !N326820.010
A1: Report for:!N326820.010
A2: Date: | B2: <date>
A3: Hen: | B3: <hen> | F3: Correct Sequence | G3: =Start!J2 -> 211 | P3: Total Sequences in Data | Q3: =4994-COUNTBLANK(L7:L5000) -> 2 | V3: Total Sequences in Block Data | W3: =COUNTA(L6:L7) -> 2 | AA3: Total Sequences in Block Data | AB3: =COUNTA(L7:L7) -> 1 | AF3: Total Sequences in Block Data | AG3: =COUNTA(L7:L8) -> 2 | AK3: Total Sequences in Block Data | AL3: =COUNTA(L7:L8) -> 2 | AP3: Total Sequences in Block Data | AQ3: =COUNTA(L8:L8) -> 1 | AU3: Total Sequences in Block Data | AV3: =COUNTA(L8:L9) -> 1
P4: Total Sequences in Summary | Q4: =SUM(O7:O14) -> 2 | V4: Total Sequences in Block Summary | W4: =SUM(U7:U14) -> 1 | AA4: Total Sequences in Block Summary | AB4: =SUM(Z7:Z14) -> 1 | AF4: Total Sequences in Block Summary | AG4: =SUM(AE7:AE14) -> 2 | AK4: Total Sequences in Block Summary | AL4: =SUM(AJ7:AJ14) -> 2 | AP4: Total Sequences in Block Summary | AQ4: =SUM(AO7:AO14) -> 1 | AU4: Total Sequences in Block Summary | AV4: =SUM(AT7:AT14) -> 1
T5: Block 1 | Y5: Block 2 | AD5: Block 3 | AI5: Block 4 | AN5: Block 5 | AS5: Block 6
A6: Sequence Component 1 | B6: Time 1 | C6: Sequence Component 2 | D6: Time 2 | E6: Sequence Component 3 | F6: Time 3 | G6: Sequence Component 4 | H6: Time 4 | I6: Sequence Component 5 | J6: Time 5 | K6: Correct? 0=No 1=Yes | L6: Sequence | N6: Frequency | P6: Relative Frequency | Q6: Variability | T6: Frequency | V6: Relative Frequency | W6: Variability | Y6: Frequency | AA6: Relative Frequency | AB6: Variability | AD6: Frequency | AF6: Relative Frequency | AG6: Variability | AI6: Frequency | AK6: Relative Frequency | AL6: Variability | AN6: Frequency | AP6: Relative Frequency | AQ6: Variability | AS6: Frequency | AU6: Relative Frequency | AV6: Variability
A7: 21 | B7: 42 | C7: 22 | D7: 51 | E7: 24 | F7: 62 | K7: 0 | L7: 222 | N7: 111 | O7: =COUNTIF($L$7:$L$500,N7) -> 0 | P7: =O7/$Q$4 -> 0 | Q7: =IF(P7=0,0,(P7*((LOG(P7))/LOG(2)))) -> 0 | T7: =N7 -> 111 | U7: =COUNTIF(L6:L7,T7) -> 0 | V7: =U7/(W4-U11) -> 0 | W7: =IF(V7=0,0,(V7*((LOG(V7))/LOG(2)))) -> 0 | Y7: =N7 -> 111 | Z7: =COUNTIF(L7:L7,Y7) -> 0 | AA7: =Z7/(AB4-Z11) -> 0 | AB7: =IF(AA7=0,0,(AA7*((LOG(AA7))/LOG(2)))) -> 0 | AD7: =N7 -> 111 | AE7: =COUNTIF(L7:L8,AD7) -> 0 | AF7: =AE7/(AG4-AE11) -> 0 | AG7: =IF(AF7=0,0,(AF7*((LOG(AF7))/LOG(2)))) -> 0 | AI7: =N7 -> 111 | AJ7: =COUNTIF(L7:L8,AI7) -> 0 | AK7: =AJ7/(AL4-AJ11) -> 0 | AL7: =IF(AK7=0,0,(AK7*((LOG(AK7))/LOG(2)))) -> 0 | AN7: =N7 -> 111 | AO7: =COUNTIF(L8:L8,AN7) -> 0 | AP7: =AO7/(AQ4-AO11) -> 0 | AQ7: =IF(AP7=0,0,(AP7*((LOG(AP7))/LOG(2)))) -> 0 | AS7: =N7 -> 111 | AT7: =COUNTIF(L8:L9,AS7) -> 0 | AU7: =AT7/(AV4-AT11) -> 0 | AV7: =IF(AU7=0,0,(AU7*((LOG(AU7))/LOG(2)))) -> 0
A8: 12 | B8: 252 | C8: 13 | D8: 274 | E8: 24 | F8: 303 | K8: 0 | L8: 112 | N8: 112 | O8: =COUNTIF($L$7:$L$500,N8) -> 1 | P8: =O8/$Q$4 -> 0.5 | Q8: =IF(P8=0,0,(P8*((LOG(P8))/LOG(2)))) -> -0.5 | T8: =N8 -> 112 | U8: =COUNTIF(L6:L7,T8) -> 0 | V8: =U8/(W4-U11) -> 0 | W8: =IF(V8=0,0,(V8*((LOG(V8))/LOG(2)))) -> 0 | Y8: =N8 -> 112 | Z8: =COUNTIF(L7:L7,Y8) -> 0 | AA8: =Z8/(AB4-Z11) -> 0 | AB8: =IF(AA8=0,0,(AA8*((LOG(AA8))/LOG(2)))) -> 0 | AD8: =N8 -> 112 | AE8: =COUNTIF(L7:L8,AD8) -> 1 | AF8: =AE8/(AG4-AE11) -> 0.5 | AG8: =IF(AF8=0,0,(AF8*((LOG(AF8))/LOG(2)))) -> -0.5 | AI8: =N8 -> 112 | AJ8: =COUNTIF(L7:L8,AI8) -> 1 | AK8: =AJ8/(AL4-AJ11) -> 0.5 | AL8: =IF(AK8=0,0,(AK8*((LOG(AK8))/LOG(2)))) -> -0.5 | AN8: =N8 -> 112 | AO8: =COUNTIF(L8:L8,AN8) -> 1 | AP8: =AO8/(AQ4-AO11) -> 1 | AQ8: =IF(AP8=0,0,(AP8*((LOG(AP8))/LOG(2)))) -> 0 | AS8: =N8 -> 112 | AT8: =COUNTIF(L8:L9,AS8) -> 1 | AU8: =AT8/(AV4-AT11) -> 1 | AV8: =IF(AU8=0,0,(AU8*((LOG(AU8))/LOG(2)))) -> 0
N9: 121 | O9: =COUNTIF($L$7:$L$500,N9) -> 0 | P9: =O9/$Q$4 -> 0 | Q9: =IF(P9=0,0,(P9*((LOG(P9))/LOG(2)))) -> 0 | T9: =N9 -> 121 | U9: =COUNTIF(L6:L7,T9) -> 0 | V9: =U9/(W4-U11) -> 0 | W9: =IF(V9=0,0,(V9*((LOG(V9))/LOG(2)))) -> 0 | Y9: =N9 -> 121 | Z9: =COUNTIF(L7:L7,Y9) -> 0 | AA9: =Z9/(AB4-Z11) -> 0 | AB9: =IF(AA9=0,0,(AA9*((LOG(AA9))/LOG(2)))) -> 0 | AD9: =N9 -> 121 | AE9: =COUNTIF(L7:L8,AD9) -> 0 | AF9: =AE9/(AG4-AE11) -> 0 | AG9: =IF(AF9=0,0,(AF9*((LOG(AF9))/LOG(2)))) -> 0 | AI9: =N9 -> 121 | AJ9: =COUNTIF(L7:L8,AI9) -> 0 | AK9: =AJ9/(AL4-AJ11) -> 0 | AL9: =IF(AK9=0,0,(AK9*((LOG(AK9))/LOG(2)))) -> 0 | AN9: =N9 -> 121 | AO9: =COUNTIF(L8:L8,AN9) -> 0 | AP9: =AO9/(AQ4-AO11) -> 0 | AQ9: =IF(AP9=0,0,(AP9*((LOG(AP9))/LOG(2)))) -> 0 | AS9: =N9 -> 121 | AT9: =COUNTIF(L8:L9,AS9) -> 0 | AU9: =AT9/(AV4-AT11) -> 0 | AV9: =IF(AU9=0,0,(AU9*((LOG(AU9))/LOG(2)))) -> 0
N10: 122 | O10: =COUNTIF($L$7:$L$500,N10) -> 0 | P10: =O10/$Q$4 -> 0 | Q10: =IF(P10=0,0,(P10*((LOG(P10))/LOG(2)))) -> 0 | T10: =N10 -> 122 | U10: =COUNTIF(L6:L7,T10) -> 0 | V10: =U10/(W4-U11) -> 0 | W10: =IF(V10=0,0,(V10*((LOG(V10))/LOG(2)))) -> 0 | Y10: =N10 -> 122 | Z10: =COUNTIF(L7:L7,Y10) -> 0 | AA10: =Z10/(AB4-Z11) -> 0 | AB10: =IF(AA10=0,0,(AA10*((LOG(AA10))/LOG(2)))) -> 0 | AD10: =N10 -> 122 | AE10: =COUNTIF(L7:L8,AD10) -> 0 | AF10: =AE10/(AG4-AE11) -> 0 | AG10: =IF(AF10=0,0,(AF10*((LOG(AF10))/LOG(2)))) -> 0 | AI10: =N10 -> 122 | AJ10: =COUNTIF(L7:L8,AI10) -> 0 | AK10: =AJ10/(AL4-AJ11) -> 0 | AL10: =IF(AK10=0,0,(AK10*((LOG(AK10))/LOG(2)))) -> 0 | AN10: =N10 -> 122 | AO10: =COUNTIF(L8:L8,AN10) -> 0 | AP10: =AO10/(AQ4-AO11) -> 0 | AQ10: =IF(AP10=0,0,(AP10*((LOG(AP10))/LOG(2)))) -> 0 | AS10: =N10 -> 122 | AT10: =COUNTIF(L8:L9,AS10) -> 0 | AU10: =AT10/(AV4-AT11) -> 0 | AV10: =IF(AU10=0,0,(AU10*((LOG(AU10))/LOG(2)))) -> 0
N11: 211 | O11: =COUNTIF($L$7:$L$500,N11) -> 0 | P11: =O11/$Q$4 -> 0 | Q11: =IF(P11=0,0,(P11*((LOG(P11))/LOG(2)))) -> 0 | T11: =N11 -> 211 | U11: =COUNTIF(L6:L7,T11) -> 0 | Y11: =N11 -> 211 | Z11: =COUNTIF(L7:L7,Y11) -> 0 | AD11: =N11 -> 211 | AE11: =COUNTIF(L7:L8,AD11) -> 0 | AI11: =N11 -> 211 | AJ11: =COUNTIF(L7:L8,AI11) -> 0 | AN11: =N11 -> 211 | AO11: =COUNTIF(L8:L8,AN11) -> 0 | AS11: =N11 -> 211 | AT11: =COUNTIF(L8:L9,AS11) -> 0
N12: 212 | O12: =COUNTIF($L$7:$L$500,N12) -> 0 | P12: =O12/$Q$4 -> 0 | Q12: =IF(P12=0,0,(P12*((LOG(P12))/LOG(2)))) -> 0 | T12: =N12 -> 212 | U12: =COUNTIF(L6:L7,T12) -> 0 | V12: =U12/(W4-U11) -> 0 | W12: =IF(V12=0,0,(V12*((LOG(V12))/LOG(2)))) -> 0 | Y12: =N12 -> 212 | Z12: =COUNTIF(L7:L7,Y12) -> 0 | AA12: =Z12/(AB4-Z11) -> 0 | AB12: =IF(AA12=0,0,(AA12*((LOG(AA12))/LOG(2)))) -> 0 | AD12: =N12 -> 212 | AE12: =COUNTIF(L7:L8,AD12) -> 0 | AF12: =AE12/(AG4-AE11) -> 0 | AG12: =IF(AF12=0,0,(AF12*((LOG(AF12))/LOG(2)))) -> 0 | AI12: =N12 -> 212 | AJ12: =COUNTIF(L7:L8,AI12) -> 0 | AK12: =AJ12/(AL4-AJ11) -> 0 | AL12: =IF(AK12=0,0,(AK12*((LOG(AK12))/LOG(2)))) -> 0 | AN12: =N12 -> 212 | AO12: =COUNTIF(L8:L8,AN12) -> 0 | AP12: =AO12/(AQ4-AO11) -> 0 | AQ12: =IF(AP12=0,0,(AP12*((LOG(AP12))/LOG(2)))) -> 0 | AS12: =N12 -> 212 | AT12: =COUNTIF(L8:L9,AS12) -> 0 | AU12: =AT12/(AV4-AT11) -> 0 | AV12: =IF(AU12=0,0,(AU12*((LOG(AU12))/LOG(2)))) -> 0
N13: 221 | O13: =COUNTIF($L$7:$L$500,N13) -> 0 | P13: =O13/$Q$4 -> 0 | Q13: =IF(P13=0,0,(P13*((LOG(P13))/LOG(2)))) -> 0 | T13: =N13 -> 221 | U13: =COUNTIF(L6:L7,T13) -> 0 | V13: =U13/(W4-U11) -> 0 | W13: =IF(V13=0,0,(V13*((LOG(V13))/LOG(2)))) -> 0 | Y13: =N13 -> 221 | Z13: =COUNTIF(L7:L7,Y13) -> 0 | AA13: =Z13/(AB4-Z11) -> 0 | AB13: =IF(AA13=0,0,(AA13*((LOG(AA13))/LOG(2)))) -> 0 | AD13: =N13 -> 221 | AE13: =COUNTIF(L7:L8,AD13) -> 0 | AF13: =AE13/(AG4-AE11) -> 0 | AG13: =IF(AF13=0,0,(AF13*((LOG(AF13))/LOG(2)))) -> 0 | AI13: =N13 -> 221 | AJ13: =COUNTIF(L7:L8,AI13) -> 0 | AK13: =AJ13/(AL4-AJ11) -> 0 | AL13: =IF(AK13=0,0,(AK13*((LOG(AK13))/LOG(2)))) -> 0 | AN13: =N13 -> 221 | AO13: =COUNTIF(L8:L8,AN13) -> 0 | AP13: =AO13/(AQ4-AO11) -> 0 | AQ13: =IF(AP13=0,0,(AP13*((LOG(AP13))/LOG(2)))) -> 0 | AS13: =N13 -> 221 | AT13: =COUNTIF(L8:L9,AS13) -> 0 | AU13: =AT13/(AV4-AT11) -> 0 | AV13: =IF(AU13=0,0,(AU13*((LOG(AU13))/LOG(2)))) -> 0
N14: 222 | O14: =COUNTIF($L$7:$L$500,N14) -> 1 | P14: =O14/$Q$4 -> 0.5 | Q14: =IF(P14=0,0,(P14*((LOG(P14))/LOG(2)))) -> -0.5 | T14: =N14 -> 222 | U14: =COUNTIF(L6:L7,T14) -> 1 | V14: =U14/(W4-U11) -> 1 | W14: =IF(V14=0,0,(V14*((LOG(V14))/LOG(2)))) -> 0 | Y14: =N14 -> 222 | Z14: =COUNTIF(L7:L7,Y14) -> 1 | AA14: =Z14/(AB4-Z11) -> 1 | AB14: =IF(AA14=0,0,(AA14*((LOG(AA14))/LOG(2)))) -> 0 | AD14: =N14 -> 222 | AE14: =COUNTIF(L7:L8,AD14) -> 1 | AF14: =AE14/(AG4-AE11) -> 0.5 | AG14: =IF(AF14=0,0,(AF14*((LOG(AF14))/LOG(2)))) -> -0.5 | AI14: =N14 -> 222 | AJ14: =COUNTIF(L7:L8,AI14) -> 1 | AK14: =AJ14/(AL4-AJ11) -> 0.5 | AL14: =IF(AK14=0,0,(AK14*((LOG(AK14))/LOG(2)))) -> -0.5 | AN14: =N14 -> 222 | AO14: =COUNTIF(L8:L8,AN14) -> 0 | AP14: =AO14/(AQ4-AO11) -> 0 | AQ14: =IF(AP14=0,0,(AP14*((LOG(AP14))/LOG(2)))) -> 0 | AS14: =N14 -> 222 | AT14: =COUNTIF(L8:L9,AS14) -> 0 | AU14: =AT14/(AV4-AT11) -> 0 | AV14: =IF(AU14=0,0,(AU14*((LOG(AU14))/LOG(2)))) -> 0
P15: =SUM(P7:P14) -> 1 | Q15: =-SUM(Q7:Q14) -> 1 | V15: =SUM(V7:V14) -> 1 | W15: =-SUM(W7:W14) -> 0 | AA15: =SUM(AA7:AA14) -> 1 | AB15: =-SUM(AB7:AB14) -> 0 | AF15: =SUM(AF7:AF14) -> 1 | AG15: =-SUM(AG7:AG14) -> 1 | AK15: =SUM(AK7:AK14) -> 1 | AL15: =-SUM(AL7:AL14) -> 1 | AP15: =SUM(AP7:AP14) -> 1 | AQ15: =-SUM(AQ7:AQ14) -> 0 | AU15: =SUM(AU7:AU14) -> 1 | AV15: =-SUM(AV7:AV14) -> 0
P16: U= | Q16: =Q15/(LOG(Q4)/LOG(2)) -> 1 | V16: U1= | W16: =W15/(LOG(W4)/LOG(2)) ->  | AA16: U2= | AB16: =AB15/(LOG(AB4)/LOG(2)) ->  | AF16: U3= | AG16: =AG15/(LOG(AG4)/LOG(2)) -> 1 | AK16: U4= | AL16: =AL15/(LOG(AL4)/LOG(2)) -> 1 | AP16: U5= | AQ16: =AQ15/(LOG(AQ4)/LOG(2)) ->  | AU16: U6= | AV16: =AV15/(LOG(AV4)/LOG(2)) -> 
N19: Total Target Seq
N20: =COUNTIF(L7:L8,G3) -> 0 | P20: 0 | Q20: 1 | R20: 0 | S20: 0 | T20: 1 | U20: 0
P21: % of reinforcement given in 6 equal intervals based on number of trials
P22: %_1 | Q22: %_2 | R22: %_3 | S22: %_4 | T22: %_5 | U22: %_6
O23: target sequence | P23: =$G$3 -> 211 | Q23: =$G$3 -> 211 | R23: =$G$3 -> 211 | S23: =$G$3 -> 211 | T23: =$G$3 -> 211 | U23: =$G$3 -> 211
O24: total reinforcement | P24: =U11 -> 0 | Q24: =Z11 -> 0 | R24: =AE11 -> 0 | S24: =AJ11 -> 0 | T24: =AO11 -> 0 | U24: =AT11 -> 0
O25: % target
O26: CCRF
O27: % CCRf
O28: average response rate | P28: =F6/P20 ->  | Q28: =(F7-F6)/Q20 ->  | R28: =(F7-F7)/R20 ->  | S28: =(F7-F7)/S20 ->  | T28: =(F8-F7)/T20 -> 241 | U28: =(F8-F8)/U20 -> 

Sheet !N327800.010
A1: Report for:!N327800.010
A2: Date: | B2: <date>
A3: Hen: | B3: <hen> | F3: Correct Sequence | G3: =Start!J2 -> 211 | P3: Total Sequences in Data | Q3: =4994-COUNTBLANK(L7:L5000) -> 45 | V3: Total Sequences in Block Data | W3: =COUNTA(L7:L14) -> 8 | AA3: Total Sequences in Block Data | AB3: =COUNTA(L15:L21) -> 7 | AF3: Total Sequences in Block Data | AG3: =COUNTA(L22:L29) -> 8 | AK3: Total Sequences in Block Data | AL3: =COUNTA(L30:L36) -> 7 | AP3: Total Sequences in Block Data | AQ3: =COUNTA(L37:L44) -> 8 | AU3: Total Sequences in Block Data | AV3: =COUNTA(L45:L51) -> 7
P4: Total Sequences in Summary | Q4: =SUM(O7:O14) -> 45 | V4: Total Sequences in Block Summary | W4: =SUM(U7:U14) -> 8 | AA4: Total Sequences in Block Summary | AB4: =SUM(Z7:Z14) -> 7 | AF4: Total Sequences in Block Summary | AG4: =SUM(AE7:AE14) -> 8 | AK4: Total Sequences in Block Summary | AL4: =SUM(AJ7:AJ14) -> 7 | AP4: Total Sequences in Block Summary | AQ4: =SUM(AO7:AO14) -> 8 | AU4: Total Sequences in Block Summary | AV4: =SUM(AT7:AT14) -> 7
T5: Block 1 | Y5: Block 2 | AD5: Block 3 | AI5: Block 4 | AN5: Block 5 | AS5: Block 6
A6: Sequence Component 1 | B6: Time 1 | C6: Sequence Component 2 | D6: Time 2 | E6: Sequence Component 3 | F6: Time 3 | G6: Sequence Component 4 | H6: Time 4 | I6: Sequence Component 5 | J6: Time 5 | K6: Correct? 0=No 1=Yes | L6: Sequence | N6: Frequency | P6: Relative Frequency | Q6: Variability | T6: Frequency | V6: Relative Frequency | W6: Variability | Y6: Frequency | AA6: Relative Frequency | AB6: Variability | AD6: Frequency | AF6: Relative Frequency | AG6: Variability | AI6: Frequency | AK6: Relative Frequency | AL6: Variability | AN6: Frequency | AP6: Relative Frequency | AQ6: Variability | AS6: Frequency | AU6: Relative Frequency | AV6: Variability
A7: 12 | B7: 38 | C7: 13 | D7: 46 | E7: 13 | F7: 75 | K7: 0 | L7: 111 | N7: 111 | O7: =COUNTIF($L$7:$L$500,N7) -> 5 | P7: =O7/$Q$4 -> 0.1111111111 | Q7: =IF(P7=0,0,(P7*((LOG(P7))/LOG(2)))) -> -0.352213889 | T7: =N7 -> 111 | U7: =COUNTIF(L7:L14,T7) -> 1 | V7: =U7/(W4-U11) -> 1 | W7: =IF(V7=0,0,(V7*((LOG(V7))/LOG(2)))) -> 0 | Y7: =N7 -> 111 | Z7: =COUNTIF(L15:L21,Y7) -> 0 | AA7: =Z7/(AB4-Z11) ->  | AB7: =IF(AA7=0,0,(AA7*((LOG(AA7))/LOG(2)))) ->  | AD7: =N7 -> 111 | AE7: =COUNTIF(L22:L29,AD7) -> 1 | AF7: =AE7/(AG4-AE11) -> 1 | AG7: =IF(AF7=0,0,(AF7*((LOG(AF7))/LOG(2)))) -> 0 | AI7: =N7 -> 111 | AJ7: =COUNTIF(L30:L36,AI7) -> 0 | AK7: =AJ7/(AL4-AJ11) ->  | AL7: =IF(AK7=0,0,(AK7*((LOG(AK7))/LOG(2)))) ->  | AN7: =N7 -> 111 | AO7: =COUNTIF(L37:L44,AN7) -> 1 | AP7: =AO7/(AQ4-AO11) -> 1 | AQ7: =IF(AP7=0,0,(AP7*((LOG(AP7))/LOG(2)))) -> 0 | AS7: =N7 -> 111 | AT7: =COUNTIF(L45:L51,AS7) -> 2 | AU7: =AT7/(AV4-AT11) -> 1 | AV7: =IF(AU7=0,0,(AU7*((LOG(AU7))/LOG(2)))) -> 0
A8: 21 | B8: 186 | C8: 11 | D8: 202 | E8: 11 | F8: 210 | K8: 0 | L8: 211 | N8: 112 | O8: =COUNTIF($L$7:$L$500,N8) -> 0 | P8: =O8/$Q$4 -> 0 | Q8: =IF(P8=0,0,(P8*((LOG(P8))/LOG(2)))) -> 0 | T8: =N8 -> 112 | U8: =COUNTIF(L7:L14,T8) -> 0 | V8: =U8/(W4-U11) -> 0 | W8: =IF(V8=0,0,(V8*((LOG(V8))/LOG(2)))) -> 0 | Y8: =N8 -> 112 | Z8: =COUNTIF(L15:L21,Y8) -> 0 | AA8: =Z8/(AB4-Z11) ->  | AB8: =IF(AA8=0,0,(AA8*((LOG(AA8))/LOG(2)))) ->  | AD8: =N8 -> 112 | AE8: =COUNTIF(L22:L29,AD8) -> 0 | AF8: =AE8/(AG4-AE11) -> 0 | AG8: =IF(AF8=0,0,(AF8*((LOG(AF8))/LOG(2)))) -> 0 | AI8: =N8 -> 112 | AJ8: =COUNTIF(L30:L36,AI8) -> 0 | AK8: =AJ8/(AL4-AJ11) ->  | AL8: =IF(AK8=0,0,(AK8*((LOG(AK8))/LOG(2)))) ->  | AN8: =N8 -> 112 | AO8: =COUNTIF(L37:L44,AN8) -> 0 | AP8: =AO8/(AQ4-AO11) -> 0 | AQ8: =IF(AP8=0,0,(AP8*((LOG(AP8))/LOG(2)))) -> 0 | AS8: =N8 -> 112 | AT8: =COUNTIF(L45:L51,AS8) -> 0 | AU8: =AT8/(AV4-AT11) -> 0 | AV8: =IF(AU8=0,0,(AU8*((LOG(AU8))/LOG(2)))) -> 0
A9: 21 | B9: 308 | C9: 11 | D9: 318 | E9: 11 | F9: 325 | K9: 0 | L9: 211 | N9: 121 | O9: =COUNTIF($L$7:$L$500,N9) -> 0 | P9: =O9/$Q$4 -> 0 | Q9: =IF(P9=0,0,(P9*((LOG(P9))/LOG(2)))) -> 0 | T9: =N9 -> 121 | U9: =COUNTIF(L7:L14,T9) -> 0 | V9: =U9/(W4-U11) -> 0 | W9: =IF(V9=0,0,(V9*((LOG(V9))/LOG(2)))) -> 0 | Y9: =N9 -> 121 | Z9: =COUNTIF(L15:L21,Y9) -> 0 | AA9: =Z9/(AB4-Z11) ->  | AB9: =IF(AA9=0,0,(AA9*((LOG(AA9))/LOG(2)))) ->  | AD9: =N9 -> 121 | AE9: =COUNTIF(L22:L29,AD9) -> 0 | AF9: =AE9/(AG4-AE11) -> 0 | AG9: =IF(AF9=0,0,(AF9*((LOG(AF9))/LOG(2)))) -> 0 | AI9: =N9 -> 121 | AJ9: =COUNTIF(L30:L36,AI9) -> 0 | AK9: =AJ9/(AL4-AJ11) ->  | AL9: =IF(AK9=0,0,(AK9*((LOG(AK9))/LOG(2)))) ->  | AN9: =N9 -> 121 | AO9: =COUNTIF(L37:L44,AN9) -> 0 | AP9: =AO9/(AQ4-AO11) -> 0 | AQ9: =IF(AP9=0,0,(AP9*((LOG(AP9))/LOG(2)))) -> 0 | AS9: =N9 -> 121 | AT9: =COUNTIF(L45:L51,AS9) -> 0 | AU9: =AT9/(AV4-AT11) -> 0 | AV9: =IF(AU9=0,0,(AU9*((LOG(AU9))/LOG(2)))) -> 0
A10: 21 | B10: 425 | C10: 11 | D10: 441 | E10: 11 | F10: 451 | K10: 0 | L10: 211 | N10: 122 | O10: =COUNTIF($L$7:$L$500,N10) -> 0 | P10: =O10/$Q$4 -> 0 | Q10: =IF(P10=0,0,(P10*((LOG(P10))/LOG(2)))) -> 0 | T10: =N10 -> 122 | U10: =COUNTIF(L7:L14,T10) -> 0 | V10: =U10/(W4-U11) -> 0 | W10: =IF(V10=0,0,(V10*((LOG(V10))/LOG(2)))) -> 0 | Y10: =N10 -> 122 | Z10: =COUNTIF(L15:L21,Y10) -> 0 | AA10: =Z10/(AB4-Z11) ->  | AB10: =IF(AA10=0,0,(AA10*((LOG(AA10))/LOG(2)))) ->  | AD10: =N10 -> 122 | AE10: =COUNTIF(L22:L29,AD10) -> 0 | AF10: =AE10/(AG4-AE11) -> 0 | AG10: =IF(AF10=0,0,(AF10*((LOG(AF10))/LOG(2)))) -> 0 | AI10: =N10 -> 122 | AJ10: =COUNTIF(L30:L36,AI10) -> 0 | AK10: =AJ10/(AL4-AJ11) ->  | AL10: =IF(AK10=0,0,(AK10*((LOG(AK10))/LOG(2)))) ->  | AN10: =N10 -> 122 | AO10: =COUNTIF(L37:L44,AN10) -> 0 | AP10: =AO10/(AQ4-AO11) -> 0 | AQ10: =IF(AP10=0,0,(AP10*((LOG(AP10))/LOG(2)))) -> 0 | AS10: =N10 -> 122 | AT10: =COUNTIF(L45:L51,AS10) -> 0 | AU10: =AT10/(AV4-AT11) -> 0 | AV10: =IF(AU10=0,0,(AU10*((LOG(AU10))/LOG(2)))) -> 0
A11: 21 | B11: 549 | C11: 11 | D11: 565 | E11: 11 | F11: 574 | K11: 0 | L11: 211 | N11: 211 | O11: =COUNTIF($L$7:$L$500,N11) -> 40 | P11: =O11/$Q$4 -> 0.8888888889 | Q11: =IF(P11=0,0,(P11*((LOG(P11))/LOG(2)))) -> -0.1510444457 | T11: =N11 -> 211 | U11: =COUNTIF(L7:L14,T11) -> 7 | Y11: =N11 -> 211 | Z11: =COUNTIF(L15:L21,Y11) -> 7 | AD11: =N11 -> 211 | AE11: =COUNTIF(L22:L29,AD11) -> 7 | AI11: =N11 -> 211 | AJ11: =COUNTIF(L30:L36,AI11) -> 7 | AN11: =N11 -> 211 | AO11: =COUNTIF(L37:L44,AN11) -> 7 | AS11: =N11 -> 211 | AT11: =COUNTIF(L45:L51,AS11) -> 5
A12: 21 | B12: 674 | C12: 11 | D12: 689 | E12: 11 | F12: 698 | K12: 0 | L12: 211 | N12: 212 | O12: =COUNTIF($L$7:$L$500,N12) -> 0 | P12: =O12/$Q$4 -> 0 | Q12: =IF(P12=0,0,(P12*((LOG(P12))/LOG(2)))) -> 0 | T12: =N12 -> 212 | U12: =COUNTIF(L7:L14,T12) -> 0 | V12: =U12/(W4-U11) -> 0 | W12: =IF(V12=0,0,(V12*((LOG(V12))/LOG(2)))) -> 0 | Y12: =N12 -> 212 | Z12: =COUNTIF(L15:L21,Y12) -> 0 | AA12: =Z12/(AB4-Z11) ->  | AB12: =IF(AA12=0,0,(AA12*((LOG(AA12))/LOG(2)))) ->  | AD12: =N12 -> 212 | AE12: =COUNTIF(L22:L29,AD12) -> 0 | AF12: =AE12/(AG4-AE11) -> 0 | AG12: =IF(AF12=0,0,(AF12*((LOG(AF12))/LOG(2)))) -> 0 | AI12: =N12 -> 212 | AJ12: =COUNTIF(L30:L36,AI12) -> 0 | AK12: =AJ12/(AL4-AJ11) ->  | AL12: =IF(AK12=0,0,(AK12*((LOG(AK12))/LOG(2)))) ->  | AN12: =N12 -> 212 | AO12: =COUNTIF(L37:L44,AN12) -> 0 | AP12: =AO12/(AQ4-AO11) -> 0 | AQ12: =IF(AP12=0,0,(AP12*((LOG(AP12))/LOG(2)))) -> 0 | AS12: =N12 -> 212 | AT12: =COUNTIF(L45:L51,AS12) -> 0 | AU12: =AT12/(AV4-AT11) -> 0 | AV12: =IF(AU12=0,0,(AU12*((LOG(AU12))/LOG(2)))) -> 0
A13: 21 | B13: 796 | C13: 11 | D13: 811 | E13: 11 | F13: 818 | K13: 0 | L13: 211 | N13: 221 | O13: =COUNTIF($L$7:$L$500,N13) -> 0 | P13: =O13/$Q$4 -> 0 | Q13: =IF(P13=0,0,(P13*((LOG(P13))/LOG(2)))) -> 0 | T13: =N13 -> 221 | U13: =COUNTIF(L7:L14,T13) -> 0 | V13: =U13/(W4-U11) -> 0 | W13: =IF(V13=0,0,(V13*((LOG(V13))/LOG(2)))) -> 0 | Y13: =N13 -> 221 | Z13: =COUNTIF(L15:L21,Y13) -> 0 | AA13: =Z13/(AB4-Z11) ->  | AB13: =IF(AA13=0,0,(AA13*((LOG(AA13))/LOG(2)))) ->  | AD13: =N13 -> 221 | AE13: =COUNTIF(L22:L29,AD13) -> 0 | AF13: =AE13/(AG4-AE11) -> 0 | AG13: =IF(AF13=0,0,(AF13*((LOG(AF13))/LOG(2)))) -> 0 | AI13: =N13 -> 221 | AJ13: =COUNTIF(L30:L36,AI13) -> 0 | AK13: =AJ13/(AL4-AJ11) ->  | AL13: =IF(AK13=0,0,(AK13*((LOG(AK13))/LOG(2)))) ->  | AN13: =N13 -> 221 | AO13: =COUNTIF(L37:L44,AN13) -> 0 | AP13: =AO13/(AQ4-AO11) -> 0 | AQ13: =IF(AP13=0,0,(AP13*((LOG(AP13))/LOG(2)))) -> 0 | AS13: =N13 -> 221 | AT13: =COUNTIF(L45:L51,AS13) -> 0 | AU13: =AT13/(AV4-AT11) -> 0 | AV13: =IF(AU13=0,0,(AU13*((LOG(AU13))/LOG(2)))) -> 0
A14: 21 | B14: 913 | C14: 11 | D14: 928 | E14: 11 | F14: 937 | K14: 0 | L14: 211 | N14: 222 | O14: =COUNTIF($L$7:$L$500,N14) -> 0 | P14: =O14/$Q$4 -> 0 | Q14: =IF(P14=0,0,(P14*((LOG(P14))/LOG(2)))) -> 0 | T14: =N14 -> 222 | U14: =COUNTIF(L7:L14,T14) -> 0 | V14: =U14/(W4-U11) -> 0 | W14: =IF(V14=0,0,(V14*((LOG(V14))/LOG(2)))) -> 0 | Y14: =N14 -> 222 | Z14: =COUNTIF(L15:L21,Y14) -> 0 | AA14: =Z14/(AB4-Z11) ->  | AB14: =IF(AA14=0,0,(AA14*((LOG(AA14))/LOG(2)))) ->  | AD14: =N14 -> 222 | AE14: =COUNTIF(L22:L29,AD14) -> 0 | AF14: =AE14/(AG4-AE11) -> 0 | AG14: =IF(AF14=0,0,(AF14*((LOG(AF14))/LOG(2)))) -> 0 | AI14: =N14 -> 222 | AJ14: =COUNTIF(L30:L36,AI14) -> 0 | AK14: =AJ14/(AL4-AJ11) ->  | AL14: =IF(AK14=0,0,(AK14*((LOG(AK14))/LOG(2)))) ->  | AN14: =N14 -> 222 | AO14: =COUNTIF(L37:L44,AN14) -> 0 | AP14: =AO14/(AQ4-AO11) -> 0 | AQ14: =IF(AP14=0,0,(AP14*((LOG(AP14))/LOG(2)))) -> 0 | AS14: =N14 -> 222 | AT14: =COUNTIF(L45:L51,AS14) -> 0 | AU14: =AT14/(AV4-AT11) -> 0 | AV14: =IF(AU14=0,0,(AU14*((LOG(AU14))/LOG(2)))) -> 0
A15: 21 | B15: 1032 | C15: 11 | D15: 1045 | E15: 11 | F15: 1054 | K15: 0 | L15: 211 | P15: =SUM(P7:P14) -> 1 | Q15: =-SUM(Q7:Q14) -> 0.5032583348 | V15: =SUM(V7:V14) -> 1 | W15: =-SUM(W7:W14) -> 0 | AA15: =SUM(AA7:AA14) ->  | AB15: =-SUM(AB7:AB14) ->  | AF15: =SUM(AF7:AF14) -> 1 | AG15: =-SUM(AG7:AG14) -> 0 | AK15: =SUM(AK7:AK14) ->  | AL15: =-SUM(AL7:AL14) ->  | AP15: =SUM(AP7:AP14) -> 1 | AQ15: =-SUM(AQ7:AQ14) -> 0 | AU15: =SUM(AU7:AU14) -> 1 | AV15: =-SUM(AV7:AV14) -> 0
A16: 21 | B16: 1158 | C16: 11 | D16: 1173 | E16: 11 | F16: 1179 | K16: 0 | L16: 211 | P16: U= | Q16: =Q15/(LOG(Q4)/LOG(2)) -> 0.09163725357 | V16: U1= | W16: =W15/(LOG(W4)/LOG(2)) -> 0 | AA16: U2= | AB16: =AB15/(LOG(AB4)/LOG(2)) ->  | AF16: U3= | AG16: =AG15/(LOG(AG4)/LOG(2)) -> 0 | AK16: U4= | AL16: =AL15/(LOG(AL4)/LOG(2)) ->  | AP16: U5= | AQ16: =AQ15/(LOG(AQ4)/LOG(2)) -> 0 | AU16: U6= | AV16: =AV15/(LOG(AV4)/LOG(2)) -> 0
A17: 21 | B17: 1278 | C17: 11 | D17: 1293 | E17: 11 | F17: 1300 | K17: 0 | L17: 211
A18: 21 | B18: 1395 | C18: 11 | D18: 1409 | E18: 11 | F18: 1414 | K18: 0 | L18: 211
A19: 21 | B19: 1510 | C19: 11 | D19: 1532 | E19: 11 | F19: 1552 | K19: 0 | L19: 211 | N19: Total Target Seq
A20: 21 | B20: 1650 | C20: 11 | D20: 1660 | E20: 11 | F20: 1666 | K20: 0 | L20: 211 | N20: =COUNTIF(L7:L51,G3) -> 40 | P20: 8 | Q20: 7 | R20: 8 | S20: 7 | T20: 8 | U20: 7
A21: 21 | B21: 1766 | C21: 11 | D21: 1776 | E21: 11 | F21: 1787 | K21: 0 | L21: 211 | P21: % of reinforcement given in 6 equal intervals based on number of trials
A22: 21 | B22: 1883 | C22: 11 | D22: 1896 | E22: 11 | F22: 1905 | K22: 0 | L22: 211 | P22: %_1 | Q22: %_2 | R22: %_3 | S22: %_4 | T22: %_5 | U22: %_6
A23: 21 | B23: 2000 | C23: 11 | D23: 2014 | E23: 11 | F23: 2020 | K23: 0 | L23: 211 | O23: target sequence | P23: =$G$3 -> 211 | Q23: =$G$3 -> 211 | R23: =$G$3 -> 211 | S23: =$G$3 -> 211 | T23: =$G$3 -> 211 | U23: =$G$3 -> 211
A24: 21 | B24: 2118 | C24: 11 | D24: 2132 | E24: 11 | F24: 2138 | K24: 0 | L24: 211 | O24: total reinforcement | P24: =U11 -> 7 | Q24: =Z11 -> 7 | R24: =AE11 -> 7 | S24: =AJ11 -> 7 | T24: =AO11 -> 7 | U24: =AT11 -> 5
A25: 12 | B25: 2242 | C25: 13 | D25: 2249 | E25: 13 | F25: 2278 | K25: 0 | L25: 111 | O25: % target
A26: 21 | B26: 2390 | C26: 11 | D26: 2404 | E26: 11 | F26: 2410 | K26: 0 | L26: 211 | O26: CCRF
A27: 21 | B27: 2511 | C27: 11 | D27: 2521 | E27: 11 | F27: 2530 | K27: 0 | L27: 211 | O27: % CCRf
A28: 21 | B28: 2639 | C28: 11 | D28: 2652 | E28: 11 | F28: 2657 | K28: 0 | L28: 211 | O28: average response rate | P28: =F14/P20 -> 117.125 | Q28: =(F21-F14)/Q20 -> 121.4285714 | R28: =(F29-F21)/R20 -> 123.5 | S28: =(F36-F29)/S20 -> 114.8571429 | T28: =(F44-F36)/T20 -> 126 | U28: =(F51-F44)/U20 -> 124.1428571
A29: 21 | B29: 2751 | C29: 11 | D29: 2765 | E29: 11 | F29: 2775 | K29: 0 | L29: 211
A30: 21 | B30: 2874 | C30: 11 | D30: 2889 | E30: 11 | F30: 2896 | K30: 0 | L30: 211
A31: 21 | B31: 2993 | C31: 11 | D31: 3002 | E31: 11 | F31: 3008 | K31: 0 | L31: 211
A32: 21 | B32: 3100 | C32: 11 | D32: 3109 | E32: 11 | F32: 3114 | K32: 0 | L32: 211
A33: 21 | B33: 3210 | C33: 11 | D33: 3227 | E33: 11 | F33: 3237 | K33: 0 | L33: 211
A34: 21 | B34: 3331 | C34: 11 | D34: 3345 | E34: 11 | F34: 3351 | K34: 0 | L34: 211
A35: 21 | B35: 3445 | C35: 11 | D35: 3459 | E35: 11 | F35: 3469 | K35: 0 | L35: 211
A36: 21 | B36: 3561 | C36: 11 | D36: 3574 | E36: 11 | F36: 3579 | K36: 0 | L36: 211
A37: 21 | B37: 3670 | C37: 11 | D37: 3687 | E37: 11 | F37: 3702 | K37: 0 | L37: 211
A38: 21 | B38: 3789 | C38: 11 | D38: 3812 | E38: 11 | F38: 3823 | K38: 0 | L38: 211
A39: 21 | B39: 3916 | C39: 11 | D39: 3929 | E39: 11 | F39: 3959 | K39: 0 | L39: 211
A40: 21 | B40: 4054 | C40: 11 | D40: 4066 | E40: 11 | F40: 4072 | K40: 0 | L40: 211
A41: 21 | B41: 4171 | C41: 11 | D41: 4187 | E41: 11 | F41: 4198 | K41: 0 | L41: 211
A42: 21 | B42: 4287 | C42: 11 | D42: 4302 | E42: 11 | F42: 4308 | K42: 0 | L42: 211
A43: 12 | B43: 4421 | C43: 13 | D43: 4431 | E43: 13 | F43: 4454 | K43: 0 | L43: 111
A44: 21 | B44: 4560 | C44: 11 | D44: 4578 | E44: 11 | F44: 4587 | K44: 0 | L44: 211
A45: 12 | B45: 4690 | C45: 13 | D45: 4695 | E45: 13 | F45: 4701 | K45: 0 | L45: 111
A46: 21 | B46: 4806 | C46: 11 | D46: 4820 | E46: 11 | F46: 4832 | K46: 0 | L46: 211
A47: 21 | B47: 4932 | C47: 11 | D47: 4947 | E47: 11 | F47: 4956 | K47: 0 | L47: 211
A48: 21 | B48: 5052 | C48: 11 | D48: 5071 | E48: 11 | F48: 5084 | K48: 0 | L48: 211
A49: 12 | B49: 5193 | C49: 13 | D49: 5199 | E49: 13 | F49: 5209 | K49: 0 | L49: 111
A50: 21 | B50: 5314 | C50: 11 | D50: 5327 | E50: 11 | F50: 5341 | K50: 0 | L50: 211
A51: 21 | B51: 5435 | C51: 11 | D51: 5447 | E51: 11 | F51: 5456 | K51: 1 | L51: 211

Sheet !N328830.010
A1: Report for:!N328830.010
A2: Date: | B2: <date>
A3: Hen: | B3: <hen> | F3: Correct Sequence | G3: =Start!J2 -> 211 | P3: Total Sequences in Data | Q3: =4994-COUNTBLANK(L7:L5000) -> 50 | V3: Total Sequences in Block Data | W3: =COUNTA(L7:L14) -> 8 | AA3: Total Sequences in Block Data | AB3: =COUNTA(L15:L23) -> 9 | AF3: Total Sequences in Block Data | AG3: =COUNTA(L24:L31) -> 8 | AK3: Total Sequences in Block Data | AL3: =COUNTA(L32:L39) -> 8 | AP3: Total Sequences in Block Data | AQ3: =COUNTA(L40:L48) -> 9 | AU3: Total Sequences in Block Data | AV3: =COUNTA(L49:L56) -> 8
P4: Total Sequences in Summary | Q4: =SUM(O7:O14) -> 50 | V4: Total Sequences in Block Summary | W4: =SUM(U7:U14) -> 8 | AA4: Total Sequences in Block Summary | AB4: =SUM(Z7:Z14) -> 9 | AF4: Total Sequences in Block Summary | AG4: =SUM(AE7:AE14) -> 8 | AK4: Total Sequences in Block Summary | AL4: =SUM(AJ7:AJ14) -> 8 | AP4: Total Sequences in Block Summary | AQ4: =SUM(AO7:AO14) -> 9 | AU4: Total Sequences in Block Summary | AV4: =SUM(AT7:AT14) -> 8
T5: Block 1 | Y5: Block 2 | AD5: Block 3 | AI5: Block 4 | AN5: Block 5 | AS5: Block 6
A6: Sequence Component 1 | B6: Time 1 | C6: Sequence Component 2 | D6: Time 2 | E6: Sequence Component 3 | F6: Time 3 | G6: Sequence Component 4 | H6: Time 4 | I6: Sequence Component 5 | J6: Time 5 | K6: Correct? 0=No 1=Yes | L6: Sequence | N6: Frequency | P6: Relative Frequency | Q6: Variability | T6: Frequency | V6: Relative Frequency | W6: Variability | Y6: Frequency | AA6: Relative Frequency | AB6: Variability | AD6: Frequency | AF6: Relative Frequency | AG6: Variability | AI6: Frequency | AK6: Relative Frequency | AL6: Variability | AN6: Frequency | AP6: Relative Frequency | AQ6: Variability | AS6: Frequency | AU6: Relative Frequency | AV6: Variability
A7: 12 | B7: 31 | C7: 13 | D7: 45 | E7: 13 | F7: 57 | K7: 0 | L7: 111 | N7: 111 | O7: =COUNTIF($L$7:$L$500,N7) -> 10 | P7: =O7/$Q$4 -> 0.2 | Q7: =IF(P7=0,0,(P7*((LOG(P7))/LOG(2)))) -> -0.464385619 | T7: =N7 -> 111 | U7: =COUNTIF(L7:L14,T7) -> 3 | V7: =U7/(W4-U11) -> 1 | W7: =IF(V7=0,0,(V7*((LOG(V7))/LOG(2)))) -> 0 | Y7: =N7 -> 111 | Z7: =COUNTIF(L15:L23,Y7) -> 2 | AA7: =Z7/(AB4-Z11) -> 1 | AB7: =IF(AA7=0,0,(AA7*((LOG(AA7))/LOG(2)))) -> 0 | AD7: =N7 -> 111 | AE7: =COUNTIF(L24:L31,AD7) -> 0 | AF7: =AE7/(AG4-AE11) ->  | AG7: =IF(AF7=0,0,(AF7*((LOG(AF7))/LOG(2)))) ->  | AI7: =N7 -> 111 | AJ7: =COUNTIF(L32:L39,AI7) -> 1 | AK7: =AJ7/(AL4-AJ11) -> 1 | AL7: =IF(AK7=0,0,(AK7*((LOG(AK7))/LOG(2)))) -> 0 | AN7: =N7 -> 111 | AO7: =COUNTIF(L40:L48,AN7) -> 3 | AP7: =AO7/(AQ4-AO11) -> 1 | AQ7: =IF(AP7=0,0,(AP7*((LOG(AP7))/LOG(2)))) -> 0 | AS7: =N7 -> 111 | AT7: =COUNTIF(L49:L56,AS7) -> 1 | AU7: =AT7/(AV4-AT11) -> 1 | AV7: =IF(AU7=0,0,(AU7*((LOG(AU7))/LOG(2)))) -> 0
A8: 21 | B8: 163 | C8: 11 | D8: 179 | E8: 11 | F8: 185 | K8: 0 | L8: 211 | N8: 112 | O8: =COUNTIF($L$7:$L$500,N8) -> 0 | P8: =O8/$Q$4 -> 0 | Q8: =IF(P8=0,0,(P8*((LOG(P8))/LOG(2)))) -> 0 | T8: =N8 -> 112 | U8: =COUNTIF(L7:L14,T8) -> 0 | V8: =U8/(W4-U11) -> 0 | W8: =IF(V8=0,0,(V8*((LOG(V8))/LOG(2)))) -> 0 | Y8: =N8 -> 112 | Z8: =COUNTIF(L15:L23,Y8) -> 0 | AA8: =Z8/(AB4-Z11) -> 0 | AB8: =IF(AA8=0,0,(AA8*((LOG(AA8))/LOG(2)))) -> 0 | AD8: =N8 -> 112 | AE8: =COUNTIF(L24:L31,AD8) -> 0 | AF8: =AE8/(AG4-AE11) ->  | AG8: =IF(AF8=0,0,(AF8*((LOG(AF8))/LOG(2)))) ->  | AI8: =N8 -> 112 | AJ8: =COUNTIF(L32:L39,AI8) -> 0 | AK8: =AJ8/(AL4-AJ11) -> 0 | AL8: =IF(AK8=0,0,(AK8*((LOG(AK8))/LOG(2)))) -> 0 | AN8: =N8 -> 112 | AO8: =COUNTIF(L40:L48,AN8) -> 0 | AP8: =AO8/(AQ4-AO11) -> 0 | AQ8: =IF(AP8=0,0,(AP8*((LOG(AP8))/LOG(2)))) -> 0 | AS8: =N8 -> 112 | AT8: =COUNTIF(L49:L56,AS8) -> 0 | AU8: =AT8/(AV4-AT11) -> 0 | AV8: =IF(AU8=0,0,(AU8*((LOG(AU8))/LOG(2)))) -> 0
A9: 21 | B9: 285 | C9: 11 | D9: 300 | E9: 11 | F9: 307 | K9: 0 | L9: 211 | N9: 121 | O9: =COUNTIF($L$7:$L$500,N9) -> 0 | P9: =O9/$Q$4 -> 0 | Q9: =IF(P9=0,0,(P9*((LOG(P9))/LOG(2)))) -> 0 | T9: =N9 -> 121 | U9: =COUNTIF(L7:L14,T9) -> 0 | V9: =U9/(W4-U11) -> 0 | W9: =IF(V9=0,0,(V9*((LOG(V9))/LOG(2)))) -> 0 | Y9: =N9 -> 121 | Z9: =COUNTIF(L15:L23,Y9) -> 0 | AA9: =Z9/(AB4-Z11) -> 0 | AB9: =IF(AA9=0,0,(AA9*((LOG(AA9))/LOG(2)))) -> 0 | AD9: =N9 -> 121 | AE9: =COUNTIF(L24:L31,AD9) -> 0 | AF9: =AE9/(AG4-AE11) ->  | AG9: =IF(AF9=0,0,(AF9*((LOG(AF9))/LOG(2)))) ->  | AI9: =N9 -> 121 | AJ9: =COUNTIF(L32:L39,AI9) -> 0 | AK9: =AJ9/(AL4-AJ11) -> 0 | AL9: =IF(AK9=0,0,(AK9*((LOG(AK9))/LOG(2)))) -> 0 | AN9: =N9 -> 121 | AO9: =COUNTIF(L40:L48,AN9) -> 0 | AP9: =AO9/(AQ4-AO11) -> 0 | AQ9: =IF(AP9=0,0,(AP9*((LOG(AP9))/LOG(2)))) -> 0 | AS9: =N9 -> 121 | AT9: =COUNTIF(L49:L56,AS9) -> 0 | AU9: =AT9/(AV4-AT11) -> 0 | AV9: =IF(AU9=0,0,(AU9*((LOG(AU9))/LOG(2)))) -> 0
A10: 21 | B10: 403 | C10: 11 | D10: 423 | E10: 11 | F10: 432 | K10: 0 | L10: 211 | N10: 122 | O10: =COUNTIF($L$7:$L$500,N10) -> 0 | P10: =O10/$Q$4 -> 0 | Q10: =IF(P10=0,0,(P10*((LOG(P10))/LOG(2)))) -> 0 | T10: =N10 -> 122 | U10: =COUNTIF(L7:L14,T10) -> 0 | V10: =U10/(W4-U11) -> 0 | W10: =IF(V10=0,0,(V10*((LOG(V10))/LOG(2)))) -> 0 | Y10: =N10 -> 122 | Z10: =COUNTIF(L15:L23,Y10) -> 0 | AA10: =Z10/(AB4-Z11) -> 0 | AB10: =IF(AA10=0,0,(AA10*((LOG(AA10))/LOG(2)))) -> 0 | AD10: =N10 -> 122 | AE10: =COUNTIF(L24:L31,AD10) -> 0 | AF10: =AE10/(AG4-AE11) ->  | AG10: =IF(AF10=0,0,(AF10*((LOG(AF10))/LOG(2)))) ->  | AI10: =N10 -> 122 | AJ10: =COUNTIF(L32:L39,AI10) -> 0 | AK10: =AJ10/(AL4-AJ11) -> 0 | AL10: =IF(AK10=0,0,(AK10*((LOG(AK10))/LOG(2)))) -> 0 | AN10: =N10 -> 122 | AO10: =COUNTIF(L40:L48,AN10) -> 0 | AP10: =AO10/(AQ4-AO11) -> 0 | AQ10: =IF(AP10=0,0,(AP10*((LOG(AP10))/LOG(2)))) -> 0 | AS10: =N10 -> 122 | AT10: =COUNTIF(L49:L56,AS10) -> 0 | AU10: =AT10/(AV4-AT11) -> 0 | AV10: =IF(AU10=0,0,(AU10*((LOG(AU10))/LOG(2)))) -> 0
A11: 21 | B11: 529 | C11: 11 | D11: 543 | E11: 11 | F11: 550 | K11: 0 | L11: 211 | N11: 211 | O11: =COUNTIF($L$7:$L$500,N11) -> 40 | P11: =O11/$Q$4 -> 0.8 | Q11: =IF(P11=0,0,(P11*((LOG(P11))/LOG(2)))) -> -0.2575424759 | T11: =N11 -> 211 | U11: =COUNTIF(L7:L14,T11) -> 5 | Y11: =N11 -> 211 | Z11: =COUNTIF(L15:L23,Y11) -> 7 | AD11: =N11 -> 211 | AE11: =COUNTIF(L24:L31,AD11) -> 8 | AI11: =N11 -> 211 | AJ11: =COUNTIF(L32:L39,AI11) -> 7 | AN11: =N11 -> 211 | AO11: =COUNTIF(L40:L48,AN11) -> 6 | AS11: =N11 -> 211 | AT11: =COUNTIF(L49:L56,AS11) -> 7
A12: 12 | B12: 661 | C12: 13 | D12: 670 | E12: 13 | F12: 686 | K12: 0 | L12: 111 | N12: 212 | O12: =COUNTIF($L$7:$L$500,N12) -> 0 | P12: =O12/$Q$4 -> 0 | Q12: =IF(P12=0,0,(P12*((LOG(P12))/LOG(2)))) -> 0 | T12: =N12 -> 212 | U12: =COUNTIF(L7:L14,T12) -> 0 | V12: =U12/(W4-U11) -> 0 | W12: =IF(V12=0,0,(V12*((LOG(V12))/LOG(2)))) -> 0 | Y12: =N12 -> 212 | Z12: =COUNTIF(L15:L23,Y12) -> 0 | AA12: =Z12/(AB4-Z11) -> 0 | AB12: =IF(AA12=0,0,(AA12*((LOG(AA12))/LOG(2)))) -> 0 | AD12: =N12 -> 212 | AE12: =COUNTIF(L24:L31,AD12) -> 0 | AF12: =AE12/(AG4-AE11) ->  | AG12: =IF(AF12=0,0,(AF12*((LOG(AF12))/LOG(2)))) ->  | AI12: =N12 -> 212 | AJ12: =COUNTIF(L32:L39,AI12) -> 0 | AK12: =AJ12/(AL4-AJ11) -> 0 | AL12: =IF(AK12=0,0,(AK12*((LOG(AK12))/LOG(2)))) -> 0 | AN12: =N12 -> 212 | AO12: =COUNTIF(L40:L48,AN12) -> 0 | AP12: =AO12/(AQ4-AO11) -> 0 | AQ12: =IF(AP12=0,0,(AP12*((LOG(AP12))/LOG(2)))) -> 0 | AS12: =N12 -> 212 | AT12: =COUNTIF(L49:L56,AS12) -> 0 | AU12: =AT12/(AV4-AT11) -> 0 | AV12: =IF(AU12=0,0,(AU12*((LOG(AU12))/LOG(2)))) -> 0
A13: 12 | B13: 804 | C13: 13 | D13: 809 | E13: 13 | F13: 818 | K13: 0 | L13: 111 | N13: 221 | O13: =COUNTIF($L$7:$L$500,N13) -> 0 | P13: =O13/$Q$4 -> 0 | Q13: =IF(P13=0,0,(P13*((LOG(P13))/LOG(2)))) -> 0 | T13: =N13 -> 221 | U13: =COUNTIF(L7:L14,T13) -> 0 | V13: =U13/(W4-U11) -> 0 | W13: =IF(V13=0,0,(V13*((LOG(V13))/LOG(2)))) -> 0 | Y13: =N13 -> 221 | Z13: =COUNTIF(L15:L23,Y13) -> 0 | AA13: =Z13/(AB4-Z11) -> 0 | AB13: =IF(AA13=0,0,(AA13*((LOG(AA13))/LOG(2)))) -> 0 | AD13: =N13 -> 221 | AE13: =COUNTIF(L24:L31,AD13) -> 0 | AF13: =AE13/(AG4-AE11) ->  | AG13: =IF(AF13=0,0,(AF13*((LOG(AF13))/LOG(2)))) ->  | AI13: =N13 -> 221 | AJ13: =COUNTIF(L32:L39,AI13) -> 0 | AK13: =AJ13/(AL4-AJ11) -> 0 | AL13: =IF(AK13=0,0,(AK13*((LOG(AK13))/LOG(2)))) -> 0 | AN13: =N13 -> 221 | AO13: =COUNTIF(L40:L48,AN13) -> 0 | AP13: =AO13/(AQ4-AO11) -> 0 | AQ13: =IF(AP13=0,0,(AP13*((LOG(AP13))/LOG(2)))) -> 0 | AS13: =N13 -> 221 | AT13: =COUNTIF(L49:L56,AS13) -> 0 | AU13: =AT13/(AV4-AT11) -> 0 | AV13: =IF(AU13=0,0,(AU13*((LOG(AU13))/LOG(2)))) -> 0
A14: 21 | B14: 923 | C14: 11 | D14: 937 | E14: 11 | F14: 944 | K14: 0 | L14: 211 | N14: 222 | O14: =COUNTIF($L$7:$L$500,N14) -> 0 | P14: =O14/$Q$4 -> 0 | Q14: =IF(P14=0,0,(P14*((LOG(P14))/LOG(2)))) -> 0 | T14: =N14 -> 222 | U14: =COUNTIF(L7:L14,T14) -> 0 | V14: =U14/(W4-U11) -> 0 | W14: =IF(V14=0,0,(V14*((LOG(V14))/LOG(2)))) -> 0 | Y14: =N14 -> 222 | Z14: =COUNTIF(L15:L23,Y14) -> 0 | AA14: =Z14/(AB4-Z11) -> 0 | AB14: =IF(AA14=0,0,(AA14*((LOG(AA14))/LOG(2)))) -> 0 | AD14: =N14 -> 222 | AE14: =COUNTIF(L24:L31,AD14) -> 0 | AF14: =AE14/(AG4-AE11) ->  | AG14: =IF(AF14=0,0,(AF14*((LOG(AF14))/LOG(2)))) ->  | AI14: =N14 -> 222 | AJ14: =COUNTIF(L32:L39,AI14) -> 0 | AK14: =AJ14/(AL4-AJ11) -> 0 | AL14: =IF(AK14=0,0,(AK14*((LOG(AK14))/LOG(2)))) -> 0 | AN14: =N14 -> 222 | AO14: =COUNTIF(L40:L48,AN14) -> 0 | AP14: =AO14/(AQ4-AO11) -> 0 | AQ14: =IF(AP14=0,0,(AP14*((LOG(AP14))/LOG(2)))) -> 0 | AS14: =N14 -> 222 | AT14: =COUNTIF(L49:L56,AS14) -> 0 | AU14: =AT14/(AV4-AT11) -> 0 | AV14: =IF(AU14=0,0,(AU14*((LOG(AU14))/LOG(2)))) -> 0
A15: 12 | B15: 1047 | C15: 13 | D15: 1053 | E15: 13 | F15: 1062 | K15: 0 | L15: 111 | P15: =SUM(P7:P14) -> 1 | Q15: =-SUM(Q7:Q14) -> 0.7219280949 | V15: =SUM(V7:V14) -> 1 | W15: =-SUM(W7:W14) -> 0 | AA15: =SUM(AA7:AA14) -> 1 | AB15: =-SUM(AB7:AB14) -> 0 | AF15: =SUM(AF7:AF14) ->  | AG15: =-SUM(AG7:AG14) ->  | AK15: =SUM(AK7:AK14) -> 1 | AL15: =-SUM(AL7:AL14) -> 0 | AP15: =SUM(AP7:AP14) -> 1 | AQ15: =-SUM(AQ7:AQ14) -> 0 | AU15: =SUM(AU7:AU14) -> 1 | AV15: =-SUM(AV7:AV14) -> 0
A16: 21 | B16: 1163 | C16: 11 | D16: 1177 | E16: 11 | F16: 1182 | K16: 0 | L16: 211 | P16: U= | Q16: =Q15/(LOG(Q4)/LOG(2)) -> 0.1279139777 | V16: U1= | W16: =W15/(LOG(W4)/LOG(2)) -> 0 | AA16: U2= | AB16: =AB15/(LOG(AB4)/LOG(2)) -> 0 | AF16: U3= | AG16: =AG15/(LOG(AG4)/LOG(2)) ->  | AK16: U4= | AL16: =AL15/(LOG(AL4)/LOG(2)) -> 0 | AP16: U5= | AQ16: =AQ15/(LOG(AQ4)/LOG(2)) -> 0 | AU16: U6= | AV16: =AV15/(LOG(AV4)/LOG(2)) -> 0
A17: 21 | B17: 1278 | C17: 11 | D17: 1293 | E17: 11 | F17: 1299 | K17: 0 | L17: 211
A18: 21 | B18: 1396 | C18: 11 | D18: 1414 | E18: 11 | F18: 1422 | K18: 0 | L18: 211
A19: 21 | B19: 1519 | C19: 11 | D19: 1532 | E19: 11 | F19: 1542 | K19: 0 | L19: 211 | N19: Total Target Seq
A20: 21 | B20: 1642 | C20: 11 | D20: 1653 | E20: 11 | F20: 1663 | K20: 0 | L20: 211 | N20: =COUNTIF(L7:L56,G3) -> 40 | P20: 8 | Q20: 9 | R20: 8 | S20: 8 | T20: 9 | U20: 8
A21: 21 | B21: 1755 | C21: 11 | D21: 1774 | E21: 11 | F21: 1784 | K21: 0 | L21: 211 | P21: % of reinforcement given in 6 equal intervals based on number of trials
A22: 12 | B22: 1898 | C22: 13 | D22: 1910 | E22: 13 | F22: 1926 | K22: 0 | L22: 111 | P22: %_1 | Q22: %_2 | R22: %_3 | S22: %_4 | T22: %_5 | U22: %_6
A23: 21 | B23: 2031 | C23: 11 | D23: 2044 | E23: 11 | F23: 2053 | K23: 0 | L23: 211 | O23: target sequence | P23: =$G$3 -> 211 | Q23: =$G$3 -> 211 | R23: =$G$3 -> 211 | S23: =$G$3 -> 211 | T23: =$G$3 -> 211 | U23: =$G$3 -> 211
A24: 21 | B24: 2150 | C24: 11 | D24: 2160 | E24: 11 | F24: 2171 | K24: 0 | L24: 211 | O24: total reinforcement | P24: =U11 -> 5 | Q24: =Z11 -> 7 | R24: =AE11 -> 8 | S24: =AJ11 -> 7 | T24: =AO11 -> 6 | U24: =AT11 -> 7
A25: 21 | B25: 2267 | C25: 11 | D25: 2276 | E25: 11 | F25: 2285 | K25: 0 | L25: 211 | O25: % target
A26: 21 | B26: 2384 | C26: 11 | D26: 2404 | E26: 11 | F26: 2428 | K26: 0 | L26: 211 | O26: CCRF
A27: 21 | B27: 2525 | C27: 11 | D27: 2536 | E27: 11 | F27: 2541 | K27: 0 | L27: 211 | O27: % CCRf
A28: 21 | B28: 2642 | C28: 11 | D28: 2657 | E28: 11 | F28: 2667 | K28: 0 | L28: 211 | O28: average response rate | P28: =F14/P20 -> 118 | Q28: =(F23-F14)/Q20 -> 123.2222222 | R28: =(F31-F23)/R20 -> 120.125 | S28: =(F39-F31)/S20 -> 118.375 | T28: =(F48-F39)/T20 -> 124.1111111 | U28: =(F56-F48)/U20 -> 121.625
A29: 21 | B29: 2765 | C29: 11 | D29: 2774 | E29: 11 | F29: 2781 | K29: 0 | L29: 211
A30: 21 | B30: 2881 | C30: 11 | D30: 2890 | E30: 11 | F30: 2900 | K30: 0 | L30: 211
A31: 21 | B31: 2994 | C31: 11 | D31: 3008 | E31: 11 | F31: 3014 | K31: 0 | L31: 211
A32: 21 | B32: 3109 | C32: 11 | D32: 3119 | E32: 11 | F32: 3125 | K32: 0 | L32: 211
A33: 21 | B33: 3221 | C33: 11 | D33: 3236 | E33: 11 | F33: 3247 | K33: 0 | L33: 211
A34: 21 | B34: 3344 | C34: 11 | D34: 3354 | E34: 11 | F34: 3365 | K34: 0 | L34: 211
A35: 21 | B35: 3458 | C35: 11 | D35: 3471 | E35: 11 | F35: 3481 | K35: 0 | L35: 211
A36: 21 | B36: 3574 | C36: 11 | D36: 3587 | E36: 11 | F36: 3597 | K36: 0 | L36: 211
A37: 21 | B37: 3689 | C37: 11 | D37: 3703 | E37: 11 | F37: 3709 | K37: 0 | L37: 211
A38: 21 | B38: 3802 | C38: 11 | D38: 3816 | E38: 11 | F38: 3823 | K38: 0 | L38: 211
A39: 12 | B39: 3927 | C39: 13 | D39: 3932 | E39: 13 | F39: 3961 | K39: 0 | L39: 111
A40: 21 | B40: 4064 | C40: 11 | D40: 4078 | E40: 11 | F40: 4086 | K40: 0 | L40: 211
A41: 12 | B41: 4192 | C41: 13 | D41: 4197 | E41: 13 | F41: 4206 | K41: 0 | L41: 111
A42: 21 | B42: 4308 | C42: 11 | D42: 4321 | E42: 11 | F42: 4331 | K42: 0 | L42: 211
A43: 12 | B43: 4440 | C43: 13 | D43: 4454 | E43: 13 | F43: 4468 | K43: 0 | L43: 111
A44: 21 | B44: 4571 | C44: 11 | D44: 4587 | E44: 11 | F44: 4593 | K44: 0 | L44: 211
A45: 21 | B45: 4686 | C45: 11 | D45: 4698 | E45: 11 | F45: 4705 | K45: 0 | L45: 211
A46: 21 | B46: 4801 | C46: 11 | D46: 4815 | E46: 11 | F46: 4826 | K46: 0 | L46: 211
A47: 21 | B47: 4922 | C47: 11 | D47: 4939 | E47: 11 | F47: 4950 | K47: 0 | L47: 211
A48: 12 | B48: 5055 | C48: 13 | D48: 5060 | E48: 13 | F48: 5078 | K48: 0 | L48: 111
A49: 21 | B49: 5181 | C49: 11 | D49: 5195 | E49: 11 | F49: 5201 | K49: 0 | L49: 211
A50: 21 | B50: 5296 | C50: 11 | D50: 5320 | E50: 11 | F50: 5333 | K50: 0 | L50: 211
A51: 12 | B51: 5438 | C51: 13 | D51: 5448 | E51: 13 | F51: 5463 | K51: 0 | L51: 111
A52: 21 | B52: 5562 | C52: 11 | D52: 5581 | E52: 11 | F52: 5594 | K52: 0 | L52: 211
A53: 21 | B53: 5687 | C53: 11 | D53: 5697 | E53: 11 | F53: 5701 | K53: 0 | L53: 211
A54: 21 | B54: 5796 | C54: 11 | D54: 5809 | E54: 11 | F54: 5819 | K54: 0 | L54: 211
A55: 21 | B55: 5911 | C55: 11 | D55: 5920 | E55: 11 | F55: 5925 | K55: 0 | L55: 211
A56: 21 | B56: 6021 | C56: 11 | D56: 6036 | E56: 11 | F56: 6051 | K56: 1 | L56: 211

Sheet !N330800.010
A1: Report for:!N330800.010
A2: Date: | B2: <date>
A3: Hen: | B3: <hen> | F3: Correct Sequence | G3: =Start!J2 -> 211 | P3: Total Sequences in Data | Q3: =4994-COUNTBLANK(L7:L5000) -> 56 | V3: Total Sequences in Block Data | W3: =COUNTA(L7:L15) -> 9 | AA3: Total Sequences in Block Data | AB3: =COUNTA(L16:L25) -> 10 | AF3: Total Sequences in Block Data | AG3: =COUNTA(L26:L34) -> 9 | AK3: Total Sequences in Block Data | AL3: =COUNTA(L35:L43) -> 9 | AP3: Total Sequences in Block Data | AQ3: =COUNTA(L44:L53) -> 10 | AU3: Total Sequences in Block Data | AV3: =COUNTA(L54:L62) -> 9
P4: Total Sequences in Summary | Q4: =SUM(O7:O14) -> 56 | V4: Total Sequences in Block Summary | W4: =SUM(U7:U14) -> 9 | AA4: Total Sequences in Block Summary | AB4: =SUM(Z7:Z14) -> 10 | AF4: Total Sequences in Block Summary | AG4: =SUM(AE7:AE14) -> 9 | AK4: Total Sequences in Block Summary | AL4: =SUM(AJ7:AJ14) -> 9 | AP4: Total Sequences in Block Summary | AQ4: =SUM(AO7:AO14) -> 10 | AU4: Total Sequences in Block Summary | AV4: =SUM(AT7:AT14) -> 9
T5: Block 1 | Y5: Block 2 | AD5: Block 3 | AI5: Block 4 | AN5: Block 5 | AS5: Block 6
A6: Sequence Component 1 | B6: Time 1 | C6: Sequence Component 2 | D6: Time 2 | E6: Sequence Component 3 | F6: Time 3 | G6: Sequence Component 4 | H6: Time 4 | I6: Sequence Component 5 | J6: Time 5 | K6: Correct? 0=No 1=Yes | L6: Sequence | N6: Frequency | P6: Relative Frequency | Q6: Variability | T6: Frequency | V6: Relative Frequency | W6: Variability | Y6: Frequency | AA6: Relative Frequency | AB6: Variability | AD6: Frequency | AF6: Relative Frequency | AG6: Variability | AI6: Frequency | AK6: Relative Frequency | AL6: Variability | AN6: Frequency | AP6: Relative Frequency | AQ6: Variability | AS6: Frequency | AU6: Relative Frequency | AV6: Variability
A7: 12 | B7: 22 | C7: 13 | D7: 28 | E7: 13 | F7: 33 | K7: 0 | L7: 111 | N7: 111 | O7: =COUNTIF($L$7:$L$500,N7) -> 11 | P7: =O7/$Q$4 -> 0.1964285714 | Q7: =IF(P7=0,0,(P7*((LOG(P7))/LOG(2)))) -> -0.4611992203 | T7: =N7 -> 111 | U7: =COUNTIF(L7:L15,T7) -> 1 | V7: =U7/(W4-U11) -> 1 | W7: =IF(V7=0,0,(V7*((LOG(V7))/LOG(2)))) -> 0 | Y7: =N7 -> 111 | Z7: =COUNTIF(L16:L25,Y7) -> 3 | AA7: =Z7/(AB4-Z11) -> 0.6 | AB7: =IF(AA7=0,0,(AA7*((LOG(AA7))/LOG(2)))) -> -0.4421793565 | AD7: =N7 -> 111 | AE7: =COUNTIF(L26:L34,AD7) -> 4 | AF7: =AE7/(AG4-AE11) -> 1 | AG7: =IF(AF7=0,0,(AF7*((LOG(AF7))/LOG(2)))) -> 0 | AI7: =N7 -> 111 | AJ7: =COUNTIF(L35:L43,AI7) -> 0 | AK7: =AJ7/(AL4-AJ11) ->  | AL7: =IF(AK7=0,0,(AK7*((LOG(AK7))/LOG(2)))) ->  | AN7: =N7 -> 111 | AO7: =COUNTIF(L44:L53,AN7) -> 2 | AP7: =AO7/(AQ4-AO11) -> 0.5 | AQ7: =IF(AP7=0,0,(AP7*((LOG(AP7))/LOG(2)))) -> -0.5 | AS7: =N7 -> 111 | AT7: =COUNTIF(L54:L62,AS7) -> 1 | AU7: =AT7/(AV4-AT11) -> 0.3333333333 | AV7: =IF(AU7=0,0,(AU7*((LOG(AU7))/LOG(2)))) -> -0.5283208336
A8: 21 | B8: 142 | C8: 11 | D8: 156 | E8: 11 | F8: 166 | K8: 0 | L8: 211 | N8: 112 | O8: =COUNTIF($L$7:$L$500,N8) -> 1 | P8: =O8/$Q$4 -> 0.01785714286 | Q8: =IF(P8=0,0,(P8*((LOG(P8))/LOG(2)))) -> -0.1037027665 | T8: =N8 -> 112 | U8: =COUNTIF(L7:L15,T8) -> 0 | V8: =U8/(W4-U11) -> 0 | W8: =IF(V8=0,0,(V8*((LOG(V8))/LOG(2)))) -> 0 | Y8: =N8 -> 112 | Z8: =COUNTIF(L16:L25,Y8) -> 0 | AA8: =Z8/(AB4-Z11) -> 0 | AB8: =IF(AA8=0,0,(AA8*((LOG(AA8))/LOG(2)))) -> 0 | AD8: =N8 -> 112 | AE8: =COUNTIF(L26:L34,AD8) -> 0 | AF8: =AE8/(AG4-AE11) -> 0 | AG8: =IF(AF8=0,0,(AF8*((LOG(AF8))/LOG(2)))) -> 0 | AI8: =N8 -> 112 | AJ8: =COUNTIF(L35:L43,AI8) -> 0 | AK8: =AJ8/(AL4-AJ11) ->  | AL8: =IF(AK8=0,0,(AK8*((LOG(AK8))/LOG(2)))) ->  | AN8: =N8 -> 112 | AO8: =COUNTIF(L44:L53,AN8) -> 1 | AP8: =AO8/(AQ4-AO11) -> 0.25 | AQ8: =IF(AP8=0,0,(AP8*((LOG(AP8))/LOG(2)))) -> -0.5 | AS8: =N8 -> 112 | AT8: =COUNTIF(L54:L62,AS8) -> 0 | AU8: =AT8/(AV4-AT11) -> 0 | AV8: =IF(AU8=0,0,(AU8*((LOG(AU8))/LOG(2)))) -> 0
A9: 21 | B9: 263 | C9: 11 | D9: 273 | E9: 11 | F9: 280 | K9: 0 | L9: 211 | N9: 121 | O9: =COUNTIF($L$7:$L$500,N9) -> 2 | P9: =O9/$Q$4 -> 0.03571428571 | Q9: =IF(P9=0,0,(P9*((LOG(P9))/LOG(2)))) -> -0.1716912472 | T9: =N9 -> 121 | U9: =COUNTIF(L7:L15,T9) -> 0 | V9: =U9/(W4-U11) -> 0 | W9: =IF(V9=0,0,(V9*((LOG(V9))/LOG(2)))) -> 0 | Y9: =N9 -> 121 | Z9: =COUNTIF(L16:L25,Y9) -> 1 | AA9: =Z9/(AB4-Z11) -> 0.2 | AB9: =IF(AA9=0,0,(AA9*((LOG(AA9))/LOG(2)))) -> -0.464385619 | AD9: =N9 -> 121 | AE9: =COUNTIF(L26:L34,AD9) -> 0 | AF9: =AE9/(AG4-AE11) -> 0 | AG9: =IF(AF9=0,0,(AF9*((LOG(AF9))/LOG(2)))) -> 0 | AI9: =N9 -> 121 | AJ9: =COUNTIF(L35:L43,AI9) -> 0 | AK9: =AJ9/(AL4-AJ11) ->  | AL9: =IF(AK9=0,0,(AK9*((LOG(AK9))/LOG(2)))) ->  | AN9: =N9 -> 121 | AO9: =COUNTIF(L44:L53,AN9) -> 0 | AP9: =AO9/(AQ4-AO11) -> 0 | AQ9: =IF(AP9=0,0,(AP9*((LOG(AP9))/LOG(2)))) -> 0 | AS9: =N9 -> 121 | AT9: =COUNTIF(L54:L62,AS9) -> 1 | AU9: =AT9/(AV4-AT11) -> 0.3333333333 | AV9: =IF(AU9=0,0,(AU9*((LOG(AU9))/LOG(2)))) -> -0.5283208336
A10: 21 | B10: 376 | C10: 11 | D10: 386 | E10: 11 | F10: 394 | K10: 0 | L10: 211 | N10: 122 | O10: =COUNTIF($L$7:$L$500,N10) -> 0 | P10: =O10/$Q$4 -> 0 | Q10: =IF(P10=0,0,(P10*((LOG(P10))/LOG(2)))) -> 0 | T10: =N10 -> 122 | U10: =COUNTIF(L7:L15,T10) -> 0 | V10: =U10/(W4-U11) -> 0 | W10: =IF(V10=0,0,(V10*((LOG(V10))/LOG(2)))) -> 0 | Y10: =N10 -> 122 | Z10: =COUNTIF(L16:L25,Y10) -> 0 | AA10: =Z10/(AB4-Z11) -> 0 | AB10: =IF(AA10=0,0,(AA10*((LOG(AA10))/LOG(2)))) -> 0 | AD10: =N10 -> 122 | AE10: =COUNTIF(L26:L34,AD10) -> 0 | AF10: =AE10/(AG4-AE11) -> 0 | AG10: =IF(AF10=0,0,(AF10*((LOG(AF10))/LOG(2)))) -> 0 | AI10: =N10 -> 122 | AJ10: =COUNTIF(L35:L43,AI10) -> 0 | AK10: =AJ10/(AL4-AJ11) ->  | AL10: =IF(AK10=0,0,(AK10*((LOG(AK10))/LOG(2)))) ->  | AN10: =N10 -> 122 | AO10: =COUNTIF(L44:L53,AN10) -> 0 | AP10: =AO10/(AQ4-AO11) -> 0 | AQ10: =IF(AP10=0,0,(AP10*((LOG(AP10))/LOG(2)))) -> 0 | AS10: =N10 -> 122 | AT10: =COUNTIF(L54:L62,AS10) -> 0 | AU10: =AT10/(AV4-AT11) -> 0 | AV10: =IF(AU10=0,0,(AU10*((LOG(AU10))/LOG(2)))) -> 0
A11: 21 | B11: 491 | C11: 11 | D11: 508 | E11: 11 | F11: 537 | K11: 0 | L11: 211 | N11: 211 | O11: =COUNTIF($L$7:$L$500,N11) -> 39 | P11: =O11/$Q$4 -> 0.6964285714 | Q11: =IF(P11=0,0,(P11*((LOG(P11))/LOG(2)))) -> -0.3635027754 | T11: =N11 -> 211 | U11: =COUNTIF(L7:L15,T11) -> 8 | Y11: =N11 -> 211 | Z11: =COUNTIF(L16:L25,Y11) -> 5 | AD11: =N11 -> 211 | AE11: =COUNTIF(L26:L34,AD11) -> 5 | AI11: =N11 -> 211 | AJ11: =COUNTIF(L35:L43,AI11) -> 9 | AN11: =N11 -> 211 | AO11: =COUNTIF(L44:L53,AN11) -> 6 | AS11: =N11 -> 211 | AT11: =COUNTIF(L54:L62,AS11) -> 6
A12: 21 | B12: 631 | C12: 11 | D12: 642 | E12: 11 | F12: 649 | K12: 0 | L12: 211 | N12: 212 | O12: =COUNTIF($L$7:$L$500,N12) -> 2 | P12: =O12/$Q$4 -> 0.03571428571 | Q12: =IF(P12=0,0,(P12*((LOG(P12))/LOG(2)))) -> -0.1716912472 | T12: =N12 -> 212 | U12: =COUNTIF(L7:L15,T12) -> 0 | V12: =U12/(W4-U11) -> 0 | W12: =IF(V12=0,0,(V12*((LOG(V12))/LOG(2)))) -> 0 | Y12: =N12 -> 212 | Z12: =COUNTIF(L16:L25,Y12) -> 1 | AA12: =Z12/(AB4-Z11) -> 0.2 | AB12: =IF(AA12=0,0,(AA12*((LOG(AA12))/LOG(2)))) -> -0.464385619 | AD12: =N12 -> 212 | AE12: =COUNTIF(L26:L34,AD12) -> 0 | AF12: =AE12/(AG4-AE11) -> 0 | AG12: =IF(AF12=0,0,(AF12*((LOG(AF12))/LOG(2)))) -> 0 | AI12: =N12 -> 212 | AJ12: =COUNTIF(L35:L43,AI12) -> 0 | AK12: =AJ12/(AL4-AJ11) ->  | AL12: =IF(AK12=0,0,(AK12*((LOG(AK12))/LOG(2)))) ->  | AN12: =N12 -> 212 | AO12: =COUNTIF(L44:L53,AN12) -> 0 | AP12: =AO12/(AQ4-AO11) -> 0 | AQ12: =IF(AP12=0,0,(AP12*((LOG(AP12))/LOG(2)))) -> 0 | AS12: =N12 -> 212 | AT12: =COUNTIF(L54:L62,AS12) -> 1 | AU12: =AT12/(AV4-AT11) -> 0.3333333333 | AV12: =IF(AU12=0,0,(AU12*((LOG(AU12))/LOG(2)))) -> -0.5283208336
A13: 21 | B13: 748 | C13: 11 | D13: 759 | E13: 11 | F13: 765 | K13: 0 | L13: 211 | N13: 221 | O13: =COUNTIF($L$7:$L$500,N13) -> 1 | P13: =O13/$Q$4 -> 0.01785714286 | Q13: =IF(P13=0,0,(P13*((LOG(P13))/LOG(2)))) -> -0.1037027665 | T13: =N13 -> 221 | U13: =COUNTIF(L7:L15,T13) -> 0 | V13: =U13/(W4-U11) -> 0 | W13: =IF(V13=0,0,(V13*((LOG(V13))/LOG(2)))) -> 0 | Y13: =N13 -> 221 | Z13: =COUNTIF(L16:L25,Y13) -> 0 | AA13: =Z13/(AB4-Z11) -> 0 | AB13: =IF(AA13=0,0,(AA13*((LOG(AA13))/LOG(2)))) -> 0 | AD13: =N13 -> 221 | AE13: =COUNTIF(L26:L34,AD13) -> 0 | AF13: =AE13/(AG4-AE11) -> 0 | AG13: =IF(AF13=0,0,(AF13*((LOG(AF13))/LOG(2)))) -> 0 | AI13: =N13 -> 221 | AJ13: =COUNTIF(L35:L43,AI13) -> 0 | AK13: =AJ13/(AL4-AJ11) ->  | AL13: =IF(AK13=0,0,(AK13*((LOG(AK13))/LOG(2)))) ->  | AN13: =N13 -> 221 | AO13: =COUNTIF(L44:L53,AN13) -> 1 | AP13: =AO13/(AQ4-AO11) -> 0.25 | AQ13: =IF(AP13=0,0,(AP13*((LOG(AP13))/LOG(2)))) -> -0.5 | AS13: =N13 -> 221 | AT13: =COUNTIF(L54:L62,AS13) -> 0 | AU13: =AT13/(AV4-AT11) -> 0 | AV13: =IF(AU13=0,0,(AU13*((LOG(AU13))/LOG(2)))) -> 0
A14: 21 | B14: 861 | C14: 11 | D14: 875 | E14: 11 | F14: 901 | K14: 0 | L14: 211 | N14: 222 | O14: =COUNTIF($L$7:$L$500,N14) -> 0 | P14: =O14/$Q$4 -> 0 | Q14: =IF(P14=0,0,(P14*((LOG(P14))/LOG(2)))) -> 0 | T14: =N14 -> 222 | U14: =COUNTIF(L7:L15,T14) -> 0 | V14: =U14/(W4-U11) -> 0 | W14: =IF(V14=0,0,(V14*((LOG(V14))/LOG(2)))) -> 0 | Y14: =N14 -> 222 | Z14: =COUNTIF(L16:L25,Y14) -> 0 | AA14: =Z14/(AB4-Z11) -> 0 | AB14: =IF(AA14=0,0,(AA14*((LOG(AA14))/LOG(2)))) -> 0 | AD14: =N14 -> 222 | AE14: =COUNTIF(L26:L34,AD14) -> 0 | AF14: =AE14/(AG4-AE11) -> 0 | AG14: =IF(AF14=0,0,(AF14*((LOG(AF14))/LOG(2)))) -> 0 | AI14: =N14 -> 222 | AJ14: =COUNTIF(L35:L43,AI14) -> 0 | AK14: =AJ14/(AL4-AJ11) ->  | AL14: =IF(AK14=0,0,(AK14*((LOG(AK14))/LOG(2)))) ->  | AN14: =N14 -> 222 | AO14: =COUNTIF(L44:L53,AN14) -> 0 | AP14: =AO14/(AQ4-AO11) -> 0 | AQ14: =IF(AP14=0,0,(AP14*((LOG(AP14))/LOG(2)))) -> 0 | AS14: =N14 -> 222 | AT14: =COUNTIF(L54:L62,AS14) -> 0 | AU14: =AT14/(AV4-AT11) -> 0 | AV14: =IF(AU14=0,0,(AU14*((LOG(AU14))/LOG(2)))) -> 0
A15: 21 | B15: 994 | C15: 11 | D15: 1008 | E15: 11 | F15: 1017 | K15: 0 | L15: 211 | P15: =SUM(P7:P14) -> 1 | Q15: =-SUM(Q7:Q14) -> 1.375490023 | V15: =SUM(V7:V14) -> 1 | W15: =-SUM(W7:W14) -> 0 | AA15: =SUM(AA7:AA14) -> 1 | AB15: =-SUM(AB7:AB14) -> 1.370950594 | AF15: =SUM(AF7:AF14) -> 1 | AG15: =-SUM(AG7:AG14) -> 0 | AK15: =SUM(AK7:AK14) ->  | AL15: =-SUM(AL7:AL14) ->  | AP15: =SUM(AP7:AP14) -> 1 | AQ15: =-SUM(AQ7:AQ14) -> 1.5 | AU15: =SUM(AU7:AU14) -> 1 | AV15: =-SUM(AV7:AV14) -> 1.584962501
A16: 21 | B16: 1109 | C16: 11 | D16: 1122 | E16: 22 | F16: 1149 | K16: 0 | L16: 212 | P16: U= | Q16: =Q15/(LOG(Q4)/LOG(2)) -> 0.2368531012 | V16: U1= | W16: =W15/(LOG(W4)/LOG(2)) -> 0 | AA16: U2= | AB16: =AB15/(LOG(AB4)/LOG(2)) -> 0.4126972515 | AF16: U3= | AG16: =AG15/(LOG(AG4)/LOG(2)) -> 0 | AK16: U4= | AL16: =AL15/(LOG(AL4)/LOG(2)) ->  | AP16: U5= | AQ16: =AQ15/(LOG(AQ4)/LOG(2)) -> 0.4515449935 | AU16: U6= | AV16: =AV15/(LOG(AV4)/LOG(2)) -> 0.5
A17: 21 | B17: 1245 | C17: 11 | D17: 1261 | E17: 11 | F17: 1271 | K17: 0 | L17: 211
A18: 21 | B18: 1366 | C18: 11 | D18: 1377 | E18: 11 | F18: 1388 | K18: 0 | L18: 211
A19: 12 | B19: 1495 | C19: 13 | D19: 1506 | E19: 13 | F19: 1527 | K19: 0 | L19: 111 | N19: Total Target Seq
A20: 21 | B20: 1636 | C20: 11 | D20: 1646 | E20: 11 | F20: 1651 | K20: 0 | L20: 211 | N20: =COUNTIF(L7:L62,G3) -> 39 | P20: 9 | Q20: 10 | R20: 9 | S20: 9 | T20: 10 | U20: 9
A21: 12 | B21: 1755 | C21: 13 | D21: 1762 | E21: 13 | F21: 1768 | K21: 0 | L21: 111 | P21: % of reinforcement given in 6 equal intervals based on number of trials
A22: 21 | B22: 1873 | C22: 11 | D22: 1882 | E22: 11 | F22: 1890 | K22: 0 | L22: 211 | P22: %_1 | Q22: %_2 | R22: %_3 | S22: %_4 | T22: %_5 | U22: %_6
A23: 21 | B23: 1984 | C23: 11 | D23: 1994 | E23: 11 | F23: 2001 | K23: 0 | L23: 211 | O23: target sequence | P23: =$G$3 -> 211 | Q23: =$G$3 -> 211 | R23: =$G$3 -> 211 | S23: =$G$3 -> 211 | T23: =$G$3 -> 211 | U23: =$G$3 -> 211
A24: 12 | B24: 2106 | C24: 24 | D24: 2130 | E24: 13 | F24: 2145 | K24: 0 | L24: 121 | O24: total reinforcement | P24: =U11 -> 8 | Q24: =Z11 -> 5 | R24: =AE11 -> 5 | S24: =AJ11 -> 9 | T24: =AO11 -> 6 | U24: =AT11 -> 6
A25: 12 | B25: 2252 | C25: 13 | D25: 2261 | E25: 13 | F25: 2268 | K25: 0 | L25: 111 | O25: % target
A26: 12 | B26: 2378 | C26: 13 | D26: 2382 | E26: 13 | F26: 2387 | K26: 0 | L26: 111 | O26: CCRF
A27: 21 | B27: 2496 | C27: 11 | D27: 2508 | E27: 11 | F27: 2513 | K27: 0 | L27: 211 | O27: % CCRf
A28: 21 | B28: 2604 | C28: 11 | D28: 2621 | E28: 11 | F28: 2628 | K28: 0 | L28: 211 | O28: average response rate | P28: =F15/P20 -> 113 | Q28: =(F25-F15)/Q20 -> 125.1 | R28: =(F34-F25)/R20 -> 127.6666667 | S28: =(F43-F34)/S20 -> 120.1111111 | T28: =(F53-F43)/T20 -> 124.7 | U28: =(F62-F53)/U20 -> 121
A29: 12 | B29: 2730 | C29: 13 | D29: 2736 | E29: 13 | F29: 2772 | K29: 0 | L29: 111
A30: 12 | B30: 2883 | C30: 13 | D30: 2895 | E30: 13 | F30: 2908 | K30: 0 | L30: 111
A31: 21 | B31: 3015 | C31: 11 | D31: 3030 | E31: 11 | F31: 3044 | K31: 0 | L31: 211
A32: 21 | B32: 3140 | C32: 11 | D32: 3150 | E32: 11 | F32: 3157 | K32: 0 | L32: 211
A33: 12 | B33: 3269 | C33: 13 | D33: 3278 | E33: 13 | F33: 3296 | K33: 0 | L33: 111
A34: 21 | B34: 3401 | C34: 11 | D34: 3411 | E34: 11 | F34: 3417 | K34: 0 | L34: 211
A35: 21 | B35: 3510 | C35: 11 | D35: 3523 | E35: 11 | F35: 3528 | K35: 0 | L35: 211
A36: 21 | B36: 3645 | C36: 11 | D36: 3660 | E36: 11 | F36: 3686 | K36: 0 | L36: 211
A37: 21 | B37: 3775 | C37: 11 | D37: 3786 | E37: 11 | F37: 3797 | K37: 0 | L37: 211
A38: 21 | B38: 3891 | C38: 11 | D38: 3900 | E38: 11 | F38: 3907 | K38: 0 | L38: 211
A39: 21 | B39: 4000 | C39: 11 | D39: 4018 | E39: 11 | F39: 4033 | K39: 0 | L39: 211
A40: 21 | B40: 4132 | C40: 11 | D40: 4141 | E40: 11 | F40: 4148 | K40: 0 | L40: 211
A41: 21 | B41: 4242 | C41: 11 | D41: 4255 | E41: 11 | F41: 4267 | K41: 0 | L41: 211
A42: 21 | B42: 4362 | C42: 11 | D42: 4375 | E42: 11 | F42: 4381 | K42: 0 | L42: 211
A43: 21 | B43: 4476 | C43: 11 | D43: 4489 | E43: 11 | F43: 4498 | K43: 0 | L43: 211
A44: 21 | B44: 4589 | C44: 22 | D44: 4598 | E44: 13 | F44: 4608 | K44: 0 | L44: 221
A45: 21 | B45: 4714 | C45: 11 | D45: 4723 | E45: 11 | F45: 4733 | K45: 0 | L45: 211
A46: 12 | B46: 4843 | C46: 13 | D46: 4850 | E46: 24 | F46: 4885 | K46: 0 | L46: 112
A47: 21 | B47: 4993 | C47: 11 | D47: 5006 | E47: 11 | F47: 5016 | K47: 0 | L47: 211
A48: 12 | B48: 5120 | C48: 13 | D48: 5125 | E48: 13 | F48: 5135 | K48: 0 | L48: 111
A49: 21 | B49: 5238 | C49: 11 | D49: 5250 | E49: 11 | F49: 5256 | K49: 0 | L49: 211
A50: 21 | B50: 5352 | C50: 11 | D50: 5368 | E50: 11 | F50: 5378 | K50: 0 | L50: 211
A51: 21 | B51: 5471 | C51: 11 | D51: 5480 | E51: 11 | F51: 5490 | K51: 0 | L51: 211
A52: 12 | B52: 5591 | C52: 13 | D52: 5600 | E52: 13 | F52: 5621 | K52: 0 | L52: 111
A53: 21 | B53: 5725 | C53: 11 | D53: 5739 | E53: 11 | F53: 5745 | K53: 0 | L53: 211
A54: 21 | B54: 5842 | C54: 11 | D54: 5851 | E54: 11 | F54: 5860 | K54: 0 | L54: 211
A55: 21 | B55: 5955 | C55: 11 | D55: 5974 | E55: 11 | F55: 5988 | K55: 0 | L55: 211
A56: 12 | B56: 6094 | C56: 24 | D56: 6109 | E56: 13 | F56: 6120 | K56: 0 | L56: 121
A57: 21 | B57: 6225 | C57: 11 | D57: 6235 | E57: 22 | F57: 6253 | K57: 0 | L57: 212
A58: 21 | B58: 6359 | C58: 11 | D58: 6367 | E58: 11 | F58: 6376 | K58: 0 | L58: 211
A59: 21 | B59: 6466 | C59: 11 | D59: 6482 | E59: 11 | F59: 6488 | K59: 0 | L59: 211
A60: 12 | B60: 6586 | C60: 13 | D60: 6591 | E60: 13 | F60: 6601 | K60: 0 | L60: 111
A61: 21 | B61: 6706 | C61: 11 | D61: 6719 | E61: 11 | F61: 6724 | K61: 0 | L61: 211
A62: 21 | B62: 6817 | C62: 11 | D62: 6825 | E62: 11 | F62: 6834 | K62: 1 | L62: 211

Sheet !N331750.010
A1: Report for:!N331750.010
A2: Date: | B2: <date>
A3: Hen: | B3: <hen> | F3: Correct Sequence | G3: =Start!J2 -> 211 | P3: Total Sequences in Data | Q3: =4994-COUNTBLANK(L7:L5000) -> 51 | V3: Total Sequences in Block Data | W3: =COUNTA(L7:L15) -> 9 | AA3: Total Sequences in Block Data | AB3: =COUNTA(L16:L23) -> 8 | AF3: Total Sequences in Block Data | AG3: =COUNTA(L24:L32) -> 9 | AK3: Total Sequences in Block Data | AL3: =COUNTA(L33:L40) -> 8 | AP3: Total Sequences in Block Data | AQ3: =COUNTA(L41:L49) -> 9 | AU3: Total Sequences in Block Data | AV3: =COUNTA(L50:L57) -> 8
P4: Total Sequences in Summary | Q4: =SUM(O7:O14) -> 51 | V4: Total Sequences in Block Summary | W4: =SUM(U7:U14) -> 9 | AA4: Total Sequences in Block Summary | AB4: =SUM(Z7:Z14) -> 8 | AF4: Total Sequences in Block Summary | AG4: =SUM(AE7:AE14) -> 9 | AK4: Total Sequences in Block Summary | AL4: =SUM(AJ7:AJ14) -> 8 | AP4: Total Sequences in Block Summary | AQ4: =SUM(AO7:AO14) -> 9 | AU4: Total Sequences in Block Summary | AV4: =SUM(AT7:AT14) -> 8
T5: Block 1 | Y5: Block 2 | AD5: Block 3 | AI5: Block 4 | AN5: Block 5 | AS5: Block 6
A6: Sequence Component 1 | B6: Time 1 | C6: Sequence Component 2 | D6: Time 2 | E6: Sequence Component 3 | F6: Time 3 | G6: Sequence Component 4 | H6: Time 4 | I6: Sequence Component 5 | J6: Time 5 | K6: Correct? 0=No 1=Yes | L6: Sequence | N6: Frequency | P6: Relative Frequency | Q6: Variability | T6: Frequency | V6: Relative Frequency | W6: Variability | Y6: Frequency | AA6: Relative Frequency | AB6: Variability | AD6: Frequency | AF6: Relative Frequency | AG6: Variability | AI6: Frequency | AK6: Relative Frequency | AL6: Variability | AN6: Frequency | AP6: Relative Frequency | AQ6: Variability | AS6: Frequency | AU6: Relative Frequency | AV6: Variability
A7: 21 | B7: 18 | C7: 11 | D7: 30 | E7: 11 | F7: 36 | K7: 0 | L7: 211 | N7: 111 | O7: =COUNTIF($L$7:$L$500,N7) -> 7 | P7: =O7/$Q$4 -> 0.137254902 | Q7: =IF(P7=0,0,(P7*((LOG(P7))/LOG(2)))) -> -0.3932449596 | T7: =N7 -> 111 | U7: =COUNTIF(L7:L15,T7) -> 0 | V7: =U7/(W4-U11) -> 0 | W7: =IF(V7=0,0,(V7*((LOG(V7))/LOG(2)))) -> 0 | Y7: =N7 -> 111 | Z7: =COUNTIF(L16:L23,Y7) -> 1 | AA7: =Z7/(AB4-Z11) -> 1 | AB7: =IF(AA7=0,0,(AA7*((LOG(AA7))/LOG(2)))) -> 0 | AD7: =N7 -> 111 | AE7: =COUNTIF(L24:L32,AD7) -> 3 | AF7: =AE7/(AG4-AE11) -> 0.75 | AG7: =IF(AF7=0,0,(AF7*((LOG(AF7))/LOG(2)))) -> -0.3112781245 | AI7: =N7 -> 111 | AJ7: =COUNTIF(L33:L40,AI7) -> 2 | AK7: =AJ7/(AL4-AJ11) -> 0.6666666667 | AL7: =IF(AK7=0,0,(AK7*((LOG(AK7))/LOG(2)))) -> -0.3899750005 | AN7: =N7 -> 111 | AO7: =COUNTIF(L41:L49,AN7) -> 1 | AP7: =AO7/(AQ4-AO11) -> 1 | AQ7: =IF(AP7=0,0,(AP7*((LOG(AP7))/LOG(2)))) -> 0 | AS7: =N7 -> 111 | AT7: =COUNTIF(L50:L57,AS7) -> 0 | AU7: =AT7/(AV4-AT11) -> 0 | AV7: =IF(AU7=0,0,(AU7*((LOG(AU7))/LOG(2)))) -> 0
A8: 21 | B8: 140 | C8: 11 | D8: 150 | E8: 11 | F8: 156 | K8: 0 | L8: 211 | N8: 112 | O8: =COUNTIF($L$7:$L$500,N8) -> 2 | P8: =O8/$Q$4 -> 0.03921568627 | Q8: =IF(P8=0,0,(P8*((LOG(P8))/LOG(2)))) -> -0.1832323664 | T8: =N8 -> 112 | U8: =COUNTIF(L7:L15,T8) -> 1 | V8: =U8/(W4-U11) -> 0.5 | W8: =IF(V8=0,0,(V8*((LOG(V8))/LOG(2)))) -> -0.5 | Y8: =N8 -> 112 | Z8: =COUNTIF(L16:L23,Y8) -> 0 | AA8: =Z8/(AB4-Z11) -> 0 | AB8: =IF(AA8=0,0,(AA8*((LOG(AA8))/LOG(2)))) -> 0 | AD8: =N8 -> 112 | AE8: =COUNTIF(L24:L32,AD8) -> 1 | AF8: =AE8/(AG4-AE11) -> 0.25 | AG8: =IF(AF8=0,0,(AF8*((LOG(AF8))/LOG(2)))) -> -0.5 | AI8: =N8 -> 112 | AJ8: =COUNTIF(L33:L40,AI8) -> 0 | AK8: =AJ8/(AL4-AJ11) -> 0 | AL8: =IF(AK8=0,0,(AK8*((LOG(AK8))/LOG(2)))) -> 0 | AN8: =N8 -> 112 | AO8: =COUNTIF(L41:L49,AN8) -> 0 | AP8: =AO8/(AQ4-AO11) -> 0 | AQ8: =IF(AP8=0,0,(AP8*((LOG(AP8))/LOG(2)))) -> 0 | AS8: =N8 -> 112 | AT8: =COUNTIF(L50:L57,AS8) -> 0 | AU8: =AT8/(AV4-AT11) -> 0 | AV8: =IF(AU8=0,0,(AU8*((LOG(AU8))/LOG(2)))) -> 0
A9: 12 | B9: 273 | C9: 13 | D9: 279 | E9: 24 | F9: 317 | K9: 0 | L9: 112 | N9: 121 | O9: =COUNTIF($L$7:$L$500,N9) -> 1 | P9: =O9/$Q$4 -> 0.01960784314 | Q9: =IF(P9=0,0,(P9*((LOG(P9))/LOG(2)))) -> -0.1112240263 | T9: =N9 -> 121 | U9: =COUNTIF(L7:L15,T9) -> 1 | V9: =U9/(W4-U11) -> 0.5 | W9: =IF(V9=0,0,(V9*((LOG(V9))/LOG(2)))) -> -0.5 | Y9: =N9 -> 121 | Z9: =COUNTIF(L16:L23,Y9) -> 0 | AA9: =Z9/(AB4-Z11) -> 0 | AB9: =IF(AA9=0,0,(AA9*((LOG(AA9))/LOG(2)))) -> 0 | AD9: =N9 -> 121 | AE9: =COUNTIF(L24:L32,AD9) -> 0 | AF9: =AE9/(AG4-AE11) -> 0 | AG9: =IF(AF9=0,0,(AF9*((LOG(AF9))/LOG(2)))) -> 0 | AI9: =N9 -> 121 | AJ9: =COUNTIF(L33:L40,AI9) -> 0 | AK9: =AJ9/(AL4-AJ11) -> 0 | AL9: =IF(AK9=0,0,(AK9*((LOG(AK9))/LOG(2)))) -> 0 | AN9: =N9 -> 121 | AO9: =COUNTIF(L41:L49,AN9) -> 0 | AP9: =AO9/(AQ4-AO11) -> 0 | AQ9: =IF(AP9=0,0,(AP9*((LOG(AP9))/LOG(2)))) -> 0 | AS9: =N9 -> 121 | AT9: =COUNTIF(L50:L57,AS9) -> 0 | AU9: =AT9/(AV4-AT11) -> 0 | AV9: =IF(AU9=0,0,(AU9*((LOG(AU9))/LOG(2)))) -> 0
A10: 21 | B10: 426 | C10: 11 | D10: 439 | E10: 11 | F10: 445 | K10: 0 | L10: 211 | N10: 122 | O10: =COUNTIF($L$7:$L$500,N10) -> 0 | P10: =O10/$Q$4 -> 0 | Q10: =IF(P10=0,0,(P10*((LOG(P10))/LOG(2)))) -> 0 | T10: =N10 -> 122 | U10: =COUNTIF(L7:L15,T10) -> 0 | V10: =U10/(W4-U11) -> 0 | W10: =IF(V10=0,0,(V10*((LOG(V10))/LOG(2)))) -> 0 | Y10: =N10 -> 122 | Z10: =COUNTIF(L16:L23,Y10) -> 0 | AA10: =Z10/(AB4-Z11) -> 0 | AB10: =IF(AA10=0,0,(AA10*((LOG(AA10))/LOG(2)))) -> 0 | AD10: =N10 -> 122 | AE10: =COUNTIF(L24:L32,AD10) -> 0 | AF10: =AE10/(AG4-AE11) -> 0 | AG10: =IF(AF10=0,0,(AF10*((LOG(AF10))/LOG(2)))) -> 0 | AI10: =N10 -> 122 | AJ10: =COUNTIF(L33:L40,AI10) -> 0 | AK10: =AJ10/(AL4-AJ11) -> 0 | AL10: =IF(AK10=0,0,(AK10*((LOG(AK10))/LOG(2)))) -> 0 | AN10: =N10 -> 122 | AO10: =COUNTIF(L41:L49,AN10) -> 0 | AP10: =AO10/(AQ4-AO11) -> 0 | AQ10: =IF(AP10=0,0,(AP10*((LOG(AP10))/LOG(2)))) -> 0 | AS10: =N10 -> 122 | AT10: =COUNTIF(L50:L57,AS10) -> 0 | AU10: =AT10/(AV4-AT11) -> 0 | AV10: =IF(AU10=0,0,(AU10*((LOG(AU10))/LOG(2)))) -> 0
A11: 21 | B11: 548 | C11: 11 | D11: 563 | E11: 11 | F11: 571 | K11: 0 | L11: 211 | N11: 211 | O11: =COUNTIF($L$7:$L$500,N11) -> 39 | P11: =O11/$Q$4 -> 0.7647058824 | Q11: =IF(P11=0,0,(P11*((LOG(P11))/LOG(2)))) -> -0.2959588588 | T11: =N11 -> 211 | U11: =COUNTIF(L7:L15,T11) -> 7 | Y11: =N11 -> 211 | Z11: =COUNTIF(L16:L23,Y11) -> 7 | AD11: =N11 -> 211 | AE11: =COUNTIF(L24:L32,AD11) -> 5 | AI11: =N11 -> 211 | AJ11: =COUNTIF(L33:L40,AI11) -> 5 | AN11: =N11 -> 211 | AO11: =COUNTIF(L41:L49,AN11) -> 8 | AS11: =N11 -> 211 | AT11: =COUNTIF(L50:L57,AS11) -> 7
A12: 21 | B12: 668 | C12: 11 | D12: 690 | E12: 11 | F12: 705 | K12: 0 | L12: 211 | N12: 212 | O12: =COUNTIF($L$7:$L$500,N12) -> 1 | P12: =O12/$Q$4 -> 0.01960784314 | Q12: =IF(P12=0,0,(P12*((LOG(P12))/LOG(2)))) -> -0.1112240263 | T12: =N12 -> 212 | U12: =COUNTIF(L7:L15,T12) -> 0 | V12: =U12/(W4-U11) -> 0 | W12: =IF(V12=0,0,(V12*((LOG(V12))/LOG(2)))) -> 0 | Y12: =N12 -> 212 | Z12: =COUNTIF(L16:L23,Y12) -> 0 | AA12: =Z12/(AB4-Z11) -> 0 | AB12: =IF(AA12=0,0,(AA12*((LOG(AA12))/LOG(2)))) -> 0 | AD12: =N12 -> 212 | AE12: =COUNTIF(L24:L32,AD12) -> 0 | AF12: =AE12/(AG4-AE11) -> 0 | AG12: =IF(AF12=0,0,(AF12*((LOG(AF12))/LOG(2)))) -> 0 | AI12: =N12 -> 212 | AJ12: =COUNTIF(L33:L40,AI12) -> 1 | AK12: =AJ12/(AL4-AJ11) -> 0.3333333333 | AL12: =IF(AK12=0,0,(AK12*((LOG(AK12))/LOG(2)))) -> -0.5283208336 | AN12: =N12 -> 212 | AO12: =COUNTIF(L41:L49,AN12) -> 0 | AP12: =AO12/(AQ4-AO11) -> 0 | AQ12: =IF(AP12=0,0,(AP12*((LOG(AP12))/LOG(2)))) -> 0 | AS12: =N12 -> 212 | AT12: =COUNTIF(L50:L57,AS12) -> 0 | AU12: =AT12/(AV4-AT11) -> 0 | AV12: =IF(AU12=0,0,(AU12*((LOG(AU12))/LOG(2)))) -> 0
A13: 21 | B13: 803 | C13: 11 | D13: 818 | E13: 11 | F13: 828 | K13: 0 | L13: 211 | N13: 221 | O13: =COUNTIF($L$7:$L$500,N13) -> 1 | P13: =O13/$Q$4 -> 0.01960784314 | Q13: =IF(P13=0,0,(P13*((LOG(P13))/LOG(2)))) -> -0.1112240263 | T13: =N13 -> 221 | U13: =COUNTIF(L7:L15,T13) -> 0 | V13: =U13/(W4-U11) -> 0 | W13: =IF(V13=0,0,(V13*((LOG(V13))/LOG(2)))) -> 0 | Y13: =N13 -> 221 | Z13: =COUNTIF(L16:L23,Y13) -> 0 | AA13: =Z13/(AB4-Z11) -> 0 | AB13: =IF(AA13=0,0,(AA13*((LOG(AA13))/LOG(2)))) -> 0 | AD13: =N13 -> 221 | AE13: =COUNTIF(L24:L32,AD13) -> 0 | AF13: =AE13/(AG4-AE11) -> 0 | AG13: =IF(AF13=0,0,(AF13*((LOG(AF13))/LOG(2)))) -> 0 | AI13: =N13 -> 221 | AJ13: =COUNTIF(L33:L40,AI13) -> 0 | AK13: =AJ13/(AL4-AJ11) -> 0 | AL13: =IF(AK13=0,0,(AK13*((LOG(AK13))/LOG(2)))) -> 0 | AN13: =N13 -> 221 | AO13: =COUNTIF(L41:L49,AN13) -> 0 | AP13: =AO13/(AQ4-AO11) -> 0 | AQ13: =IF(AP13=0,0,(AP13*((LOG(AP13))/LOG(2)))) -> 0 | AS13: =N13 -> 221 | AT13: =COUNTIF(L50:L57,AS13) -> 1 | AU13: =AT13/(AV4-AT11) -> 1 | AV13: =IF(AU13=0,0,(AU13*((LOG(AU13))/LOG(2)))) -> 0
A14: 12 | B14: 944 | C14: 24 | D14: 967 | E14: 13 | F14: 985 | K14: 0 | L14: 121 | N14: 222 | O14: =COUNTIF($L$7:$L$500,N14) -> 0 | P14: =O14/$Q$4 -> 0 | Q14: =IF(P14=0,0,(P14*((LOG(P14))/LOG(2)))) -> 0 | T14: =N14 -> 222 | U14: =COUNTIF(L7:L15,T14) -> 0 | V14: =U14/(W4-U11) -> 0 | W14: =IF(V14=0,0,(V14*((LOG(V14))/LOG(2)))) -> 0 | Y14: =N14 -> 222 | Z14: =COUNTIF(L16:L23,Y14) -> 0 | AA14: =Z14/(AB4-Z11) -> 0 | AB14: =IF(AA14=0,0,(AA14*((LOG(AA14))/LOG(2)))) -> 0 | AD14: =N14 -> 222 | AE14: =COUNTIF(L24:L32,AD14) -> 0 | AF14: =AE14/(AG4-AE11) -> 0 | AG14: =IF(AF14=0,0,(AF14*((LOG(AF14))/LOG(2)))) -> 0 | AI14: =N14 -> 222 | AJ14: =COUNTIF(L33:L40,AI14) -> 0 | AK14: =AJ14/(AL4-AJ11) -> 0 | AL14: =IF(AK14=0,0,(AK14*((LOG(AK14))/LOG(2)))) -> 0 | AN14: =N14 -> 222 | AO14: =COUNTIF(L41:L49,AN14) -> 0 | AP14: =AO14/(AQ4-AO11) -> 0 | AQ14: =IF(AP14=0,0,(AP14*((LOG(AP14))/LOG(2)))) -> 0 | AS14: =N14 -> 222 | AT14: =COUNTIF(L50:L57,AS14) -> 0 | AU14: =AT14/(AV4-AT11) -> 0 | AV14: =IF(AU14=0,0,(AU14*((LOG(AU14))/LOG(2)))) -> 0
A15: 21 | B15: 1080 | C15: 11 | D15: 1094 | E15: 11 | F15: 1102 | K15: 0 | L15: 211 | P15: =SUM(P7:P14) -> 1 | Q15: =-SUM(Q7:Q14) -> 1.206108264 | V15: =SUM(V7:V14) -> 1 | W15: =-SUM(W7:W14) -> 1 | AA15: =SUM(AA7:AA14) -> 1 | AB15: =-SUM(AB7:AB14) -> 0 | AF15: =SUM(AF7:AF14) -> 1 | AG15: =-SUM(AG7:AG14) -> 0.8112781245 | AK15: =SUM(AK7:AK14) -> 1 | AL15: =-SUM(AL7:AL14) -> 0.9182958341 | AP15: =SUM(AP7:AP14) -> 1 | AQ15: =-SUM(AQ7:AQ14) -> 0 | AU15: =SUM(AU7:AU14) -> 1 | AV15: =-SUM(AV7:AV14) -> 0
A16: 21 | B16: 1198 | C16: 11 | D16: 1211 | E16: 11 | F16: 1217 | K16: 0 | L16: 211 | P16: U= | Q16: =Q15/(LOG(Q4)/LOG(2)) -> 0.2126265558 | V16: U1= | W16: =W15/(LOG(W4)/LOG(2)) -> 0.3154648768 | AA16: U2= | AB16: =AB15/(LOG(AB4)/LOG(2)) -> 0 | AF16: U3= | AG16: =AG15/(LOG(AG4)/LOG(2)) -> 0.2559297536 | AK16: U4= | AL16: =AL15/(LOG(AL4)/LOG(2)) -> 0.3060986114 | AP16: U5= | AQ16: =AQ15/(LOG(AQ4)/LOG(2)) -> 0 | AU16: U6= | AV16: =AV15/(LOG(AV4)/LOG(2)) -> 0
A17: 21 | B17: 1322 | C17: 11 | D17: 1333 | E17: 11 | F17: 1344 | K17: 0 | L17: 211
A18: 21 | B18: 1443 | C18: 11 | D18: 1457 | E18: 11 | F18: 1466 | K18: 0 | L18: 211
A19: 21 | B19: 1563 | C19: 11 | D19: 1579 | E19: 11 | F19: 1590 | K19: 0 | L19: 211 | N19: Total Target Seq
A20: 21 | B20: 1686 | C20: 11 | D20: 1693 | E20: 11 | F20: 1702 | K20: 0 | L20: 211 | N20: =COUNTIF(L7:L57,G3) -> 39 | P20: 9 | Q20: 8 | R20: 9 | S20: 8 | T20: 9 | U20: 8
A21: 21 | B21: 1802 | C21: 11 | D21: 1817 | E21: 11 | F21: 1824 | K21: 0 | L21: 211 | P21: % of reinforcement given in 6 equal intervals based on number of trials
A22: 21 | B22: 1917 | C22: 11 | D22: 1931 | E22: 11 | F22: 1936 | K22: 0 | L22: 211 | P22: %_1 | Q22: %_2 | R22: %_3 | S22: %_4 | T22: %_5 | U22: %_6
A23: 12 | B23: 2046 | C23: 13 | D23: 2054 | E23: 13 | F23: 2070 | K23: 0 | L23: 111 | O23: target sequence | P23: =$G$3 -> 211 | Q23: =$G$3 -> 211 | R23: =$G$3 -> 211 | S23: =$G$3 -> 211 | T23: =$G$3 -> 211 | U23: =$G$3 -> 211
A24: 12 | B24: 2182 | C24: 13 | D24: 2192 | E24: 13 | F24: 2214 | K24: 0 | L24: 111 | O24: total reinforcement | P24: =U11 -> 7 | Q24: =Z11 -> 7 | R24: =AE11 -> 5 | S24: =AJ11 -> 5 | T24: =AO11 -> 8 | U24: =AT11 -> 7
A25: 21 | B25: 2319 | C25: 11 | D25: 2329 | E25: 11 | F25: 2338 | K25: 0 | L25: 211 | O25: % target
A26: 12 | B26: 2445 | C26: 13 | D26: 2455 | E26: 24 | F26: 2475 | K26: 0 | L26: 112 | O26: CCRF
A27: 12 | B27: 2588 | C27: 13 | D27: 2593 | E27: 13 | F27: 2604 | K27: 0 | L27: 111 | O27: % CCRf
A28: 21 | B28: 2707 | C28: 11 | D28: 2723 | E28: 11 | F28: 2732 | K28: 0 | L28: 211 | O28: average response rate | P28: =F15/P20 -> 122.4444444 | Q28: =(F23-F15)/Q20 -> 121 | R28: =(F32-F23)/R20 -> 127.7777778 | S28: =(F40-F32)/S20 -> 126 | T28: =(F49-F40)/T20 -> 123.8888889 | U28: =(F57-F49)/U20 -> 112.75
A29: 12 | B29: 2839 | C29: 13 | D29: 2845 | E29: 13 | F29: 2859 | K29: 0 | L29: 111
A30: 21 | B30: 2964 | C30: 11 | D30: 2977 | E30: 11 | F30: 2985 | K30: 0 | L30: 211
A31: 21 | B31: 3079 | C31: 11 | D31: 3092 | E31: 11 | F31: 3098 | K31: 0 | L31: 211
A32: 21 | B32: 3196 | C32: 11 | D32: 3210 | E32: 11 | F32: 3220 | K32: 0 | L32: 211
A33: 21 | B33: 3313 | C33: 11 | D33: 3325 | E33: 11 | F33: 3331 | K33: 0 | L33: 211
A34: 12 | B34: 3437 | C34: 13 | D34: 3442 | E34: 13 | F34: 3463 | K34: 0 | L34: 111
A35: 21 | B35: 3565 | C35: 11 | D35: 3574 | E35: 11 | F35: 3580 | K35: 0 | L35: 211
A36: 21 | B36: 3679 | C36: 11 | D36: 3695 | E36: 11 | F36: 3707 | K36: 0 | L36: 211
A37: 21 | B37: 3801 | C37: 11 | D37: 3811 | E37: 11 | F37: 3820 | K37: 0 | L37: 211
A38: 12 | B38: 3927 | C38: 13 | D38: 3935 | E38: 13 | F38: 3955 | K38: 0 | L38: 111
A39: 21 | B39: 4060 | C39: 11 | D39: 4074 | E39: 22 | F39: 4107 | K39: 0 | L39: 212
A40: 21 | B40: 4210 | C40: 11 | D40: 4223 | E40: 11 | F40: 4228 | K40: 0 | L40: 211
A41: 21 | B41: 4321 | C41: 11 | D41: 4335 | E41: 11 | F41: 4346 | K41: 0 | L41: 211
A42: 21 | B42: 4440 | C42: 11 | D42: 4449 | E42: 11 | F42: 4455 | K42: 0 | L42: 211
A43: 21 | B43: 4550 | C43: 11 | D43: 4562 | E43: 11 | F43: 4569 | K43: 0 | L43: 211
A44: 12 | B44: 4671 | C44: 13 | D44: 4678 | E44: 13 | F44: 4720 | K44: 0 | L44: 111
A45: 21 | B45: 4828 | C45: 11 | D45: 4838 | E45: 11 | F45: 4847 | K45: 0 | L45: 211
A46: 21 | B46: 4940 | C46: 11 | D46: 4953 | E46: 11 | F46: 4961 | K46: 0 | L46: 211
A47: 21 | B47: 5055 | C47: 11 | D47: 5069 | E47: 11 | F47: 5074 | K47: 0 | L47: 211
A48: 21 | B48: 5170 | C48: 11 | D48: 5182 | E48: 11 | F48: 5235 | K48: 0 | L48: 211
A49: 21 | B49: 5328 | C49: 11 | D49: 5337 | E49: 11 | F49: 5343 | K49: 0 | L49: 211
A50: 21 | B50: 5438 | C50: 11 | D50: 5447 | E50: 11 | F50: 5453 | K50: 0 | L50: 211
A51: 21 | B51: 5547 | C51: 11 | D51: 5557 | E51: 11 | F51: 5563 | K51: 0 | L51: 211
A52: 21 | B52: 5653 | C52: 11 | D52: 5665 | E52: 11 | F52: 5671 | K52: 0 | L52: 211
A53: 21 | B53: 5766 | C53: 11 | D53: 5776 | E53: 11 | F53: 5781 | K53: 0 | L53: 211
A54: 21 | B54: 5876 | C54: 22 | D54: 5880 | E54: 13 | F54: 5891 | K54: 0 | L54: 221
A55: 21 | B55: 5994 | C55: 11 | D55: 6007 | E55: 11 | F55: 6016 | K55: 0 | L55: 211
A56: 21 | B56: 6109 | C56: 11 | D56: 6118 | E56: 11 | F56: 6128 | K56: 0 | L56: 211
A57: 21 | B57: 6222 | C57: 11 | D57: 6236 | E57: 11 | F57: 6245 | K57: 1 | L57: 211

Sheet !N401840.010
A1: Report for:!N401840.010
A2: Date: | B2: <date>
A3: Hen: | B3: <hen> | F3: Correct Sequence | G3: =Start!J2 -> 211 | P3: Total Sequences in Data | Q3: =4994-COUNTBLANK(L7:L5000) -> 59 | V3: Total Sequences in Block Data | W3: =COUNTA(L7:L16) -> 10 | AA3: Total Sequences in Block Data | AB3: =COUNTA(L17:L26) -> 10 | AF3: Total Sequences in Block Data | AG3: =COUNTA(L27:L35) -> 9 | AK3: Total Sequences in Block Data | AL3: =COUNTA(L36:L45) -> 10 | AP3: Total Sequences in Block Data | AQ3: =COUNTA(L46:L55) -> 10 | AU3: Total Sequences in Block Data | AV3: =COUNTA(L56:L65) -> 10
P4: Total Sequences in Summary | Q4: =SUM(O7:O14) -> 59 | V4: Total Sequences in Block Summary | W4: =SUM(U7:U14) -> 10 | AA4: Total Sequences in Block Summary | AB4: =SUM(Z7:Z14) -> 10 | AF4: Total Sequences in Block Summary | AG4: =SUM(AE7:AE14) -> 9 | AK4: Total Sequences in Block Summary | AL4: =SUM(AJ7:AJ14) -> 10 | AP4: Total Sequences in Block Summary | AQ4: =SUM(AO7:AO14) -> 10 | AU4: Total Sequences in Block Summary | AV4: =SUM(AT7:AT14) -> 10
T5: Block 1 | Y5: Block 2 | AD5: Block 3 | AI5: Block 4 | AN5: Block 5 | AS5: Block 6
A6: Sequence Component 1 | B6: Time 1 | C6: Sequence Component 2 | D6: Time 2 | E6: Sequence Component 3 | F6: Time 3 | G6: Sequence Component 4 | H6: Time 4 | I6: Sequence Component 5 | J6: Time 5 | K6: Correct? 0=No 1=Yes | L6: Sequence | N6: Frequency | P6: Relative Frequency | Q6: Variability | T6: Frequency | V6: Relative Frequency | W6: Variability | Y6: Frequency | AA6: Relative Frequency | AB6: Variability | AD6: Frequency | AF6: Relative Frequency | AG6: Variability | AI6: Frequency | AK6: Relative Frequency | AL6: Variability | AN6: Frequency | AP6: Relative Frequency | AQ6: Variability | AS6: Frequency | AU6: Relative Frequency | AV6: Variability
A7: 21 | B7: 11 | C7: 11 | D7: 22 | E7: 11 | F7: 43 | K7: 0 | L7: 211 | N7: 111 | O7: =COUNTIF($L$7:$L$500,N7) -> 11 | P7: =O7/$Q$4 -> 0.186440678 | Q7: =IF(P7=0,0,(P7*((LOG(P7))/LOG(2)))) -> -0.451785182 | T7: =N7 -> 111 | U7: =COUNTIF(L7:L16,T7) -> 4 | V7: =U7/(W4-U11) -> 1 | W7: =IF(V7=0,0,(V7*((LOG(V7))/LOG(2)))) -> 0 | Y7: =N7 -> 111 | Z7: =COUNTIF(L17:L26,Y7) -> 4 | AA7: =Z7/(AB4-Z11) -> 1 | AB7: =IF(AA7=0,0,(AA7*((LOG(AA7))/LOG(2)))) -> 0 | AD7: =N7 -> 111 | AE7: =COUNTIF(L27:L35,AD7) -> 0 | AF7: =AE7/(AG4-AE11) -> 0 | AG7: =IF(AF7=0,0,(AF7*((LOG(AF7))/LOG(2)))) -> 0 | AI7: =N7 -> 111 | AJ7: =COUNTIF(L36:L45,AI7) -> 0 | AK7: =AJ7/(AL4-AJ11) -> 0 | AL7: =IF(AK7=0,0,(AK7*((LOG(AK7))/LOG(2)))) -> 0 | AN7: =N7 -> 111 | AO7: =COUNTIF(L46:L55,AN7) -> 0 | AP7: =AO7/(AQ4-AO11) -> 0 | AQ7: =IF(AP7=0,0,(AP7*((LOG(AP7))/LOG(2)))) -> 0 | AS7: =N7 -> 111 | AT7: =COUNTIF(L56:L65,AS7) -> 3 | AU7: =AT7/(AV4-AT11) -> 0.6 | AV7: =IF(AU7=0,0,(AU7*((LOG(AU7))/LOG(2)))) -> -0.4421793565
A8: 12 | B8: 154 | C8: 13 | D8: 161 | E8: 13 | F8: 170 | K8: 0 | L8: 111 | N8: 112 | O8: =COUNTIF($L$7:$L$500,N8) -> 3 | P8: =O8/$Q$4 -> 0.05084745763 | Q8: =IF(P8=0,0,(P8*((LOG(P8))/LOG(2)))) -> -0.2185261296 | T8: =N8 -> 112 | U8: =COUNTIF(L7:L16,T8) -> 0 | V8: =U8/(W4-U11) -> 0 | W8: =IF(V8=0,0,(V8*((LOG(V8))/LOG(2)))) -> 0 | Y8: =N8 -> 112 | Z8: =COUNTIF(L17:L26,Y8) -> 0 | AA8: =Z8/(AB4-Z11) -> 0 | AB8: =IF(AA8=0,0,(AA8*((LOG(AA8))/LOG(2)))) -> 0 | AD8: =N8 -> 112 | AE8: =COUNTIF(L27:L35,AD8) -> 0 | AF8: =AE8/(AG4-AE11) -> 0 | AG8: =IF(AF8=0,0,(AF8*((LOG(AF8))/LOG(2)))) -> 0 | AI8: =N8 -> 112 | AJ8: =COUNTIF(L36:L45,AI8) -> 1 | AK8: =AJ8/(AL4-AJ11) -> 0.5 | AL8: =IF(AK8=0,0,(AK8*((LOG(AK8))/LOG(2)))) -> -0.5 | AN8: =N8 -> 112 | AO8: =COUNTIF(L46:L55,AN8) -> 0 | AP8: =AO8/(AQ4-AO11) -> 0 | AQ8: =IF(AP8=0,0,(AP8*((LOG(AP8))/LOG(2)))) -> 0 | AS8: =N8 -> 112 | AT8: =COUNTIF(L56:L65,AS8) -> 2 | AU8: =AT8/(AV4-AT11) -> 0.4 | AV8: =IF(AU8=0,0,(AU8*((LOG(AU8))/LOG(2)))) -> -0.528771238
A9: 12 | B9: 286 | C9: 13 | D9: 291 | E9: 13 | F9: 307 | K9: 0 | L9: 111 | N9: 121 | O9: =COUNTIF($L$7:$L$500,N9) -> 2 | P9: =O9/$Q$4 -> 0.03389830508 | Q9: =IF(P9=0,0,(P9*((LOG(P9))/LOG(2)))) -> -0.1655133237 | T9: =N9 -> 121 | U9: =COUNTIF(L7:L16,T9) -> 0 | V9: =U9/(W4-U11) -> 0 | W9: =IF(V9=0,0,(V9*((LOG(V9))/LOG(2)))) -> 0 | Y9: =N9 -> 121 | Z9: =COUNTIF(L17:L26,Y9) -> 0 | AA9: =Z9/(AB4-Z11) -> 0 | AB9: =IF(AA9=0,0,(AA9*((LOG(AA9))/LOG(2)))) -> 0 | AD9: =N9 -> 121 | AE9: =COUNTIF(L27:L35,AD9) -> 1 | AF9: =AE9/(AG4-AE11) -> 0.25 | AG9: =IF(AF9=0,0,(AF9*((LOG(AF9))/LOG(2)))) -> -0.5 | AI9: =N9 -> 121 | AJ9: =COUNTIF(L36:L45,AI9) -> 1 | AK9: =AJ9/(AL4-AJ11) -> 0.5 | AL9: =IF(AK9=0,0,(AK9*((LOG(AK9))/LOG(2)))) -> -0.5 | AN9: =N9 -> 121 | AO9: =COUNTIF(L46:L55,AN9) -> 0 | AP9: =AO9/(AQ4-AO11) -> 0 | AQ9: =IF(AP9=0,0,(AP9*((LOG(AP9))/LOG(2)))) -> 0 | AS9: =N9 -> 121 | AT9: =COUNTIF(L56:L65,AS9) -> 0 | AU9: =AT9/(AV4-AT11) -> 0 | AV9: =IF(AU9=0,0,(AU9*((LOG(AU9))/LOG(2)))) -> 0
A10: 21 | B10: 415 | C10: 11 | D10: 428 | E10: 11 | F10: 435 | K10: 0 | L10: 211 | N10: 122 | O10: =COUNTIF($L$7:$L$500,N10) -> 0 | P10: =O10/$Q$4 -> 0 | Q10: =IF(P10=0,0,(P10*((LOG(P10))/LOG(2)))) -> 0 | T10: =N10 -> 122 | U10: =COUNTIF(L7:L16,T10) -> 0 | V10: =U10/(W4-U11) -> 0 | W10: =IF(V10=0,0,(V10*((LOG(V10))/LOG(2)))) -> 0 | Y10: =N10 -> 122 | Z10: =COUNTIF(L17:L26,Y10) -> 0 | AA10: =Z10/(AB4-Z11) -> 0 | AB10: =IF(AA10=0,0,(AA10*((LOG(AA10))/LOG(2)))) -> 0 | AD10: =N10 -> 122 | AE10: =COUNTIF(L27:L35,AD10) -> 0 | AF10: =AE10/(AG4-AE11) -> 0 | AG10: =IF(AF10=0,0,(AF10*((LOG(AF10))/LOG(2)))) -> 0 | AI10: =N10 -> 122 | AJ10: =COUNTIF(L36:L45,AI10) -> 0 | AK10: =AJ10/(AL4-AJ11) -> 0 | AL10: =IF(AK10=0,0,(AK10*((LOG(AK10))/LOG(2)))) -> 0 | AN10: =N10 -> 122 | AO10: =COUNTIF(L46:L55,AN10) -> 0 | AP10: =AO10/(AQ4-AO11) -> 0 | AQ10: =IF(AP10=0,0,(AP10*((LOG(AP10))/LOG(2)))) -> 0 | AS10: =N10 -> 122 | AT10: =COUNTIF(L56:L65,AS10) -> 0 | AU10: =AT10/(AV4-AT11) -> 0 | AV10: =IF(AU10=0,0,(AU10*((LOG(AU10))/LOG(2)))) -> 0
A11: 21 | B11: 531 | C11: 11 | D11: 542 | E11: 11 | F11: 547 | K11: 0 | L11: 211 | N11: 211 | O11: =COUNTIF($L$7:$L$500,N11) -> 39 | P11: =O11/$Q$4 -> 0.6610169492 | Q11: =IF(P11=0,0,(P11*((LOG(P11))/LOG(2)))) -> -0.3947863117 | T11: =N11 -> 211 | U11: =COUNTIF(L7:L16,T11) -> 6 | Y11: =N11 -> 211 | Z11: =COUNTIF(L17:L26,Y11) -> 6 | AD11: =N11 -> 211 | AE11: =COUNTIF(L27:L35,AD11) -> 5 | AI11: =N11 -> 211 | AJ11: =COUNTIF(L36:L45,AI11) -> 8 | AN11: =N11 -> 211 | AO11: =COUNTIF(L46:L55,AN11) -> 9 | AS11: =N11 -> 211 | AT11: =COUNTIF(L56:L65,AS11) -> 5
A12: 21 | B12: 647 | C12: 11 | D12: 666 | E12: 11 | F12: 693 | K12: 0 | L12: 211 | N12: 212 | O12: =COUNTIF($L$7:$L$500,N12) -> 4 | P12: =O12/$Q$4 -> 0.06779661017 | Q12: =IF(P12=0,0,(P12*((LOG(P12))/LOG(2)))) -> -0.2632300372 | T12: =N12 -> 212 | U12: =COUNTIF(L7:L16,T12) -> 0 | V12: =U12/(W4-U11) -> 0 | W12: =IF(V12=0,0,(V12*((LOG(V12))/LOG(2)))) -> 0 | Y12: =N12 -> 212 | Z12: =COUNTIF(L17:L26,Y12) -> 0 | AA12: =Z12/(AB4-Z11) -> 0 | AB12: =IF(AA12=0,0,(AA12*((LOG(AA12))/LOG(2)))) -> 0 | AD12: =N12 -> 212 | AE12: =COUNTIF(L27:L35,AD12) -> 3 | AF12: =AE12/(AG4-AE11) -> 0.75 | AG12: =IF(AF12=0,0,(AF12*((LOG(AF12))/LOG(2)))) -> -0.3112781245 | AI12: =N12 -> 212 | AJ12: =COUNTIF(L36:L45,AI12) -> 0 | AK12: =AJ12/(AL4-AJ11) -> 0 | AL12: =IF(AK12=0,0,(AK12*((LOG(AK12))/LOG(2)))) -> 0 | AN12: =N12 -> 212 | AO12: =COUNTIF(L46:L55,AN12) -> 1 | AP12: =AO12/(AQ4-AO11) -> 1 | AQ12: =IF(AP12=0,0,(AP12*((LOG(AP12))/LOG(2)))) -> 0 | AS12: =N12 -> 212 | AT12: =COUNTIF(L56:L65,AS12) -> 0 | AU12: =AT12/(AV4-AT11) -> 0 | AV12: =IF(AU12=0,0,(AU12*((LOG(AU12))/LOG(2)))) -> 0
A13: 21 | B13: 789 | C13: 11 | D13: 803 | E13: 11 | F13: 814 | K13: 0 | L13: 211 | N13: 221 | O13: =COUNTIF($L$7:$L$500,N13) -> 0 | P13: =O13/$Q$4 -> 0 | Q13: =IF(P13=0,0,(P13*((LOG(P13))/LOG(2)))) -> 0 | T13: =N13 -> 221 | U13: =COUNTIF(L7:L16,T13) -> 0 | V13: =U13/(W4-U11) -> 0 | W13: =IF(V13=0,0,(V13*((LOG(V13))/LOG(2)))) -> 0 | Y13: =N13 -> 221 | Z13: =COUNTIF(L17:L26,Y13) -> 0 | AA13: =Z13/(AB4-Z11) -> 0 | AB13: =IF(AA13=0,0,(AA13*((LOG(AA13))/LOG(2)))) -> 0 | AD13: =N13 -> 221 | AE13: =COUNTIF(L27:L35,AD13) -> 0 | AF13: =AE13/(AG4-AE11) -> 0 | AG13: =IF(AF13=0,0,(AF13*((LOG(AF13))/LOG(2)))) -> 0 | AI13: =N13 -> 221 | AJ13: =COUNTIF(L36:L45,AI13) -> 0 | AK13: =AJ13/(AL4-AJ11) -> 0 | AL13: =IF(AK13=0,0,(AK13*((LOG(AK13))/LOG(2)))) -> 0 | AN13: =N13 -> 221 | AO13: =COUNTIF(L46:L55,AN13) -> 0 | AP13: =AO13/(AQ4-AO11) -> 0 | AQ13: =IF(AP13=0,0,(AP13*((LOG(AP13))/LOG(2)))) -> 0 | AS13: =N13 -> 221 | AT13: =COUNTIF(L56:L65,AS13) -> 0 | AU13: =AT13/(AV4-AT11) -> 0 | AV13: =IF(AU13=0,0,(AU13*((LOG(AU13))/LOG(2)))) -> 0
A14: 12 | B14: 949 | C14: 13 | D14: 987 | E14: 13 | F14: 997 | K14: 0 | L14: 111 | N14: 222 | O14: =COUNTIF($L$7:$L$500,N14) -> 0 | P14: =O14/$Q$4 -> 0 | Q14: =IF(P14=0,0,(P14*((LOG(P14))/LOG(2)))) -> 0 | T14: =N14 -> 222 | U14: =COUNTIF(L7:L16,T14) -> 0 | V14: =U14/(W4-U11) -> 0 | W14: =IF(V14=0,0,(V14*((LOG(V14))/LOG(2)))) -> 0 | Y14: =N14 -> 222 | Z14: =COUNTIF(L17:L26,Y14) -> 0 | AA14: =Z14/(AB4-Z11) -> 0 | AB14: =IF(AA14=0,0,(AA14*((LOG(AA14))/LOG(2)))) -> 0 | AD14: =N14 -> 222 | AE14: =COUNTIF(L27:L35,AD14) -> 0 | AF14: =AE14/(AG4-AE11) -> 0 | AG14: =IF(AF14=0,0,(AF14*((LOG(AF14))/LOG(2)))) -> 0 | AI14: =N14 -> 222 | AJ14: =COUNTIF(L36:L45,AI14) -> 0 | AK14: =AJ14/(AL4-AJ11) -> 0 | AL14: =IF(AK14=0,0,(AK14*((LOG(AK14))/LOG(2)))) -> 0 | AN14: =N14 -> 222 | AO14: =COUNTIF(L46:L55,AN14) -> 0 | AP14: =AO14/(AQ4-AO11) -> 0 | AQ14: =IF(AP14=0,0,(AP14*((LOG(AP14))/LOG(2)))) -> 0 | AS14: =N14 -> 222 | AT14: =COUNTIF(L56:L65,AS14) -> 0 | AU14: =AT14/(AV4-AT11) -> 0 | AV14: =IF(AU14=0,0,(AU14*((LOG(AU14))/LOG(2)))) -> 0
A15: 12 | B15: 1113 | C15: 13 | D15: 1118 | E15: 13 | F15: 1128 | K15: 0 | L15: 111 | P15: =SUM(P7:P14) -> 1 | Q15: =-SUM(Q7:Q14) -> 1.493840984 | V15: =SUM(V7:V14) -> 1 | W15: =-SUM(W7:W14) -> 0 | AA15: =SUM(AA7:AA14) -> 1 | AB15: =-SUM(AB7:AB14) -> 0 | AF15: =SUM(AF7:AF14) -> 1 | AG15: =-SUM(AG7:AG14) -> 0.8112781245 | AK15: =SUM(AK7:AK14) -> 1 | AL15: =-SUM(AL7:AL14) -> 1 | AP15: =SUM(AP7:AP14) -> 1 | AQ15: =-SUM(AQ7:AQ14) -> 0 | AU15: =SUM(AU7:AU14) -> 1 | AV15: =-SUM(AV7:AV14) -> 0.9709505945
A16: 21 | B16: 1232 | C16: 11 | D16: 1246 | E16: 11 | F16: 1252 | K16: 0 | L16: 211 | P16: U= | Q16: =Q15/(LOG(Q4)/LOG(2)) -> 0.2539404434 | V16: U1= | W16: =W15/(LOG(W4)/LOG(2)) -> 0 | AA16: U2= | AB16: =AB15/(LOG(AB4)/LOG(2)) -> 0 | AF16: U3= | AG16: =AG15/(LOG(AG4)/LOG(2)) -> 0.2559297536 | AK16: U4= | AL16: =AL15/(LOG(AL4)/LOG(2)) -> 0.3010299957 | AP16: U5= | AQ16: =AQ15/(LOG(AQ4)/LOG(2)) -> 0 | AU16: U6= | AV16: =AV15/(LOG(AV4)/LOG(2)) -> 0.2922852532
A17: 12 | B17: 1365 | C17: 13 | D17: 1374 | E17: 13 | F17: 1388 | K17: 0 | L17: 111
A18: 12 | B18: 1498 | C18: 13 | D18: 1504 | E18: 13 | F18: 1516 | K18: 0 | L18: 111
A19: 21 | B19: 1619 | C19: 11 | D19: 1634 | E19: 11 | F19: 1640 | K19: 0 | L19: 211 | N19: Total Target Seq
A20: 21 | B20: 1736 | C20: 11 | D20: 1745 | E20: 11 | F20: 1752 | K20: 0 | L20: 211 | N20: =COUNTIF(L7:L65,G3) -> 39 | P20: 10 | Q20: 10 | R20: 9 | S20: 10 | T20: 10 | U20: 10
A21: 21 | B21: 1853 | C21: 11 | D21: 1863 | E21: 11 | F21: 1870 | K21: 0 | L21: 211 | P21: % of reinforcement given in 6 equal intervals based on number of trials
A22: 21 | B22: 1965 | C22: 11 | D22: 1976 | E22: 11 | F22: 1985 | K22: 0 | L22: 211 | P22: %_1 | Q22: %_2 | R22: %_3 | S22: %_4 | T22: %_5 | U22: %_6
A23: 21 | B23: 2103 | C23: 11 | D23: 2123 | E23: 11 | F23: 2138 | K23: 0 | L23: 211 | O23: target sequence | P23: =$G$3 -> 211 | Q23: =$G$3 -> 211 | R23: =$G$3 -> 211 | S23: =$G$3 -> 211 | T23: =$G$3 -> 211 | U23: =$G$3 -> 211
A24: 12 | B24: 2242 | C24: 13 | D24: 2257 | E24: 13 | F24: 2279 | K24: 0 | L24: 111 | O24: total reinforcement | P24: =U11 -> 6 | Q24: =Z11 -> 6 | R24: =AE11 -> 5 | S24: =AJ11 -> 8 | T24: =AO11 -> 9 | U24: =AT11 -> 5
A25: 12 | B25: 2392 | C25: 13 | D25: 2398 | E25: 13 | F25: 2413 | K25: 0 | L25: 111 | O25: % target
A26: 21 | B26: 2517 | C26: 11 | D26: 2526 | E26: 11 | F26: 2534 | K26: 0 | L26: 211 | O26: CCRF
A27: 21 | B27: 2627 | C27: 11 | D27: 2636 | E27: 11 | F27: 2641 | K27: 0 | L27: 211 | O27: % CCRf
A28: 21 | B28: 2735 | C28: 11 | D28: 2752 | E28: 22 | F28: 2766 | K28: 0 | L28: 212 | O28: average response rate | P28: =F16/P20 -> 125.2 | Q28: =(F26-F16)/Q20 -> 128.2 | R28: =(F35-F26)/R20 -> 121.1111111 | S28: =(F45-F35)/S20 -> 122.5 | T28: =(F55-F45)/T20 -> 115.5 | U28: =(F65-F55)/U20 -> 132.7
A29: 21 | B29: 2862 | C29: 11 | D29: 2872 | E29: 11 | F29: 2877 | K29: 0 | L29: 211
A30: 21 | B30: 2971 | C30: 11 | D30: 2982 | E30: 11 | F30: 2991 | K30: 0 | L30: 211
A31: 21 | B31: 3087 | C31: 11 | D31: 3097 | E31: 11 | F31: 3103 | K31: 0 | L31: 211
A32: 21 | B32: 3196 | C32: 11 | D32: 3212 | E32: 22 | F32: 3234 | K32: 0 | L32: 212
A33: 21 | B33: 3345 | C33: 11 | D33: 3354 | E33: 22 | F33: 3371 | K33: 0 | L33: 212
A34: 21 | B34: 3477 | C34: 11 | D34: 3490 | E34: 11 | F34: 3495 | K34: 0 | L34: 211
A35: 12 | B35: 3599 | C35: 24 | D35: 3610 | E35: 13 | F35: 3624 | K35: 0 | L35: 121
A36: 21 | B36: 3728 | C36: 11 | D36: 3747 | E36: 11 | F36: 3779 | K36: 0 | L36: 211
A37: 21 | B37: 3875 | C37: 11 | D37: 3885 | E37: 11 | F37: 3895 | K37: 0 | L37: 211
A38: 21 | B38: 3988 | C38: 11 | D38: 4002 | E38: 11 | F38: 4007 | K38: 0 | L38: 211
A39: 21 | B39: 4099 | C39: 11 | D39: 4109 | E39: 11 | F39: 4114 | K39: 0 | L39: 211
A40: 21 | B40: 4207 | C40: 11 | D40: 4216 | E40: 11 | F40: 4222 | K40: 0 | L40: 211
A41: 21 | B41: 4318 | C41: 11 | D41: 4332 | E41: 11 | F41: 4363 | K41: 0 | L41: 211
A42: 21 | B42: 4461 | C42: 11 | D42: 4474 | E42: 11 | F42: 4480 | K42: 0 | L42: 211
A43: 21 | B43: 4573 | C43: 11 | D43: 4583 | E43: 11 | F43: 4589 | K43: 0 | L43: 211
A44: 12 | B44: 4692 | C44: 13 | D44: 4699 | E44: 24 | F44: 4716 | K44: 0 | L44: 112
A45: 12 | B45: 4819 | C45: 24 | D45: 4833 | E45: 13 | F45: 4849 | K45: 0 | L45: 121
A46: 21 | B46: 4954 | C46: 11 | D46: 4968 | E46: 11 | F46: 4978 | K46: 0 | L46: 211
A47: 21 | B47: 5073 | C47: 11 | D47: 5083 | E47: 11 | F47: 5088 | K47: 0 | L47: 211
A48: 21 | B48: 5182 | C48: 11 | D48: 5191 | E48: 11 | F48: 5196 | K48: 0 | L48: 211
A49: 21 | B49: 5290 | C49: 11 | D49: 5299 | E49: 11 | F49: 5305 | K49: 0 | L49: 211
A50: 21 | B50: 5398 | C50: 11 | D50: 5408 | E50: 11 | F50: 5414 | K50: 0 | L50: 211
A51: 21 | B51: 5508 | C51: 11 | D51: 5518 | E51: 11 | F51: 5522 | K51: 0 | L51: 211
A52: 21 | B52: 5616 | C52: 11 | D52: 5631 | E52: 11 | F52: 5646 | K52: 0 | L52: 211
A53: 21 | B53: 5738 | C53: 11 | D53: 5747 | E53: 11 | F53: 5756 | K53: 0 | L53: 211
A54: 21 | B54: 5846 | C54: 11 | D54: 5863 | E54: 22 | F54: 5887 | K54: 0 | L54: 212
A55: 21 | B55: 5989 | C55: 11 | D55: 5999 | E55: 11 | F55: 6004 | K55: 0 | L55: 211
A56: 12 | B56: 6110 | C56: 13 | D56: 6116 | E56: 13 | F56: 6142 | K56: 0 | L56: 111
A57: 12 | B57: 6255 | C57: 13 | D57: 6261 | E57: 24 | F57: 6279 | K57: 0 | L57: 112
A58: 12 | B58: 6390 | C58: 13 | D58: 6395 | E58: 13 | F58: 6409 | K58: 0 | L58: 111
A59: 21 | B59: 6514 | C59: 11 | D59: 6524 | E59: 11 | F59: 6530 | K59: 0 | L59: 211
A60: 21 | B60: 6622 | C60: 11 | D60: 6636 | E60: 11 | F60: 6676 | K60: 0 | L60: 211
A61: 12 | B61: 6780 | C61: 13 | D61: 6790 | E61: 13 | F61: 6803 | K61: 0 | L61: 111
A62: 12 | B62: 6912 | C62: 13 | D62: 6918 | E62: 24 | F62: 6982 | K62: 0 | L62: 112
A63: 21 | B63: 7086 | C63: 11 | D63: 7096 | E63: 11 | F63: 7101 | K63: 0 | L63: 211
A64: 21 | B64: 7198 | C64: 11 | D64: 7210 | E64: 11 | F64: 7218 | K64: 0 | L64: 211
A65: 21 | B65: 7312 | C65: 11 | D65: 7321 | E65: 11 | F65: 7331 | K65: 1 | L65: 211

Sheet !N402740.010
A1: Report for:!N402740.010
A2: Date: | B2: <date>
A3: Hen: | B3: <hen> | F3: Correct Sequence | G3: =Start!J2 -> 211 | P3: Total Sequences in Data | Q3: =4994-COUNTBLANK(L7:L5000) -> 167 | V3: Total Sequences in Block Data | W3: =COUNTA(L7:L34) -> 28 | AA3: Total Sequences in Block Data | AB3: =COUNTA(L35:L62) -> 28 | AF3: Total Sequences in Block Data | AG3: =COUNTA(L63:L89) -> 27 | AK3: Total Sequences in Block Data | AL3: =COUNTA(L90:L117) -> 28 | AP3: Total Sequences in Block Data | AQ3: =COUNTA(L118:L145) -> 28 | AU3: Total Sequences in Block Data | AV3: =COUNTA(L146:L173) -> 28
P4: Total Sequences in Summary | Q4: =SUM(O7:O14) -> 167 | V4: Total Sequences in Block Summary | W4: =SUM(U7:U14) -> 28 | AA4: Total Sequences in Block Summary | AB4: =SUM(Z7:Z14) -> 28 | AF4: Total Sequences in Block Summary | AG4: =SUM(AE7:AE14) -> 27 | AK4: Total Sequences in Block Summary | AL4: =SUM(AJ7:AJ14) -> 28 | AP4: Total Sequences in Block Summary | AQ4: =SUM(AO7:AO14) -> 28 | AU4: Total Sequences in Block Summary | AV4: =SUM(AT7:AT14) -> 28
T5: Block 1 | Y5: Block 2 | AD5: Block 3 | AI5: Block 4 | AN5: Block 5 | AS5: Block 6
A6: Sequence Component 1 | B6: Time 1 | C6: Sequence Component 2 | D6: Time 2 | E6: Sequence Component 3 | F6: Time 3 | G6: Sequence Component 4 | H6: Time 4 | I6: Sequence Component 5 | J6: Time 5 | K6: Correct? 0=No 1=Yes | L6: Sequence | N6: Frequency | P6: Relative Frequency | Q6: Variability | T6: Frequency | V6: Relative Frequency | W6: Variability | Y6: Frequency | AA6: Relative Frequency | AB6: Variability | AD6: Frequency | AF6: Relative Frequency | AG6: Variability | AI6: Frequency | AK6: Relative Frequency | AL6: Variability | AN6: Frequency | AP6: Relative Frequency | AQ6: Variability | AS6: Frequency | AU6: Relative Frequency | AV6: Variability
A7: 12 | B7: 8 | C7: 24 | D7: 31 | E7: 24 | F7: 39 | K7: 0 | L7: 122 | N7: 111 | O7: =COUNTIF($L$7:$L$500,N7) -> 126 | P7: =O7/$Q$4 -> 0.754491018 | Q7: =IF(P7=0,0,(P7*((LOG(P7))/LOG(2)))) -> -0.3066435359 | T7: =N7 -> 111 | U7: =COUNTIF(L7:L34,T7) -> 27 | V7: =U7/(W4-U11) -> 0.9642857143 | W7: =IF(V7=0,0,(V7*((LOG(V7))/LOG(2)))) -> -0.05059358347 | Y7: =N7 -> 111 | Z7: =COUNTIF(L35:L62,Y7) -> 27 | AA7: =Z7/(AB4-Z11) -> 0.9642857143 | AB7: =IF(AA7=0,0,(AA7*((LOG(AA7))/LOG(2)))) -> -0.05059358347 | AD7: =N7 -> 111 | AE7: =COUNTIF(L63:L89,AD7) -> 19 | AF7: =AE7/(AG4-AE11) -> 0.7037037037 | AG7: =IF(AF7=0,0,(AF7*((LOG(AF7))/LOG(2)))) -> -0.3567496217 | AI7: =N7 -> 111 | AJ7: =COUNTIF(L90:L117,AI7) -> 18 | AK7: =AJ7/(AL4-AJ11) -> 0.6428571429 | AL7: =IF(AK7=0,0,(AK7*((LOG(AK7))/LOG(2)))) -> -0.4097763775 | AN7: =N7 -> 111 | AO7: =COUNTIF(L118:L145,AN7) -> 19 | AP7: =AO7/(AQ4-AO11) -> 0.6785714286 | AQ7: =IF(AP7=0,0,(AP7*((LOG(AP7))/LOG(2)))) -> -0.3796114558 | AS7: =N7 -> 111 | AT7: =COUNTIF(L146:L173,AS7) -> 16 | AU7: =AT7/(AV4-AT11) -> 0.5714285714 | AV7: =IF(AU7=0,0,(AU7*((LOG(AU7))/LOG(2)))) -> -0.4613456697
A8: 12 | B8: 145 | C8: 13 | D8: 154 | E8: 13 | F8: 163 | K8: 0 | L8: 111 | N8: 112 | O8: =COUNTIF($L$7:$L$500,N8) -> 7 | P8: =O8/$Q$4 -> 0.04191616766 | Q8: =IF(P8=0,0,(P8*((LOG(P8))/LOG(2)))) -> -0.1918230275 | T8: =N8 -> 112 | U8: =COUNTIF(L7:L34,T8) -> 0 | V8: =U8/(W4-U11) -> 0 | W8: =IF(V8=0,0,(V8*((LOG(V8))/LOG(2)))) -> 0 | Y8: =N8 -> 112 | Z8: =COUNTIF(L35:L62,Y8) -> 0 | AA8: =Z8/(AB4-Z11) -> 0 | AB8: =IF(AA8=0,0,(AA8*((LOG(AA8))/LOG(2)))) -> 0 | AD8: =N8 -> 112 | AE8: =COUNTIF(L63:L89,AD8) -> 1 | AF8: =AE8/(AG4-AE11) -> 0.03703703704 | AG8: =IF(AF8=0,0,(AF8*((LOG(AF8))/LOG(2)))) -> -0.1761069445 | AI8: =N8 -> 112 | AJ8: =COUNTIF(L90:L117,AI8) -> 1 | AK8: =AJ8/(AL4-AJ11) -> 0.03571428571 | AL8: =IF(AK8=0,0,(AK8*((LOG(AK8))/LOG(2)))) -> -0.1716912472 | AN8: =N8 -> 112 | AO8: =COUNTIF(L118:L145,AN8) -> 3 | AP8: =AO8/(AQ4-AO11) -> 0.1071428571 | AQ8: =IF(AP8=0,0,(AP8*((LOG(AP8))/LOG(2)))) -> -0.3452563309 | AS8: =N8 -> 112 | AT8: =COUNTIF(L146:L173,AS8) -> 2 | AU8: =AT8/(AV4-AT11) -> 0.07142857143 | AV8: =IF(AU8=0,0,(AU8*((LOG(AU8))/LOG(2)))) -> -0.271953923
A9: 12 | B9: 267 | C9: 13 | D9: 274 | E9: 13 | F9: 290 | K9: 0 | L9: 111 | N9: 121 | O9: =COUNTIF($L$7:$L$500,N9) -> 0 | P9: =O9/$Q$4 -> 0 | Q9: =IF(P9=0,0,(P9*((LOG(P9))/LOG(2)))) -> 0 | T9: =N9 -> 121 | U9: =COUNTIF(L7:L34,T9) -> 0 | V9: =U9/(W4-U11) -> 0 | W9: =IF(V9=0,0,(V9*((LOG(V9))/LOG(2)))) -> 0 | Y9: =N9 -> 121 | Z9: =COUNTIF(L35:L62,Y9) -> 0 | AA9: =Z9/(AB4-Z11) -> 0 | AB9: =IF(AA9=0,0,(AA9*((LOG(AA9))/LOG(2)))) -> 0 | AD9: =N9 -> 121 | AE9: =COUNTIF(L63:L89,AD9) -> 0 | AF9: =AE9/(AG4-AE11) -> 0 | AG9: =IF(AF9=0,0,(AF9*((LOG(AF9))/LOG(2)))) -> 0 | AI9: =N9 -> 121 | AJ9: =COUNTIF(L90:L117,AI9) -> 0 | AK9: =AJ9/(AL4-AJ11) -> 0 | AL9: =IF(AK9=0,0,(AK9*((LOG(AK9))/LOG(2)))) -> 0 | AN9: =N9 -> 121 | AO9: =COUNTIF(L118:L145,AN9) -> 0 | AP9: =AO9/(AQ4-AO11) -> 0 | AQ9: =IF(AP9=0,0,(AP9*((LOG(AP9))/LOG(2)))) -> 0 | AS9: =N9 -> 121 | AT9: =COUNTIF(L146:L173,AS9) -> 0 | AU9: =AT9/(AV4-AT11) -> 0 | AV9: =IF(AU9=0,0,(AU9*((LOG(AU9))/LOG(2)))) -> 0
A10: 12 | B10: 397 | C10: 13 | D10: 406 | E10: 13 | F10: 414 | K10: 0 | L10: 111 | N10: 122 | O10: =COUNTIF($L$7:$L$500,N10) -> 21 | P10: =O10/$Q$4 -> 0.125748503 | Q10: =IF(P10=0,0,(P10*((LOG(P10))/LOG(2)))) -> -0.3761624207 | T10: =N10 -> 122 | U10: =COUNTIF(L7:L34,T10) -> 1 | V10: =U10/(W4-U11) -> 0.03571428571 | W10: =IF(V10=0,0,(V10*((LOG(V10))/LOG(2)))) -> -0.1716912472 | Y10: =N10 -> 122 | Z10: =COUNTIF(L35:L62,Y10) -> 0 | AA10: =Z10/(AB4-Z11) -> 0 | AB10: =IF(AA10=0,0,(AA10*((LOG(AA10))/LOG(2)))) -> 0 | AD10: =N10 -> 122 | AE10: =COUNTIF(L63:L89,AD10) -> 4 | AF10: =AE10/(AG4-AE11) -> 0.1481481481 | AG10: =IF(AF10=0,0,(AF10*((LOG(AF10))/LOG(2)))) -> -0.4081314818 | AI10: =N10 -> 122 | AJ10: =COUNTIF(L90:L117,AI10) -> 4 | AK10: =AJ10/(AL4-AJ11) -> 0.1428571429 | AL10: =IF(AK10=0,0,(AK10*((LOG(AK10))/LOG(2)))) -> -0.4010507032 | AN10: =N10 -> 122 | AO10: =COUNTIF(L118:L145,AN10) -> 3 | AP10: =AO10/(AQ4-AO11) -> 0.1071428571 | AQ10: =IF(AP10=0,0,(AP10*((LOG(AP10))/LOG(2)))) -> -0.3452563309 | AS10: =N10 -> 122 | AT10: =COUNTIF(L146:L173,AS10) -> 9 | AU10: =AT10/(AV4-AT11) -> 0.3214285714 | AV10: =IF(AU10=0,0,(AU10*((LOG(AU10))/LOG(2)))) -> -0.5263167602
A11: 12 | B11: 514 | C11: 13 | D11: 519 | E11: 13 | F11: 527 | K11: 0 | L11: 111 | N11: 211 | O11: =COUNTIF($L$7:$L$500,N11) -> 0 | P11: =O11/$Q$4 -> 0 | Q11: =IF(P11=0,0,(P11*((LOG(P11))/LOG(2)))) -> 0 | T11: =N11 -> 211 | U11: =COUNTIF(L7:L34,T11) -> 0 | Y11: =N11 -> 211 | Z11: =COUNTIF(L35:L62,Y11) -> 0 | AD11: =N11 -> 211 | AE11: =COUNTIF(L63:L89,AD11) -> 0 | AI11: =N11 -> 211 | AJ11: =COUNTIF(L90:L117,AI11) -> 0 | AN11: =N11 -> 211 | AO11: =COUNTIF(L118:L145,AN11) -> 0 | AS11: =N11 -> 211 | AT11: =COUNTIF(L146:L173,AS11) -> 0
A12: 12 | B12: 632 | C12: 13 | D12: 645 | E12: 13 | F12: 654 | K12: 0 | L12: 111 | N12: 212 | O12: =COUNTIF($L$7:$L$500,N12) -> 0 | P12: =O12/$Q$4 -> 0 | Q12: =IF(P12=0,0,(P12*((LOG(P12))/LOG(2)))) -> 0 | T12: =N12 -> 212 | U12: =COUNTIF(L7:L34,T12) -> 0 | V12: =U12/(W4-U11) -> 0 | W12: =IF(V12=0,0,(V12*((LOG(V12))/LOG(2)))) -> 0 | Y12: =N12 -> 212 | Z12: =COUNTIF(L35:L62,Y12) -> 0 | AA12: =Z12/(AB4-Z11) -> 0 | AB12: =IF(AA12=0,0,(AA12*((LOG(AA12))/LOG(2)))) -> 0 | AD12: =N12 -> 212 | AE12: =COUNTIF(L63:L89,AD12) -> 0 | AF12: =AE12/(AG4-AE11) -> 0 | AG12: =IF(AF12=0,0,(AF12*((LOG(AF12))/LOG(2)))) -> 0 | AI12: =N12 -> 212 | AJ12: =COUNTIF(L90:L117,AI12) -> 0 | AK12: =AJ12/(AL4-AJ11) -> 0 | AL12: =IF(AK12=0,0,(AK12*((LOG(AK12))/LOG(2)))) -> 0 | AN12: =N12 -> 212 | AO12: =COUNTIF(L118:L145,AN12) -> 0 | AP12: =AO12/(AQ4-AO11) -> 0 | AQ12: =IF(AP12=0,0,(AP12*((LOG(AP12))/LOG(2)))) -> 0 | AS12: =N12 -> 212 | AT12: =COUNTIF(L146:L173,AS12) -> 0 | AU12: =AT12/(AV4-AT11) -> 0 | AV12: =IF(AU12=0,0,(AU12*((LOG(AU12))/LOG(2)))) -> 0
A13: 12 | B13: 789 | C13: 13 | D13: 794 | E13: 13 | F13: 803 | K13: 0 | L13: 111 | N13: 221 | O13: =COUNTIF($L$7:$L$500,N13) -> 0 | P13: =O13/$Q$4 -> 0 | Q13: =IF(P13=0,0,(P13*((LOG(P13))/LOG(2)))) -> 0 | T13: =N13 -> 221 | U13: =COUNTIF(L7:L34,T13) -> 0 | V13: =U13/(W4-U11) -> 0 | W13: =IF(V13=0,0,(V13*((LOG(V13))/LOG(2)))) -> 0 | Y13: =N13 -> 221 | Z13: =COUNTIF(L35:L62,Y13) -> 0 | AA13: =Z13/(AB4-Z11) -> 0 | AB13: =IF(AA13=0,0,(AA13*((LOG(AA13))/LOG(2)))) -> 0 | AD13: =N13 -> 221 | AE13: =COUNTIF(L63:L89,AD13) -> 0 | AF13: =AE13/(AG4-AE11) -> 0 | AG13: =IF(AF13=0,0,(AF13*((LOG(AF13))/LOG(2)))) -> 0 | AI13: =N13 -> 221 | AJ13: =COUNTIF(L90:L117,AI13) -> 0 | AK13: =AJ13/(AL4-AJ11) -> 0 | AL13: =IF(AK13=0,0,(AK13*((LOG(AK13))/LOG(2)))) -> 0 | AN13: =N13 -> 221 | AO13: =COUNTIF(L118:L145,AN13) -> 0 | AP13: =AO13/(AQ4-AO11) -> 0 | AQ13: =IF(AP13=0,0,(AP13*((LOG(AP13))/LOG(2)))) -> 0 | AS13: =N13 -> 221 | AT13: =COUNTIF(L146:L173,AS13) -> 0 | AU13: =AT13/(AV4-AT11) -> 0 | AV13: =IF(AU13=0,0,(AU13*((LOG(AU13))/LOG(2)))) -> 0
A14: 12 | B14: 928 | C14: 13 | D14: 936 | E14: 13 | F14: 944 | K14: 0 | L14: 111 | N14: 222 | O14: =COUNTIF($L$7:$L$500,N14) -> 13 | P14: =O14/$Q$4 -> 0.07784431138 | Q14: =IF(P14=0,0,(P14*((LOG(P14))/LOG(2)))) -> -0.2867211944 | T14: =N14 -> 222 | U14: =COUNTIF(L7:L34,T14) -> 0 | V14: =U14/(W4-U11) -> 0 | W14: =IF(V14=0,0,(V14*((LOG(V14))/LOG(2)))) -> 0 | Y14: =N14 -> 222 | Z14: =COUNTIF(L35:L62,Y14) -> 1 | AA14: =Z14/(AB4-Z11) -> 0.03571428571 | AB14: =IF(AA14=0,0,(AA14*((LOG(AA14))/LOG(2)))) -> -0.1716912472 | AD14: =N14 -> 222 | AE14: =COUNTIF(L63:L89,AD14) -> 3 | AF14: =AE14/(AG4-AE11) -> 0.1111111111 | AG14: =IF(AF14=0,0,(AF14*((LOG(AF14))/LOG(2)))) -> -0.352213889 | AI14: =N14 -> 222 | AJ14: =COUNTIF(L90:L117,AI14) -> 5 | AK14: =AJ14/(AL4-AJ11) -> 0.1785714286 | AL14: =IF(AK14=0,0,(AK14*((LOG(AK14))/LOG(2)))) -> -0.4438262191 | AN14: =N14 -> 222 | AO14: =COUNTIF(L118:L145,AN14) -> 3 | AP14: =AO14/(AQ4-AO11) -> 0.1071428571 | AQ14: =IF(AP14=0,0,(AP14*((LOG(AP14))/LOG(2)))) -> -0.3452563309 | AS14: =N14 -> 222 | AT14: =COUNTIF(L146:L173,AS14) -> 1 | AU14: =AT14/(AV4-AT11) -> 0.03571428571 | AV14: =IF(AU14=0,0,(AU14*((LOG(AU14))/LOG(2)))) -> -0.1716912472
A15: 12 | B15: 1060 | C15: 13 | D15: 1069 | E15: 13 | F15: 1080 | K15: 0 | L15: 111 | P15: =SUM(P7:P14) -> 1 | Q15: =-SUM(Q7:Q14) -> 1.161350179 | V15: =SUM(V7:V14) -> 1 | W15: =-SUM(W7:W14) -> 0.2222848307 | AA15: =SUM(AA7:AA14) -> 1 | AB15: =-SUM(AB7:AB14) -> 0.2222848307 | AF15: =SUM(AF7:AF14) -> 1 | AG15: =-SUM(AG7:AG14) -> 1.293201937 | AK15: =SUM(AK7:AK14) -> 1 | AL15: =-SUM(AL7:AL14) -> 1.426344547 | AP15: =SUM(AP7:AP14) -> 1 | AQ15: =-SUM(AQ7:AQ14) -> 1.415380448 | AU15: =SUM(AU7:AU14) -> 1 | AV15: =-SUM(AV7:AV14) -> 1.4313076
A16: 12 | B16: 1207 | C16: 13 | D16: 1213 | E16: 13 | F16: 1228 | K16: 0 | L16: 111 | P16: U= | Q16: =Q15/(LOG(Q4)/LOG(2)) -> 0.1572855754 | V16: U1= | W16: =W15/(LOG(W4)/LOG(2)) -> 0.04623848962 | AA16: U2= | AB16: =AB15/(LOG(AB4)/LOG(2)) -> 0.04623848962 | AF16: U3= | AG16: =AG15/(LOG(AG4)/LOG(2)) -> 0.2719731932 | AK16: U4= | AL16: =AL15/(LOG(AL4)/LOG(2)) -> 0.2967004871 | AP16: U5= | AQ16: =AQ15/(LOG(AQ4)/LOG(2)) -> 0.2944197945 | AU16: U6= | AV16: =AV15/(LOG(AV4)/LOG(2)) -> 0.2977328746
A17: 12 | B17: 1362 | C17: 13 | D17: 1369 | E17: 13 | F17: 1379 | K17: 0 | L17: 111
A18: 12 | B18: 1491 | C18: 13 | D18: 1497 | E18: 13 | F18: 1508 | K18: 0 | L18: 111
A19: 12 | B19: 1635 | C19: 13 | D19: 1641 | E19: 13 | F19: 1649 | K19: 0 | L19: 111 | N19: Total Target Seq
A20: 12 | B20: 1758 | C20: 13 | D20: 1764 | E20: 13 | F20: 1774 | K20: 0 | L20: 111 | N20: =COUNTIF(L7:L173,G3) -> 0 | P20: 28 | Q20: 28 | R20: 27 | S20: 28 | T20: 28 | U20: 28
A21: 12 | B21: 1891 | C21: 13 | D21: 1901 | E21: 13 | F21: 1910 | K21: 0 | L21: 111 | P21: % of reinforcement given in 6 equal intervals based on number of trials
A22: 12 | B22: 2019 | C22: 13 | D22: 2025 | E22: 13 | F22: 2032 | K22: 0 | L22: 111 | P22: %_1 | Q22: %_2 | R22: %_3 | S22: %_4 | T22: %_5 | U22: %_6
A23: 12 | B23: 2156 | C23: 13 | D23: 2163 | E23: 13 | F23: 2171 | K23: 0 | L23: 111 | O23: target sequence | P23: =$G$3 -> 211 | Q23: =$G$3 -> 211 | R23: =$G$3 -> 211 | S23: =$G$3 -> 211 | T23: =$G$3 -> 211 | U23: =$G$3 -> 211
A24: 12 | B24: 2286 | C24: 13 | D24: 2292 | E24: 13 | F24: 2301 | K24: 0 | L24: 111 | O24: total reinforcement | P24: =U11 -> 0 | Q24: =Z11 -> 0 | R24: =AE11 -> 0 | S24: =AJ11 -> 0 | T24: =AO11 -> 0 | U24: =AT11 -> 0
A25: 12 | B25: 2431 | C25: 13 | D25: 2437 | E25: 13 | F25: 2446 | K25: 0 | L25: 111 | O25: % target
A26: 12 | B26: 2559 | C26: 13 | D26: 2578 | E26: 13 | F26: 2587 | K26: 0 | L26: 111 | O26: CCRF
A27: 12 | B27: 2706 | C27: 13 | D27: 2712 | E27: 13 | F27: 2742 | K27: 0 | L27: 111 | O27: % CCRf
A28: 12 | B28: 2881 | C28: 13 | D28: 2893 | E28: 13 | F28: 2901 | K28: 0 | L28: 111 | O28: average response rate | P28: =F34/P20 -> 134.2857143 | Q28: =(F62-F34)/Q20 -> 145.2857143 | R28: =(F89-F62)/R20 -> 154.037037 | S28: =(F117-F89)/S20 -> 142.8928571 | T28: =(F145-F117)/T20 -> 133.8571429 | U28: =(F173-F145)/U20 -> 149.4642857
A29: 12 | B29: 3027 | C29: 13 | D29: 3032 | E29: 13 | F29: 3059 | K29: 0 | L29: 111
A30: 12 | B30: 3175 | C30: 13 | D30: 3186 | E30: 13 | F30: 3208 | K30: 0 | L30: 111
A31: 12 | B31: 3330 | C31: 13 | D31: 3336 | E31: 13 | F31: 3342 | K31: 0 | L31: 111
A32: 12 | B32: 3464 | C32: 13 | D32: 3477 | E32: 13 | F32: 3490 | K32: 0 | L32: 111
A33: 12 | B33: 3605 | C33: 13 | D33: 3613 | E33: 13 | F33: 3622 | K33: 0 | L33: 111
A34: 12 | B34: 3735 | C34: 13 | D34: 3751 | E34: 13 | F34: 3760 | K34: 0 | L34: 111
A35: 12 | B35: 3878 | C35: 13 | D35: 3884 | E35: 13 | F35: 3896 | K35: 0 | L35: 111
A36: 12 | B36: 4006 | C36: 13 | D36: 4012 | E36: 13 | F36: 4024 | K36: 0 | L36: 111
A37: 12 | B37: 4169 | C37: 13 | D37: 4175 | E37: 13 | F37: 4181 | K37: 0 | L37: 111
A38: 12 | B38: 4297 | C38: 13 | D38: 4303 | E38: 13 | F38: 4316 | K38: 0 | L38: 111
A39: 12 | B39: 4422 | C39: 13 | D39: 4428 | E39: 13 | F39: 4434 | K39: 0 | L39: 111
A40: 12 | B40: 4555 | C40: 13 | D40: 4561 | E40: 13 | F40: 4568 | K40: 0 | L40: 111
A41: 12 | B41: 4688 | C41: 13 | D41: 4693 | E41: 13 | F41: 4702 | K41: 0 | L41: 111
A42: 12 | B42: 4820 | C42: 13 | D42: 4829 | E42: 13 | F42: 4885 | K42: 0 | L42: 111
A43: 12 | B43: 5023 | C43: 13 | D43: 5032 | E43: 13 | F43: 5047 | K43: 0 | L43: 111
A44: 12 | B44: 5167 | C44: 13 | D44: 5174 | E44: 13 | F44: 5180 | K44: 0 | L44: 111
A45: 12 | B45: 5294 | C45: 13 | D45: 5299 | E45: 13 | F45: 5308 | K45: 0 | L45: 111
A46: 12 | B46: 5426 | C46: 13 | D46: 5432 | E46: 13 | F46: 5444 | K46: 0 | L46: 111
A47: 12 | B47: 5572 | C47: 13 | D47: 5582 | E47: 13 | F47: 5589 | K47: 0 | L47: 111
A48: 12 | B48: 5700 | C48: 13 | D48: 5705 | E48: 13 | F48: 5717 | K48: 0 | L48: 111
A49: 12 | B49: 5830 | C49: 13 | D49: 5835 | E49: 13 | F49: 5842 | K49: 0 | L49: 111
A50: 12 | B50: 5948 | C50: 13 | D50: 5958 | E50: 13 | F50: 6002 | K50: 0 | L50: 111
A51: 12 | B51: 6115 | C51: 13 | D51: 6121 | E51: 13 | F51: 6133 | K51: 0 | L51: 111
A52: 12 | B52: 6324 | C52: 13 | D52: 6334 | E52: 13 | F52: 6373 | K52: 0 | L52: 111
A53: 12 | B53: 6526 | C53: 13 | D53: 6540 | E53: 13 | F53: 6566 | K53: 0 | L53: 111
A54: 12 | B54: 6680 | C54: 13 | D54: 6685 | E54: 13 | F54: 6691 | K54: 0 | L54: 111
A55: 21 | B55: 6797 | C55: 22 | D55: 6803 | E55: 24 | F55: 6811 | K55: 0 | L55: 222
A56: 12 | B56: 6916 | C56: 13 | D56: 6921 | E56: 13 | F56: 6927 | K56: 0 | L56: 111
A57: 12 | B57: 7042 | C57: 13 | D57: 7047 | E57: 13 | F57: 7092 | K57: 0 | L57: 111
A58: 12 | B58: 7222 | C58: 13 | D58: 7230 | E58: 13 | F58: 7254 | K58: 0 | L58: 111
A59: 12 | B59: 7374 | C59: 13 | D59: 7380 | E59: 13 | F59: 7390 | K59: 0 | L59: 111
A60: 12 | B60: 7509 | C60: 13 | D60: 7522 | E60: 13 | F60: 7536 | K60: 0 | L60: 111
A61: 12 | B61: 7677 | C61: 13 | D61: 7684 | E61: 13 | F61: 7693 | K61: 0 | L61: 111
A62: 12 | B62: 7812 | C62: 13 | D62: 7817 | E62: 13 | F62: 7828 | K62: 0 | L62: 111
A63: 21 | B63: 7992 | C63: 22 | D63: 7998 | E63: 24 | F63: 8024 | K63: 0 | L63: 222
A64: 12 | B64: 8138 | C64: 13 | D64: 8144 | E64: 13 | F64: 8150 | K64: 0 | L64: 111
A65: 12 | B65: 8275 | C65: 13 | D65: 8284 | E65: 13 | F65: 8294 | K65: 0 | L65: 111
A66: 12 | B66: 8416 | C66: 13 | D66: 8423 | E66: 13 | F66: 8430 | K66: 0 | L66: 111
A67: 12 | B67: 8534 | C67: 24 | D67: 8573 | E67: 24 | F67: 8582 | K67: 0 | L67: 122
A68: 12 | B68: 8707 | C68: 13 | D68: 8714 | E68: 13 | F68: 8720 | K68: 0 | L68: 111
A69: 12 | B69: 8823 | C69: 13 | D69: 8881 | E69: 13 | F69: 8890 | K69: 0 | L69: 111
A70: 12 | B70: 9023 | C70: 24 | D70: 9062 | E70: 24 | F70: 9070 | K70: 0 | L70: 122
A71: 12 | B71: 9185 | C71: 13 | D71: 9197 | E71: 13 | F71: 9204 | K71: 0 | L71: 111
A72: 12 | B72: 9300 | C72: 24 | D72: 9315 | E72: 24 | F72: 9325 | K72: 0 | L72: 122
A73: 12 | B73: 9447 | C73: 13 | D73: 9578 | E73: 13 | F73: 9660 | K73: 0 | L73: 111
A74: 12 | B74: 9773 | C74: 13 | D74: 9779 | E74: 13 | F74: 9787 | K74: 0 | L74: 111
A75: 12 | B75: 9908 | C75: 13 | D75: 9920 | E75: 13 | F75: 9935 | K75: 0 | L75: 111
A76: 21 | B76: 10052 | C76: 22 | D76: 10063 | E76: 24 | F76: 10068 | K76: 0 | L76: 222
A77: 12 | B77: 10180 | C77: 13 | D77: 10191 | E77: 13 | F77: 10222 | K77: 0 | L77: 111
A78: 12 | B78: 10326 | C78: 13 | D78: 10357 | E78: 13 | F78: 10374 | K78: 0 | L78: 111
A79: 12 | B79: 10479 | C79: 24 | D79: 10498 | E79: 24 | F79: 10506 | K79: 0 | L79: 122
A80: 12 | B80: 10620 | C80: 13 | D80: 10626 | E80: 13 | F80: 10656 | K80: 0 | L80: 111
A81: 12 | B81: 10767 | C81: 13 | D81: 10771 | E81: 24 | F81: 10794 | K81: 0 | L81: 112
A82: 12 | B82: 10926 | C82: 13 | D82: 10938 | E82: 13 | F82: 10947 | K82: 0 | L82: 111
A83: 12 | B83: 11065 | C83: 13 | D83: 11099 | E83: 13 | F83: 11109 | K83: 0 | L83: 111
A84: 12 | B84: 11224 | C84: 13 | D84: 11231 | E84: 13 | F84: 11237 | K84: 0 | L84: 111
A85: 21 | B85: 11367 | C85: 22 | D85: 11374 | E85: 24 | F85: 11382 | K85: 0 | L85: 222
A86: 12 | B86: 11511 | C86: 13 | D86: 11517 | E86: 13 | F86: 11531 | K86: 0 | L86: 111
A87: 12 | B87: 11642 | C87: 13 | D87: 11666 | E87: 13 | F87: 11724 | K87: 0 | L87: 111
A88: 12 | B88: 11824 | C88: 13 | D88: 11829 | E88: 13 | F88: 11846 | K88: 0 | L88: 111
A89: 12 | B89: 11965 | C89: 13 | D89: 11971 | E89: 13 | F89: 11987 | K89: 0 | L89: 111
A90: 12 | B90: 12095 | C90: 24 | D90: 12113 | E90: 24 | F90: 12122 | K90: 0 | L90: 122
A91: 21 | B91: 12242 | C91: 22 | D91: 12247 | E91: 24 | F91: 12263 | K91: 0 | L91: 222
A92: 12 | B92: 12372 | C92: 13 | D92: 12377 | E92: 13 | F92: 12384 | K92: 0 | L92: 111
A93: 12 | B93: 12495 | C93: 13 | D93: 12500 | E93: 13 | F93: 12507 | K93: 0 | L93: 111
A94: 12 | B94: 12615 | C94: 13 | D94: 12620 | E94: 13 | F94: 12626 | K94: 0 | L94: 111
A95: 12 | B95: 12741 | C95: 13 | D95: 12759 | E95: 13 | F95: 12783 | K95: 0 | L95: 111
A96: 21 | B96: 12925 | C96: 22 | D96: 12938 | E96: 24 | F96: 12948 | K96: 0 | L96: 222
A97: 21 | B97: 13071 | C97: 22 | D97: 13076 | E97: 24 | F97: 13082 | K97: 0 | L97: 222
A98: 12 | B98: 13199 | C98: 13 | D98: 13207 | E98: 13 | F98: 13214 | K98: 0 | L98: 111
A99: 12 | B99: 13324 | C99: 13 | D99: 13335 | E99: 13 | F99: 13352 | K99: 0 | L99: 111
A100: 12 | B100: 13456 | C100: 13 | D100: 13487 | E100: 24 | F100: 13521 | K100: 0 | L100: 112
A101: 12 | B101: 13638 | C101: 13 | D101: 13645 | E101: 13 | F101: 13659 | K101: 0 | L101: 111
A102: 12 | B102: 13775 | C102: 13 | D102: 13798 | E102: 13 | F102: 13819 | K102: 0 | L102: 111
A103: 12 | B103: 13933 | C103: 13 | D103: 13938 | E103: 13 | F103: 13944 | K103: 0 | L103: 111
A104: 12 | B104: 14053 | C104: 13 | D104: 14059 | E104: 13 | F104: 14074 | K104: 0 | L104: 111
A105: 12 | B105: 14180 | C105: 13 | D105: 14188 | E105: 13 | F105: 14215 | K105: 0 | L105: 111
A106: 21 | B106: 14358 | C106: 22 | D106: 14367 | E106: 24 | F106: 14380 | K106: 0 | L106: 222
A107: 12 | B107: 14485 | C107: 13 | D107: 14492 | E107: 13 | F107: 14532 | K107: 0 | L107: 111
A108: 12 | B108: 14677 | C108: 13 | D108: 14682 | E108: 13 | F108: 14688 | K108: 0 | L108: 111
A109: 12 | B109: 14795 | C109: 24 | D109: 14817 | E109: 24 | F109: 14832 | K109: 0 | L109: 122
A110: 12 | B110: 14979 | C110: 13 | D110: 14985 | E110: 13 | F110: 14991 | K110: 0 | L110: 111
A111: 12 | B111: 15096 | C111: 13 | D111: 15102 | E111: 13 | F111: 15115 | K111: 0 | L111: 111
A112: 12 | B112: 15228 | C112: 13 | D112: 15239 | E112: 13 | F112: 15247 | K112: 0 | L112: 111
A113: 12 | B113: 15371 | C113: 13 | D113: 15377 | E113: 13 | F113: 15383 | K113: 0 | L113: 111
A114: 12 | B114: 15503 | C114: 24 | D114: 15516 | E114: 24 | F114: 15540 | K114: 0 | L114: 122
A115: 21 | B115: 15659 | C115: 22 | D115: 15666 | E115: 24 | F115: 15674 | K115: 0 | L115: 222
A116: 12 | B116: 15783 | C116: 24 | D116: 15833 | E116: 24 | F116: 15857 | K116: 0 | L116: 122
A117: 12 | B117: 15976 | C117: 13 | D117: 15982 | E117: 13 | F117: 15988 | K117: 0 | L117: 111
A118: 12 | B118: 16097 | C118: 13 | D118: 16102 | E118: 13 | F118: 16122 | K118: 0 | L118: 111
A119: 12 | B119: 16233 | C119: 13 | D119: 16239 | E119: 13 | F119: 16244 | K119: 0 | L119: 111
A120: 12 | B120: 16350 | C120: 13 | D120: 16355 | E120: 24 | F120: 16410 | K120: 0 | L120: 112
A121: 12 | B121: 16514 | C121: 13 | D121: 16519 | E121: 13 | F121: 16525 | K121: 0 | L121: 111
A122: 12 | B122: 16623 | C122: 13 | D122: 16629 | E122: 13 | F122: 16634 | K122: 0 | L122: 111
A123: 21 | B123: 16759 | C123: 22 | D123: 16770 | E123: 24 | F123: 16776 | K123: 0 | L123: 222
A124: 12 | B124: 16877 | C124: 13 | D124: 16884 | E124: 13 | F124: 16891 | K124: 0 | L124: 111
A125: 12 | B125: 16990 | C125: 13 | D125: 16995 | E125: 13 | F125: 17008 | K125: 0 | L125: 111
A126: 12 | B126: 17111 | C126: 13 | D126: 17116 | E126: 24 | F126: 17135 | K126: 0 | L126: 112
A127: 12 | B127: 17245 | C127: 13 | D127: 17257 | E127: 13 | F127: 17266 | K127: 0 | L127: 111
A128: 12 | B128: 17368 | C128: 24 | D128: 17386 | E128: 24 | F128: 17394 | K128: 0 | L128: 122
A129: 12 | B129: 17513 | C129: 13 | D129: 17520 | E129: 13 | F129: 17528 | K129: 0 | L129: 111
A130: 12 | B130: 17634 | C130: 13 | D130: 17639 | E130: 13 | F130: 17645 | K130: 0 | L130: 111
A131: 12 | B131: 17754 | C131: 13 | D131: 17765 | E131: 13 | F131: 17799 | K131: 0 | L131: 111
A132: 12 | B132: 17906 | C132: 13 | D132: 17911 | E132: 13 | F132: 17918 | K132: 0 | L132: 111
A133: 12 | B133: 18023 | C133: 24 | D133: 18043 | E133: 24 | F133: 18050 | K133: 0 | L133: 122
A134: 12 | B134: 18156 | C134: 13 | D134: 18205 | E134: 13 | F134: 18213 | K134: 0 | L134: 111
A135: 12 | B135: 18323 | C135: 13 | D135: 18328 | E135: 24 | F135: 18351 | K135: 0 | L135: 112
A136: 12 | B136: 18462 | C136: 13 | D136: 18468 | E136: 13 | F136: 18474 | K136: 0 | L136: 111
A137: 21 | B137: 18603 | C137: 22 | D137: 18616 | E137: 24 | F137: 18633 | K137: 0 | L137: 222
A138: 12 | B138: 18732 | C138: 13 | D138: 18738 | E138: 13 | F138: 18743 | K138: 0 | L138: 111
A139: 12 | B139: 18850 | C139: 24 | D139: 18890 | E139: 24 | F139: 18910 | K139: 0 | L139: 122
A140: 12 | B140: 19017 | C140: 13 | D140: 19024 | E140: 13 | F140: 19030 | K140: 0 | L140: 111
A141: 21 | B141: 19168 | C141: 22 | D141: 19174 | E141: 24 | F141: 19189 | K141: 0 | L141: 222
A142: 12 | B142: 19317 | C142: 13 | D142: 19333 | E142: 13 | F142: 19339 | K142: 0 | L142: 111
A143: 12 | B143: 19447 | C143: 13 | D143: 19453 | E143: 13 | F143: 19458 | K143: 0 | L143: 111
A144: 12 | B144: 19587 | C144: 13 | D144: 19600 | E144: 13 | F144: 19609 | K144: 0 | L144: 111
A145: 12 | B145: 19724 | C145: 13 | D145: 19730 | E145: 13 | F145: 19736 | K145: 0 | L145: 111
A146: 12 | B146: 19839 | C146: 13 | D146: 19844 | E146: 24 | F146: 19878 | K146: 0 | L146: 112
A147: 12 | B147: 20010 | C147: 24 | D147: 20036 | E147: 24 | F147: 20052 | K147: 0 | L147: 122
A148: 12 | B148: 20190 | C148: 24 | D148: 20239 | E148: 24 | F148: 20251 | K148: 0 | L148: 122
A149: 12 | B149: 20379 | C149: 13 | D149: 20384 | E149: 13 | F149: 20396 | K149: 0 | L149: 111
A150: 12 | B150: 20531 | C150: 13 | D150: 20537 | E150: 13 | F150: 20546 | K150: 0 | L150: 111
A151: 12 | B151: 20661 | C151: 13 | D151: 20671 | E151: 13 | F151: 20678 | K151: 0 | L151: 111
A152: 12 | B152: 20780 | C152: 13 | D152: 20784 | E152: 13 | F152: 20792 | K152: 0 | L152: 111
A153: 12 | B153: 20897 | C153: 13 | D153: 20903 | E153: 13 | F153: 20916 | K153: 0 | L153: 111
A154: 12 | B154: 21021 | C154: 13 | D154: 21026 | E154: 13 | F154: 21031 | K154: 0 | L154: 111
A155: 12 | B155: 21136 | C155: 13 | D155: 21161 | E155: 13 | F155: 21185 | K155: 0 | L155: 111
A156: 12 | B156: 21298 | C156: 24 | D156: 21327 | E156: 24 | F156: 21346 | K156: 0 | L156: 122
A157: 12 | B157: 21476 | C157: 24 | D157: 21494 | E157: 24 | F157: 21502 | K157: 0 | L157: 122
A158: 12 | B158: 21663 | C158: 13 | D158: 21670 | E158: 13 | F158: 21711 | K158: 0 | L158: 111
A159: 12 | B159: 21834 | C159: 24 | D159: 21851 | E159: 24 | F159: 21867 | K159: 0 | L159: 122
A160: 21 | B160: 22001 | C160: 22 | D160: 22012 | E160: 24 | F160: 22023 | K160: 0 | L160: 222
A161: 12 | B161: 22149 | C161: 13 | D161: 22153 | E161: 13 | F161: 22160 | K161: 0 | L161: 111
A162: 12 | B162: 22307 | C162: 24 | D162: 22322 | E162: 24 | F162: 22327 | K162: 0 | L162: 122
A163: 12 | B163: 22476 | C163: 13 | D163: 22482 | E163: 13 | F163: 22488 | K163: 0 | L163: 111
A164: 12 | B164: 22611 | C164: 24 | D164: 22631 | E164: 24 | F164: 22641 | K164: 0 | L164: 122
A165: 12 | B165: 22762 | C165: 24 | D165: 22803 | E165: 24 | F165: 22811 | K165: 0 | L165: 122
A166: 12 | B166: 22925 | C166: 13 | D166: 22930 | E166: 13 | F166: 22965 | K166: 0 | L166: 111
A167: 12 | B167: 23087 | C167: 13 | D167: 23117 | E167: 13 | F167: 23125 | K167: 0 | L167: 111
A168: 12 | B168: 23231 | C168: 13 | D168: 23248 | E168: 13 | F168: 23255 | K168: 0 | L168: 111
A169: 12 | B169: 23369 | C169: 24 | D169: 23394 | E169: 24 | F169: 23402 | K169: 0 | L169: 122
A170: 12 | B170: 23515 | C170: 13 | D170: 23521 | E170: 24 | F170: 23546 | K170: 0 | L170: 112
A171: 12 | B171: 23655 | C171: 13 | D171: 23662 | E171: 13 | F171: 23667 | K171: 0 | L171: 111
A172: 12 | B172: 23783 | C172: 13 | D172: 23789 | E172: 13 | F172: 23805 | K172: 0 | L172: 111
A173: 12 | B173: 23906 | C173: 13 | D173: 23912 | E173: 13 | F173: 23921 | L173: 111

Sheet !N403740.010
A1: Report for:!N403740.010
A2: Date: | B2: <date>
A3: Hen: | B3: <hen> | F3: Correct Sequence | G3: =Start!J2 -> 211 | P3: Total Sequences in Data | Q3: =4994-COUNTBLANK(L7:L5000) -> 181 | V3: Total Sequences in Block Data | W3: =COUNTA(L7:L36) -> 30 | AA3: Total Sequences in Block Data | AB3: =COUNTA(L37:L66) -> 30 | AF3: Total Sequences in Block Data | AG3: =COUNTA(L67:L97) -> 31 | AK3: Total Sequences in Block Data | AL3: =COUNTA(L98:L127) -> 30 | AP3: Total Sequences in Block Data | AQ3: =COUNTA(L128:L157) -> 30 | AU3: Total Sequences in Block Data | AV3: =COUNTA(L158:L187) -> 30
P4: Total Sequences in Summary | Q4: =SUM(O7:O14) -> 180 | V4: Total Sequences in Block Summary | W4: =SUM(U7:U14) -> 30 | AA4: Total Sequences in Block Summary | AB4: =SUM(Z7:Z14) -> 30 | AF4: Total Sequences in Block Summary | AG4: =SUM(AE7:AE14) -> 31 | AK4: Total Sequences in Block Summary | AL4: =SUM(AJ7:AJ14) -> 30 | AP4: Total Sequences in Block Summary | AQ4: =SUM(AO7:AO14) -> 30 | AU4: Total Sequences in Block Summary | AV4: =SUM(AT7:AT14) -> 29
T5: Block 1 | Y5: Block 2 | AD5: Block 3 | AI5: Block 4 | AN5: Block 5 | AS5: Block 6
A6: Sequence Component 1 | B6: Time 1 | C6: Sequence Component 2 | D6: Time 2 | E6: Sequence Component 3 | F6: Time 3 | G6: Sequence Component 4 | H6: Time 4 | I6: Sequence Component 5 | J6: Time 5 | K6: Correct? 0=No 1=Yes | L6: Sequence | N6: Frequency | P6: Relative Frequency | Q6: Variability | T6: Frequency | V6: Relative Frequency | W6: Variability | Y6: Frequency | AA6: Relative Frequency | AB6: Variability | AD6: Frequency | AF6: Relative Frequency | AG6: Variability | AI6: Frequency | AK6: Relative Frequency | AL6: Variability | AN6: Frequency | AP6: Relative Frequency | AQ6: Variability | AS6: Frequency | AU6: Relative Frequency | AV6: Variability
A7: 12 | B7: 9 | C7: 13 | D7: 18 | E7: 13 | F7: 28 | K7: 0 | L7: 111 | N7: 111 | O7: =COUNTIF($L$7:$L$500,N7) -> 144 | P7: =O7/$Q$4 -> 0.8 | Q7: =IF(P7=0,0,(P7*((LOG(P7))/LOG(2)))) -> -0.2575424759 | T7: =N7 -> 111 | U7: =COUNTIF(L7:L36,T7) -> 26 | V7: =U7/(W4-U11) -> 0.8666666667 | W7: =IF(V7=0,0,(V7*((LOG(V7))/LOG(2)))) -> -0.1789240938 | Y7: =N7 -> 111 | Z7: =COUNTIF(L37:L66,Y7) -> 26 | AA7: =Z7/(AB4-Z11) -> 0.8666666667 | AB7: =IF(AA7=0,0,(AA7*((LOG(AA7))/LOG(2)))) -> -0.1789240938 | AD7: =N7 -> 111 | AE7: =COUNTIF(L67:L97,AD7) -> 24 | AF7: =AE7/(AG4-AE11) -> 0.7741935484 | AG7: =IF(AF7=0,0,(AF7*((LOG(AF7))/LOG(2)))) -> -0.2858584333 | AI7: =N7 -> 111 | AJ7: =COUNTIF(L98:L127,AI7) -> 23 | AK7: =AJ7/(AL4-AJ11) -> 0.7666666667 | AL7: =IF(AK7=0,0,(AK7*((LOG(AK7))/LOG(2)))) -> -0.2938852903 | AN7: =N7 -> 111 | AO7: =COUNTIF(L128:L157,AN7) -> 19 | AP7: =AO7/(AQ4-AO11) -> 0.6333333333 | AQ7: =IF(AP7=0,0,(AP7*((LOG(AP7))/LOG(2)))) -> -0.4173432854 | AS7: =N7 -> 111 | AT7: =COUNTIF(L158:L187,AS7) -> 26 | AU7: =AT7/(AV4-AT11) -> 0.8965517241 | AV7: =IF(AU7=0,0,(AU7*((LOG(AU7))/LOG(2)))) -> -0.1412439035
A8: 12 | B8: 143 | C8: 13 | D8: 149 | E8: 13 | F8: 159 | K8: 0 | L8: 111 | N8: 112 | O8: =COUNTIF($L$7:$L$500,N8) -> 11 | P8: =O8/$Q$4 -> 0.06111111111 | Q8: =IF(P8=0,0,(P8*((LOG(P8))/LOG(2)))) -> -0.246425757 | T8: =N8 -> 112 | U8: =COUNTIF(L7:L36,T8) -> 1 | V8: =U8/(W4-U11) -> 0.03333333333 | W8: =IF(V8=0,0,(V8*((LOG(V8))/LOG(2)))) -> -0.1635630199 | Y8: =N8 -> 112 | Z8: =COUNTIF(L37:L66,Y8) -> 2 | AA8: =Z8/(AB4-Z11) -> 0.06666666667 | AB8: =IF(AA8=0,0,(AA8*((LOG(AA8))/LOG(2)))) -> -0.260459373 | AD8: =N8 -> 112 | AE8: =COUNTIF(L67:L97,AD8) -> 3 | AF8: =AE8/(AG4-AE11) -> 0.09677419355 | AG8: =IF(AF8=0,0,(AF8*((LOG(AF8))/LOG(2)))) -> -0.3260548848 | AI8: =N8 -> 112 | AJ8: =COUNTIF(L98:L127,AI8) -> 2 | AK8: =AJ8/(AL4-AJ11) -> 0.06666666667 | AL8: =IF(AK8=0,0,(AK8*((LOG(AK8))/LOG(2)))) -> -0.260459373 | AN8: =N8 -> 112 | AO8: =COUNTIF(L128:L157,AN8) -> 2 | AP8: =AO8/(AQ4-AO11) -> 0.06666666667 | AQ8: =IF(AP8=0,0,(AP8*((LOG(AP8))/LOG(2)))) -> -0.260459373 | AS8: =N8 -> 112 | AT8: =COUNTIF(L158:L187,AS8) -> 1 | AU8: =AT8/(AV4-AT11) -> 0.03448275862 | AV8: =IF(AU8=0,0,(AU8*((LOG(AU8))/LOG(2)))) -> -0.167516586
A9: 12 | B9: 263 | C9: 13 | D9: 271 | E9: 13 | F9: 281 | K9: 0 | L9: 111 | N9: 121 | O9: =COUNTIF($L$7:$L$500,N9) -> 0 | P9: =O9/$Q$4 -> 0 | Q9: =IF(P9=0,0,(P9*((LOG(P9))/LOG(2)))) -> 0 | T9: =N9 -> 121 | U9: =COUNTIF(L7:L36,T9) -> 0 | V9: =U9/(W4-U11) -> 0 | W9: =IF(V9=0,0,(V9*((LOG(V9))/LOG(2)))) -> 0 | Y9: =N9 -> 121 | Z9: =COUNTIF(L37:L66,Y9) -> 0 | AA9: =Z9/(AB4-Z11) -> 0 | AB9: =IF(AA9=0,0,(AA9*((LOG(AA9))/LOG(2)))) -> 0 | AD9: =N9 -> 121 | AE9: =COUNTIF(L67:L97,AD9) -> 0 | AF9: =AE9/(AG4-AE11) -> 0 | AG9: =IF(AF9=0,0,(AF9*((LOG(AF9))/LOG(2)))) -> 0 | AI9: =N9 -> 121 | AJ9: =COUNTIF(L98:L127,AI9) -> 0 | AK9: =AJ9/(AL4-AJ11) -> 0 | AL9: =IF(AK9=0,0,(AK9*((LOG(AK9))/LOG(2)))) -> 0 | AN9: =N9 -> 121 | AO9: =COUNTIF(L128:L157,AN9) -> 0 | AP9: =AO9/(AQ4-AO11) -> 0 | AQ9: =IF(AP9=0,0,(AP9*((LOG(AP9))/LOG(2)))) -> 0 | AS9: =N9 -> 121 | AT9: =COUNTIF(L158:L187,AS9) -> 0 | AU9: =AT9/(AV4-AT11) -> 0 | AV9: =IF(AU9=0,0,(AU9*((LOG(AU9))/LOG(2)))) -> 0
A10: 12 | B10: 381 | C10: 13 | D10: 387 | E10: 13 | F10: 395 | K10: 0 | L10: 111 | N10: 122 | O10: =COUNTIF($L$7:$L$500,N10) -> 16 | P10: =O10/$Q$4 -> 0.08888888889 | Q10: =IF(P10=0,0,(P10*((LOG(P10))/LOG(2)))) -> -0.3103869419 | T10: =N10 -> 122 | U10: =COUNTIF(L7:L36,T10) -> 2 | V10: =U10/(W4-U11) -> 0.06666666667 | W10: =IF(V10=0,0,(V10*((LOG(V10))/LOG(2)))) -> -0.260459373 | Y10: =N10 -> 122 | Z10: =COUNTIF(L37:L66,Y10) -> 1 | AA10: =Z10/(AB4-Z11) -> 0.03333333333 | AB10: =IF(AA10=0,0,(AA10*((LOG(AA10))/LOG(2)))) -> -0.1635630199 | AD10: =N10 -> 122 | AE10: =COUNTIF(L67:L97,AD10) -> 2 | AF10: =AE10/(AG4-AE11) -> 0.06451612903 | AG10: =IF(AF10=0,0,(AF10*((LOG(AF10))/LOG(2)))) -> -0.2551094394 | AI10: =N10 -> 122 | AJ10: =COUNTIF(L98:L127,AI10) -> 4 | AK10: =AJ10/(AL4-AJ11) -> 0.1333333333 | AL10: =IF(AK10=0,0,(AK10*((LOG(AK10))/LOG(2)))) -> -0.3875854127 | AN10: =N10 -> 122 | AO10: =COUNTIF(L128:L157,AN10) -> 6 | AP10: =AO10/(AQ4-AO11) -> 0.2 | AQ10: =IF(AP10=0,0,(AP10*((LOG(AP10))/LOG(2)))) -> -0.464385619 | AS10: =N10 -> 122 | AT10: =COUNTIF(L158:L187,AS10) -> 1 | AU10: =AT10/(AV4-AT11) -> 0.03448275862 | AV10: =IF(AU10=0,0,(AU10*((LOG(AU10))/LOG(2)))) -> -0.167516586
A11: 12 | B11: 500 | C11: 13 | D11: 505 | E11: 13 | F11: 511 | K11: 0 | L11: 111 | N11: 211 | O11: =COUNTIF($L$7:$L$500,N11) -> 0 | P11: =O11/$Q$4 -> 0 | Q11: =IF(P11=0,0,(P11*((LOG(P11))/LOG(2)))) -> 0 | T11: =N11 -> 211 | U11: =COUNTIF(L7:L36,T11) -> 0 | Y11: =N11 -> 211 | Z11: =COUNTIF(L37:L66,Y11) -> 0 | AD11: =N11 -> 211 | AE11: =COUNTIF(L67:L97,AD11) -> 0 | AI11: =N11 -> 211 | AJ11: =COUNTIF(L98:L127,AI11) -> 0 | AN11: =N11 -> 211 | AO11: =COUNTIF(L128:L157,AN11) -> 0 | AS11: =N11 -> 211 | AT11: =COUNTIF(L158:L187,AS11) -> 0
A12: 12 | B12: 614 | C12: 13 | D12: 620 | E12: 13 | F12: 628 | K12: 0 | L12: 111 | N12: 212 | O12: =COUNTIF($L$7:$L$500,N12) -> 0 | P12: =O12/$Q$4 -> 0 | Q12: =IF(P12=0,0,(P12*((LOG(P12))/LOG(2)))) -> 0 | T12: =N12 -> 212 | U12: =COUNTIF(L7:L36,T12) -> 0 | V12: =U12/(W4-U11) -> 0 | W12: =IF(V12=0,0,(V12*((LOG(V12))/LOG(2)))) -> 0 | Y12: =N12 -> 212 | Z12: =COUNTIF(L37:L66,Y12) -> 0 | AA12: =Z12/(AB4-Z11) -> 0 | AB12: =IF(AA12=0,0,(AA12*((LOG(AA12))/LOG(2)))) -> 0 | AD12: =N12 -> 212 | AE12: =COUNTIF(L67:L97,AD12) -> 0 | AF12: =AE12/(AG4-AE11) -> 0 | AG12: =IF(AF12=0,0,(AF12*((LOG(AF12))/LOG(2)))) -> 0 | AI12: =N12 -> 212 | AJ12: =COUNTIF(L98:L127,AI12) -> 0 | AK12: =AJ12/(AL4-AJ11) -> 0 | AL12: =IF(AK12=0,0,(AK12*((LOG(AK12))/LOG(2)))) -> 0 | AN12: =N12 -> 212 | AO12: =COUNTIF(L128:L157,AN12) -> 0 | AP12: =AO12/(AQ4-AO11) -> 0 | AQ12: =IF(AP12=0,0,(AP12*((LOG(AP12))/LOG(2)))) -> 0 | AS12: =N12 -> 212 | AT12: =COUNTIF(L158:L187,AS12) -> 0 | AU12: =AT12/(AV4-AT11) -> 0 | AV12: =IF(AU12=0,0,(AU12*((LOG(AU12))/LOG(2)))) -> 0
A13: 12 | B13: 728 | C13: 24 | D13: 751 | E13: 24 | F13: 760 | K13: 0 | L13: 122 | N13: 221 | O13: =COUNTIF($L$7:$L$500,N13) -> 0 | P13: =O13/$Q$4 -> 0 | Q13: =IF(P13=0,0,(P13*((LOG(P13))/LOG(2)))) -> 0 | T13: =N13 -> 221 | U13: =COUNTIF(L7:L36,T13) -> 0 | V13: =U13/(W4-U11) -> 0 | W13: =IF(V13=0,0,(V13*((LOG(V13))/LOG(2)))) -> 0 | Y13: =N13 -> 221 | Z13: =COUNTIF(L37:L66,Y13) -> 0 | AA13: =Z13/(AB4-Z11) -> 0 | AB13: =IF(AA13=0,0,(AA13*((LOG(AA13))/LOG(2)))) -> 0 | AD13: =N13 -> 221 | AE13: =COUNTIF(L67:L97,AD13) -> 0 | AF13: =AE13/(AG4-AE11) -> 0 | AG13: =IF(AF13=0,0,(AF13*((LOG(AF13))/LOG(2)))) -> 0 | AI13: =N13 -> 221 | AJ13: =COUNTIF(L98:L127,AI13) -> 0 | AK13: =AJ13/(AL4-AJ11) -> 0 | AL13: =IF(AK13=0,0,(AK13*((LOG(AK13))/LOG(2)))) -> 0 | AN13: =N13 -> 221 | AO13: =COUNTIF(L128:L157,AN13) -> 0 | AP13: =AO13/(AQ4-AO11) -> 0 | AQ13: =IF(AP13=0,0,(AP13*((LOG(AP13))/LOG(2)))) -> 0 | AS13: =N13 -> 221 | AT13: =COUNTIF(L158:L187,AS13) -> 0 | AU13: =AT13/(AV4-AT11) -> 0 | AV13: =IF(AU13=0,0,(AU13*((LOG(AU13))/LOG(2)))) -> 0
A14: 12 | B14: 871 | C14: 13 | D14: 877 | E14: 13 | F14: 887 | K14: 0 | L14: 111 | N14: 222 | O14: =COUNTIF($L$7:$L$500,N14) -> 9 | P14: =O14/$Q$4 -> 0.05 | Q14: =IF(P14=0,0,(P14*((LOG(P14))/LOG(2)))) -> -0.2160964047 | T14: =N14 -> 222 | U14: =COUNTIF(L7:L36,T14) -> 1 | V14: =U14/(W4-U11) -> 0.03333333333 | W14: =IF(V14=0,0,(V14*((LOG(V14))/LOG(2)))) -> -0.1635630199 | Y14: =N14 -> 222 | Z14: =COUNTIF(L37:L66,Y14) -> 1 | AA14: =Z14/(AB4-Z11) -> 0.03333333333 | AB14: =IF(AA14=0,0,(AA14*((LOG(AA14))/LOG(2)))) -> -0.1635630199 | AD14: =N14 -> 222 | AE14: =COUNTIF(L67:L97,AD14) -> 2 | AF14: =AE14/(AG4-AE11) -> 0.06451612903 | AG14: =IF(AF14=0,0,(AF14*((LOG(AF14))/LOG(2)))) -> -0.2551094394 | AI14: =N14 -> 222 | AJ14: =COUNTIF(L98:L127,AI14) -> 1 | AK14: =AJ14/(AL4-AJ11) -> 0.03333333333 | AL14: =IF(AK14=0,0,(AK14*((LOG(AK14))/LOG(2)))) -> -0.1635630199 | AN14: =N14 -> 222 | AO14: =COUNTIF(L128:L157,AN14) -> 3 | AP14: =AO14/(AQ4-AO11) -> 0.1 | AQ14: =IF(AP14=0,0,(AP14*((LOG(AP14))/LOG(2)))) -> -0.3321928095 | AS14: =N14 -> 222 | AT14: =COUNTIF(L158:L187,AS14) -> 1 | AU14: =AT14/(AV4-AT11) -> 0.03448275862 | AV14: =IF(AU14=0,0,(AU14*((LOG(AU14))/LOG(2)))) -> -0.167516586
A15: 12 | B15: 1005 | C15: 13 | D15: 1012 | E15: 13 | F15: 1019 | K15: 0 | L15: 111 | P15: =SUM(P7:P14) -> 1 | Q15: =-SUM(Q7:Q14) -> 1.03045158 | V15: =SUM(V7:V14) -> 1 | W15: =-SUM(W7:W14) -> 0.7665095066 | AA15: =SUM(AA7:AA14) -> 1 | AB15: =-SUM(AB7:AB14) -> 0.7665095066 | AF15: =SUM(AF7:AF14) -> 1 | AG15: =-SUM(AG7:AG14) -> 1.122132197 | AK15: =SUM(AK7:AK14) -> 1 | AL15: =-SUM(AL7:AL14) -> 1.105493096 | AP15: =SUM(AP7:AP14) -> 1 | AQ15: =-SUM(AQ7:AQ14) -> 1.474381087 | AU15: =SUM(AU7:AU14) -> 1 | AV15: =-SUM(AV7:AV14) -> 0.6437936616
A16: 12 | B16: 1127 | C16: 13 | D16: 1132 | E16: 13 | F16: 1138 | K16: 0 | L16: 111 | P16: U= | Q16: =Q15/(LOG(Q4)/LOG(2)) -> 0.1375429505 | V16: U1= | W16: =W15/(LOG(W4)/LOG(2)) -> 0.156210841 | AA16: U2= | AB16: =AB15/(LOG(AB4)/LOG(2)) -> 0.156210841 | AF16: U3= | AG16: =AG15/(LOG(AG4)/LOG(2)) -> 0.226501359 | AK16: U4= | AL16: =AL15/(LOG(AL4)/LOG(2)) -> 0.2252940176 | AP16: U5= | AQ16: =AQ15/(LOG(AQ4)/LOG(2)) -> 0.300471563 | AU16: U6= | AV16: =AV15/(LOG(AV4)/LOG(2)) -> 0.132522886
A17: 12 | B17: 1245 | C17: 13 | D17: 1250 | E17: 13 | F17: 1256 | K17: 0 | L17: 111
A18: 12 | B18: 1369 | C18: 13 | D18: 1375 | E18: 13 | F18: 1384 | K18: 0 | L18: 111
A19: 12 | B19: 1498 | C19: 24 | D19: 1513 | E19: 24 | F19: 1522 | K19: 0 | L19: 122 | N19: Total Target Seq
A20: 12 | B20: 1642 | C20: 13 | D20: 1648 | E20: 13 | F20: 1673 | K20: 0 | L20: 111 | N20: =COUNTIF(L7:L187,G3) -> 0 | P20: 30 | Q20: 30 | R20: 31 | S20: 30 | T20: 30 | U20: 30
A21: 12 | B21: 1798 | C21: 13 | D21: 1803 | E21: 13 | F21: 1809 | K21: 0 | L21: 111 | P21: % of reinforcement given in 6 equal intervals based on number of trials
A22: 12 | B22: 1926 | C22: 13 | D22: 1932 | E22: 13 | F22: 1950 | K22: 0 | L22: 111 | P22: %_1 | Q22: %_2 | R22: %_3 | S22: %_4 | T22: %_5 | U22: %_6
A23: 12 | B23: 2057 | C23: 13 | D23: 2063 | E23: 13 | F23: 2069 | K23: 0 | L23: 111 | O23: target sequence | P23: =$G$3 -> 211 | Q23: =$G$3 -> 211 | R23: =$G$3 -> 211 | S23: =$G$3 -> 211 | T23: =$G$3 -> 211 | U23: =$G$3 -> 211
A24: 12 | B24: 2186 | C24: 13 | D24: 2194 | E24: 13 | F24: 2200 | K24: 0 | L24: 111 | O24: total reinforcement | P24: =U11 -> 0 | Q24: =Z11 -> 0 | R24: =AE11 -> 0 | S24: =AJ11 -> 0 | T24: =AO11 -> 0 | U24: =AT11 -> 0
A25: 12 | B25: 2329 | C25: 13 | D25: 2338 | E25: 13 | F25: 2356 | K25: 0 | L25: 111 | O25: % target
A26: 12 | B26: 2460 | C26: 13 | D26: 2471 | E26: 13 | F26: 2477 | K26: 0 | L26: 111 | O26: CCRF
A27: 21 | B27: 2649 | C27: 22 | D27: 2665 | E27: 24 | F27: 2679 | K27: 0 | L27: 222 | O27: % CCRf
A28: 12 | B28: 2782 | C28: 13 | D28: 2788 | E28: 24 | F28: 2814 | K28: 0 | L28: 112 | O28: average response rate | P28: =F36/P20 -> 132.2333333 | Q28: =(F66-F36)/Q20 -> 129.2 | R28: =(F97-F66)/R20 -> 129.6129032 | S28: =(F127-F97)/S20 -> 131.1 | T28: =(F157-F127)/T20 -> 143.5333333 | U28: =(F187-F157)/U20 -> -670
A29: 12 | B29: 2922 | C29: 13 | D29: 2928 | E29: 13 | F29: 2935 | K29: 0 | L29: 111
A30: 12 | B30: 3041 | C30: 13 | D30: 3047 | E30: 13 | F30: 3055 | K30: 0 | L30: 111
A31: 12 | B31: 3182 | C31: 13 | D31: 3189 | E31: 13 | F31: 3207 | K31: 0 | L31: 111
A32: 12 | B32: 3341 | C32: 13 | D32: 3353 | E32: 13 | F32: 3380 | K32: 0 | L32: 111
A33: 12 | B33: 3539 | C33: 13 | D33: 3550 | E33: 13 | F33: 3560 | K33: 0 | L33: 111
A34: 12 | B34: 3690 | C34: 13 | D34: 3696 | E34: 13 | F34: 3702 | K34: 0 | L34: 111
A35: 12 | B35: 3824 | C35: 13 | D35: 3830 | E35: 13 | F35: 3840 | K35: 0 | L35: 111
A36: 12 | B36: 3953 | C36: 13 | D36: 3958 | E36: 13 | F36: 3967 | K36: 0 | L36: 111
A37: 12 | B37: 4080 | C37: 13 | D37: 4086 | E37: 13 | F37: 4093 | K37: 0 | L37: 111
A38: 12 | B38: 4216 | C38: 13 | D38: 4221 | E38: 13 | F38: 4228 | K38: 0 | L38: 111
A39: 12 | B39: 4339 | C39: 13 | D39: 4345 | E39: 13 | F39: 4361 | K39: 0 | L39: 111
A40: 12 | B40: 4481 | C40: 13 | D40: 4488 | E40: 13 | F40: 4497 | K40: 0 | L40: 111
A41: 12 | B41: 4606 | C41: 13 | D41: 4612 | E41: 13 | F41: 4622 | K41: 0 | L41: 111
A42: 12 | B42: 4728 | C42: 13 | D42: 4734 | E42: 13 | F42: 4740 | K42: 0 | L42: 111
A43: 12 | B43: 4840 | C43: 13 | D43: 4845 | E43: 24 | F43: 4882 | K43: 0 | L43: 112
A44: 12 | B44: 4990 | C44: 13 | D44: 4995 | E44: 13 | F44: 5004 | K44: 0 | L44: 111
A45: 12 | B45: 5107 | C45: 13 | D45: 5113 | E45: 13 | F45: 5121 | K45: 0 | L45: 111
A46: 12 | B46: 5232 | C46: 13 | D46: 5238 | E46: 13 | F46: 5244 | K46: 0 | L46: 111
A47: 12 | B47: 5344 | C47: 13 | D47: 5350 | E47: 13 | F47: 5357 | K47: 0 | L47: 111
A48: 12 | B48: 5460 | C48: 13 | D48: 5468 | E48: 13 | F48: 5473 | K48: 0 | L48: 111
A49: 12 | B49: 5575 | C49: 13 | D49: 5580 | E49: 13 | F49: 5586 | K49: 0 | L49: 111
A50: 12 | B50: 5692 | C50: 13 | D50: 5698 | E50: 13 | F50: 5715 | K50: 0 | L50: 111
A51: 12 | B51: 5817 | C51: 24 | D51: 5836 | E51: 24 | F51: 5843 | K51: 0 | L51: 122
A52: 21 | B52: 5996 | C52: 22 | D52: 6003 | E52: 24 | F52: 6013 | K52: 0 | L52: 222
A53: 12 | B53: 6118 | C53: 13 | D53: 6135 | E53: 13 | F53: 6140 | K53: 0 | L53: 111
A54: 12 | B54: 6245 | C54: 13 | D54: 6250 | E54: 13 | F54: 6256 | K54: 0 | L54: 111
A55: 12 | B55: 6367 | C55: 13 | D55: 6378 | E55: 13 | F55: 6391 | K55: 0 | L55: 111
A56: 12 | B56: 6502 | C56: 13 | D56: 6539 | E56: 13 | F56: 6546 | K56: 0 | L56: 111
A57: 12 | B57: 6662 | C57: 13 | D57: 6689 | E57: 13 | F57: 6700 | K57: 0 | L57: 111
A58: 12 | B58: 6799 | C58: 13 | D58: 6820 | E58: 24 | F58: 6838 | K58: 0 | L58: 112
A59: 12 | B59: 6970 | C59: 13 | D59: 6986 | E59: 13 | F59: 6997 | K59: 0 | L59: 111
A60: 12 | B60: 7106 | C60: 13 | D60: 7112 | E60: 13 | F60: 7118 | K60: 0 | L60: 111
A61: 12 | B61: 7229 | C61: 13 | D61: 7234 | E61: 13 | F61: 7239 | K61: 0 | L61: 111
A62: 12 | B62: 7346 | C62: 13 | D62: 7369 | E62: 13 | F62: 7380 | K62: 0 | L62: 111
A63: 12 | B63: 7486 | C63: 13 | D63: 7491 | E63: 13 | F63: 7498 | K63: 0 | L63: 111
A64: 12 | B64: 7605 | C64: 13 | D64: 7611 | E64: 13 | F64: 7617 | K64: 0 | L64: 111
A65: 12 | B65: 7715 | C65: 13 | D65: 7722 | E65: 13 | F65: 7728 | K65: 0 | L65: 111
A66: 12 | B66: 7831 | C66: 13 | D66: 7837 | E66: 13 | F66: 7843 | K66: 0 | L66: 111
A67: 12 | B67: 7941 | C67: 13 | D67: 7947 | E67: 13 | F67: 7954 | K67: 0 | L67: 111
A68: 12 | B68: 8056 | C68: 13 | D68: 8062 | E68: 13 | F68: 8068 | K68: 0 | L68: 111
A69: 12 | B69: 8185 | C69: 13 | D69: 8191 | E69: 13 | F69: 8199 | K69: 0 | L69: 111
A70: 12 | B70: 8301 | C70: 13 | D70: 8310 | E70: 13 | F70: 8317 | K70: 0 | L70: 111
A71: 12 | B71: 8441 | C71: 13 | D71: 8446 | E71: 13 | F71: 8463 | K71: 0 | L71: 111
A72: 12 | B72: 8568 | C72: 13 | D72: 8573 | E72: 13 | F72: 8579 | K72: 0 | L72: 111
A73: 12 | B73: 8717 | C73: 13 | D73: 8726 | E73: 13 | F73: 8739 | K73: 0 | L73: 111
A74: 12 | B74: 8852 | C74: 13 | D74: 8858 | E74: 13 | F74: 8863 | K74: 0 | L74: 111
A75: 12 | B75: 8962 | C75: 13 | D75: 8969 | E75: 13 | F75: 8975 | K75: 0 | L75: 111
A76: 21 | B76: 9119 | C76: 22 | D76: 9125 | E76: 24 | F76: 9142 | K76: 0 | L76: 222
A77: 12 | B77: 9247 | C77: 13 | D77: 9271 | E77: 13 | F77: 9277 | K77: 0 | L77: 111
A78: 12 | B78: 9385 | C78: 13 | D78: 9397 | E78: 13 | F78: 9416 | K78: 0 | L78: 111
A79: 12 | B79: 9529 | C79: 24 | D79: 9547 | E79: 24 | F79: 9553 | K79: 0 | L79: 122
A80: 12 | B80: 9653 | C80: 13 | D80: 9659 | E80: 13 | F80: 9664 | K80: 0 | L80: 111
A81: 12 | B81: 9763 | C81: 13 | D81: 9773 | E81: 13 | F81: 9781 | K81: 0 | L81: 111
A82: 12 | B82: 9911 | C82: 13 | D82: 9925 | E82: 24 | F82: 9939 | K82: 0 | L82: 112
A83: 12 | B83: 10042 | C83: 13 | D83: 10047 | E83: 13 | F83: 10053 | K83: 0 | L83: 111
A84: 12 | B84: 10172 | C84: 13 | D84: 10178 | E84: 13 | F84: 10185 | K84: 0 | L84: 111
A85: 12 | B85: 10288 | C85: 13 | D85: 10295 | E85: 13 | F85: 10301 | K85: 0 | L85: 111
A86: 12 | B86: 10399 | C86: 13 | D86: 10405 | E86: 24 | F86: 10422 | K86: 0 | L86: 112
A87: 12 | B87: 10545 | C87: 13 | D87: 10552 | E87: 13 | F87: 10560 | K87: 0 | L87: 111
A88: 12 | B88: 10669 | C88: 13 | D88: 10679 | E88: 24 | F88: 10695 | K88: 0 | L88: 112
A89: 12 | B89: 10816 | C89: 13 | D89: 10836 | E89: 13 | F89: 10843 | K89: 0 | L89: 111
A90: 12 | B90: 10943 | C90: 13 | D90: 10948 | E90: 13 | F90: 10960 | K90: 0 | L90: 111
A91: 12 | B91: 11067 | C91: 13 | D91: 11072 | E91: 13 | F91: 11085 | K91: 0 | L91: 111
A92: 12 | B92: 11187 | C92: 24 | D92: 11201 | E92: 24 | F92: 11220 | K92: 0 | L92: 122
A93: 12 | B93: 11328 | C93: 13 | D93: 11334 | E93: 13 | F93: 11340 | K93: 0 | L93: 111
A94: 12 | B94: 11443 | C94: 13 | D94: 11448 | E94: 13 | F94: 11455 | K94: 0 | L94: 111
A95: 12 | B95: 11562 | C95: 13 | D95: 11569 | E95: 13 | F95: 11583 | K95: 0 | L95: 111
A96: 12 | B96: 11706 | C96: 13 | D96: 11712 | E96: 13 | F96: 11718 | K96: 0 | L96: 111
A97: 21 | B97: 11842 | C97: 22 | D97: 11848 | E97: 24 | F97: 11861 | K97: 0 | L97: 222
A98: 12 | B98: 11970 | C98: 13 | D98: 11975 | E98: 13 | F98: 11982 | K98: 0 | L98: 111
A99: 12 | B99: 12088 | C99: 13 | D99: 12094 | E99: 13 | F99: 12102 | K99: 0 | L99: 111
A100: 12 | B100: 12233 | C100: 13 | D100: 12251 | E100: 13 | F100: 12260 | K100: 0 | L100: 111
A101: 12 | B101: 12384 | C101: 24 | D101: 12398 | E101: 24 | F101: 12408 | K101: 0 | L101: 122
A102: 12 | B102: 12529 | C102: 13 | D102: 12534 | E102: 24 | F102: 12559 | K102: 0 | L102: 112
A103: 12 | B103: 12668 | C103: 13 | D103: 12674 | E103: 13 | F103: 12680 | K103: 0 | L103: 111
A104: 12 | B104: 12795 | C104: 13 | D104: 12801 | E104: 13 | F104: 12809 | K104: 0 | L104: 111
A105: 12 | B105: 12914 | C105: 24 | D105: 12937 | E105: 24 | F105: 12945 | K105: 0 | L105: 122
A106: 21 | B106: 13068 | C106: 22 | D106: 13075 | E106: 24 | F106: 13084 | K106: 0 | L106: 222
A107: 12 | B107: 13189 | C107: 13 | D107: 13195 | E107: 13 | F107: 13201 | K107: 0 | L107: 111
A108: 12 | B108: 13302 | C108: 13 | D108: 13309 | E108: 13 | F108: 13316 | K108: 0 | L108: 111
A109: 12 | B109: 13465 | C109: 13 | D109: 13471 | E109: 13 | F109: 13480 | K109: 0 | L109: 111
A110: 12 | B110: 13583 | C110: 13 | D110: 13590 | E110: 13 | F110: 13595 | K110: 0 | L110: 111
A111: 12 | B111: 13708 | C111: 13 | D111: 13713 | E111: 13 | F111: 13719 | K111: 0 | L111: 111
A112: 12 | B112: 13829 | C112: 13 | D112: 13835 | E112: 13 | F112: 13842 | K112: 0 | L112: 111
A113: 12 | B113: 13954 | C113: 13 | D113: 13960 | E113: 13 | F113: 13969 | K113: 0 | L113: 111
A114: 12 | B114: 14087 | C114: 13 | D114: 14093 | E114: 13 | F114: 14101 | K114: 0 | L114: 111
A115: 12 | B115: 14212 | C115: 13 | D115: 14234 | E115: 13 | F115: 14245 | K115: 0 | L115: 111
A116: 12 | B116: 14348 | C116: 13 | D116: 14356 | E116: 24 | F116: 14370 | K116: 0 | L116: 112
A117: 12 | B117: 14476 | C117: 13 | D117: 14481 | E117: 13 | F117: 14488 | K117: 0 | L117: 111
A118: 12 | B118: 14598 | C118: 24 | D118: 14613 | E118: 24 | F118: 14631 | K118: 0 | L118: 122
A119: 12 | B119: 14760 | C119: 13 | D119: 14766 | E119: 13 | F119: 14772 | K119: 0 | L119: 111
A120: 12 | B120: 14889 | C120: 24 | D120: 14905 | E120: 24 | F120: 14916 | K120: 0 | L120: 122
A121: 12 | B121: 15024 | C121: 13 | D121: 15033 | E121: 13 | F121: 15040 | K121: 0 | L121: 111
A122: 12 | B122: 15148 | C122: 13 | D122: 15153 | E122: 13 | F122: 15160 | K122: 0 | L122: 111
A123: 12 | B123: 15278 | C123: 13 | D123: 15283 | E123: 13 | F123: 15291 | K123: 0 | L123: 111
A124: 12 | B124: 15395 | C124: 13 | D124: 15401 | E124: 13 | F124: 15408 | K124: 0 | L124: 111
A125: 12 | B125: 15522 | C125: 13 | D125: 15527 | E125: 13 | F125: 15540 | K125: 0 | L125: 111
A126: 12 | B126: 15650 | C126: 13 | D126: 15655 | E126: 13 | F126: 15661 | K126: 0 | L126: 111
A127: 12 | B127: 15782 | C127: 13 | D127: 15788 | E127: 13 | F127: 15794 | K127: 0 | L127: 111
A128: 21 | B128: 15921 | C128: 22 | D128: 15927 | E128: 24 | F128: 15937 | K128: 0 | L128: 222
A129: 12 | B129: 16042 | C129: 13 | D129: 16065 | E129: 24 | F129: 16077 | K129: 0 | L129: 112
A130: 12 | B130: 16197 | C130: 24 | D130: 16210 | E130: 24 | F130: 16218 | K130: 0 | L130: 122
A131: 12 | B131: 16335 | C131: 24 | D131: 16349 | E131: 24 | F131: 16355 | K131: 0 | L131: 122
A132: 12 | B132: 16466 | C132: 13 | D132: 16472 | E132: 13 | F132: 16479 | K132: 0 | L132: 111
A133: 12 | B133: 16584 | C133: 13 | D133: 16605 | E133: 13 | F133: 16610 | K133: 0 | L133: 111
A134: 12 | B134: 16729 | C134: 13 | D134: 16756 | E134: 13 | F134: 16767 | K134: 0 | L134: 111
A135: 12 | B135: 16899 | C135: 13 | D135: 16906 | E135: 13 | F135: 16924 | K135: 0 | L135: 111
A136: 12 | B136: 17078 | C136: 13 | D136: 17088 | E136: 13 | F136: 17094 | K136: 0 | L136: 111
A137: 12 | B137: 17225 | C137: 13 | D137: 17238 | E137: 13 | F137: 17256 | K137: 0 | L137: 111
A138: 12 | B138: 17411 | C138: 13 | D138: 17417 | E138: 24 | F138: 17441 | K138: 0 | L138: 112
A139: 21 | B139: 17600 | C139: 22 | D139: 17616 | E139: 24 | F139: 17625 | K139: 0 | L139: 222
A140: 12 | B140: 17764 | C140: 13 | D140: 17776 | E140: 13 | F140: 17784 | K140: 0 | L140: 111
A141: 12 | B141: 17941 | C141: 24 | D141: 17955 | E141: 24 | F141: 17959 | K141: 0 | L141: 122
A142: 12 | B142: 18063 | C142: 13 | D142: 18069 | E142: 13 | F142: 18074 | K142: 0 | L142: 111
A143: 12 | B143: 18178 | C143: 13 | D143: 18184 | E143: 13 | F143: 18190 | K143: 0 | L143: 111
A144: 12 | B144: 18317 | C144: 13 | D144: 18322 | E144: 13 | F144: 18329 | K144: 0 | L144: 111
A145: 12 | B145: 18439 | C145: 13 | D145: 18444 | E145: 13 | F145: 18480 | K145: 0 | L145: 111
A146: 12 | B146: 18593 | C146: 24 | D146: 18623 | E146: 24 | F146: 18629 | K146: 0 | L146: 122
A147: 12 | B147: 18736 | C147: 13 | D147: 18740 | E147: 13 | F147: 18746 | K147: 0 | L147: 111
A148: 12 | B148: 18847 | C148: 13 | D148: 18852 | E148: 13 | F148: 18859 | K148: 0 | L148: 111
A149: 12 | B149: 18986 | C149: 13 | D149: 18992 | E149: 13 | F149: 18999 | K149: 0 | L149: 111
A150: 12 | B150: 19109 | C150: 13 | D150: 19114 | E150: 13 | F150: 19120 | K150: 0 | L150: 111
A151: 12 | B151: 19224 | C151: 13 | D151: 19231 | E151: 13 | F151: 19244 | K151: 0 | L151: 111
A152: 12 | B152: 19344 | C152: 13 | D152: 19358 | E152: 13 | F152: 19364 | K152: 0 | L152: 111
A153: 12 | B153: 19481 | C153: 24 | D153: 19501 | E153: 24 | F153: 19506 | K153: 0 | L153: 122
A154: 21 | B154: 19656 | C154: 22 | D154: 19665 | E154: 24 | F154: 19671 | K154: 0 | L154: 222
A155: 12 | B155: 19808 | C155: 13 | D155: 19814 | E155: 13 | F155: 19822 | K155: 0 | L155: 111
A156: 12 | B156: 19946 | C156: 13 | D156: 19952 | E156: 13 | F156: 19958 | K156: 0 | L156: 111
A157: 12 | B157: 20073 | C157: 24 | D157: 20090 | E157: 24 | F157: 20100 | K157: 0 | L157: 122
A158: 12 | B158: 20257 | C158: 13 | D158: 20264 | E158: 13 | F158: 20289 | K158: 0 | L158: 111
A159: 12 | B159: 20396 | C159: 13 | D159: 20402 | E159: 13 | F159: 20408 | K159: 0 | L159: 111
A160: 12 | B160: 20510 | C160: 13 | D160: 20517 | E160: 13 | F160: 20522 | K160: 0 | L160: 111
A161: 12 | B161: 20642 | C161: 13 | D161: 20648 | E161: 13 | F161: 20655 | K161: 0 | L161: 111
A162: 12 | B162: 20764 | C162: 13 | D162: 20769 | E162: 13 | F162: 20774 | K162: 0 | L162: 111
A163: 12 | B163: 20877 | C163: 13 | D163: 20881 | E163: 13 | F163: 20887 | K163: 0 | L163: 111
A164: 12 | B164: 20987 | C164: 13 | D164: 20992 | E164: 13 | F164: 21016 | K164: 0 | L164: 111
A165: 21 | B165: 21134 | C165: 22 | D165: 21145 | E165: 24 | F165: 21153 | K165: 0 | L165: 222
A166: 12 | B166: 21254 | C166: 13 | D166: 21260 | E166: 13 | F166: 21268 | K166: 0 | L166: 111
A167: 12 | B167: 21372 | C167: 13 | D167: 21395 | E167: 13 | F167: 21401 | K167: 0 | L167: 111
A168: 12 | B168: 21529 | C168: 13 | D168: 21550 | E168: 13 | F168: 21555 | K168: 0 | L168: 111
A169: 12 | B169: 21671 | C169: 13 | D169: 21677 | E169: 13 | F169: 21682 | K169: 0 | L169: 111
A170: 12 | B170: 21816 | C170: 13 | D170: 21822 | E170: 13 | F170: 21830 | K170: 0 | L170: 111
A171: 12 | B171: 21930 | C171: 13 | D171: 21936 | E171: 13 | F171: 21942 | K171: 0 | L171: 111
A172: 12 | B172: 22048 | C172: 13 | D172: 22054 | E172: 13 | F172: 22061 | K172: 0 | L172: 111
A173: 12 | B173: 22173 | C173: 13 | D173: 22179 | E173: 13 | F173: 22188 | K173: 0 | L173: 111
A174: 12 | B174: 22309 | C174: 13 | D174: 22315 | E174: 13 | F174: 22322 | K174: 0 | L174: 111
A175: 12 | B175: 22443 | C175: 13 | D175: 22457 | E175: 24 | F175: 22492 | K175: 0 | L175: 112
A176: 12 | B176: 22595 | C176: 13 | D176: 22600 | E176: 13 | F176: 22606 | K176: 0 | L176: 111
A177: 12 | B177: 22730 | C177: 24 | D177: 22748 | E177: 24 | F177: 22754 | K177: 0 | L177: 122
A178: 12 | B178: 22856 | C178: 13 | D178: 22861 | E178: 13 | F178: 22868 | K178: 0 | L178: 111
A179: 12 | B179: 22981 | C179: 13 | D179: 22991 | E179: 13 | F179: 22997 | K179: 0 | L179: 111
A180: 12 | B180: 23098 | C180: 13 | D180: 23109 | E180: 13 | F180: 23118 | K180: 0 | L180: 111
A181: 12 | B181: 23224 | C181: 13 | D181: 23270 | E181: 13 | F181: 23287 | K181: 0 | L181: 111
A182: 12 | B182: 23407 | C182: 13 | D182: 23434 | E182: 13 | F182: 23448 | K182: 0 | L182: 111
A183: 12 | B183: 23552 | C183: 13 | D183: 23558 | E183: 13 | F183: 23563 | K183: 0 | L183: 111
A184: 12 | B184: 23664 | C184: 13 | D184: 23669 | E184: 13 | F184: 23675 | K184: 0 | L184: 111
A185: 12 | B185: 23774 | C185: 13 | D185: 23780 | E185: 13 | F185: 23786 | K185: 0 | L185: 111
A186: 12 | B186: 23885 | C186: 13 | D186: 23890 | E186: 13 | F186: 23895 | K186: 0 | L186: 111
A187: 12 | B187: 23996 | L187: 1

Sheet !N404820.010
A1: Report for:!N404820.010
A2: Date: | B2: <date>
A3: Hen: | B3: <hen> | F3: Correct Sequence | G3: =Start!J2 -> 211 | P3: Total Sequences in Data | Q3: =4994-COUNTBLANK(L7:L5000) -> 173 | V3: Total Sequences in Block Data | W3: =COUNTA(L7:L35) -> 29 | AA3: Total Sequences in Block Data | AB3: =COUNTA(L36:L64) -> 29 | AF3: Total Sequences in Block Data | AG3: =COUNTA(L65:L92) -> 28 | AK3: Total Sequences in Block Data | AL3: =COUNTA(L93:L121) -> 29 | AP3: Total Sequences in Block Data | AQ3: =COUNTA(L122:L150) -> 29 | AU3: Total Sequences in Block Data | AV3: =COUNTA(L151:L179) -> 29
P4: Total Sequences in Summary | Q4: =SUM(O7:O14) -> 173 | V4: Total Sequences in Block Summary | W4: =SUM(U7:U14) -> 29 | AA4: Total Sequences in Block Summary | AB4: =SUM(Z7:Z14) -> 29 | AF4: Total Sequences in Block Summary | AG4: =SUM(AE7:AE14) -> 28 | AK4: Total Sequences in Block Summary | AL4: =SUM(AJ7:AJ14) -> 29 | AP4: Total Sequences in Block Summary | AQ4: =SUM(AO7:AO14) -> 29 | AU4: Total Sequences in Block Summary | AV4: =SUM(AT7:AT14) -> 29
T5: Block 1 | Y5: Block 2 | AD5: Block 3 | AI5: Block 4 | AN5: Block 5 | AS5: Block 6
A6: Sequence Component 1 | B6: Time 1 | C6: Sequence Component 2 | D6: Time 2 | E6: Sequence Component 3 | F6: Time 3 | G6: Sequence Component 4 | H6: Time 4 | I6: Sequence Component 5 | J6: Time 5 | K6: Correct? 0=No 1=Yes | L6: Sequence | N6: Frequency | P6: Relative Frequency | Q6: Variability | T6: Frequency | V6: Relative Frequency | W6: Variability | Y6: Frequency | AA6: Relative Frequency | AB6: Variability | AD6: Frequency | AF6: Relative Frequency | AG6: Variability | AI6: Frequency | AK6: Relative Frequency | AL6: Variability | AN6: Frequency | AP6: Relative Frequency | AQ6: Variability | AS6: Frequency | AU6: Relative Frequency | AV6: Variability
A7: 12 | B7: 16 | C7: 13 | D7: 21 | E7: 13 | F7: 29 | K7: 0 | L7: 111 | N7: 111 | O7: =COUNTIF($L$7:$L$500,N7) -> 126 | P7: =O7/$Q$4 -> 0.7283236994 | Q7: =IF(P7=0,0,(P7*((LOG(P7))/LOG(2)))) -> -0.3330976088 | T7: =N7 -> 111 | U7: =COUNTIF(L7:L35,T7) -> 27 | V7: =U7/(W4-U11) -> 0.9310344828 | W7: =IF(V7=0,0,(V7*((LOG(V7))/LOG(2)))) -> -0.0959835969 | Y7: =N7 -> 111 | Z7: =COUNTIF(L36:L64,Y7) -> 25 | AA7: =Z7/(AB4-Z11) -> 0.8620689655 | AB7: =IF(AA7=0,0,(AA7*((LOG(AA7))/LOG(2)))) -> -0.1845903494 | AD7: =N7 -> 111 | AE7: =COUNTIF(L65:L92,AD7) -> 21 | AF7: =AE7/(AG4-AE11) -> 0.75 | AG7: =IF(AF7=0,0,(AF7*((LOG(AF7))/LOG(2)))) -> -0.3112781245 | AI7: =N7 -> 111 | AJ7: =COUNTIF(L93:L121,AI7) -> 16 | AK7: =AJ7/(AL4-AJ11) -> 0.5517241379 | AL7: =IF(AK7=0,0,(AK7*((LOG(AK7))/LOG(2)))) -> -0.4733688249 | AN7: =N7 -> 111 | AO7: =COUNTIF(L122:L150,AN7) -> 19 | AP7: =AO7/(AQ4-AO11) -> 0.6551724138 | AQ7: =IF(AP7=0,0,(AP7*((LOG(AP7))/LOG(2)))) -> -0.3996902121 | AS7: =N7 -> 111 | AT7: =COUNTIF(L151:L179,AS7) -> 18 | AU7: =AT7/(AV4-AT11) -> 0.6206896552 | AV7: =IF(AU7=0,0,(AU7*((LOG(AU7))/LOG(2)))) -> -0.4270692375
A8: 12 | B8: 132 | C8: 13 | D8: 138 | E8: 13 | F8: 144 | K8: 0 | L8: 111 | N8: 112 | O8: =COUNTIF($L$7:$L$500,N8) -> 15 | P8: =O8/$Q$4 -> 0.08670520231 | Q8: =IF(P8=0,0,(P8*((LOG(P8))/LOG(2)))) -> -0.3058732051 | T8: =N8 -> 112 | U8: =COUNTIF(L7:L35,T8) -> 1 | V8: =U8/(W4-U11) -> 0.03448275862 | W8: =IF(V8=0,0,(V8*((LOG(V8))/LOG(2)))) -> -0.167516586 | Y8: =N8 -> 112 | Z8: =COUNTIF(L36:L64,Y8) -> 1 | AA8: =Z8/(AB4-Z11) -> 0.03448275862 | AB8: =IF(AA8=0,0,(AA8*((LOG(AA8))/LOG(2)))) -> -0.167516586 | AD8: =N8 -> 112 | AE8: =COUNTIF(L65:L92,AD8) -> 4 | AF8: =AE8/(AG4-AE11) -> 0.1428571429 | AG8: =IF(AF8=0,0,(AF8*((LOG(AF8))/LOG(2)))) -> -0.4010507032 | AI8: =N8 -> 112 | AJ8: =COUNTIF(L93:L121,AI8) -> 4 | AK8: =AJ8/(AL4-AJ11) -> 0.1379310345 | AL8: =IF(AK8=0,0,(AK8*((LOG(AK8))/LOG(2)))) -> -0.3942042752 | AN8: =N8 -> 112 | AO8: =COUNTIF(L122:L150,AN8) -> 4 | AP8: =AO8/(AQ4-AO11) -> 0.1379310345 | AQ8: =IF(AP8=0,0,(AP8*((LOG(AP8))/LOG(2)))) -> -0.3942042752 | AS8: =N8 -> 112 | AT8: =COUNTIF(L151:L179,AS8) -> 1 | AU8: =AT8/(AV4-AT11) -> 0.03448275862 | AV8: =IF(AU8=0,0,(AU8*((LOG(AU8))/LOG(2)))) -> -0.167516586
A9: 12 | B9: 247 | C9: 13 | D9: 253 | E9: 13 | F9: 271 | K9: 0 | L9: 111 | N9: 121 | O9: =COUNTIF($L$7:$L$500,N9) -> 0 | P9: =O9/$Q$4 -> 0 | Q9: =IF(P9=0,0,(P9*((LOG(P9))/LOG(2)))) -> 0 | T9: =N9 -> 121 | U9: =COUNTIF(L7:L35,T9) -> 0 | V9: =U9/(W4-U11) -> 0 | W9: =IF(V9=0,0,(V9*((LOG(V9))/LOG(2)))) -> 0 | Y9: =N9 -> 121 | Z9: =COUNTIF(L36:L64,Y9) -> 0 | AA9: =Z9/(AB4-Z11) -> 0 | AB9: =IF(AA9=0,0,(AA9*((LOG(AA9))/LOG(2)))) -> 0 | AD9: =N9 -> 121 | AE9: =COUNTIF(L65:L92,AD9) -> 0 | AF9: =AE9/(AG4-AE11) -> 0 | AG9: =IF(AF9=0,0,(AF9*((LOG(AF9))/LOG(2)))) -> 0 | AI9: =N9 -> 121 | AJ9: =COUNTIF(L93:L121,AI9) -> 0 | AK9: =AJ9/(AL4-AJ11) -> 0 | AL9: =IF(AK9=0,0,(AK9*((LOG(AK9))/LOG(2)))) -> 0 | AN9: =N9 -> 121 | AO9: =COUNTIF(L122:L150,AN9) -> 0 | AP9: =AO9/(AQ4-AO11) -> 0 | AQ9: =IF(AP9=0,0,(AP9*((LOG(AP9))/LOG(2)))) -> 0 | AS9: =N9 -> 121 | AT9: =COUNTIF(L151:L179,AS9) -> 0 | AU9: =AT9/(AV4-AT11) -> 0 | AV9: =IF(AU9=0,0,(AU9*((LOG(AU9))/LOG(2)))) -> 0
A10: 12 | B10: 372 | C10: 13 | D10: 378 | E10: 13 | F10: 393 | K10: 0 | L10: 111 | N10: 122 | O10: =COUNTIF($L$7:$L$500,N10) -> 21 | P10: =O10/$Q$4 -> 0.1213872832 | Q10: =IF(P10=0,0,(P10*((LOG(P10))/LOG(2)))) -> -0.3692978434 | T10: =N10 -> 122 | U10: =COUNTIF(L7:L35,T10) -> 0 | V10: =U10/(W4-U11) -> 0 | W10: =IF(V10=0,0,(V10*((LOG(V10))/LOG(2)))) -> 0 | Y10: =N10 -> 122 | Z10: =COUNTIF(L36:L64,Y10) -> 2 | AA10: =Z10/(AB4-Z11) -> 0.06896551724 | AB10: =IF(AA10=0,0,(AA10*((LOG(AA10))/LOG(2)))) -> -0.2660676548 | AD10: =N10 -> 122 | AE10: =COUNTIF(L65:L92,AD10) -> 3 | AF10: =AE10/(AG4-AE11) -> 0.1071428571 | AG10: =IF(AF10=0,0,(AF10*((LOG(AF10))/LOG(2)))) -> -0.3452563309 | AI10: =N10 -> 122 | AJ10: =COUNTIF(L93:L121,AI10) -> 5 | AK10: =AJ10/(AL4-AJ11) -> 0.1724137931 | AL10: =IF(AK10=0,0,(AK10*((LOG(AK10))/LOG(2)))) -> -0.4372505 | AN10: =N10 -> 122 | AO10: =COUNTIF(L122:L150,AN10) -> 6 | AP10: =AO10/(AQ4-AO11) -> 0.2068965517 | AQ10: =IF(AP10=0,0,(AP10*((LOG(AP10))/LOG(2)))) -> -0.4702796885 | AS10: =N10 -> 122 | AT10: =COUNTIF(L151:L179,AS10) -> 5 | AU10: =AT10/(AV4-AT11) -> 0.1724137931 | AV10: =IF(AU10=0,0,(AU10*((LOG(AU10))/LOG(2)))) -> -0.4372505
A11: 12 | B11: 495 | C11: 13 | D11: 501 | E11: 13 | F11: 510 | K11: 0 | L11: 111 | N11: 211 | O11: =COUNTIF($L$7:$L$500,N11) -> 0 | P11: =O11/$Q$4 -> 0 | Q11: =IF(P11=0,0,(P11*((LOG(P11))/LOG(2)))) -> 0 | T11: =N11 -> 211 | U11: =COUNTIF(L7:L35,T11) -> 0 | Y11: =N11 -> 211 | Z11: =COUNTIF(L36:L64,Y11) -> 0 | AD11: =N11 -> 211 | AE11: =COUNTIF(L65:L92,AD11) -> 0 | AI11: =N11 -> 211 | AJ11: =COUNTIF(L93:L121,AI11) -> 0 | AN11: =N11 -> 211 | AO11: =COUNTIF(L122:L150,AN11) -> 0 | AS11: =N11 -> 211 | AT11: =COUNTIF(L151:L179,AS11) -> 0
A12: 12 | B12: 616 | C12: 13 | D12: 622 | E12: 13 | F12: 631 | K12: 0 | L12: 111 | N12: 212 | O12: =COUNTIF($L$7:$L$500,N12) -> 0 | P12: =O12/$Q$4 -> 0 | Q12: =IF(P12=0,0,(P12*((LOG(P12))/LOG(2)))) -> 0 | T12: =N12 -> 212 | U12: =COUNTIF(L7:L35,T12) -> 0 | V12: =U12/(W4-U11) -> 0 | W12: =IF(V12=0,0,(V12*((LOG(V12))/LOG(2)))) -> 0 | Y12: =N12 -> 212 | Z12: =COUNTIF(L36:L64,Y12) -> 0 | AA12: =Z12/(AB4-Z11) -> 0 | AB12: =IF(AA12=0,0,(AA12*((LOG(AA12))/LOG(2)))) -> 0 | AD12: =N12 -> 212 | AE12: =COUNTIF(L65:L92,AD12) -> 0 | AF12: =AE12/(AG4-AE11) -> 0 | AG12: =IF(AF12=0,0,(AF12*((LOG(AF12))/LOG(2)))) -> 0 | AI12: =N12 -> 212 | AJ12: =COUNTIF(L93:L121,AI12) -> 0 | AK12: =AJ12/(AL4-AJ11) -> 0 | AL12: =IF(AK12=0,0,(AK12*((LOG(AK12))/LOG(2)))) -> 0 | AN12: =N12 -> 212 | AO12: =COUNTIF(L122:L150,AN12) -> 0 | AP12: =AO12/(AQ4-AO11) -> 0 | AQ12: =IF(AP12=0,0,(AP12*((LOG(AP12))/LOG(2)))) -> 0 | AS12: =N12 -> 212 | AT12: =COUNTIF(L151:L179,AS12) -> 0 | AU12: =AT12/(AV4-AT11) -> 0 | AV12: =IF(AU12=0,0,(AU12*((LOG(AU12))/LOG(2)))) -> 0
A13: 12 | B13: 733 | C13: 13 | D13: 738 | E13: 24 | F13: 756 | K13: 0 | L13: 112 | N13: 221 | O13: =COUNTIF($L$7:$L$500,N13) -> 0 | P13: =O13/$Q$4 -> 0 | Q13: =IF(P13=0,0,(P13*((LOG(P13))/LOG(2)))) -> 0 | T13: =N13 -> 221 | U13: =COUNTIF(L7:L35,T13) -> 0 | V13: =U13/(W4-U11) -> 0 | W13: =IF(V13=0,0,(V13*((LOG(V13))/LOG(2)))) -> 0 | Y13: =N13 -> 221 | Z13: =COUNTIF(L36:L64,Y13) -> 0 | AA13: =Z13/(AB4-Z11) -> 0 | AB13: =IF(AA13=0,0,(AA13*((LOG(AA13))/LOG(2)))) -> 0 | AD13: =N13 -> 221 | AE13: =COUNTIF(L65:L92,AD13) -> 0 | AF13: =AE13/(AG4-AE11) -> 0 | AG13: =IF(AF13=0,0,(AF13*((LOG(AF13))/LOG(2)))) -> 0 | AI13: =N13 -> 221 | AJ13: =COUNTIF(L93:L121,AI13) -> 0 | AK13: =AJ13/(AL4-AJ11) -> 0 | AL13: =IF(AK13=0,0,(AK13*((LOG(AK13))/LOG(2)))) -> 0 | AN13: =N13 -> 221 | AO13: =COUNTIF(L122:L150,AN13) -> 0 | AP13: =AO13/(AQ4-AO11) -> 0 | AQ13: =IF(AP13=0,0,(AP13*((LOG(AP13))/LOG(2)))) -> 0 | AS13: =N13 -> 221 | AT13: =COUNTIF(L151:L179,AS13) -> 0 | AU13: =AT13/(AV4-AT11) -> 0 | AV13: =IF(AU13=0,0,(AU13*((LOG(AU13))/LOG(2)))) -> 0
A14: 12 | B14: 861 | C14: 13 | D14: 867 | E14: 13 | F14: 876 | K14: 0 | L14: 111 | N14: 222 | O14: =COUNTIF($L$7:$L$500,N14) -> 11 | P14: =O14/$Q$4 -> 0.06358381503 | Q14: =IF(P14=0,0,(P14*((LOG(P14))/LOG(2)))) -> -0.2527581659 | T14: =N14 -> 222 | U14: =COUNTIF(L7:L35,T14) -> 1 | V14: =U14/(W4-U11) -> 0.03448275862 | W14: =IF(V14=0,0,(V14*((LOG(V14))/LOG(2)))) -> -0.167516586 | Y14: =N14 -> 222 | Z14: =COUNTIF(L36:L64,Y14) -> 1 | AA14: =Z14/(AB4-Z11) -> 0.03448275862 | AB14: =IF(AA14=0,0,(AA14*((LOG(AA14))/LOG(2)))) -> -0.167516586 | AD14: =N14 -> 222 | AE14: =COUNTIF(L65:L92,AD14) -> 0 | AF14: =AE14/(AG4-AE11) -> 0 | AG14: =IF(AF14=0,0,(AF14*((LOG(AF14))/LOG(2)))) -> 0 | AI14: =N14 -> 222 | AJ14: =COUNTIF(L93:L121,AI14) -> 4 | AK14: =AJ14/(AL4-AJ11) -> 0.1379310345 | AL14: =IF(AK14=0,0,(AK14*((LOG(AK14))/LOG(2)))) -> -0.3942042752 | AN14: =N14 -> 222 | AO14: =COUNTIF(L122:L150,AN14) -> 0 | AP14: =AO14/(AQ4-AO11) -> 0 | AQ14: =IF(AP14=0,0,(AP14*((LOG(AP14))/LOG(2)))) -> 0 | AS14: =N14 -> 222 | AT14: =COUNTIF(L151:L179,AS14) -> 5 | AU14: =AT14/(AV4-AT11) -> 0.1724137931 | AV14: =IF(AU14=0,0,(AU14*((LOG(AU14))/LOG(2)))) -> -0.4372505
A15: 12 | B15: 983 | C15: 13 | D15: 989 | E15: 13 | F15: 995 | K15: 0 | L15: 111 | P15: =SUM(P7:P14) -> 1 | Q15: =-SUM(Q7:Q14) -> 1.261026823 | V15: =SUM(V7:V14) -> 1 | W15: =-SUM(W7:W14) -> 0.431016769 | AA15: =SUM(AA7:AA14) -> 1 | AB15: =-SUM(AB7:AB14) -> 0.7856911764 | AF15: =SUM(AF7:AF14) -> 1 | AG15: =-SUM(AG7:AG14) -> 1.057585158 | AK15: =SUM(AK7:AK14) -> 1 | AL15: =-SUM(AL7:AL14) -> 1.699027875 | AP15: =SUM(AP7:AP14) -> 1 | AQ15: =-SUM(AQ7:AQ14) -> 1.264174176 | AU15: =SUM(AU7:AU14) -> 1 | AV15: =-SUM(AV7:AV14) -> 1.469086824
A16: 12 | B16: 1103 | C16: 13 | D16: 1108 | E16: 13 | F16: 1114 | K16: 0 | L16: 111 | P16: U= | Q16: =Q15/(LOG(Q4)/LOG(2)) -> 0.1696153169 | V16: U1= | W16: =W15/(LOG(W4)/LOG(2)) -> 0.08872343663 | AA16: U2= | AB16: =AB15/(LOG(AB4)/LOG(2)) -> 0.1617320399 | AF16: U3= | AG16: =AG15/(LOG(AG4)/LOG(2)) -> 0.2199931512 | AK16: U4= | AL16: =AL15/(LOG(AL4)/LOG(2)) -> 0.3497395064 | AP16: U5= | AQ16: =AQ15/(LOG(AQ4)/LOG(2)) -> 0.2602262498 | AU16: U6= | AV16: =AV15/(LOG(AV4)/LOG(2)) -> 0.3024068692
A17: 12 | B17: 1216 | C17: 13 | D17: 1221 | E17: 13 | F17: 1227 | K17: 0 | L17: 111
A18: 12 | B18: 1336 | C18: 13 | D18: 1341 | E18: 13 | F18: 1347 | K18: 0 | L18: 111
A19: 12 | B19: 1450 | C19: 13 | D19: 1461 | E19: 13 | F19: 1467 | K19: 0 | L19: 111 | N19: Total Target Seq
A20: 12 | B20: 1564 | C20: 13 | D20: 1571 | E20: 13 | F20: 1578 | K20: 0 | L20: 111 | N20: =COUNTIF(L7:L179,G3) -> 0 | P20: 29 | Q20: 29 | R20: 28 | S20: 29 | T20: 29 | U20: 29
A21: 12 | B21: 1689 | C21: 13 | D21: 1696 | E21: 13 | F21: 1706 | K21: 0 | L21: 111 | P21: % of reinforcement given in 6 equal intervals based on number of trials
A22: 12 | B22: 1826 | C22: 13 | D22: 1832 | E22: 13 | F22: 1837 | K22: 0 | L22: 111 | P22: %_1 | Q22: %_2 | R22: %_3 | S22: %_4 | T22: %_5 | U22: %_6
A23: 12 | B23: 1952 | C23: 13 | D23: 1958 | E23: 13 | F23: 1966 | K23: 0 | L23: 111 | O23: target sequence | P23: =$G$3 -> 211 | Q23: =$G$3 -> 211 | R23: =$G$3 -> 211 | S23: =$G$3 -> 211 | T23: =$G$3 -> 211 | U23: =$G$3 -> 211
A24: 12 | B24: 2080 | C24: 13 | D24: 2098 | E24: 13 | F24: 2120 | K24: 0 | L24: 111 | O24: total reinforcement | P24: =U11 -> 0 | Q24: =Z11 -> 0 | R24: =AE11 -> 0 | S24: =AJ11 -> 0 | T24: =AO11 -> 0 | U24: =AT11 -> 0
A25: 12 | B25: 2231 | C25: 13 | D25: 2237 | E25: 13 | F25: 2244 | K25: 0 | L25: 111 | O25: % target
A26: 12 | B26: 2347 | C26: 13 | D26: 2366 | E26: 13 | F26: 2374 | K26: 0 | L26: 111 | O26: CCRF
A27: 12 | B27: 2491 | C27: 13 | D27: 2497 | E27: 13 | F27: 2506 | K27: 0 | L27: 111 | O27: % CCRf
A28: 12 | B28: 2615 | C28: 13 | D28: 2621 | E28: 13 | F28: 2627 | K28: 0 | L28: 111 | O28: average response rate | P28: =F35/P20 -> 121.3103448 | Q28: =(F64-F35)/Q20 -> 136.7586207 | R28: =(F92-F64)/R20 -> 144.0714286 | S28: =(F121-F92)/S20 -> 144.9655172 | T28: =(F150-F121)/T20 -> 139.1034483 | U28: =(F179-F150)/U20 -> 143.9310345
A29: 12 | B29: 2741 | C29: 13 | D29: 2746 | E29: 13 | F29: 2753 | K29: 0 | L29: 111
A30: 12 | B30: 2858 | C30: 13 | D30: 2864 | E30: 13 | F30: 2873 | K30: 0 | L30: 111
A31: 12 | B31: 2977 | C31: 13 | D31: 2984 | E31: 13 | F31: 2993 | K31: 0 | L31: 111
A32: 12 | B32: 3099 | C32: 13 | D32: 3104 | E32: 13 | F32: 3109 | K32: 0 | L32: 111
A33: 12 | B33: 3214 | C33: 13 | D33: 3220 | E33: 13 | F33: 3226 | K33: 0 | L33: 111
A34: 21 | B34: 3375 | C34: 22 | D34: 3381 | E34: 24 | F34: 3394 | K34: 0 | L34: 222
A35: 12 | B35: 3503 | C35: 13 | D35: 3508 | E35: 13 | F35: 3518 | K35: 0 | L35: 111
A36: 12 | B36: 3627 | C36: 24 | D36: 3644 | E36: 24 | F36: 3669 | K36: 0 | L36: 122
A37: 12 | B37: 3789 | C37: 13 | D37: 3805 | E37: 13 | F37: 3824 | K37: 0 | L37: 111
A38: 12 | B38: 3928 | C38: 13 | D38: 3935 | E38: 24 | F38: 3957 | K38: 0 | L38: 112
A39: 12 | B39: 4063 | C39: 24 | D39: 4096 | E39: 24 | F39: 4102 | K39: 0 | L39: 122
A40: 12 | B40: 4214 | C40: 13 | D40: 4220 | E40: 13 | F40: 4236 | K40: 0 | L40: 111
A41: 12 | B41: 4346 | C41: 13 | D41: 4381 | E41: 13 | F41: 4395 | K41: 0 | L41: 111
A42: 12 | B42: 4507 | C42: 13 | D42: 4531 | E42: 13 | F42: 4536 | K42: 0 | L42: 111
A43: 12 | B43: 4658 | C43: 13 | D43: 4665 | E43: 13 | F43: 4673 | K43: 0 | L43: 111
A44: 12 | B44: 4784 | C44: 13 | D44: 4789 | E44: 13 | F44: 4802 | K44: 0 | L44: 111
A45: 12 | B45: 4918 | C45: 13 | D45: 4923 | E45: 13 | F45: 4930 | K45: 0 | L45: 111
A46: 12 | B46: 5050 | C46: 13 | D46: 5055 | E46: 13 | F46: 5062 | K46: 0 | L46: 111
A47: 21 | B47: 5198 | C47: 22 | D47: 5204 | E47: 24 | F47: 5214 | K47: 0 | L47: 222
A48: 12 | B48: 5336 | C48: 13 | D48: 5348 | E48: 13 | F48: 5357 | K48: 0 | L48: 111
A49: 12 | B49: 5468 | C49: 13 | D49: 5474 | E49: 13 | F49: 5480 | K49: 0 | L49: 111
A50: 12 | B50: 5597 | C50: 13 | D50: 5602 | E50: 13 | F50: 5609 | K50: 0 | L50: 111
A51: 12 | B51: 5716 | C51: 13 | D51: 5724 | E51: 13 | F51: 5731 | K51: 0 | L51: 111
A52: 12 | B52: 5836 | C52: 13 | D52: 5844 | E52: 13 | F52: 5851 | K52: 0 | L52: 111
A53: 12 | B53: 5967 | C53: 13 | D53: 5971 | E53: 13 | F53: 5988 | K53: 0 | L53: 111
A54: 12 | B54: 6097 | C54: 13 | D54: 6103 | E54: 13 | F54: 6110 | K54: 0 | L54: 111
A55: 12 | B55: 6238 | C55: 13 | D55: 6243 | E55: 13 | F55: 6251 | K55: 0 | L55: 111
A56: 12 | B56: 6365 | C56: 13 | D56: 6381 | E56: 13 | F56: 6391 | K56: 0 | L56: 111
A57: 12 | B57: 6503 | C57: 13 | D57: 6509 | E57: 13 | F57: 6514 | K57: 0 | L57: 111
A58: 12 | B58: 6627 | C58: 13 | D58: 6632 | E58: 13 | F58: 6643 | K58: 0 | L58: 111
A59: 12 | B59: 6758 | C59: 13 | D59: 6763 | E59: 13 | F59: 6771 | K59: 0 | L59: 111
A60: 12 | B60: 6890 | C60: 13 | D60: 6897 | E60: 13 | F60: 6906 | K60: 0 | L60: 111
A61: 12 | B61: 7029 | C61: 13 | D61: 7042 | E61: 13 | F61: 7058 | K61: 0 | L61: 111
A62: 12 | B62: 7185 | C62: 13 | D62: 7190 | E62: 13 | F62: 7197 | K62: 0 | L62: 111
A63: 12 | B63: 7328 | C63: 13 | D63: 7339 | E63: 13 | F63: 7349 | K63: 0 | L63: 111
A64: 12 | B64: 7471 | C64: 13 | D64: 7477 | E64: 13 | F64: 7484 | K64: 0 | L64: 111
A65: 12 | B65: 7616 | C65: 13 | D65: 7622 | E65: 13 | F65: 7631 | K65: 0 | L65: 111
A66: 12 | B66: 7749 | C66: 13 | D66: 7754 | E66: 13 | F66: 7760 | K66: 0 | L66: 111
A67: 12 | B67: 7878 | C67: 13 | D67: 7884 | E67: 13 | F67: 7892 | K67: 0 | L67: 111
A68: 12 | B68: 7997 | C68: 13 | D68: 8003 | E68: 13 | F68: 8011 | K68: 0 | L68: 111
A69: 12 | B69: 8128 | C69: 13 | D69: 8133 | E69: 13 | F69: 8139 | K69: 0 | L69: 111
A70: 12 | B70: 8279 | C70: 13 | D70: 8285 | E70: 13 | F70: 8294 | K70: 0 | L70: 111
A71: 12 | B71: 8415 | C71: 13 | D71: 8422 | E71: 13 | F71: 8431 | K71: 0 | L71: 111
A72: 12 | B72: 8587 | C72: 13 | D72: 8593 | E72: 24 | F72: 8612 | K72: 0 | L72: 112
A73: 12 | B73: 8737 | C73: 13 | D73: 8760 | E73: 13 | F73: 8770 | K73: 0 | L73: 111
A74: 12 | B74: 8879 | C74: 13 | D74: 8891 | E74: 13 | F74: 8900 | K74: 0 | L74: 111
A75: 12 | B75: 9023 | C75: 13 | D75: 9029 | E75: 24 | F75: 9052 | K75: 0 | L75: 112
A76: 12 | B76: 9197 | C76: 24 | D76: 9222 | E76: 24 | F76: 9227 | K76: 0 | L76: 122
A77: 12 | B77: 9355 | C77: 13 | D77: 9369 | E77: 13 | F77: 9377 | K77: 0 | L77: 111
A78: 12 | B78: 9547 | C78: 13 | D78: 9553 | E78: 13 | F78: 9567 | K78: 0 | L78: 111
A79: 12 | B79: 9687 | C79: 13 | D79: 9692 | E79: 13 | F79: 9699 | K79: 0 | L79: 111
A80: 12 | B80: 9904 | C80: 24 | D80: 9939 | E80: 24 | F80: 9953 | K80: 0 | L80: 122
A81: 12 | B81: 10067 | C81: 13 | D81: 10072 | E81: 13 | F81: 10079 | K81: 0 | L81: 111
A82: 12 | B82: 10188 | C82: 13 | D82: 10194 | E82: 24 | F82: 10220 | K82: 0 | L82: 112
A83: 12 | B83: 10335 | C83: 13 | D83: 10342 | E83: 24 | F83: 10384 | K83: 0 | L83: 112
A84: 12 | B84: 10501 | C84: 13 | D84: 10507 | E84: 13 | F84: 10514 | K84: 0 | L84: 111
A85: 12 | B85: 10618 | C85: 13 | D85: 10629 | E85: 13 | F85: 10644 | K85: 0 | L85: 111
A86: 12 | B86: 10748 | C86: 13 | D86: 10753 | E86: 13 | F86: 10759 | K86: 0 | L86: 111
A87: 12 | B87: 10864 | C87: 13 | D87: 10870 | E87: 13 | F87: 10877 | K87: 0 | L87: 111
A88: 12 | B88: 11015 | C88: 13 | D88: 11022 | E88: 13 | F88: 11028 | K88: 0 | L88: 111
A89: 12 | B89: 11135 | C89: 24 | D89: 11162 | E89: 24 | F89: 11170 | K89: 0 | L89: 122
A90: 12 | B90: 11278 | C90: 13 | D90: 11284 | E90: 13 | F90: 11290 | K90: 0 | L90: 111
A91: 12 | B91: 11390 | C91: 13 | D91: 11395 | E91: 13 | F91: 11401 | K91: 0 | L91: 111
A92: 12 | B92: 11505 | C92: 13 | D92: 11511 | E92: 13 | F92: 11518 | K92: 0 | L92: 111
A93: 12 | B93: 11623 | C93: 13 | D93: 11631 | E93: 13 | F93: 11639 | K93: 0 | L93: 111
A94: 12 | B94: 11747 | C94: 13 | D94: 11752 | E94: 13 | F94: 11762 | K94: 0 | L94: 111
A95: 12 | B95: 11866 | C95: 13 | D95: 11871 | E95: 13 | F95: 11878 | K95: 0 | L95: 111
A96: 12 | B96: 11976 | C96: 13 | D96: 11982 | E96: 13 | F96: 11994 | K96: 0 | L96: 111
A97: 12 | B97: 12125 | C97: 24 | D97: 12143 | E97: 24 | F97: 12153 | K97: 0 | L97: 122
A98: 12 | B98: 12274 | C98: 13 | D98: 12286 | E98: 13 | F98: 12299 | K98: 0 | L98: 111
A99: 21 | B99: 12499 | C99: 22 | D99: 12515 | E99: 24 | F99: 12538 | K99: 0 | L99: 222
A100: 21 | B100: 12717 | C100: 22 | D100: 12728 | E100: 24 | F100: 12737 | K100: 0 | L100: 222
A101: 12 | B101: 12899 | C101: 24 | D101: 12921 | E101: 24 | F101: 12930 | K101: 0 | L101: 122
A102: 12 | B102: 13038 | C102: 13 | D102: 13043 | E102: 13 | F102: 13049 | K102: 0 | L102: 111
A103: 12 | B103: 13167 | C103: 13 | D103: 13173 | E103: 13 | F103: 13179 | K103: 0 | L103: 111
A104: 12 | B104: 13304 | C104: 13 | D104: 13311 | E104: 24 | F104: 13367 | K104: 0 | L104: 112
A105: 12 | B105: 13521 | C105: 13 | D105: 13539 | E105: 13 | F105: 13547 | K105: 0 | L105: 111
A106: 12 | B106: 13677 | C106: 13 | D106: 13686 | E106: 24 | F106: 13699 | K106: 0 | L106: 112
A107: 12 | B107: 13828 | C107: 13 | D107: 13834 | E107: 13 | F107: 13842 | K107: 0 | L107: 111
A108: 12 | B108: 13947 | C108: 13 | D108: 13952 | E108: 13 | F108: 13959 | K108: 0 | L108: 111
A109: 12 | B109: 14070 | C109: 13 | D109: 14076 | E109: 13 | F109: 14083 | K109: 0 | L109: 111
A110: 12 | B110: 14187 | C110: 13 | D110: 14192 | E110: 13 | F110: 14198 | K110: 0 | L110: 111
A111: 12 | B111: 14321 | C111: 13 | D111: 14328 | E111: 13 | F111: 14357 | K111: 0 | L111: 111
A112: 21 | B112: 14488 | C112: 22 | D112: 14496 | E112: 24 | F112: 14516 | K112: 0 | L112: 222
A113: 21 | B113: 14649 | C113: 22 | D113: 14678 | E113: 24 | F113: 14693 | K113: 0 | L113: 222
A114: 12 | B114: 14796 | C114: 13 | D114: 14803 | E114: 13 | F114: 14810 | K114: 0 | L114: 111
A115: 12 | B115: 14911 | C115: 13 | D115: 14918 | E115: 24 | F115: 14936 | K115: 0 | L115: 112
A116: 12 | B116: 15046 | C116: 13 | D116: 15051 | E116: 13 | F116: 15060 | K116: 0 | L116: 111
A117: 12 | B117: 15191 | C117: 13 | D117: 15197 | E117: 24 | F117: 15228 | K117: 0 | L117: 112
A118: 12 | B118: 15340 | C118: 24 | D118: 15355 | E118: 24 | F118: 15363 | K118: 0 | L118: 122
A119: 12 | B119: 15464 | C119: 13 | D119: 15469 | E119: 13 | F119: 15474 | K119: 0 | L119: 111
A120: 12 | B120: 15581 | C120: 24 | D120: 15595 | E120: 24 | F120: 15601 | K120: 0 | L120: 122
A121: 12 | B121: 15700 | C121: 24 | D121: 15714 | E121: 24 | F121: 15722 | K121: 0 | L121: 122
A122: 12 | B122: 15822 | C122: 24 | D122: 15837 | E122: 24 | F122: 15843 | K122: 0 | L122: 122
A123: 12 | B123: 15951 | C123: 13 | D123: 15961 | E123: 13 | F123: 15976 | K123: 0 | L123: 111
A124: 12 | B124: 16084 | C124: 13 | D124: 16091 | E124: 24 | F124: 16114 | K124: 0 | L124: 112
A125: 12 | B125: 16229 | C125: 13 | D125: 16238 | E125: 13 | F125: 16248 | K125: 0 | L125: 111
A126: 12 | B126: 16345 | C126: 24 | D126: 16365 | E126: 24 | F126: 16384 | K126: 0 | L126: 122
A127: 12 | B127: 16480 | C127: 13 | D127: 16485 | E127: 13 | F127: 16499 | K127: 0 | L127: 111
A128: 12 | B128: 16613 | C128: 13 | D128: 16640 | E128: 24 | F128: 16653 | K128: 0 | L128: 112
A129: 12 | B129: 16782 | C129: 13 | D129: 16788 | E129: 13 | F129: 16806 | K129: 0 | L129: 111
A130: 12 | B130: 16916 | C130: 13 | D130: 16922 | E130: 13 | F130: 16927 | K130: 0 | L130: 111
A131: 12 | B131: 17026 | C131: 24 | D131: 17050 | E131: 24 | F131: 17056 | K131: 0 | L131: 122
A132: 12 | B132: 17164 | C132: 24 | D132: 17194 | E132: 24 | F132: 17202 | K132: 0 | L132: 122
A133: 12 | B133: 17355 | C133: 13 | D133: 17364 | E133: 13 | F133: 17390 | K133: 0 | L133: 111
A134: 12 | B134: 17509 | C134: 13 | D134: 17515 | E134: 13 | F134: 17525 | K134: 0 | L134: 111
A135: 12 | B135: 17631 | C135: 13 | D135: 17638 | E135: 13 | F135: 17652 | K135: 0 | L135: 111
A136: 12 | B136: 17760 | C136: 13 | D136: 17789 | E136: 24 | F136: 17829 | K136: 0 | L136: 112
A137: 12 | B137: 17927 | C137: 13 | D137: 17947 | E137: 13 | F137: 17956 | K137: 0 | L137: 111
A138: 12 | B138: 18059 | C138: 13 | D138: 18065 | E138: 13 | F138: 18076 | K138: 0 | L138: 111
A139: 12 | B139: 18180 | C139: 13 | D139: 18185 | E139: 13 | F139: 18195 | K139: 0 | L139: 111
A140: 12 | B140: 18305 | C140: 13 | D140: 18312 | E140: 13 | F140: 18335 | K140: 0 | L140: 111
A141: 12 | B141: 18446 | C141: 13 | D141: 18474 | E141: 13 | F141: 18483 | K141: 0 | L141: 111
A142: 12 | B142: 18592 | C142: 13 | D142: 18604 | E142: 13 | F142: 18611 | K142: 0 | L142: 111
A143: 12 | B143: 18747 | C143: 24 | D143: 18766 | E143: 24 | F143: 18772 | K143: 0 | L143: 122
A144: 12 | B144: 18913 | C144: 13 | D144: 18920 | E144: 24 | F144: 18944 | K144: 0 | L144: 112
A145: 12 | B145: 19070 | C145: 13 | D145: 19087 | E145: 13 | F145: 19094 | K145: 0 | L145: 111
A146: 12 | B146: 19202 | C146: 13 | D146: 19208 | E146: 13 | F146: 19216 | K146: 0 | L146: 111
A147: 12 | B147: 19323 | C147: 13 | D147: 19329 | E147: 13 | F147: 19335 | K147: 0 | L147: 111
A148: 12 | B148: 19460 | C148: 13 | D148: 19468 | E148: 13 | F148: 19475 | K148: 0 | L148: 111
A149: 12 | B149: 19593 | C149: 24 | D149: 19615 | E149: 24 | F149: 19620 | K149: 0 | L149: 122
A150: 12 | B150: 19728 | C150: 13 | D150: 19741 | E150: 13 | F150: 19756 | K150: 0 | L150: 111
A151: 12 | B151: 19887 | C151: 13 | D151: 19902 | E151: 13 | F151: 19927 | K151: 0 | L151: 111
A152: 12 | B152: 20042 | C152: 13 | D152: 20048 | E152: 13 | F152: 20054 | K152: 0 | L152: 111
A153: 12 | B153: 20161 | C153: 13 | D153: 20169 | E153: 13 | F153: 20188 | K153: 0 | L153: 111
A154: 12 | B154: 20291 | C154: 13 | D154: 20302 | E154: 13 | F154: 20307 | K154: 0 | L154: 111
A155: 21 | B155: 20433 | C155: 22 | D155: 20440 | E155: 24 | F155: 20449 | K155: 0 | L155: 222
A156: 12 | B156: 20558 | C156: 13 | D156: 20568 | E156: 13 | F156: 20574 | K156: 0 | L156: 111
A157: 12 | B157: 20672 | C157: 13 | D157: 20678 | E157: 13 | F157: 20691 | K157: 0 | L157: 111
A158: 12 | B158: 20800 | C158: 13 | D158: 20807 | E158: 13 | F158: 20814 | K158: 0 | L158: 111
A159: 12 | B159: 20917 | C159: 13 | D159: 20922 | E159: 13 | F159: 20928 | K159: 0 | L159: 111
A160: 12 | B160: 21026 | C160: 13 | D160: 21031 | E160: 13 | F160: 21045 | K160: 0 | L160: 111
A161: 12 | B161: 21190 | C161: 24 | D161: 21223 | E161: 24 | F161: 21237 | K161: 0 | L161: 122
A162: 12 | B162: 21340 | C162: 13 | D162: 21346 | E162: 13 | F162: 21352 | K162: 0 | L162: 111
A163: 12 | B163: 21526 | C163: 24 | D163: 21540 | E163: 24 | F163: 21548 | K163: 0 | L163: 122
A164: 21 | B164: 21694 | C164: 22 | D164: 21703 | E164: 24 | F164: 21718 | K164: 0 | L164: 222
A165: 12 | B165: 21835 | C165: 13 | D165: 21850 | E165: 13 | F165: 21858 | K165: 0 | L165: 111
A166: 12 | B166: 21965 | C166: 24 | D166: 21988 | E166: 24 | F166: 21996 | K166: 0 | L166: 122
A167: 12 | B167: 22107 | C167: 13 | D167: 22114 | E167: 13 | F167: 22120 | K167: 0 | L167: 111
A168: 12 | B168: 22242 | C168: 24 | D168: 22260 | E168: 24 | F168: 22268 | K168: 0 | L168: 122
A169: 12 | B169: 22411 | C169: 13 | D169: 22420 | E169: 13 | F169: 22428 | K169: 0 | L169: 111
A170: 12 | B170: 22535 | C170: 13 | D170: 22551 | E170: 13 | F170: 22560 | K170: 0 | L170: 111
A171: 12 | B171: 22664 | C171: 13 | D171: 22678 | E171: 13 | F171: 22707 | K171: 0 | L171: 111
A172: 12 | B172: 22813 | C172: 13 | D172: 22832 | E172: 13 | F172: 22846 | K172: 0 | L172: 111
A173: 12 | B173: 22962 | C173: 13 | D173: 22969 | E173: 24 | F173: 23001 | K173: 0 | L173: 112
A174: 12 | B174: 23106 | C174: 13 | D174: 23112 | E174: 13 | F174: 23142 | K174: 0 | L174: 111
A175: 21 | B175: 23276 | C175: 22 | D175: 23284 | E175: 24 | F175: 23293 | K175: 0 | L175: 222
A176: 21 | B176: 23442 | C176: 22 | D176: 23455 | E176: 24 | F176: 23462 | K176: 0 | L176: 222
A177: 12 | B177: 23568 | C177: 24 | D177: 23583 | E177: 24 | F177: 23589 | K177: 0 | L177: 122
A178: 21 | B178: 23738 | C178: 22 | D178: 23748 | E178: 24 | F178: 23761 | K178: 0 | L178: 222
A179: 12 | B179: 23892 | C179: 13 | D179: 23916 | E179: 13 | F179: 23930 | L179: 111

Sheet !N405930.010
A1: Report for:!N405930.010
A2: Date: | B2: <date>
A3: Hen: | B3: <hen> | F3: Correct Sequence | G3: =Start!J2 -> 211 | P3: Total Sequences in Data | Q3: =4994-COUNTBLANK(L7:L5000) -> 54 | V3: Total Sequences in Block Data | W3: =COUNTA(L7:L15) -> 9 | AA3: Total Sequences in Block Data | AB3: =COUNTA(L16:L24) -> 9 | AF3: Total Sequences in Block Data | AG3: =COUNTA(L25:L33) -> 9 | AK3: Total Sequences in Block Data | AL3: =COUNTA(L34:L42) -> 9 | AP3: Total Sequences in Block Data | AQ3: =COUNTA(L43:L51) -> 9 | AU3: Total Sequences in Block Data | AV3: =COUNTA(L52:L60) -> 9
P4: Total Sequences in Summary | Q4: =SUM(O7:O14) -> 54 | V4: Total Sequences in Block Summary | W4: =SUM(U7:U14) -> 9 | AA4: Total Sequences in Block Summary | AB4: =SUM(Z7:Z14) -> 9 | AF4: Total Sequences in Block Summary | AG4: =SUM(AE7:AE14) -> 9 | AK4: Total Sequences in Block Summary | AL4: =SUM(AJ7:AJ14) -> 9 | AP4: Total Sequences in Block Summary | AQ4: =SUM(AO7:AO14) -> 9 | AU4: Total Sequences in Block Summary | AV4: =SUM(AT7:AT14) -> 9
T5: Block 1 | Y5: Block 2 | AD5: Block 3 | AI5: Block 4 | AN5: Block 5 | AS5: Block 6
A6: Sequence Component 1 | B6: Time 1 | C6: Sequence Component 2 | D6: Time 2 | E6: Sequence Component 3 | F6: Time 3 | G6: Sequence Component 4 | H6: Time 4 | I6: Sequence Component 5 | J6: Time 5 | K6: Correct? 0=No 1=Yes | L6: Sequence | N6: Frequency | P6: Relative Frequency | Q6: Variability | T6: Frequency | V6: Relative Frequency | W6: Variability | Y6: Frequency | AA6: Relative Frequency | AB6: Variability | AD6: Frequency | AF6: Relative Frequency | AG6: Variability | AI6: Frequency | AK6: Relative Frequency | AL6: Variability | AN6: Frequency | AP6: Relative Frequency | AQ6: Variability | AS6: Frequency | AU6: Relative Frequency | AV6: Variability
A7: 12 | B7: 25 | C7: 13 | D7: 41 | E7: 24 | F7: 55 | K7: 0 | L7: 112 | N7: 111 | O7: =COUNTIF($L$7:$L$500,N7) -> 11 | P7: =O7/$Q$4 -> 0.2037037037 | Q7: =IF(P7=0,0,(P7*((LOG(P7))/LOG(2)))) -> -0.4675928652 | T7: =N7 -> 111 | U7: =COUNTIF(L7:L15,T7) -> 2 | V7: =U7/(W4-U11) -> 0.6666666667 | W7: =IF(V7=0,0,(V7*((LOG(V7))/LOG(2)))) -> -0.3899750005 | Y7: =N7 -> 111 | Z7: =COUNTIF(L16:L24,Y7) -> 3 | AA7: =Z7/(AB4-Z11) -> 1 | AB7: =IF(AA7=0,0,(AA7*((LOG(AA7))/LOG(2)))) -> 0 | AD7: =N7 -> 111 | AE7: =COUNTIF(L25:L33,AD7) -> 1 | AF7: =AE7/(AG4-AE11) -> 0.3333333333 | AG7: =IF(AF7=0,0,(AF7*((LOG(AF7))/LOG(2)))) -> -0.5283208336 | AI7: =N7 -> 111 | AJ7: =COUNTIF(L34:L42,AI7) -> 2 | AK7: =AJ7/(AL4-AJ11) -> 1 | AL7: =IF(AK7=0,0,(AK7*((LOG(AK7))/LOG(2)))) -> 0 | AN7: =N7 -> 111 | AO7: =COUNTIF(L43:L51,AN7) -> 1 | AP7: =AO7/(AQ4-AO11) -> 1 | AQ7: =IF(AP7=0,0,(AP7*((LOG(AP7))/LOG(2)))) -> 0 | AS7: =N7 -> 111 | AT7: =COUNTIF(L52:L60,AS7) -> 2 | AU7: =AT7/(AV4-AT11) -> 0.6666666667 | AV7: =IF(AU7=0,0,(AU7*((LOG(AU7))/LOG(2)))) -> -0.3899750005
A8: 21 | B8: 158 | C8: 11 | D8: 177 | E8: 11 | F8: 182 | K8: 0 | L8: 211 | N8: 112 | O8: =COUNTIF($L$7:$L$500,N8) -> 3 | P8: =O8/$Q$4 -> 0.05555555556 | Q8: =IF(P8=0,0,(P8*((LOG(P8))/LOG(2)))) -> -0.2316625001 | T8: =N8 -> 112 | U8: =COUNTIF(L7:L15,T8) -> 1 | V8: =U8/(W4-U11) -> 0.3333333333 | W8: =IF(V8=0,0,(V8*((LOG(V8))/LOG(2)))) -> -0.5283208336 | Y8: =N8 -> 112 | Z8: =COUNTIF(L16:L24,Y8) -> 0 | AA8: =Z8/(AB4-Z11) -> 0 | AB8: =IF(AA8=0,0,(AA8*((LOG(AA8))/LOG(2)))) -> 0 | AD8: =N8 -> 112 | AE8: =COUNTIF(L25:L33,AD8) -> 1 | AF8: =AE8/(AG4-AE11) -> 0.3333333333 | AG8: =IF(AF8=0,0,(AF8*((LOG(AF8))/LOG(2)))) -> -0.5283208336 | AI8: =N8 -> 112 | AJ8: =COUNTIF(L34:L42,AI8) -> 0 | AK8: =AJ8/(AL4-AJ11) -> 0 | AL8: =IF(AK8=0,0,(AK8*((LOG(AK8))/LOG(2)))) -> 0 | AN8: =N8 -> 112 | AO8: =COUNTIF(L43:L51,AN8) -> 0 | AP8: =AO8/(AQ4-AO11) -> 0 | AQ8: =IF(AP8=0,0,(AP8*((LOG(AP8))/LOG(2)))) -> 0 | AS8: =N8 -> 112 | AT8: =COUNTIF(L52:L60,AS8) -> 1 | AU8: =AT8/(AV4-AT11) -> 0.3333333333 | AV8: =IF(AU8=0,0,(AU8*((LOG(AU8))/LOG(2)))) -> -0.5283208336
A9: 12 | B9: 291 | C9: 13 | D9: 301 | E9: 13 | F9: 315 | K9: 0 | L9: 111 | N9: 121 | O9: =COUNTIF($L$7:$L$500,N9) -> 1 | P9: =O9/$Q$4 -> 0.01851851852 | Q9: =IF(P9=0,0,(P9*((LOG(P9))/LOG(2)))) -> -0.1065719908 | T9: =N9 -> 121 | U9: =COUNTIF(L7:L15,T9) -> 0 | V9: =U9/(W4-U11) -> 0 | W9: =IF(V9=0,0,(V9*((LOG(V9))/LOG(2)))) -> 0 | Y9: =N9 -> 121 | Z9: =COUNTIF(L16:L24,Y9) -> 0 | AA9: =Z9/(AB4-Z11) -> 0 | AB9: =IF(AA9=0,0,(AA9*((LOG(AA9))/LOG(2)))) -> 0 | AD9: =N9 -> 121 | AE9: =COUNTIF(L25:L33,AD9) -> 1 | AF9: =AE9/(AG4-AE11) -> 0.3333333333 | AG9: =IF(AF9=0,0,(AF9*((LOG(AF9))/LOG(2)))) -> -0.5283208336 | AI9: =N9 -> 121 | AJ9: =COUNTIF(L34:L42,AI9) -> 0 | AK9: =AJ9/(AL4-AJ11) -> 0 | AL9: =IF(AK9=0,0,(AK9*((LOG(AK9))/LOG(2)))) -> 0 | AN9: =N9 -> 121 | AO9: =COUNTIF(L43:L51,AN9) -> 0 | AP9: =AO9/(AQ4-AO11) -> 0 | AQ9: =IF(AP9=0,0,(AP9*((LOG(AP9))/LOG(2)))) -> 0 | AS9: =N9 -> 121 | AT9: =COUNTIF(L52:L60,AS9) -> 0 | AU9: =AT9/(AV4-AT11) -> 0 | AV9: =IF(AU9=0,0,(AU9*((LOG(AU9))/LOG(2)))) -> 0
A10: 21 | B10: 420 | C10: 11 | D10: 437 | E10: 11 | F10: 442 | K10: 0 | L10: 211 | N10: 122 | O10: =COUNTIF($L$7:$L$500,N10) -> 0 | P10: =O10/$Q$4 -> 0 | Q10: =IF(P10=0,0,(P10*((LOG(P10))/LOG(2)))) -> 0 | T10: =N10 -> 122 | U10: =COUNTIF(L7:L15,T10) -> 0 | V10: =U10/(W4-U11) -> 0 | W10: =IF(V10=0,0,(V10*((LOG(V10))/LOG(2)))) -> 0 | Y10: =N10 -> 122 | Z10: =COUNTIF(L16:L24,Y10) -> 0 | AA10: =Z10/(AB4-Z11) -> 0 | AB10: =IF(AA10=0,0,(AA10*((LOG(AA10))/LOG(2)))) -> 0 | AD10: =N10 -> 122 | AE10: =COUNTIF(L25:L33,AD10) -> 0 | AF10: =AE10/(AG4-AE11) -> 0 | AG10: =IF(AF10=0,0,(AF10*((LOG(AF10))/LOG(2)))) -> 0 | AI10: =N10 -> 122 | AJ10: =COUNTIF(L34:L42,AI10) -> 0 | AK10: =AJ10/(AL4-AJ11) -> 0 | AL10: =IF(AK10=0,0,(AK10*((LOG(AK10))/LOG(2)))) -> 0 | AN10: =N10 -> 122 | AO10: =COUNTIF(L43:L51,AN10) -> 0 | AP10: =AO10/(AQ4-AO11) -> 0 | AQ10: =IF(AP10=0,0,(AP10*((LOG(AP10))/LOG(2)))) -> 0 | AS10: =N10 -> 122 | AT10: =COUNTIF(L52:L60,AS10) -> 0 | AU10: =AT10/(AV4-AT11) -> 0 | AV10: =IF(AU10=0,0,(AU10*((LOG(AU10))/LOG(2)))) -> 0
A11: 21 | B11: 539 | C11: 11 | D11: 550 | E11: 11 | F11: 556 | K11: 0 | L11: 211 | N11: 211 | O11: =COUNTIF($L$7:$L$500,N11) -> 39 | P11: =O11/$Q$4 -> 0.7222222222 | Q11: =IF(P11=0,0,(P11*((LOG(P11))/LOG(2)))) -> -0.3390727046 | T11: =N11 -> 211 | U11: =COUNTIF(L7:L15,T11) -> 6 | Y11: =N11 -> 211 | Z11: =COUNTIF(L16:L24,Y11) -> 6 | AD11: =N11 -> 211 | AE11: =COUNTIF(L25:L33,AD11) -> 6 | AI11: =N11 -> 211 | AJ11: =COUNTIF(L34:L42,AI11) -> 7 | AN11: =N11 -> 211 | AO11: =COUNTIF(L43:L51,AN11) -> 8 | AS11: =N11 -> 211 | AT11: =COUNTIF(L52:L60,AS11) -> 6
A12: 12 | B12: 675 | C12: 13 | D12: 683 | E12: 13 | F12: 708 | K12: 0 | L12: 111 | N12: 212 | O12: =COUNTIF($L$7:$L$500,N12) -> 0 | P12: =O12/$Q$4 -> 0 | Q12: =IF(P12=0,0,(P12*((LOG(P12))/LOG(2)))) -> 0 | T12: =N12 -> 212 | U12: =COUNTIF(L7:L15,T12) -> 0 | V12: =U12/(W4-U11) -> 0 | W12: =IF(V12=0,0,(V12*((LOG(V12))/LOG(2)))) -> 0 | Y12: =N12 -> 212 | Z12: =COUNTIF(L16:L24,Y12) -> 0 | AA12: =Z12/(AB4-Z11) -> 0 | AB12: =IF(AA12=0,0,(AA12*((LOG(AA12))/LOG(2)))) -> 0 | AD12: =N12 -> 212 | AE12: =COUNTIF(L25:L33,AD12) -> 0 | AF12: =AE12/(AG4-AE11) -> 0 | AG12: =IF(AF12=0,0,(AF12*((LOG(AF12))/LOG(2)))) -> 0 | AI12: =N12 -> 212 | AJ12: =COUNTIF(L34:L42,AI12) -> 0 | AK12: =AJ12/(AL4-AJ11) -> 0 | AL12: =IF(AK12=0,0,(AK12*((LOG(AK12))/LOG(2)))) -> 0 | AN12: =N12 -> 212 | AO12: =COUNTIF(L43:L51,AN12) -> 0 | AP12: =AO12/(AQ4-AO11) -> 0 | AQ12: =IF(AP12=0,0,(AP12*((LOG(AP12))/LOG(2)))) -> 0 | AS12: =N12 -> 212 | AT12: =COUNTIF(L52:L60,AS12) -> 0 | AU12: =AT12/(AV4-AT11) -> 0 | AV12: =IF(AU12=0,0,(AU12*((LOG(AU12))/LOG(2)))) -> 0
A13: 21 | B13: 815 | C13: 11 | D13: 824 | E13: 11 | F13: 832 | K13: 0 | L13: 211 | N13: 221 | O13: =COUNTIF($L$7:$L$500,N13) -> 0 | P13: =O13/$Q$4 -> 0 | Q13: =IF(P13=0,0,(P13*((LOG(P13))/LOG(2)))) -> 0 | T13: =N13 -> 221 | U13: =COUNTIF(L7:L15,T13) -> 0 | V13: =U13/(W4-U11) -> 0 | W13: =IF(V13=0,0,(V13*((LOG(V13))/LOG(2)))) -> 0 | Y13: =N13 -> 221 | Z13: =COUNTIF(L16:L24,Y13) -> 0 | AA13: =Z13/(AB4-Z11) -> 0 | AB13: =IF(AA13=0,0,(AA13*((LOG(AA13))/LOG(2)))) -> 0 | AD13: =N13 -> 221 | AE13: =COUNTIF(L25:L33,AD13) -> 0 | AF13: =AE13/(AG4-AE11) -> 0 | AG13: =IF(AF13=0,0,(AF13*((LOG(AF13))/LOG(2)))) -> 0 | AI13: =N13 -> 221 | AJ13: =COUNTIF(L34:L42,AI13) -> 0 | AK13: =AJ13/(AL4-AJ11) -> 0 | AL13: =IF(AK13=0,0,(AK13*((LOG(AK13))/LOG(2)))) -> 0 | AN13: =N13 -> 221 | AO13: =COUNTIF(L43:L51,AN13) -> 0 | AP13: =AO13/(AQ4-AO11) -> 0 | AQ13: =IF(AP13=0,0,(AP13*((LOG(AP13))/LOG(2)))) -> 0 | AS13: =N13 -> 221 | AT13: =COUNTIF(L52:L60,AS13) -> 0 | AU13: =AT13/(AV4-AT11) -> 0 | AV13: =IF(AU13=0,0,(AU13*((LOG(AU13))/LOG(2)))) -> 0
A14: 21 | B14: 935 | C14: 11 | D14: 953 | E14: 11 | F14: 962 | K14: 0 | L14: 211 | N14: 222 | O14: =COUNTIF($L$7:$L$500,N14) -> 0 | P14: =O14/$Q$4 -> 0 | Q14: =IF(P14=0,0,(P14*((LOG(P14))/LOG(2)))) -> 0 | T14: =N14 -> 222 | U14: =COUNTIF(L7:L15,T14) -> 0 | V14: =U14/(W4-U11) -> 0 | W14: =IF(V14=0,0,(V14*((LOG(V14))/LOG(2)))) -> 0 | Y14: =N14 -> 222 | Z14: =COUNTIF(L16:L24,Y14) -> 0 | AA14: =Z14/(AB4-Z11) -> 0 | AB14: =IF(AA14=0,0,(AA14*((LOG(AA14))/LOG(2)))) -> 0 | AD14: =N14 -> 222 | AE14: =COUNTIF(L25:L33,AD14) -> 0 | AF14: =AE14/(AG4-AE11) -> 0 | AG14: =IF(AF14=0,0,(AF14*((LOG(AF14))/LOG(2)))) -> 0 | AI14: =N14 -> 222 | AJ14: =COUNTIF(L34:L42,AI14) -> 0 | AK14: =AJ14/(AL4-AJ11) -> 0 | AL14: =IF(AK14=0,0,(AK14*((LOG(AK14))/LOG(2)))) -> 0 | AN14: =N14 -> 222 | AO14: =COUNTIF(L43:L51,AN14) -> 0 | AP14: =AO14/(AQ4-AO11) -> 0 | AQ14: =IF(AP14=0,0,(AP14*((LOG(AP14))/LOG(2)))) -> 0 | AS14: =N14 -> 222 | AT14: =COUNTIF(L52:L60,AS14) -> 0 | AU14: =AT14/(AV4-AT11) -> 0 | AV14: =IF(AU14=0,0,(AU14*((LOG(AU14))/LOG(2)))) -> 0
A15: 21 | B15: 1059 | C15: 11 | D15: 1072 | E15: 11 | F15: 1077 | K15: 0 | L15: 211 | P15: =SUM(P7:P14) -> 1 | Q15: =-SUM(Q7:Q14) -> 1.144900061 | V15: =SUM(V7:V14) -> 1 | W15: =-SUM(W7:W14) -> 0.9182958341 | AA15: =SUM(AA7:AA14) -> 1 | AB15: =-SUM(AB7:AB14) -> 0 | AF15: =SUM(AF7:AF14) -> 1 | AG15: =-SUM(AG7:AG14) -> 1.584962501 | AK15: =SUM(AK7:AK14) -> 1 | AL15: =-SUM(AL7:AL14) -> 0 | AP15: =SUM(AP7:AP14) -> 1 | AQ15: =-SUM(AQ7:AQ14) -> 0 | AU15: =SUM(AU7:AU14) -> 1 | AV15: =-SUM(AV7:AV14) -> 0.9182958341
A16: 21 | B16: 1174 | C16: 11 | D16: 1191 | E16: 11 | F16: 1199 | K16: 0 | L16: 211 | P16: U= | Q16: =Q15/(LOG(Q4)/LOG(2)) -> 0.1989439516 | V16: U1= | W16: =W15/(LOG(W4)/LOG(2)) -> 0.2896900821 | AA16: U2= | AB16: =AB15/(LOG(AB4)/LOG(2)) -> 0 | AF16: U3= | AG16: =AG15/(LOG(AG4)/LOG(2)) -> 0.5 | AK16: U4= | AL16: =AL15/(LOG(AL4)/LOG(2)) -> 0 | AP16: U5= | AQ16: =AQ15/(LOG(AQ4)/LOG(2)) -> 0 | AU16: U6= | AV16: =AV15/(LOG(AV4)/LOG(2)) -> 0.2896900821
A17: 21 | B17: 1295 | C17: 11 | D17: 1305 | E17: 11 | F17: 1314 | K17: 0 | L17: 211
A18: 21 | B18: 1415 | C18: 11 | D18: 1430 | E18: 11 | F18: 1437 | K18: 0 | L18: 211
A19: 21 | B19: 1532 | C19: 11 | D19: 1546 | E19: 11 | F19: 1554 | K19: 0 | L19: 211 | N19: Total Target Seq
A20: 12 | B20: 1672 | C20: 13 | D20: 1679 | E20: 13 | F20: 1691 | K20: 0 | L20: 111 | N20: =COUNTIF(L7:L60,G3) -> 39 | P20: 9 | Q20: 9 | R20: 9 | S20: 9 | T20: 9 | U20: 9
A21: 21 | B21: 1800 | C21: 11 | D21: 1814 | E21: 11 | F21: 1821 | K21: 0 | L21: 211 | P21: % of reinforcement given in 6 equal intervals based on number of trials
A22: 12 | B22: 1931 | C22: 13 | D22: 1943 | E22: 13 | F22: 1969 | K22: 0 | L22: 111 | P22: %_1 | Q22: %_2 | R22: %_3 | S22: %_4 | T22: %_5 | U22: %_6
A23: 12 | B23: 2089 | C23: 13 | D23: 2097 | E23: 13 | F23: 2112 | K23: 0 | L23: 111 | O23: target sequence | P23: =$G$3 -> 211 | Q23: =$G$3 -> 211 | R23: =$G$3 -> 211 | S23: =$G$3 -> 211 | T23: =$G$3 -> 211 | U23: =$G$3 -> 211
A24: 21 | B24: 2218 | C24: 11 | D24: 2235 | E24: 11 | F24: 2244 | K24: 0 | L24: 211 | O24: total reinforcement | P24: =U11 -> 6 | Q24: =Z11 -> 6 | R24: =AE11 -> 6 | S24: =AJ11 -> 7 | T24: =AO11 -> 8 | U24: =AT11 -> 6
A25: 12 | B25: 2363 | C25: 13 | D25: 2372 | E25: 13 | F25: 2385 | K25: 0 | L25: 111 | O25: % target
A26: 21 | B26: 2488 | C26: 11 | D26: 2506 | E26: 11 | F26: 2512 | K26: 0 | L26: 211 | O26: CCRF
A27: 21 | B27: 2608 | C27: 11 | D27: 2625 | E27: 11 | F27: 2634 | K27: 0 | L27: 211 | O27: % CCRf
A28: 21 | B28: 2728 | C28: 11 | D28: 2745 | E28: 11 | F28: 2751 | K28: 0 | L28: 211 | O28: average response rate | P28: =F15/P20 -> 119.6666667 | Q28: =(F24-F15)/Q20 -> 129.6666667 | R28: =(F33-F24)/R20 -> 131.3333333 | S28: =(F42-F33)/S20 -> 132.8888889 | T28: =(F51-F42)/T20 -> 120.7777778 | U28: =(F60-F51)/U20 -> 137.5555556
A29: 21 | B29: 2848 | C29: 11 | D29: 2863 | E29: 11 | F29: 2893 | K29: 0 | L29: 211
A30: 12 | B30: 2999 | C30: 24 | D30: 3013 | E30: 13 | F30: 3032 | K30: 0 | L30: 121
A31: 21 | B31: 3136 | C31: 11 | D31: 3149 | E31: 11 | F31: 3155 | K31: 0 | L31: 211
A32: 12 | B32: 3260 | C32: 13 | D32: 3279 | E32: 24 | F32: 3298 | K32: 0 | L32: 112
A33: 21 | B33: 3405 | C33: 11 | D33: 3422 | E33: 11 | F33: 3426 | K33: 0 | L33: 211
A34: 21 | B34: 3521 | C34: 11 | D34: 3541 | E34: 11 | F34: 3586 | K34: 0 | L34: 211
A35: 21 | B35: 3681 | C35: 11 | D35: 3697 | E35: 11 | F35: 3702 | K35: 0 | L35: 211
A36: 12 | B36: 3810 | C36: 13 | D36: 3818 | E36: 13 | F36: 3847 | K36: 0 | L36: 111
A37: 21 | B37: 3952 | C37: 11 | D37: 3967 | E37: 11 | F37: 3973 | K37: 0 | L37: 211
A38: 21 | B38: 4068 | C38: 11 | D38: 4077 | E38: 11 | F38: 4086 | K38: 0 | L38: 211
A39: 21 | B39: 4179 | C39: 11 | D39: 4194 | E39: 11 | F39: 4203 | K39: 0 | L39: 211
A40: 21 | B40: 4297 | C40: 11 | D40: 4313 | E40: 11 | F40: 4319 | K40: 0 | L40: 211
A41: 21 | B41: 4410 | C41: 11 | D41: 4426 | E41: 11 | F41: 4431 | K41: 0 | L41: 211
A42: 12 | B42: 4559 | C42: 13 | D42: 4605 | E42: 13 | F42: 4622 | K42: 0 | L42: 111
A43: 21 | B43: 4726 | C43: 11 | D43: 4742 | E43: 11 | F43: 4747 | K43: 0 | L43: 211
A44: 21 | B44: 4842 | C44: 11 | D44: 4855 | E44: 11 | F44: 4863 | K44: 0 | L44: 211
A45: 21 | B45: 4955 | C45: 11 | D45: 4971 | E45: 11 | F45: 4976 | K45: 0 | L45: 211
A46: 21 | B46: 5069 | C46: 11 | D46: 5085 | E46: 11 | F46: 5093 | K46: 0 | L46: 211
A47: 21 | B47: 5189 | C47: 11 | D47: 5205 | E47: 11 | F47: 5210 | K47: 0 | L47: 211
A48: 21 | B48: 5307 | C48: 11 | D48: 5321 | E48: 11 | F48: 5327 | K48: 0 | L48: 211
A49: 12 | B49: 5432 | C49: 13 | D49: 5437 | E49: 13 | F49: 5462 | K49: 0 | L49: 111
A50: 21 | B50: 5565 | C50: 11 | D50: 5581 | E50: 11 | F50: 5595 | K50: 0 | L50: 211
A51: 21 | B51: 5688 | C51: 11 | D51: 5704 | E51: 11 | F51: 5709 | K51: 0 | L51: 211
A52: 21 | B52: 5805 | C52: 11 | D52: 5820 | E52: 11 | F52: 5825 | K52: 0 | L52: 211
A53: 21 | B53: 5919 | C53: 11 | D53: 5935 | E53: 11 | F53: 5949 | K53: 0 | L53: 211
A54: 21 | B54: 6043 | C54: 11 | D54: 6059 | E54: 11 | F54: 6064 | K54: 0 | L54: 211
A55: 21 | B55: 6170 | C55: 11 | D55: 6181 | E55: 11 | F55: 6194 | K55: 0 | L55: 211
A56: 12 | B56: 6296 | C56: 13 | D56: 6304 | E56: 13 | F56: 6378 | K56: 0 | L56: 111
A57: 21 | B57: 6483 | C57: 11 | D57: 6492 | E57: 11 | F57: 6497 | K57: 0 | L57: 211
A58: 12 | B58: 6599 | C58: 13 | D58: 6604 | E58: 24 | F58: 6624 | K58: 0 | L58: 112
A59: 12 | B59: 6740 | C59: 13 | D59: 6806 | E59: 13 | F59: 6823 | K59: 0 | L59: 111
A60: 21 | B60: 6928 | C60: 11 | D60: 6939 | E60: 11 | F60: 6947 | K60: 1 | L60: 211

Sheet !N406840.010
A1: Report for:!N406840.010
A2: Date: | B2: <date>
A3: Hen: | B3: <hen> | F3: Correct Sequence | G3: =Start!J2 -> 211 | P3: Total Sequences in Data | Q3: =4994-COUNTBLANK(L7:L5000) -> 187 | V3: Total Sequences in Block Data | W3: =COUNTA(L7:L37) -> 31 | AA3: Total Sequences in Block Data | AB3: =COUNTA(L38:L68) -> 31 | AF3: Total Sequences in Block Data | AG3: =COUNTA(L69:L100) -> 32 | AK3: Total Sequences in Block Data | AL3: =COUNTA(L101:L131) -> 31 | AP3: Total Sequences in Block Data | AQ3: =COUNTA(L132:L162) -> 31 | AU3: Total Sequences in Block Data | AV3: =COUNTA(L163:L193) -> 31
P4: Total Sequences in Summary | Q4: =SUM(O7:O14) -> 187 | V4: Total Sequences in Block Summary | W4: =SUM(U7:U14) -> 31 | AA4: Total Sequences in Block Summary | AB4: =SUM(Z7:Z14) -> 31 | AF4: Total Sequences in Block Summary | AG4: =SUM(AE7:AE14) -> 32 | AK4: Total Sequences in Block Summary | AL4: =SUM(AJ7:AJ14) -> 31 | AP4: Total Sequences in Block Summary | AQ4: =SUM(AO7:AO14) -> 31 | AU4: Total Sequences in Block Summary | AV4: =SUM(AT7:AT14) -> 31
T5: Block 1 | Y5: Block 2 | AD5: Block 3 | AI5: Block 4 | AN5: Block 5 | AS5: Block 6
A6: Sequence Component 1 | B6: Time 1 | C6: Sequence Component 2 | D6: Time 2 | E6: Sequence Component 3 | F6: Time 3 | G6: Sequence Component 4 | H6: Time 4 | I6: Sequence Component 5 | J6: Time 5 | K6: Correct? 0=No 1=Yes | L6: Sequence | N6: Frequency | P6: Relative Frequency | Q6: Variability | T6: Frequency | V6: Relative Frequency | W6: Variability | Y6: Frequency | AA6: Relative Frequency | AB6: Variability | AD6: Frequency | AF6: Relative Frequency | AG6: Variability | AI6: Frequency | AK6: Relative Frequency | AL6: Variability | AN6: Frequency | AP6: Relative Frequency | AQ6: Variability | AS6: Frequency | AU6: Relative Frequency | AV6: Variability
A7: 12 | B7: 11 | C7: 13 | D7: 17 | E7: 13 | F7: 26 | K7: 0 | L7: 111 | N7: 111 | O7: =COUNTIF($L$7:$L$500,N7) -> 178 | P7: =O7/$Q$4 -> 0.9518716578 | Q7: =IF(P7=0,0,(P7*((LOG(P7))/LOG(2)))) -> -0.06773616657 | T7: =N7 -> 111 | U7: =COUNTIF(L7:L37,T7) -> 28 | V7: =U7/(W4-U11) -> 0.9032258065 | W7: =IF(V7=0,0,(V7*((LOG(V7))/LOG(2)))) -> -0.1326309314 | Y7: =N7 -> 111 | Z7: =COUNTIF(L38:L68,Y7) -> 31 | AA7: =Z7/(AB4-Z11) -> 1 | AB7: =IF(AA7=0,0,(AA7*((LOG(AA7))/LOG(2)))) -> 0 | AD7: =N7 -> 111 | AE7: =COUNTIF(L69:L100,AD7) -> 27 | AF7: =AE7/(AG4-AE11) -> 0.84375 | AG7: =IF(AF7=0,0,(AF7*((LOG(AF7))/LOG(2)))) -> -0.20681367 | AI7: =N7 -> 111 | AJ7: =COUNTIF(L101:L131,AI7) -> 31 | AK7: =AJ7/(AL4-AJ11) -> 1 | AL7: =IF(AK7=0,0,(AK7*((LOG(AK7))/LOG(2)))) -> 0 | AN7: =N7 -> 111 | AO7: =COUNTIF(L132:L162,AN7) -> 30 | AP7: =AO7/(AQ4-AO11) -> 0.9677419355 | AQ7: =IF(AP7=0,0,(AP7*((LOG(AP7))/LOG(2)))) -> -0.04577972398 | AS7: =N7 -> 111 | AT7: =COUNTIF(L163:L193,AS7) -> 31 | AU7: =AT7/(AV4-AT11) -> 1 | AV7: =IF(AU7=0,0,(AU7*((LOG(AU7))/LOG(2)))) -> 0
A8: 12 | B8: 129 | C8: 13 | D8: 136 | E8: 13 | F8: 145 | K8: 0 | L8: 111 | N8: 112 | O8: =COUNTIF($L$7:$L$500,N8) -> 3 | P8: =O8/$Q$4 -> 0.01604278075 | Q8: =IF(P8=0,0,(P8*((LOG(P8))/LOG(2)))) -> -0.09564596726 | T8: =N8 -> 112 | U8: =COUNTIF(L7:L37,T8) -> 1 | V8: =U8/(W4-U11) -> 0.03225806452 | W8: =IF(V8=0,0,(V8*((LOG(V8))/LOG(2)))) -> -0.1598127842 | Y8: =N8 -> 112 | Z8: =COUNTIF(L38:L68,Y8) -> 0 | AA8: =Z8/(AB4-Z11) -> 0 | AB8: =IF(AA8=0,0,(AA8*((LOG(AA8))/LOG(2)))) -> 0 | AD8: =N8 -> 112 | AE8: =COUNTIF(L69:L100,AD8) -> 1 | AF8: =AE8/(AG4-AE11) -> 0.03125 | AG8: =IF(AF8=0,0,(AF8*((LOG(AF8))/LOG(2)))) -> -0.15625 | AI8: =N8 -> 112 | AJ8: =COUNTIF(L101:L131,AI8) -> 0 | AK8: =AJ8/(AL4-AJ11) -> 0 | AL8: =IF(AK8=0,0,(AK8*((LOG(AK8))/LOG(2)))) -> 0 | AN8: =N8 -> 112 | AO8: =COUNTIF(L132:L162,AN8) -> 1 | AP8: =AO8/(AQ4-AO11) -> 0.03225806452 | AQ8: =IF(AP8=0,0,(AP8*((LOG(AP8))/LOG(2)))) -> -0.1598127842 | AS8: =N8 -> 112 | AT8: =COUNTIF(L163:L193,AS8) -> 0 | AU8: =AT8/(AV4-AT11) -> 0 | AV8: =IF(AU8=0,0,(AU8*((LOG(AU8))/LOG(2)))) -> 0
A9: 12 | B9: 250 | C9: 13 | D9: 258 | E9: 13 | F9: 267 | K9: 0 | L9: 111 | N9: 121 | O9: =COUNTIF($L$7:$L$500,N9) -> 0 | P9: =O9/$Q$4 -> 0 | Q9: =IF(P9=0,0,(P9*((LOG(P9))/LOG(2)))) -> 0 | T9: =N9 -> 121 | U9: =COUNTIF(L7:L37,T9) -> 0 | V9: =U9/(W4-U11) -> 0 | W9: =IF(V9=0,0,(V9*((LOG(V9))/LOG(2)))) -> 0 | Y9: =N9 -> 121 | Z9: =COUNTIF(L38:L68,Y9) -> 0 | AA9: =Z9/(AB4-Z11) -> 0 | AB9: =IF(AA9=0,0,(AA9*((LOG(AA9))/LOG(2)))) -> 0 | AD9: =N9 -> 121 | AE9: =COUNTIF(L69:L100,AD9) -> 0 | AF9: =AE9/(AG4-AE11) -> 0 | AG9: =IF(AF9=0,0,(AF9*((LOG(AF9))/LOG(2)))) -> 0 | AI9: =N9 -> 121 | AJ9: =COUNTIF(L101:L131,AI9) -> 0 | AK9: =AJ9/(AL4-AJ11) -> 0 | AL9: =IF(AK9=0,0,(AK9*((LOG(AK9))/LOG(2)))) -> 0 | AN9: =N9 -> 121 | AO9: =COUNTIF(L132:L162,AN9) -> 0 | AP9: =AO9/(AQ4-AO11) -> 0 | AQ9: =IF(AP9=0,0,(AP9*((LOG(AP9))/LOG(2)))) -> 0 | AS9: =N9 -> 121 | AT9: =COUNTIF(L163:L193,AS9) -> 0 | AU9: =AT9/(AV4-AT11) -> 0 | AV9: =IF(AU9=0,0,(AU9*((LOG(AU9))/LOG(2)))) -> 0
A10: 12 | B10: 367 | C10: 13 | D10: 374 | E10: 13 | F10: 380 | K10: 0 | L10: 111 | N10: 122 | O10: =COUNTIF($L$7:$L$500,N10) -> 4 | P10: =O10/$Q$4 -> 0.02139037433 | Q10: =IF(P10=0,0,(P10*((LOG(P10))/LOG(2)))) -> -0.1186501489 | T10: =N10 -> 122 | U10: =COUNTIF(L7:L37,T10) -> 2 | V10: =U10/(W4-U11) -> 0.06451612903 | W10: =IF(V10=0,0,(V10*((LOG(V10))/LOG(2)))) -> -0.2551094394 | Y10: =N10 -> 122 | Z10: =COUNTIF(L38:L68,Y10) -> 0 | AA10: =Z10/(AB4-Z11) -> 0 | AB10: =IF(AA10=0,0,(AA10*((LOG(AA10))/LOG(2)))) -> 0 | AD10: =N10 -> 122 | AE10: =COUNTIF(L69:L100,AD10) -> 2 | AF10: =AE10/(AG4-AE11) -> 0.0625 | AG10: =IF(AF10=0,0,(AF10*((LOG(AF10))/LOG(2)))) -> -0.25 | AI10: =N10 -> 122 | AJ10: =COUNTIF(L101:L131,AI10) -> 0 | AK10: =AJ10/(AL4-AJ11) -> 0 | AL10: =IF(AK10=0,0,(AK10*((LOG(AK10))/LOG(2)))) -> 0 | AN10: =N10 -> 122 | AO10: =COUNTIF(L132:L162,AN10) -> 0 | AP10: =AO10/(AQ4-AO11) -> 0 | AQ10: =IF(AP10=0,0,(AP10*((LOG(AP10))/LOG(2)))) -> 0 | AS10: =N10 -> 122 | AT10: =COUNTIF(L163:L193,AS10) -> 0 | AU10: =AT10/(AV4-AT11) -> 0 | AV10: =IF(AU10=0,0,(AU10*((LOG(AU10))/LOG(2)))) -> 0
A11: 12 | B11: 483 | C11: 13 | D11: 490 | E11: 13 | F11: 496 | K11: 0 | L11: 111 | N11: 211 | O11: =COUNTIF($L$7:$L$500,N11) -> 0 | P11: =O11/$Q$4 -> 0 | Q11: =IF(P11=0,0,(P11*((LOG(P11))/LOG(2)))) -> 0 | T11: =N11 -> 211 | U11: =COUNTIF(L7:L37,T11) -> 0 | Y11: =N11 -> 211 | Z11: =COUNTIF(L38:L68,Y11) -> 0 | AD11: =N11 -> 211 | AE11: =COUNTIF(L69:L100,AD11) -> 0 | AI11: =N11 -> 211 | AJ11: =COUNTIF(L101:L131,AI11) -> 0 | AN11: =N11 -> 211 | AO11: =COUNTIF(L132:L162,AN11) -> 0 | AS11: =N11 -> 211 | AT11: =COUNTIF(L163:L193,AS11) -> 0
A12: 12 | B12: 598 | C12: 13 | D12: 605 | E12: 13 | F12: 611 | K12: 0 | L12: 111 | N12: 212 | O12: =COUNTIF($L$7:$L$500,N12) -> 0 | P12: =O12/$Q$4 -> 0 | Q12: =IF(P12=0,0,(P12*((LOG(P12))/LOG(2)))) -> 0 | T12: =N12 -> 212 | U12: =COUNTIF(L7:L37,T12) -> 0 | V12: =U12/(W4-U11) -> 0 | W12: =IF(V12=0,0,(V12*((LOG(V12))/LOG(2)))) -> 0 | Y12: =N12 -> 212 | Z12: =COUNTIF(L38:L68,Y12) -> 0 | AA12: =Z12/(AB4-Z11) -> 0 | AB12: =IF(AA12=0,0,(AA12*((LOG(AA12))/LOG(2)))) -> 0 | AD12: =N12 -> 212 | AE12: =COUNTIF(L69:L100,AD12) -> 0 | AF12: =AE12/(AG4-AE11) -> 0 | AG12: =IF(AF12=0,0,(AF12*((LOG(AF12))/LOG(2)))) -> 0 | AI12: =N12 -> 212 | AJ12: =COUNTIF(L101:L131,AI12) -> 0 | AK12: =AJ12/(AL4-AJ11) -> 0 | AL12: =IF(AK12=0,0,(AK12*((LOG(AK12))/LOG(2)))) -> 0 | AN12: =N12 -> 212 | AO12: =COUNTIF(L132:L162,AN12) -> 0 | AP12: =AO12/(AQ4-AO11) -> 0 | AQ12: =IF(AP12=0,0,(AP12*((LOG(AP12))/LOG(2)))) -> 0 | AS12: =N12 -> 212 | AT12: =COUNTIF(L163:L193,AS12) -> 0 | AU12: =AT12/(AV4-AT11) -> 0 | AV12: =IF(AU12=0,0,(AU12*((LOG(AU12))/LOG(2)))) -> 0
A13: 12 | B13: 707 | C13: 13 | D13: 715 | E13: 13 | F13: 724 | K13: 0 | L13: 111 | N13: 221 | O13: =COUNTIF($L$7:$L$500,N13) -> 0 | P13: =O13/$Q$4 -> 0 | Q13: =IF(P13=0,0,(P13*((LOG(P13))/LOG(2)))) -> 0 | T13: =N13 -> 221 | U13: =COUNTIF(L7:L37,T13) -> 0 | V13: =U13/(W4-U11) -> 0 | W13: =IF(V13=0,0,(V13*((LOG(V13))/LOG(2)))) -> 0 | Y13: =N13 -> 221 | Z13: =COUNTIF(L38:L68,Y13) -> 0 | AA13: =Z13/(AB4-Z11) -> 0 | AB13: =IF(AA13=0,0,(AA13*((LOG(AA13))/LOG(2)))) -> 0 | AD13: =N13 -> 221 | AE13: =COUNTIF(L69:L100,AD13) -> 0 | AF13: =AE13/(AG4-AE11) -> 0 | AG13: =IF(AF13=0,0,(AF13*((LOG(AF13))/LOG(2)))) -> 0 | AI13: =N13 -> 221 | AJ13: =COUNTIF(L101:L131,AI13) -> 0 | AK13: =AJ13/(AL4-AJ11) -> 0 | AL13: =IF(AK13=0,0,(AK13*((LOG(AK13))/LOG(2)))) -> 0 | AN13: =N13 -> 221 | AO13: =COUNTIF(L132:L162,AN13) -> 0 | AP13: =AO13/(AQ4-AO11) -> 0 | AQ13: =IF(AP13=0,0,(AP13*((LOG(AP13))/LOG(2)))) -> 0 | AS13: =N13 -> 221 | AT13: =COUNTIF(L163:L193,AS13) -> 0 | AU13: =AT13/(AV4-AT11) -> 0 | AV13: =IF(AU13=0,0,(AU13*((LOG(AU13))/LOG(2)))) -> 0
A14: 12 | B14: 843 | C14: 13 | D14: 849 | E14: 13 | F14: 858 | K14: 0 | L14: 111 | N14: 222 | O14: =COUNTIF($L$7:$L$500,N14) -> 2 | P14: =O14/$Q$4 -> 0.01069518717 | Q14: =IF(P14=0,0,(P14*((LOG(P14))/LOG(2)))) -> -0.0700202616 | T14: =N14 -> 222 | U14: =COUNTIF(L7:L37,T14) -> 0 | V14: =U14/(W4-U11) -> 0 | W14: =IF(V14=0,0,(V14*((LOG(V14))/LOG(2)))) -> 0 | Y14: =N14 -> 222 | Z14: =COUNTIF(L38:L68,Y14) -> 0 | AA14: =Z14/(AB4-Z11) -> 0 | AB14: =IF(AA14=0,0,(AA14*((LOG(AA14))/LOG(2)))) -> 0 | AD14: =N14 -> 222 | AE14: =COUNTIF(L69:L100,AD14) -> 2 | AF14: =AE14/(AG4-AE11) -> 0.0625 | AG14: =IF(AF14=0,0,(AF14*((LOG(AF14))/LOG(2)))) -> -0.25 | AI14: =N14 -> 222 | AJ14: =COUNTIF(L101:L131,AI14) -> 0 | AK14: =AJ14/(AL4-AJ11) -> 0 | AL14: =IF(AK14=0,0,(AK14*((LOG(AK14))/LOG(2)))) -> 0 | AN14: =N14 -> 222 | AO14: =COUNTIF(L132:L162,AN14) -> 0 | AP14: =AO14/(AQ4-AO11) -> 0 | AQ14: =IF(AP14=0,0,(AP14*((LOG(AP14))/LOG(2)))) -> 0 | AS14: =N14 -> 222 | AT14: =COUNTIF(L163:L193,AS14) -> 0 | AU14: =AT14/(AV4-AT11) -> 0 | AV14: =IF(AU14=0,0,(AU14*((LOG(AU14))/LOG(2)))) -> 0
A15: 12 | B15: 961 | C15: 13 | D15: 968 | E15: 13 | F15: 974 | K15: 0 | L15: 111 | P15: =SUM(P7:P14) -> 1 | Q15: =-SUM(Q7:Q14) -> 0.3520525443 | V15: =SUM(V7:V14) -> 1 | W15: =-SUM(W7:W14) -> 0.547553155 | AA15: =SUM(AA7:AA14) -> 1 | AB15: =-SUM(AB7:AB14) -> 0 | AF15: =SUM(AF7:AF14) -> 1 | AG15: =-SUM(AG7:AG14) -> 0.86306367 | AK15: =SUM(AK7:AK14) -> 1 | AL15: =-SUM(AL7:AL14) -> 0 | AP15: =SUM(AP7:AP14) -> 1 | AQ15: =-SUM(AQ7:AQ14) -> 0.2055925082 | AU15: =SUM(AU7:AU14) -> 1 | AV15: =-SUM(AV7:AV14) -> 0
A16: 12 | B16: 1078 | C16: 13 | D16: 1085 | E16: 13 | F16: 1092 | K16: 0 | L16: 111 | P16: U= | Q16: =Q15/(LOG(Q4)/LOG(2)) -> 0.04664866405 | V16: U1= | W16: =W15/(LOG(W4)/LOG(2)) -> 0.1105231042 | AA16: U2= | AB16: =AB15/(LOG(AB4)/LOG(2)) -> 0 | AF16: U3= | AG16: =AG15/(LOG(AG4)/LOG(2)) -> 0.172612734 | AK16: U4= | AL16: =AL15/(LOG(AL4)/LOG(2)) -> 0 | AP16: U5= | AQ16: =AQ15/(LOG(AQ4)/LOG(2)) -> 0.04149865999 | AU16: U6= | AV16: =AV15/(LOG(AV4)/LOG(2)) -> 0
A17: 12 | B17: 1199 | C17: 13 | D17: 1206 | E17: 13 | F17: 1215 | K17: 0 | L17: 111
A18: 12 | B18: 1325 | C18: 13 | D18: 1332 | E18: 13 | F18: 1342 | K18: 0 | L18: 111
A19: 12 | B19: 1453 | C19: 13 | D19: 1459 | E19: 13 | F19: 1466 | K19: 0 | L19: 111 | N19: Total Target Seq
A20: 12 | B20: 1569 | C20: 13 | D20: 1577 | E20: 13 | F20: 1583 | K20: 0 | L20: 111 | N20: =COUNTIF(L7:L193,G3) -> 0 | P20: 31 | Q20: 31 | R20: 32 | S20: 31 | T20: 31 | U20: 31
A21: 12 | B21: 1688 | C21: 13 | D21: 1694 | E21: 13 | F21: 1704 | K21: 0 | L21: 111 | P21: % of reinforcement given in 6 equal intervals based on number of trials
A22: 12 | B22: 1819 | C22: 13 | D22: 1826 | E22: 13 | F22: 1836 | K22: 0 | L22: 111 | P22: %_1 | Q22: %_2 | R22: %_3 | S22: %_4 | T22: %_5 | U22: %_6
A23: 12 | B23: 1945 | C23: 13 | D23: 1951 | E23: 13 | F23: 1958 | K23: 0 | L23: 111 | O23: target sequence | P23: =$G$3 -> 211 | Q23: =$G$3 -> 211 | R23: =$G$3 -> 211 | S23: =$G$3 -> 211 | T23: =$G$3 -> 211 | U23: =$G$3 -> 211
A24: 12 | B24: 2067 | C24: 13 | D24: 2074 | E24: 13 | F24: 2080 | K24: 0 | L24: 111 | O24: total reinforcement | P24: =U11 -> 0 | Q24: =Z11 -> 0 | R24: =AE11 -> 0 | S24: =AJ11 -> 0 | T24: =AO11 -> 0 | U24: =AT11 -> 0
A25: 12 | B25: 2189 | C25: 13 | D25: 2196 | E25: 13 | F25: 2202 | K25: 0 | L25: 111 | O25: % target
A26: 12 | B26: 2313 | C26: 13 | D26: 2324 | E26: 13 | F26: 2335 | K26: 0 | L26: 111 | O26: CCRF
A27: 12 | B27: 2457 | C27: 13 | D27: 2463 | E27: 13 | F27: 2478 | K27: 0 | L27: 111 | O27: % CCRf
A28: 12 | B28: 2589 | C28: 24 | D28: 2612 | E28: 24 | F28: 2631 | K28: 0 | L28: 122 | O28: average response rate | P28: =F37/P20 -> 129.0967742 | Q28: =(F68-F37)/Q20 -> 137.2903226 | R28: =(F100-F68)/R20 -> 133.75 | S28: =(F131-F100)/S20 -> 124.2903226 | T28: =(F162-F131)/T20 -> 121.9677419 | U28: =(F193-F162)/U20 -> 122.0967742
A29: 12 | B29: 2745 | C29: 24 | D29: 2777 | E29: 24 | F29: 2785 | K29: 0 | L29: 122
A30: 12 | B30: 2897 | C30: 13 | D30: 2930 | E30: 24 | F30: 2973 | K30: 0 | L30: 112
A31: 12 | B31: 3094 | C31: 13 | D31: 3102 | E31: 13 | F31: 3112 | K31: 0 | L31: 111
A32: 12 | B32: 3223 | C32: 13 | D32: 3236 | E32: 13 | F32: 3246 | K32: 0 | L32: 111
A33: 12 | B33: 3360 | C33: 13 | D33: 3366 | E33: 13 | F33: 3372 | K33: 0 | L33: 111
A34: 12 | B34: 3517 | C34: 13 | D34: 3526 | E34: 13 | F34: 3534 | K34: 0 | L34: 111
A35: 12 | B35: 3651 | C35: 13 | D35: 3658 | E35: 13 | F35: 3664 | K35: 0 | L35: 111
A36: 12 | B36: 3776 | C36: 13 | D36: 3786 | E36: 13 | F36: 3794 | K36: 0 | L36: 111
A37: 12 | B37: 3984 | C37: 13 | D37: 3994 | E37: 13 | F37: 4002 | K37: 0 | L37: 111
A38: 12 | B38: 4171 | C38: 13 | D38: 4178 | E38: 13 | F38: 4187 | K38: 0 | L38: 111
A39: 12 | B39: 4306 | C39: 13 | D39: 4313 | E39: 13 | F39: 4319 | K39: 0 | L39: 111
A40: 12 | B40: 4440 | C40: 13 | D40: 4445 | E40: 13 | F40: 4453 | K40: 0 | L40: 111
A41: 12 | B41: 4578 | C41: 13 | D41: 4584 | E41: 13 | F41: 4593 | K41: 0 | L41: 111
A42: 12 | B42: 4711 | C42: 13 | D42: 4717 | E42: 13 | F42: 4730 | K42: 0 | L42: 111
A43: 12 | B43: 4838 | C43: 13 | D43: 4853 | E43: 13 | F43: 4868 | K43: 0 | L43: 111
A44: 12 | B44: 4982 | C44: 13 | D44: 4994 | E44: 13 | F44: 5000 | K44: 0 | L44: 111
A45: 12 | B45: 5105 | C45: 13 | D45: 5111 | E45: 13 | F45: 5118 | K45: 0 | L45: 111
A46: 12 | B46: 5227 | C46: 13 | D46: 5234 | E46: 13 | F46: 5240 | K46: 0 | L46: 111
A47: 12 | B47: 5383 | C47: 13 | D47: 5390 | E47: 13 | F47: 5397 | K47: 0 | L47: 111
A48: 12 | B48: 5514 | C48: 13 | D48: 5520 | E48: 13 | F48: 5526 | K48: 0 | L48: 111
A49: 12 | B49: 5637 | C49: 13 | D49: 5644 | E49: 13 | F49: 5656 | K49: 0 | L49: 111
A50: 12 | B50: 5766 | C50: 13 | D50: 5771 | E50: 13 | F50: 5782 | K50: 0 | L50: 111
A51: 12 | B51: 5902 | C51: 13 | D51: 5908 | E51: 13 | F51: 5917 | K51: 0 | L51: 111
A52: 12 | B52: 6064 | C52: 13 | D52: 6077 | E52: 13 | F52: 6110 | K52: 0 | L52: 111
A53: 12 | B53: 6235 | C53: 13 | D53: 6242 | E53: 13 | F53: 6256 | K53: 0 | L53: 111
A54: 12 | B54: 6367 | C54: 13 | D54: 6373 | E54: 13 | F54: 6392 | K54: 0 | L54: 111
A55: 12 | B55: 6524 | C55: 13 | D55: 6537 | E55: 13 | F55: 6548 | K55: 0 | L55: 111
A56: 12 | B56: 6670 | C56: 13 | D56: 6677 | E56: 13 | F56: 6686 | K56: 0 | L56: 111
A57: 12 | B57: 6787 | C57: 13 | D57: 6793 | E57: 13 | F57: 6807 | K57: 0 | L57: 111
A58: 12 | B58: 6919 | C58: 13 | D58: 6926 | E58: 13 | F58: 6957 | K58: 0 | L58: 111
A59: 12 | B59: 7066 | C59: 13 | D59: 7073 | E59: 13 | F59: 7081 | K59: 0 | L59: 111
A60: 12 | B60: 7189 | C60: 13 | D60: 7196 | E60: 13 | F60: 7201 | K60: 0 | L60: 111
A61: 12 | B61: 7311 | C61: 13 | D61: 7317 | E61: 13 | F61: 7330 | K61: 0 | L61: 111
A62: 12 | B62: 7439 | C62: 13 | D62: 7445 | E62: 13 | F62: 7453 | K62: 0 | L62: 111
A63: 12 | B63: 7566 | C63: 13 | D63: 7580 | E63: 13 | F63: 7590 | K63: 0 | L63: 111
A64: 12 | B64: 7696 | C64: 13 | D64: 7709 | E64: 13 | F64: 7715 | K64: 0 | L64: 111
A65: 12 | B65: 7826 | C65: 13 | D65: 7833 | E65: 13 | F65: 7850 | K65: 0 | L65: 111
A66: 12 | B66: 7954 | C66: 13 | D66: 7967 | E66: 13 | F66: 7977 | K66: 0 | L66: 111
A67: 12 | B67: 8087 | C67: 13 | D67: 8122 | E67: 13 | F67: 8133 | K67: 0 | L67: 111
A68: 12 | B68: 8236 | C68: 13 | D68: 8248 | E68: 13 | F68: 8258 | K68: 0 | L68: 111
A69: 12 | B69: 8363 | C69: 24 | D69: 8386 | E69: 24 | F69: 8394 | K69: 0 | L69: 122
A70: 12 | B70: 8499 | C70: 13 | D70: 8510 | E70: 13 | F70: 8528 | K70: 0 | L70: 111
A71: 12 | B71: 8641 | C71: 13 | D71: 8651 | E71: 13 | F71: 8660 | K71: 0 | L71: 111
A72: 12 | B72: 8763 | C72: 13 | D72: 8769 | E72: 13 | F72: 8788 | K72: 0 | L72: 111
A73: 12 | B73: 8896 | C73: 13 | D73: 8902 | E73: 13 | F73: 8909 | K73: 0 | L73: 111
A74: 12 | B74: 9020 | C74: 13 | D74: 9032 | E74: 24 | F74: 9088 | K74: 0 | L74: 112
A75: 12 | B75: 9207 | C75: 13 | D75: 9213 | E75: 13 | F75: 9219 | K75: 0 | L75: 111
A76: 12 | B76: 9331 | C76: 13 | D76: 9338 | E76: 13 | F76: 9348 | K76: 0 | L76: 111
A77: 21 | B77: 9510 | C77: 22 | D77: 9516 | E77: 24 | F77: 9526 | K77: 0 | L77: 222
A78: 12 | B78: 9666 | C78: 13 | D78: 9671 | E78: 13 | F78: 9677 | K78: 0 | L78: 111
A79: 12 | B79: 9783 | C79: 13 | D79: 9789 | E79: 13 | F79: 9801 | K79: 0 | L79: 111
A80: 12 | B80: 9902 | C80: 13 | D80: 9908 | E80: 13 | F80: 9917 | K80: 0 | L80: 111
A81: 12 | B81: 10033 | C81: 13 | D81: 10040 | E81: 13 | F81: 10061 | K81: 0 | L81: 111
A82: 12 | B82: 10166 | C82: 13 | D82: 10177 | E82: 13 | F82: 10184 | K82: 0 | L82: 111
A83: 12 | B83: 10284 | C83: 13 | D83: 10300 | E83: 13 | F83: 10307 | K83: 0 | L83: 111
A84: 12 | B84: 10411 | C84: 13 | D84: 10417 | E84: 13 | F84: 10423 | K84: 0 | L84: 111
A85: 12 | B85: 10540 | C85: 13 | D85: 10547 | E85: 13 | F85: 10588 | K85: 0 | L85: 111
A86: 12 | B86: 10689 | C86: 13 | D86: 10695 | E86: 13 | F86: 10700 | K86: 0 | L86: 111
A87: 12 | B87: 10798 | C87: 13 | D87: 10809 | E87: 13 | F87: 10816 | K87: 0 | L87: 111
A88: 21 | B88: 10954 | C88: 22 | D88: 10962 | E88: 24 | F88: 10969 | K88: 0 | L88: 222
A89: 12 | B89: 11089 | C89: 13 | D89: 11096 | E89: 13 | F89: 11120 | K89: 0 | L89: 111
A90: 12 | B90: 11250 | C90: 13 | D90: 11256 | E90: 13 | F90: 11263 | K90: 0 | L90: 111
A91: 12 | B91: 11372 | C91: 13 | D91: 11378 | E91: 13 | F91: 11384 | K91: 0 | L91: 111
A92: 12 | B92: 11496 | C92: 13 | D92: 11501 | E92: 13 | F92: 11508 | K92: 0 | L92: 111
A93: 12 | B93: 11618 | C93: 13 | D93: 11636 | E93: 13 | F93: 11648 | K93: 0 | L93: 111
A94: 12 | B94: 11756 | C94: 13 | D94: 11772 | E94: 13 | F94: 11778 | K94: 0 | L94: 111
A95: 12 | B95: 11899 | C95: 13 | D95: 11905 | E95: 13 | F95: 11911 | K95: 0 | L95: 111
A96: 12 | B96: 12017 | C96: 13 | D96: 12028 | E96: 13 | F96: 12033 | K96: 0 | L96: 111
A97: 12 | B97: 12139 | C97: 13 | D97: 12145 | E97: 13 | F97: 12150 | K97: 0 | L97: 111
A98: 12 | B98: 12253 | C98: 24 | D98: 12266 | E98: 24 | F98: 12278 | K98: 0 | L98: 122
A99: 12 | B99: 12380 | C99: 13 | D99: 12387 | E99: 13 | F99: 12411 | K99: 0 | L99: 111
A100: 12 | B100: 12519 | C100: 13 | D100: 12532 | E100: 13 | F100: 12538 | K100: 0 | L100: 111
A101: 12 | B101: 12645 | C101: 13 | D101: 12651 | E101: 13 | F101: 12657 | K101: 0 | L101: 111
A102: 12 | B102: 12755 | C102: 13 | D102: 12762 | E102: 13 | F102: 12772 | K102: 0 | L102: 111
A103: 12 | B103: 12881 | C103: 13 | D103: 12887 | E103: 13 | F103: 12895 | K103: 0 | L103: 111
A104: 12 | B104: 13003 | C104: 13 | D104: 13016 | E104: 13 | F104: 13026 | K104: 0 | L104: 111
A105: 12 | B105: 13127 | C105: 13 | D105: 13140 | E105: 13 | F105: 13150 | K105: 0 | L105: 111
A106: 12 | B106: 13251 | C106: 13 | D106: 13260 | E106: 13 | F106: 13268 | K106: 0 | L106: 111
A107: 12 | B107: 13377 | C107: 13 | D107: 13387 | E107: 13 | F107: 13396 | K107: 0 | L107: 111
A108: 12 | B108: 13497 | C108: 13 | D108: 13502 | E108: 13 | F108: 13508 | K108: 0 | L108: 111
A109: 12 | B109: 13611 | C109: 13 | D109: 13618 | E109: 13 | F109: 13624 | K109: 0 | L109: 111
A110: 12 | B110: 13732 | C110: 13 | D110: 13738 | E110: 13 | F110: 13744 | K110: 0 | L110: 111
A111: 12 | B111: 13849 | C111: 13 | D111: 13855 | E111: 13 | F111: 13861 | K111: 0 | L111: 111
A112: 12 | B112: 13963 | C112: 13 | D112: 13975 | E112: 13 | F112: 13994 | K112: 0 | L112: 111
A113: 12 | B113: 14109 | C113: 13 | D113: 14115 | E113: 13 | F113: 14121 | K113: 0 | L113: 111
A114: 12 | B114: 14220 | C114: 13 | D114: 14225 | E114: 13 | F114: 14231 | K114: 0 | L114: 111
A115: 12 | B115: 14344 | C115: 13 | D115: 14355 | E115: 13 | F115: 14364 | K115: 0 | L115: 111
A116: 12 | B116: 14467 | C116: 13 | D116: 14473 | E116: 13 | F116: 14479 | K116: 0 | L116: 111
A117: 12 | B117: 14583 | C117: 13 | D117: 14589 | E117: 13 | F117: 14596 | K117: 0 | L117: 111
A118: 12 | B118: 14702 | C118: 13 | D118: 14709 | E118: 13 | F118: 14715 | K118: 0 | L118: 111
A119: 12 | B119: 14820 | C119: 13 | D119: 14827 | E119: 13 | F119: 14835 | K119: 0 | L119: 111
A120: 12 | B120: 14945 | C120: 13 | D120: 14951 | E120: 13 | F120: 14957 | K120: 0 | L120: 111
A121: 12 | B121: 15057 | C121: 13 | D121: 15062 | E121: 13 | F121: 15071 | K121: 0 | L121: 111
A122: 12 | B122: 15181 | C122: 13 | D122: 15234 | E122: 13 | F122: 15242 | K122: 0 | L122: 111
A123: 12 | B123: 15344 | C123: 13 | D123: 15351 | E123: 13 | F123: 15357 | K123: 0 | L123: 111
A124: 12 | B124: 15460 | C124: 13 | D124: 15465 | E124: 13 | F124: 15474 | K124: 0 | L124: 111
A125: 12 | B125: 15575 | C125: 13 | D125: 15582 | E125: 13 | F125: 15598 | K125: 0 | L125: 111
A126: 12 | B126: 15701 | C126: 13 | D126: 15707 | E126: 13 | F126: 15713 | K126: 0 | L126: 111
A127: 12 | B127: 15818 | C127: 13 | D127: 15824 | E127: 13 | F127: 15830 | K127: 0 | L127: 111
A128: 12 | B128: 15928 | C128: 13 | D128: 15935 | E128: 13 | F128: 15941 | K128: 0 | L128: 111
A129: 12 | B129: 16077 | C129: 13 | D129: 16102 | E129: 13 | F129: 16126 | K129: 0 | L129: 111
A130: 12 | B130: 16231 | C130: 13 | D130: 16251 | E130: 13 | F130: 16268 | K130: 0 | L130: 111
A131: 12 | B131: 16369 | C131: 13 | D131: 16376 | E131: 13 | F131: 16391 | K131: 0 | L131: 111
A132: 12 | B132: 16524 | C132: 13 | D132: 16531 | E132: 13 | F132: 16547 | K132: 0 | L132: 111
A133: 12 | B133: 16651 | C133: 13 | D133: 16656 | E133: 13 | F133: 16662 | K133: 0 | L133: 111
A134: 12 | B134: 16769 | C134: 13 | D134: 16775 | E134: 13 | F134: 16782 | K134: 0 | L134: 111
A135: 12 | B135: 16881 | C135: 13 | D135: 16889 | E135: 13 | F135: 16895 | K135: 0 | L135: 111
A136: 12 | B136: 16999 | C136: 13 | D136: 17005 | E136: 13 | F136: 17012 | K136: 0 | L136: 111
A137: 12 | B137: 17125 | C137: 13 | D137: 17132 | E137: 13 | F137: 17137 | K137: 0 | L137: 111
A138: 12 | B138: 17240 | C138: 13 | D138: 17255 | E138: 13 | F138: 17265 | K138: 0 | L138: 111
A139: 12 | B139: 17368 | C139: 13 | D139: 17374 | E139: 13 | F139: 17380 | K139: 0 | L139: 111
A140: 12 | B140: 17482 | C140: 13 | D140: 17488 | E140: 13 | F140: 17500 | K140: 0 | L140: 111
A141: 12 | B141: 17597 | C141: 13 | D141: 17604 | E141: 13 | F141: 17616 | K141: 0 | L141: 111
A142: 12 | B142: 17725 | C142: 13 | D142: 17731 | E142: 13 | F142: 17737 | K142: 0 | L142: 111
A143: 12 | B143: 17842 | C143: 13 | D143: 17848 | E143: 13 | F143: 17856 | K143: 0 | L143: 111
A144: 12 | B144: 17953 | C144: 13 | D144: 17958 | E144: 13 | F144: 17971 | K144: 0 | L144: 111
A145: 12 | B145: 18070 | C145: 13 | D145: 18077 | E145: 13 | F145: 18083 | K145: 0 | L145: 111
A146: 12 | B146: 18182 | C146: 13 | D146: 18187 | E146: 13 | F146: 18199 | K146: 0 | L146: 111
A147: 12 | B147: 18296 | C147: 13 | D147: 18302 | E147: 13 | F147: 18314 | K147: 0 | L147: 111
A148: 12 | B148: 18411 | C148: 13 | D148: 18419 | E148: 13 | F148: 18436 | K148: 0 | L148: 111
A149: 12 | B149: 18540 | C149: 13 | D149: 18562 | E149: 13 | F149: 18576 | K149: 0 | L149: 111
A150: 12 | B150: 18676 | C150: 13 | D150: 18682 | E150: 13 | F150: 18689 | K150: 0 | L150: 111
A151: 12 | B151: 18792 | C151: 13 | D151: 18797 | E151: 13 | F151: 18804 | K151: 0 | L151: 111
A152: 12 | B152: 18910 | C152: 13 | D152: 18917 | E152: 13 | F152: 18923 | K152: 0 | L152: 111
A153: 12 | B153: 19019 | C153: 13 | D153: 19028 | E153: 13 | F153: 19040 | K153: 0 | L153: 111
A154: 12 | B154: 19137 | C154: 13 | D154: 19143 | E154: 13 | F154: 19159 | K154: 0 | L154: 111
A155: 12 | B155: 19303 | C155: 13 | D155: 19310 | E155: 13 | F155: 19319 | K155: 0 | L155: 111
A156: 12 | B156: 19418 | C156: 13 | D156: 19423 | E156: 13 | F156: 19430 | K156: 0 | L156: 111
A157: 12 | B157: 19527 | C157: 13 | D157: 19537 | E157: 13 | F157: 19543 | K157: 0 | L157: 111
A158: 12 | B158: 19644 | C158: 13 | D158: 19651 | E158: 13 | F158: 19656 | K158: 0 | L158: 111
A159: 12 | B159: 19764 | C159: 13 | D159: 19776 | E159: 24 | F159: 19802 | K159: 0 | L159: 112
A160: 12 | B160: 19901 | C160: 13 | D160: 19908 | E160: 13 | F160: 19913 | K160: 0 | L160: 111
A161: 12 | B161: 20012 | C161: 13 | D161: 20018 | E161: 13 | F161: 20023 | K161: 0 | L161: 111
A162: 12 | B162: 20153 | C162: 13 | D162: 20163 | E162: 13 | F162: 20172 | K162: 0 | L162: 111
A163: 12 | B163: 20266 | C163: 13 | D163: 20272 | E163: 13 | F163: 20277 | K163: 0 | L163: 111
A164: 12 | B164: 20395 | C164: 13 | D164: 20429 | E164: 13 | F164: 20439 | K164: 0 | L164: 111
A165: 12 | B165: 20534 | C165: 13 | D165: 20540 | E165: 13 | F165: 20545 | K165: 0 | L165: 111
A166: 12 | B166: 20649 | C166: 13 | D166: 20663 | E166: 13 | F166: 20673 | K166: 0 | L166: 111
A167: 12 | B167: 20775 | C167: 13 | D167: 20781 | E167: 13 | F167: 20787 | K167: 0 | L167: 111
A168: 12 | B168: 20892 | C168: 13 | D168: 20897 | E168: 13 | F168: 20904 | K168: 0 | L168: 111
A169: 12 | B169: 20999 | C169: 13 | D169: 21005 | E169: 13 | F169: 21014 | K169: 0 | L169: 111
A170: 12 | B170: 21123 | C170: 13 | D170: 21132 | E170: 13 | F170: 21140 | K170: 0 | L170: 111
A171: 12 | B171: 21247 | C171: 13 | D171: 21257 | E171: 13 | F171: 21265 | K171: 0 | L171: 111
A172: 12 | B172: 21372 | C172: 13 | D172: 21378 | E172: 13 | F172: 21384 | K172: 0 | L172: 111
A173: 12 | B173: 21487 | C173: 13 | D173: 21492 | E173: 13 | F173: 21498 | K173: 0 | L173: 111
A174: 12 | B174: 21603 | C174: 13 | D174: 21614 | E174: 13 | F174: 21623 | K174: 0 | L174: 111
A175: 12 | B175: 21722 | C175: 13 | D175: 21727 | E175: 13 | F175: 21733 | K175: 0 | L175: 111
A176: 12 | B176: 21838 | C176: 13 | D176: 21844 | E176: 13 | F176: 21869 | K176: 0 | L176: 111
A177: 12 | B177: 21975 | C177: 13 | D177: 21980 | E177: 13 | F177: 21990 | K177: 0 | L177: 111
A178: 12 | B178: 22123 | C178: 13 | D178: 22132 | E178: 13 | F178: 22141 | K178: 0 | L178: 111
A179: 12 | B179: 22236 | C179: 13 | D179: 22248 | E179: 13 | F179: 22253 | K179: 0 | L179: 111
A180: 12 | B180: 22359 | C180: 13 | D180: 22365 | E180: 13 | F180: 22376 | K180: 0 | L180: 111
A181: 12 | B181: 22475 | C181: 13 | D181: 22480 | E181: 13 | F181: 22486 | K181: 0 | L181: 111
A182: 12 | B182: 22589 | C182: 13 | D182: 22594 | E182: 13 | F182: 22599 | K182: 0 | L182: 111
A183: 12 | B183: 22706 | C183: 13 | D183: 22713 | E183: 13 | F183: 22721 | K183: 0 | L183: 111
A184: 12 | B184: 22833 | C184: 13 | D184: 22843 | E184: 13 | F184: 22849 | K184: 0 | L184: 111
A185: 12 | B185: 22954 | C185: 13 | D185: 22960 | E185: 13 | F185: 22969 | K185: 0 | L185: 111
A186: 12 | B186: 23070 | C186: 13 | D186: 23075 | E186: 13 | F186: 23086 | K186: 0 | L186: 111
A187: 12 | B187: 23188 | C187: 13 | D187: 23196 | E187: 13 | F187: 23202 | K187: 0 | L187: 111
A188: 12 | B188: 23300 | C188: 13 | D188: 23318 | E188: 13 | F188: 23333 | K188: 0 | L188: 111
A189: 12 | B189: 23440 | C189: 13 | D189: 23451 | E189: 13 | F189: 23456 | K189: 0 | L189: 111
A190: 12 | B190: 23573 | C190: 13 | D190: 23579 | E190: 13 | F190: 23593 | K190: 0 | L190: 111
A191: 12 | B191: 23699 | C191: 13 | D191: 23709 | E191: 13 | F191: 23715 | K191: 0 | L191: 111
A192: 12 | B192: 23819 | C192: 13 | D192: 23825 | E192: 13 | F192: 23831 | K192: 0 | L192: 111
A193: 12 | B193: 23946 | C193: 13 | D193: 23951 | E193: 13 | F193: 23957 | L193: 111

Sheet !N407950.010
A1: Report for:!N407950.010
A2: Date: | B2: <date>
A3: Hen: | B3: <hen> | F3: Correct Sequence | G3: =Start!J2 -> 211 | P3: Total Sequences in Data | Q3: =4994-COUNTBLANK(L7:L5000) -> 191 | V3: Total Sequences in Block Data | W3: =COUNTA(L7:L38) -> 32 | AA3: Total Sequences in Block Data | AB3: =COUNTA(L39:L70) -> 32 | AF3: Total Sequences in Block Data | AG3: =COUNTA(L71:L101) -> 31 | AK3: Total Sequences in Block Data | AL3: =COUNTA(L102:L133) -> 32 | AP3: Total Sequences in Block Data | AQ3: =COUNTA(L134:L165) -> 32 | AU3: Total Sequences in Block Data | AV3: =COUNTA(L166:L197) -> 32
P4: Total Sequences in Summary | Q4: =SUM(O7:O14) -> 190 | V4: Total Sequences in Block Summary | W4: =SUM(U7:U14) -> 32 | AA4: Total Sequences in Block Summary | AB4: =SUM(Z7:Z14) -> 32 | AF4: Total Sequences in Block Summary | AG4: =SUM(AE7:AE14) -> 31 | AK4: Total Sequences in Block Summary | AL4: =SUM(AJ7:AJ14) -> 32 | AP4: Total Sequences in Block Summary | AQ4: =SUM(AO7:AO14) -> 32 | AU4: Total Sequences in Block Summary | AV4: =SUM(AT7:AT14) -> 31
T5: Block 1 | Y5: Block 2 | AD5: Block 3 | AI5: Block 4 | AN5: Block 5 | AS5: Block 6
A6: Sequence Component 1 | B6: Time 1 | C6: Sequence Component 2 | D6: Time 2 | E6: Sequence Component 3 | F6: Time 3 | G6: Sequence Component 4 | H6: Time 4 | I6: Sequence Component 5 | J6: Time 5 | K6: Correct? 0=No 1=Yes | L6: Sequence | N6: Frequency | P6: Relative Frequency | Q6: Variability | T6: Frequency | V6: Relative Frequency | W6: Variability | Y6: Frequency | AA6: Relative Frequency | AB6: Variability | AD6: Frequency | AF6: Relative Frequency | AG6: Variability | AI6: Frequency | AK6: Relative Frequency | AL6: Variability | AN6: Frequency | AP6: Relative Frequency | AQ6: Variability | AS6: Frequency | AU6: Relative Frequency | AV6: Variability
A7: 12 | B7: 15 | C7: 13 | D7: 25 | E7: 13 | F7: 33 | K7: 0 | L7: 111 | N7: 111 | O7: =COUNTIF($L$7:$L$500,N7) -> 185 | P7: =O7/$Q$4 -> 0.9736842105 | Q7: =IF(P7=0,0,(P7*((LOG(P7))/LOG(2)))) -> -0.03746167024 | T7: =N7 -> 111 | U7: =COUNTIF(L7:L38,T7) -> 30 | V7: =U7/(W4-U11) -> 0.9375 | W7: =IF(V7=0,0,(V7*((LOG(V7))/LOG(2)))) -> -0.08729006662 | Y7: =N7 -> 111 | Z7: =COUNTIF(L39:L70,Y7) -> 32 | AA7: =Z7/(AB4-Z11) -> 1 | AB7: =IF(AA7=0,0,(AA7*((LOG(AA7))/LOG(2)))) -> 0 | AD7: =N7 -> 111 | AE7: =COUNTIF(L71:L101,AD7) -> 31 | AF7: =AE7/(AG4-AE11) -> 1 | AG7: =IF(AF7=0,0,(AF7*((LOG(AF7))/LOG(2)))) -> 0 | AI7: =N7 -> 111 | AJ7: =COUNTIF(L102:L133,AI7) -> 32 | AK7: =AJ7/(AL4-AJ11) -> 1 | AL7: =IF(AK7=0,0,(AK7*((LOG(AK7))/LOG(2)))) -> 0 | AN7: =N7 -> 111 | AO7: =COUNTIF(L134:L165,AN7) -> 31 | AP7: =AO7/(AQ4-AO11) -> 0.96875 | AQ7: =IF(AP7=0,0,(AP7*((LOG(AP7))/LOG(2)))) -> -0.04437232431 | AS7: =N7 -> 111 | AT7: =COUNTIF(L166:L197,AS7) -> 29 | AU7: =AT7/(AV4-AT11) -> 0.935483871 | AV7: =IF(AU7=0,0,(AU7*((LOG(AU7))/LOG(2)))) -> -0.09000787557
A8: 12 | B8: 136 | C8: 13 | D8: 145 | E8: 13 | F8: 153 | K8: 0 | L8: 111 | N8: 112 | O8: =COUNTIF($L$7:$L$500,N8) -> 2 | P8: =O8/$Q$4 -> 0.01052631579 | Q8: =IF(P8=0,0,(P8*((LOG(P8))/LOG(2)))) -> -0.06915637482 | T8: =N8 -> 112 | U8: =COUNTIF(L7:L38,T8) -> 1 | V8: =U8/(W4-U11) -> 0.03125 | W8: =IF(V8=0,0,(V8*((LOG(V8))/LOG(2)))) -> -0.15625 | Y8: =N8 -> 112 | Z8: =COUNTIF(L39:L70,Y8) -> 0 | AA8: =Z8/(AB4-Z11) -> 0 | AB8: =IF(AA8=0,0,(AA8*((LOG(AA8))/LOG(2)))) -> 0 | AD8: =N8 -> 112 | AE8: =COUNTIF(L71:L101,AD8) -> 0 | AF8: =AE8/(AG4-AE11) -> 0 | AG8: =IF(AF8=0,0,(AF8*((LOG(AF8))/LOG(2)))) -> 0 | AI8: =N8 -> 112 | AJ8: =COUNTIF(L102:L133,AI8) -> 0 | AK8: =AJ8/(AL4-AJ11) -> 0 | AL8: =IF(AK8=0,0,(AK8*((LOG(AK8))/LOG(2)))) -> 0 | AN8: =N8 -> 112 | AO8: =COUNTIF(L134:L165,AN8) -> 0 | AP8: =AO8/(AQ4-AO11) -> 0 | AQ8: =IF(AP8=0,0,(AP8*((LOG(AP8))/LOG(2)))) -> 0 | AS8: =N8 -> 112 | AT8: =COUNTIF(L166:L197,AS8) -> 1 | AU8: =AT8/(AV4-AT11) -> 0.03225806452 | AV8: =IF(AU8=0,0,(AU8*((LOG(AU8))/LOG(2)))) -> -0.1598127842
A9: 12 | B9: 254 | C9: 13 | D9: 260 | E9: 13 | F9: 268 | K9: 0 | L9: 111 | N9: 121 | O9: =COUNTIF($L$7:$L$500,N9) -> 0 | P9: =O9/$Q$4 -> 0 | Q9: =IF(P9=0,0,(P9*((LOG(P9))/LOG(2)))) -> 0 | T9: =N9 -> 121 | U9: =COUNTIF(L7:L38,T9) -> 0 | V9: =U9/(W4-U11) -> 0 | W9: =IF(V9=0,0,(V9*((LOG(V9))/LOG(2)))) -> 0 | Y9: =N9 -> 121 | Z9: =COUNTIF(L39:L70,Y9) -> 0 | AA9: =Z9/(AB4-Z11) -> 0 | AB9: =IF(AA9=0,0,(AA9*((LOG(AA9))/LOG(2)))) -> 0 | AD9: =N9 -> 121 | AE9: =COUNTIF(L71:L101,AD9) -> 0 | AF9: =AE9/(AG4-AE11) -> 0 | AG9: =IF(AF9=0,0,(AF9*((LOG(AF9))/LOG(2)))) -> 0 | AI9: =N9 -> 121 | AJ9: =COUNTIF(L102:L133,AI9) -> 0 | AK9: =AJ9/(AL4-AJ11) -> 0 | AL9: =IF(AK9=0,0,(AK9*((LOG(AK9))/LOG(2)))) -> 0 | AN9: =N9 -> 121 | AO9: =COUNTIF(L134:L165,AN9) -> 0 | AP9: =AO9/(AQ4-AO11) -> 0 | AQ9: =IF(AP9=0,0,(AP9*((LOG(AP9))/LOG(2)))) -> 0 | AS9: =N9 -> 121 | AT9: =COUNTIF(L166:L197,AS9) -> 0 | AU9: =AT9/(AV4-AT11) -> 0 | AV9: =IF(AU9=0,0,(AU9*((LOG(AU9))/LOG(2)))) -> 0
A10: 12 | B10: 369 | C10: 13 | D10: 378 | E10: 13 | F10: 384 | K10: 0 | L10: 111 | N10: 122 | O10: =COUNTIF($L$7:$L$500,N10) -> 3 | P10: =O10/$Q$4 -> 0.01578947368 | Q10: =IF(P10=0,0,(P10*((LOG(P10))/LOG(2)))) -> -0.09449831223 | T10: =N10 -> 122 | U10: =COUNTIF(L7:L38,T10) -> 1 | V10: =U10/(W4-U11) -> 0.03125 | W10: =IF(V10=0,0,(V10*((LOG(V10))/LOG(2)))) -> -0.15625 | Y10: =N10 -> 122 | Z10: =COUNTIF(L39:L70,Y10) -> 0 | AA10: =Z10/(AB4-Z11) -> 0 | AB10: =IF(AA10=0,0,(AA10*((LOG(AA10))/LOG(2)))) -> 0 | AD10: =N10 -> 122 | AE10: =COUNTIF(L71:L101,AD10) -> 0 | AF10: =AE10/(AG4-AE11) -> 0 | AG10: =IF(AF10=0,0,(AF10*((LOG(AF10))/LOG(2)))) -> 0 | AI10: =N10 -> 122 | AJ10: =COUNTIF(L102:L133,AI10) -> 0 | AK10: =AJ10/(AL4-AJ11) -> 0 | AL10: =IF(AK10=0,0,(AK10*((LOG(AK10))/LOG(2)))) -> 0 | AN10: =N10 -> 122 | AO10: =COUNTIF(L134:L165,AN10) -> 1 | AP10: =AO10/(AQ4-AO11) -> 0.03125 | AQ10: =IF(AP10=0,0,(AP10*((LOG(AP10))/LOG(2)))) -> -0.15625 | AS10: =N10 -> 122 | AT10: =COUNTIF(L166:L197,AS10) -> 1 | AU10: =AT10/(AV4-AT11) -> 0.03225806452 | AV10: =IF(AU10=0,0,(AU10*((LOG(AU10))/LOG(2)))) -> -0.1598127842
A11: 12 | B11: 484 | C11: 13 | D11: 492 | E11: 13 | F11: 500 | K11: 0 | L11: 111 | N11: 211 | O11: =COUNTIF($L$7:$L$500,N11) -> 0 | P11: =O11/$Q$4 -> 0 | Q11: =IF(P11=0,0,(P11*((LOG(P11))/LOG(2)))) -> 0 | T11: =N11 -> 211 | U11: =COUNTIF(L7:L38,T11) -> 0 | Y11: =N11 -> 211 | Z11: =COUNTIF(L39:L70,Y11) -> 0 | AD11: =N11 -> 211 | AE11: =COUNTIF(L71:L101,AD11) -> 0 | AI11: =N11 -> 211 | AJ11: =COUNTIF(L102:L133,AI11) -> 0 | AN11: =N11 -> 211 | AO11: =COUNTIF(L134:L165,AN11) -> 0 | AS11: =N11 -> 211 | AT11: =COUNTIF(L166:L197,AS11) -> 0
A12: 12 | B12: 600 | C12: 13 | D12: 607 | E12: 13 | F12: 613 | K12: 0 | L12: 111 | N12: 212 | O12: =COUNTIF($L$7:$L$500,N12) -> 0 | P12: =O12/$Q$4 -> 0 | Q12: =IF(P12=0,0,(P12*((LOG(P12))/LOG(2)))) -> 0 | T12: =N12 -> 212 | U12: =COUNTIF(L7:L38,T12) -> 0 | V12: =U12/(W4-U11) -> 0 | W12: =IF(V12=0,0,(V12*((LOG(V12))/LOG(2)))) -> 0 | Y12: =N12 -> 212 | Z12: =COUNTIF(L39:L70,Y12) -> 0 | AA12: =Z12/(AB4-Z11) -> 0 | AB12: =IF(AA12=0,0,(AA12*((LOG(AA12))/LOG(2)))) -> 0 | AD12: =N12 -> 212 | AE12: =COUNTIF(L71:L101,AD12) -> 0 | AF12: =AE12/(AG4-AE11) -> 0 | AG12: =IF(AF12=0,0,(AF12*((LOG(AF12))/LOG(2)))) -> 0 | AI12: =N12 -> 212 | AJ12: =COUNTIF(L102:L133,AI12) -> 0 | AK12: =AJ12/(AL4-AJ11) -> 0 | AL12: =IF(AK12=0,0,(AK12*((LOG(AK12))/LOG(2)))) -> 0 | AN12: =N12 -> 212 | AO12: =COUNTIF(L134:L165,AN12) -> 0 | AP12: =AO12/(AQ4-AO11) -> 0 | AQ12: =IF(AP12=0,0,(AP12*((LOG(AP12))/LOG(2)))) -> 0 | AS12: =N12 -> 212 | AT12: =COUNTIF(L166:L197,AS12) -> 0 | AU12: =AT12/(AV4-AT11) -> 0 | AV12: =IF(AU12=0,0,(AU12*((LOG(AU12))/LOG(2)))) -> 0
A13: 12 | B13: 715 | C13: 13 | D13: 720 | E13: 13 | F13: 726 | K13: 0 | L13: 111 | N13: 221 | O13: =COUNTIF($L$7:$L$500,N13) -> 0 | P13: =O13/$Q$4 -> 0 | Q13: =IF(P13=0,0,(P13*((LOG(P13))/LOG(2)))) -> 0 | T13: =N13 -> 221 | U13: =COUNTIF(L7:L38,T13) -> 0 | V13: =U13/(W4-U11) -> 0 | W13: =IF(V13=0,0,(V13*((LOG(V13))/LOG(2)))) -> 0 | Y13: =N13 -> 221 | Z13: =COUNTIF(L39:L70,Y13) -> 0 | AA13: =Z13/(AB4-Z11) -> 0 | AB13: =IF(AA13=0,0,(AA13*((LOG(AA13))/LOG(2)))) -> 0 | AD13: =N13 -> 221 | AE13: =COUNTIF(L71:L101,AD13) -> 0 | AF13: =AE13/(AG4-AE11) -> 0 | AG13: =IF(AF13=0,0,(AF13*((LOG(AF13))/LOG(2)))) -> 0 | AI13: =N13 -> 221 | AJ13: =COUNTIF(L102:L133,AI13) -> 0 | AK13: =AJ13/(AL4-AJ11) -> 0 | AL13: =IF(AK13=0,0,(AK13*((LOG(AK13))/LOG(2)))) -> 0 | AN13: =N13 -> 221 | AO13: =COUNTIF(L134:L165,AN13) -> 0 | AP13: =AO13/(AQ4-AO11) -> 0 | AQ13: =IF(AP13=0,0,(AP13*((LOG(AP13))/LOG(2)))) -> 0 | AS13: =N13 -> 221 | AT13: =COUNTIF(L166:L197,AS13) -> 0 | AU13: =AT13/(AV4-AT11) -> 0 | AV13: =IF(AU13=0,0,(AU13*((LOG(AU13))/LOG(2)))) -> 0
A14: 12 | B14: 834 | C14: 13 | D14: 842 | E14: 13 | F14: 850 | K14: 0 | L14: 111 | N14: 222 | O14: =COUNTIF($L$7:$L$500,N14) -> 0 | P14: =O14/$Q$4 -> 0 | Q14: =IF(P14=0,0,(P14*((LOG(P14))/LOG(2)))) -> 0 | T14: =N14 -> 222 | U14: =COUNTIF(L7:L38,T14) -> 0 | V14: =U14/(W4-U11) -> 0 | W14: =IF(V14=0,0,(V14*((LOG(V14))/LOG(2)))) -> 0 | Y14: =N14 -> 222 | Z14: =COUNTIF(L39:L70,Y14) -> 0 | AA14: =Z14/(AB4-Z11) -> 0 | AB14: =IF(AA14=0,0,(AA14*((LOG(AA14))/LOG(2)))) -> 0 | AD14: =N14 -> 222 | AE14: =COUNTIF(L71:L101,AD14) -> 0 | AF14: =AE14/(AG4-AE11) -> 0 | AG14: =IF(AF14=0,0,(AF14*((LOG(AF14))/LOG(2)))) -> 0 | AI14: =N14 -> 222 | AJ14: =COUNTIF(L102:L133,AI14) -> 0 | AK14: =AJ14/(AL4-AJ11) -> 0 | AL14: =IF(AK14=0,0,(AK14*((LOG(AK14))/LOG(2)))) -> 0 | AN14: =N14 -> 222 | AO14: =COUNTIF(L134:L165,AN14) -> 0 | AP14: =AO14/(AQ4-AO11) -> 0 | AQ14: =IF(AP14=0,0,(AP14*((LOG(AP14))/LOG(2)))) -> 0 | AS14: =N14 -> 222 | AT14: =COUNTIF(L166:L197,AS14) -> 0 | AU14: =AT14/(AV4-AT11) -> 0 | AV14: =IF(AU14=0,0,(AU14*((LOG(AU14))/LOG(2)))) -> 0
A15: 12 | B15: 958 | C15: 13 | D15: 964 | E15: 13 | F15: 970 | K15: 0 | L15: 111 | P15: =SUM(P7:P14) -> 1 | Q15: =-SUM(Q7:Q14) -> 0.2011163573 | V15: =SUM(V7:V14) -> 1 | W15: =-SUM(W7:W14) -> 0.3997900666 | AA15: =SUM(AA7:AA14) -> 1 | AB15: =-SUM(AB7:AB14) -> 0 | AF15: =SUM(AF7:AF14) -> 1 | AG15: =-SUM(AG7:AG14) -> 0 | AK15: =SUM(AK7:AK14) -> 1 | AL15: =-SUM(AL7:AL14) -> 0 | AP15: =SUM(AP7:AP14) -> 1 | AQ15: =-SUM(AQ7:AQ14) -> 0.2006223243 | AU15: =SUM(AU7:AU14) -> 1 | AV15: =-SUM(AV7:AV14) -> 0.409633444
A16: 12 | B16: 1073 | C16: 13 | D16: 1078 | E16: 13 | F16: 1084 | K16: 0 | L16: 111 | P16: U= | Q16: =Q15/(LOG(Q4)/LOG(2)) -> 0.02656805727 | V16: U1= | W16: =W15/(LOG(W4)/LOG(2)) -> 0.07995801332 | AA16: U2= | AB16: =AB15/(LOG(AB4)/LOG(2)) -> 0 | AF16: U3= | AG16: =AG15/(LOG(AG4)/LOG(2)) -> 0 | AK16: U4= | AL16: =AL15/(LOG(AL4)/LOG(2)) -> 0 | AP16: U5= | AQ16: =AQ15/(LOG(AQ4)/LOG(2)) -> 0.04012446486 | AU16: U6= | AV16: =AV15/(LOG(AV4)/LOG(2)) -> 0.0826841365
A17: 12 | B17: 1193 | C17: 13 | D17: 1199 | E17: 13 | F17: 1214 | K17: 0 | L17: 111
A18: 12 | B18: 1322 | C18: 13 | D18: 1327 | E18: 13 | F18: 1334 | K18: 0 | L18: 111
A19: 12 | B19: 1438 | C19: 13 | D19: 1444 | E19: 13 | F19: 1449 | K19: 0 | L19: 111 | N19: Total Target Seq
A20: 12 | B20: 1557 | C20: 13 | D20: 1575 | E20: 24 | F20: 1589 | K20: 0 | L20: 112 | N20: =COUNTIF(L7:L197,G3) -> 0 | P20: 32 | Q20: 32 | R20: 31 | S20: 32 | T20: 32 | U20: 32
A21: 12 | B21: 1696 | C21: 13 | D21: 1701 | E21: 13 | F21: 1707 | K21: 0 | L21: 111 | P21: % of reinforcement given in 6 equal intervals based on number of trials
A22: 12 | B22: 1826 | C22: 13 | D22: 1840 | E22: 13 | F22: 1850 | K22: 0 | L22: 111 | P22: %_1 | Q22: %_2 | R22: %_3 | S22: %_4 | T22: %_5 | U22: %_6
A23: 12 | B23: 1956 | C23: 13 | D23: 1968 | E23: 13 | F23: 1973 | K23: 0 | L23: 111 | O23: target sequence | P23: =$G$3 -> 211 | Q23: =$G$3 -> 211 | R23: =$G$3 -> 211 | S23: =$G$3 -> 211 | T23: =$G$3 -> 211 | U23: =$G$3 -> 211
A24: 12 | B24: 2099 | C24: 24 | D24: 2119 | E24: 24 | F24: 2127 | K24: 0 | L24: 122 | O24: total reinforcement | P24: =U11 -> 0 | Q24: =Z11 -> 0 | R24: =AE11 -> 0 | S24: =AJ11 -> 0 | T24: =AO11 -> 0 | U24: =AT11 -> 0
A25: 12 | B25: 2256 | C25: 13 | D25: 2273 | E25: 13 | F25: 2288 | K25: 0 | L25: 111 | O25: % target
A26: 12 | B26: 2464 | C26: 13 | D26: 2475 | E26: 13 | F26: 2503 | K26: 0 | L26: 111 | O26: CCRF
A27: 12 | B27: 2620 | C27: 13 | D27: 2629 | E27: 13 | F27: 2637 | K27: 0 | L27: 111 | O27: % CCRf
A28: 12 | B28: 2755 | C28: 13 | D28: 2761 | E28: 13 | F28: 2769 | K28: 0 | L28: 111 | O28: average response rate | P28: =F38/P20 -> 125.25 | Q28: =(F70-F38)/Q20 -> 130.375 | R28: =(F101-F70)/R20 -> 123.3225806 | S28: =(F133-F101)/S20 -> 126.0625 | T28: =(F165-F133)/T20 -> 124.03125 | U28: =(F197-F165)/U20 -> -625.1875
A29: 12 | B29: 2872 | C29: 13 | D29: 2878 | E29: 13 | F29: 2887 | K29: 0 | L29: 111
A30: 12 | B30: 2991 | C30: 13 | D30: 2996 | E30: 13 | F30: 3006 | K30: 0 | L30: 111
A31: 12 | B31: 3117 | C31: 13 | D31: 3122 | E31: 13 | F31: 3129 | K31: 0 | L31: 111
A32: 12 | B32: 3235 | C32: 13 | D32: 3242 | E32: 13 | F32: 3247 | K32: 0 | L32: 111
A33: 12 | B33: 3357 | C33: 13 | D33: 3362 | E33: 13 | F33: 3368 | K33: 0 | L33: 111
A34: 12 | B34: 3475 | C34: 13 | D34: 3480 | E34: 13 | F34: 3489 | K34: 0 | L34: 111
A35: 12 | B35: 3598 | C35: 13 | D35: 3607 | E35: 13 | F35: 3614 | K35: 0 | L35: 111
A36: 12 | B36: 3718 | C36: 13 | D36: 3723 | E36: 13 | F36: 3728 | K36: 0 | L36: 111
A37: 12 | B37: 3840 | C37: 13 | D37: 3846 | E37: 13 | F37: 3855 | K37: 0 | L37: 111
A38: 12 | B38: 3993 | C38: 13 | D38: 3998 | E38: 13 | F38: 4008 | K38: 0 | L38: 111
A39: 12 | B39: 4112 | C39: 13 | D39: 4119 | E39: 13 | F39: 4125 | K39: 0 | L39: 111
A40: 12 | B40: 4279 | C40: 13 | D40: 4284 | E40: 13 | F40: 4300 | K40: 0 | L40: 111
A41: 12 | B41: 4403 | C41: 13 | D41: 4416 | E41: 13 | F41: 4424 | K41: 0 | L41: 111
A42: 12 | B42: 4556 | C42: 13 | D42: 4562 | E42: 13 | F42: 4568 | K42: 0 | L42: 111
A43: 12 | B43: 4686 | C43: 13 | D43: 4692 | E43: 13 | F43: 4698 | K43: 0 | L43: 111
A44: 12 | B44: 4805 | C44: 13 | D44: 4816 | E44: 13 | F44: 4826 | K44: 0 | L44: 111
A45: 12 | B45: 4981 | C45: 13 | D45: 4997 | E45: 13 | F45: 5008 | K45: 0 | L45: 111
A46: 12 | B46: 5132 | C46: 13 | D46: 5137 | E46: 13 | F46: 5143 | K46: 0 | L46: 111
A47: 12 | B47: 5244 | C47: 13 | D47: 5256 | E47: 13 | F47: 5265 | K47: 0 | L47: 111
A48: 12 | B48: 5383 | C48: 13 | D48: 5389 | E48: 13 | F48: 5407 | K48: 0 | L48: 111
A49: 12 | B49: 5509 | C49: 13 | D49: 5514 | E49: 13 | F49: 5520 | K49: 0 | L49: 111
A50: 12 | B50: 5620 | C50: 13 | D50: 5632 | E50: 13 | F50: 5638 | K50: 0 | L50: 111
A51: 12 | B51: 5744 | C51: 13 | D51: 5749 | E51: 13 | F51: 5762 | K51: 0 | L51: 111
A52: 12 | B52: 5867 | C52: 13 | D52: 5873 | E52: 13 | F52: 5880 | K52: 0 | L52: 111
A53: 12 | B53: 5993 | C53: 13 | D53: 5998 | E53: 13 | F53: 6010 | K53: 0 | L53: 111
A54: 12 | B54: 6124 | C54: 13 | D54: 6130 | E54: 13 | F54: 6136 | K54: 0 | L54: 111
A55: 12 | B55: 6238 | C55: 13 | D55: 6250 | E55: 13 | F55: 6259 | K55: 0 | L55: 111
A56: 12 | B56: 6381 | C56: 13 | D56: 6386 | E56: 13 | F56: 6394 | K56: 0 | L56: 111
A57: 12 | B57: 6493 | C57: 13 | D57: 6502 | E57: 13 | F57: 6511 | K57: 0 | L57: 111
A58: 12 | B58: 6636 | C58: 13 | D58: 6641 | E58: 13 | F58: 6647 | K58: 0 | L58: 111
A59: 12 | B59: 6781 | C59: 13 | D59: 6792 | E59: 13 | F59: 6800 | K59: 0 | L59: 111
A60: 12 | B60: 6908 | C60: 13 | D60: 6913 | E60: 13 | F60: 6918 | K60: 0 | L60: 111
A61: 12 | B61: 7024 | C61: 13 | D61: 7030 | E61: 13 | F61: 7039 | K61: 0 | L61: 111
A62: 12 | B62: 7138 | C62: 13 | D62: 7159 | E62: 13 | F62: 7165 | K62: 0 | L62: 111
A63: 12 | B63: 7273 | C63: 13 | D63: 7280 | E63: 13 | F63: 7287 | K63: 0 | L63: 111
A64: 12 | B64: 7396 | C64: 13 | D64: 7401 | E64: 13 | F64: 7418 | K64: 0 | L64: 111
A65: 12 | B65: 7538 | C65: 13 | D65: 7544 | E65: 13 | F65: 7549 | K65: 0 | L65: 111
A66: 12 | B66: 7683 | C66: 13 | D66: 7688 | E66: 13 | F66: 7695 | K66: 0 | L66: 111
A67: 12 | B67: 7800 | C67: 13 | D67: 7806 | E67: 13 | F67: 7818 | K67: 0 | L67: 111
A68: 12 | B68: 7918 | C68: 13 | D68: 7930 | E68: 13 | F68: 7937 | K68: 0 | L68: 111
A69: 12 | B69: 8040 | C69: 13 | D69: 8045 | E69: 13 | F69: 8051 | K69: 0 | L69: 111
A70: 12 | B70: 8169 | C70: 13 | D70: 8174 | E70: 13 | F70: 8180 | K70: 0 | L70: 111
A71: 12 | B71: 8287 | C71: 13 | D71: 8292 | E71: 13 | F71: 8298 | K71: 0 | L71: 111
A72: 12 | B72: 8395 | C72: 13 | D72: 8401 | E72: 13 | F72: 8407 | K72: 0 | L72: 111
A73: 12 | B73: 8517 | C73: 13 | D73: 8524 | E73: 13 | F73: 8532 | K73: 0 | L73: 111
A74: 12 | B74: 8633 | C74: 13 | D74: 8638 | E74: 13 | F74: 8643 | K74: 0 | L74: 111
A75: 12 | B75: 8744 | C75: 13 | D75: 8750 | E75: 13 | F75: 8759 | K75: 0 | L75: 111
A76: 12 | B76: 8866 | C76: 13 | D76: 8871 | E76: 13 | F76: 8876 | K76: 0 | L76: 111
A77: 12 | B77: 8977 | C77: 13 | D77: 8982 | E77: 13 | F77: 8990 | K77: 0 | L77: 111
A78: 12 | B78: 9091 | C78: 13 | D78: 9097 | E78: 13 | F78: 9105 | K78: 0 | L78: 111
A79: 12 | B79: 9208 | C79: 13 | D79: 9219 | E79: 13 | F79: 9228 | K79: 0 | L79: 111
A80: 12 | B80: 9338 | C80: 13 | D80: 9343 | E80: 13 | F80: 9348 | K80: 0 | L80: 111
A81: 12 | B81: 9452 | C81: 13 | D81: 9458 | E81: 13 | F81: 9465 | K81: 0 | L81: 111
A82: 12 | B82: 9562 | C82: 13 | D82: 9567 | E82: 13 | F82: 9576 | K82: 0 | L82: 111
A83: 12 | B83: 9680 | C83: 13 | D83: 9690 | E83: 13 | F83: 9696 | K83: 0 | L83: 111
A84: 12 | B84: 9802 | C84: 13 | D84: 9810 | E84: 13 | F84: 9817 | K84: 0 | L84: 111
A85: 12 | B85: 9977 | C85: 13 | D85: 9986 | E85: 13 | F85: 10007 | K85: 0 | L85: 111
A86: 12 | B86: 10111 | C86: 13 | D86: 10118 | E86: 13 | F86: 10123 | K86: 0 | L86: 111
A87: 12 | B87: 10227 | C87: 13 | D87: 10233 | E87: 13 | F87: 10246 | K87: 0 | L87: 111
A88: 12 | B88: 10354 | C88: 13 | D88: 10360 | E88: 13 | F88: 10365 | K88: 0 | L88: 111
A89: 12 | B89: 10465 | C89: 13 | D89: 10471 | E89: 13 | F89: 10478 | K89: 0 | L89: 111
A90: 12 | B90: 10574 | C90: 13 | D90: 10580 | E90: 13 | F90: 10587 | K90: 0 | L90: 111
A91: 12 | B91: 10692 | C91: 13 | D91: 10697 | E91: 13 | F91: 10725 | K91: 0 | L91: 111
A92: 12 | B92: 10832 | C92: 13 | D92: 10838 | E92: 13 | F92: 10847 | K92: 0 | L92: 111
A93: 12 | B93: 10974 | C93: 13 | D93: 10979 | E93: 13 | F93: 10985 | K93: 0 | L93: 111
A94: 12 | B94: 11088 | C94: 13 | D94: 11093 | E94: 13 | F94: 11101 | K94: 0 | L94: 111
A95: 12 | B95: 11227 | C95: 13 | D95: 11232 | E95: 13 | F95: 11237 | K95: 0 | L95: 111
A96: 12 | B96: 11336 | C96: 13 | D96: 11343 | E96: 13 | F96: 11350 | K96: 0 | L96: 111
A97: 12 | B97: 11456 | C97: 13 | D97: 11469 | E97: 13 | F97: 11478 | K97: 0 | L97: 111
A98: 12 | B98: 11591 | C98: 13 | D98: 11600 | E98: 13 | F98: 11608 | K98: 0 | L98: 111
A99: 12 | B99: 11710 | C99: 13 | D99: 11717 | E99: 13 | F99: 11723 | K99: 0 | L99: 111
A100: 12 | B100: 11841 | C100: 13 | D100: 11855 | E100: 13 | F100: 11865 | K100: 0 | L100: 111
A101: 12 | B101: 11985 | C101: 13 | D101: 11992 | E101: 13 | F101: 12003 | K101: 0 | L101: 111
A102: 12 | B102: 12113 | C102: 13 | D102: 12119 | E102: 13 | F102: 12126 | K102: 0 | L102: 111
A103: 12 | B103: 12256 | C103: 13 | D103: 12261 | E103: 13 | F103: 12267 | K103: 0 | L103: 111
A104: 12 | B104: 12367 | C104: 13 | D104: 12373 | E104: 13 | F104: 12379 | K104: 0 | L104: 111
A105: 12 | B105: 12486 | C105: 13 | D105: 12497 | E105: 13 | F105: 12505 | K105: 0 | L105: 111
A106: 12 | B106: 12603 | C106: 13 | D106: 12609 | E106: 13 | F106: 12614 | K106: 0 | L106: 111
A107: 12 | B107: 12717 | C107: 13 | D107: 12722 | E107: 13 | F107: 12727 | K107: 0 | L107: 111
A108: 12 | B108: 12857 | C108: 13 | D108: 12871 | E108: 13 | F108: 12886 | K108: 0 | L108: 111
A109: 12 | B109: 13025 | C109: 13 | D109: 13030 | E109: 13 | F109: 13039 | K109: 0 | L109: 111
A110: 12 | B110: 13161 | C110: 13 | D110: 13169 | E110: 13 | F110: 13175 | K110: 0 | L110: 111
A111: 12 | B111: 13276 | C111: 13 | D111: 13282 | E111: 13 | F111: 13287 | K111: 0 | L111: 111
A112: 12 | B112: 13393 | C112: 13 | D112: 13398 | E112: 13 | F112: 13405 | K112: 0 | L112: 111
A113: 12 | B113: 13507 | C113: 13 | D113: 13521 | E113: 13 | F113: 13529 | K113: 0 | L113: 111
A114: 12 | B114: 13638 | C114: 13 | D114: 13643 | E114: 13 | F114: 13659 | K114: 0 | L114: 111
A115: 12 | B115: 13766 | C115: 13 | D115: 13777 | E115: 13 | F115: 13785 | K115: 0 | L115: 111
A116: 12 | B116: 13902 | C116: 13 | D116: 13908 | E116: 13 | F116: 13920 | K116: 0 | L116: 111
A117: 12 | B117: 14039 | C117: 13 | D117: 14057 | E117: 13 | F117: 14062 | K117: 0 | L117: 111
A118: 12 | B118: 14169 | C118: 13 | D118: 14191 | E118: 13 | F118: 14198 | K118: 0 | L118: 111
A119: 12 | B119: 14310 | C119: 13 | D119: 14316 | E119: 13 | F119: 14321 | K119: 0 | L119: 111
A120: 12 | B120: 14423 | C120: 13 | D120: 14429 | E120: 13 | F120: 14434 | K120: 0 | L120: 111
A121: 12 | B121: 14536 | C121: 13 | D121: 14542 | E121: 13 | F121: 14547 | K121: 0 | L121: 111
A122: 12 | B122: 14649 | C122: 13 | D122: 14663 | E122: 13 | F122: 14672 | K122: 0 | L122: 111
A123: 12 | B123: 14772 | C123: 13 | D123: 14785 | E123: 13 | F123: 14793 | K123: 0 | L123: 111
A124: 12 | B124: 14895 | C124: 13 | D124: 14900 | E124: 13 | F124: 14906 | K124: 0 | L124: 111
A125: 12 | B125: 15005 | C125: 13 | D125: 15011 | E125: 13 | F125: 15017 | K125: 0 | L125: 111
A126: 12 | B126: 15117 | C126: 13 | D126: 15130 | E126: 13 | F126: 15137 | K126: 0 | L126: 111
A127: 12 | B127: 15302 | C127: 13 | D127: 15311 | E127: 13 | F127: 15320 | K127: 0 | L127: 111
A128: 12 | B128: 15418 | C128: 13 | D128: 15426 | E128: 13 | F128: 15432 | K128: 0 | L128: 111
A129: 12 | B129: 15538 | C129: 13 | D129: 15547 | E129: 13 | F129: 15556 | K129: 0 | L129: 111
A130: 12 | B130: 15660 | C130: 13 | D130: 15670 | E130: 13 | F130: 15679 | K130: 0 | L130: 111
A131: 12 | B131: 15794 | C131: 13 | D131: 15802 | E131: 13 | F131: 15808 | K131: 0 | L131: 111
A132: 12 | B132: 15910 | C132: 13 | D132: 15915 | E132: 13 | F132: 15924 | K132: 0 | L132: 111
A133: 12 | B133: 16025 | C133: 13 | D133: 16031 | E133: 13 | F133: 16037 | K133: 0 | L133: 111
A134: 12 | B134: 16138 | C134: 13 | D134: 16144 | E134: 13 | F134: 16154 | K134: 0 | L134: 111
A135: 12 | B135: 16256 | C135: 13 | D135: 16261 | E135: 13 | F135: 16269 | K135: 0 | L135: 111
A136: 12 | B136: 16367 | C136: 13 | D136: 16372 | E136: 13 | F136: 16385 | K136: 0 | L136: 111
A137: 12 | B137: 16507 | C137: 13 | D137: 16512 | E137: 13 | F137: 16518 | K137: 0 | L137: 111
A138: 12 | B138: 16628 | C138: 13 | D138: 16634 | E138: 13 | F138: 16642 | K138: 0 | L138: 111
A139: 12 | B139: 16743 | C139: 13 | D139: 16748 | E139: 13 | F139: 16753 | K139: 0 | L139: 111
A140: 12 | B140: 16859 | C140: 13 | D140: 16866 | E140: 13 | F140: 16875 | K140: 0 | L140: 111
A141: 12 | B141: 16979 | C141: 13 | D141: 16984 | E141: 13 | F141: 16990 | K141: 0 | L141: 111
A142: 12 | B142: 17089 | C142: 13 | D142: 17096 | E142: 13 | F142: 17113 | K142: 0 | L142: 111
A143: 12 | B143: 17217 | C143: 13 | D143: 17223 | E143: 13 | F143: 17230 | K143: 0 | L143: 111
A144: 12 | B144: 17324 | C144: 13 | D144: 17329 | E144: 13 | F144: 17336 | K144: 0 | L144: 111
A145: 12 | B145: 17460 | C145: 13 | D145: 17466 | E145: 13 | F145: 17472 | K145: 0 | L145: 111
A146: 12 | B146: 17577 | C146: 13 | D146: 17582 | E146: 13 | F146: 17588 | K146: 0 | L146: 111
A147: 12 | B147: 17699 | C147: 13 | D147: 17708 | E147: 13 | F147: 17716 | K147: 0 | L147: 111
A148: 12 | B148: 17817 | C148: 13 | D148: 17823 | E148: 13 | F148: 17829 | K148: 0 | L148: 111
A149: 12 | B149: 17935 | C149: 13 | D149: 17940 | E149: 13 | F149: 17947 | K149: 0 | L149: 111
A150: 12 | B150: 18049 | C150: 13 | D150: 18061 | E150: 13 | F150: 18070 | K150: 0 | L150: 111
A151: 12 | B151: 18171 | C151: 13 | D151: 18183 | E151: 13 | F151: 18191 | K151: 0 | L151: 111
A152: 12 | B152: 18331 | C152: 13 | D152: 18355 | E152: 13 | F152: 18379 | K152: 0 | L152: 111
A153: 12 | B153: 18505 | C153: 13 | D153: 18511 | E153: 13 | F153: 18523 | K153: 0 | L153: 111
A154: 12 | B154: 18623 | C154: 13 | D154: 18628 | E154: 13 | F154: 18637 | K154: 0 | L154: 111
A155: 12 | B155: 18745 | C155: 24 | D155: 18767 | E155: 24 | F155: 18773 | K155: 0 | L155: 122
A156: 12 | B156: 18884 | C156: 13 | D156: 18909 | E156: 13 | F156: 18915 | K156: 0 | L156: 111
A157: 12 | B157: 19020 | C157: 13 | D157: 19034 | E157: 13 | F157: 19049 | K157: 0 | L157: 111
A158: 12 | B158: 19181 | C158: 13 | D158: 19192 | E158: 13 | F158: 19200 | K158: 0 | L158: 111
A159: 12 | B159: 19305 | C159: 13 | D159: 19313 | E159: 13 | F159: 19321 | K159: 0 | L159: 111
A160: 12 | B160: 19425 | C160: 13 | D160: 19430 | E160: 13 | F160: 19436 | K160: 0 | L160: 111
A161: 12 | B161: 19537 | C161: 13 | D161: 19543 | E161: 13 | F161: 19549 | K161: 0 | L161: 111
A162: 12 | B162: 19650 | C162: 13 | D162: 19661 | E162: 13 | F162: 19666 | K162: 0 | L162: 111
A163: 12 | B163: 19765 | C163: 13 | D163: 19769 | E163: 13 | F163: 19774 | K163: 0 | L163: 111
A164: 12 | B164: 19873 | C164: 13 | D164: 19877 | E164: 13 | F164: 19883 | K164: 0 | L164: 111
A165: 12 | B165: 19985 | C165: 13 | D165: 19997 | E165: 13 | F165: 20006 | K165: 0 | L165: 111
A166: 12 | B166: 20114 | C166: 13 | D166: 20119 | E166: 13 | F166: 20125 | K166: 0 | L166: 111
A167: 12 | B167: 20235 | C167: 13 | D167: 20244 | E167: 13 | F167: 20250 | K167: 0 | L167: 111
A168: 12 | B168: 20351 | C168: 13 | D168: 20357 | E168: 13 | F168: 20362 | K168: 0 | L168: 111
A169: 12 | B169: 20462 | C169: 13 | D169: 20468 | E169: 13 | F169: 20495 | K169: 0 | L169: 111
A170: 12 | B170: 20603 | C170: 13 | D170: 20609 | E170: 13 | F170: 20616 | K170: 0 | L170: 111
A171: 12 | B171: 20715 | C171: 13 | D171: 20722 | E171: 24 | F171: 20733 | K171: 0 | L171: 112
A172: 12 | B172: 20838 | C172: 13 | D172: 20844 | E172: 13 | F172: 20850 | K172: 0 | L172: 111
A173: 12 | B173: 20954 | C173: 13 | D173: 20964 | E173: 13 | F173: 20970 | K173: 0 | L173: 111
A174: 12 | B174: 21071 | C174: 13 | D174: 21079 | E174: 13 | F174: 21084 | K174: 0 | L174: 111
A175: 12 | B175: 21183 | C175: 13 | D175: 21194 | E175: 13 | F175: 21203 | K175: 0 | L175: 111
A176: 12 | B176: 21314 | C176: 13 | D176: 21324 | E176: 13 | F176: 21332 | K176: 0 | L176: 111
A177: 12 | B177: 21439 | C177: 13 | D177: 21451 | E177: 13 | F177: 21466 | K177: 0 | L177: 111
A178: 12 | B178: 21573 | C178: 13 | D178: 21584 | E178: 13 | F178: 21591 | K178: 0 | L178: 111
A179: 12 | B179: 21728 | C179: 13 | D179: 21733 | E179: 13 | F179: 21739 | K179: 0 | L179: 111
A180: 12 | B180: 21838 | C180: 13 | D180: 21844 | E180: 13 | F180: 21850 | K180: 0 | L180: 111
A181: 12 | B181: 21958 | C181: 13 | D181: 21964 | E181: 13 | F181: 21969 | K181: 0 | L181: 111
A182: 12 | B182: 22077 | C182: 13 | D182: 22082 | E182: 13 | F182: 22088 | K182: 0 | L182: 111
A183: 12 | B183: 22192 | C183: 13 | D183: 22198 | E183: 13 | F183: 22204 | K183: 0 | L183: 111
A184: 12 | B184: 22351 | C184: 13 | D184: 22359 | E184: 13 | F184: 22368 | K184: 0 | L184: 111
A185: 12 | B185: 22476 | C185: 13 | D185: 22486 | E185: 13 | F185: 22495 | K185: 0 | L185: 111
A186: 12 | B186: 22600 | C186: 13 | D186: 22611 | E186: 13 | F186: 22619 | K186: 0 | L186: 111
A187: 12 | B187: 22731 | C187: 13 | D187: 22745 | E187: 13 | F187: 22753 | K187: 0 | L187: 111
A188: 12 | B188: 22871 | C188: 13 | D188: 22881 | E188: 13 | F188: 22888 | K188: 0 | L188: 111
A189: 12 | B189: 22998 | C189: 13 | D189: 23003 | E189: 13 | F189: 23010 | K189: 0 | L189: 111
A190: 12 | B190: 23116 | C190: 13 | D190: 23121 | E190: 13 | F190: 23129 | K190: 0 | L190: 111
A191: 12 | B191: 23247 | C191: 13 | D191: 23253 | E191: 13 | F191: 23271 | K191: 0 | L191: 111
A192: 12 | B192: 23373 | C192: 13 | D192: 23382 | E192: 13 | F192: 23387 | K192: 0 | L192: 111
A193: 12 | B193: 23486 | C193: 13 | D193: 23492 | E193: 13 | F193: 23504 | K193: 0 | L193: 111
A194: 12 | B194: 23604 | C194: 13 | D194: 23615 | E194: 13 | F194: 23621 | K194: 0 | L194: 111
A195: 12 | B195: 23731 | C195: 24 | D195: 23749 | E195: 24 | F195: 23772 | K195: 0 | L195: 122
A196: 12 | B196: 23875 | C196: 13 | D196: 23888 | E196: 13 | F196: 23897 | K196: 0 | L196: 111
A197: 12 | B197: 24001 | L197: 1

Sheet !N408850.010
A1: Report for:!N408850.010
A2: Date: | B2: <date>
A3: Hen: | B3: <hen> | F3: Correct Sequence | G3: =Start!J2 -> 211 | P3: Total Sequences in Data | Q3: =4994-COUNTBLANK(L7:L5000) -> 197 | V3: Total Sequences in Block Data | W3: =COUNTA(L7:L39) -> 33 | AA3: Total Sequences in Block Data | AB3: =COUNTA(L40:L72) -> 33 | AF3: Total Sequences in Block Data | AG3: =COUNTA(L73:L104) -> 32 | AK3: Total Sequences in Block Data | AL3: =COUNTA(L105:L137) -> 33 | AP3: Total Sequences in Block Data | AQ3: =COUNTA(L138:L170) -> 33 | AU3: Total Sequences in Block Data | AV3: =COUNTA(L171:L203) -> 33
P4: Total Sequences in Summary | Q4: =SUM(O7:O14) -> 197 | V4: Total Sequences in Block Summary | W4: =SUM(U7:U14) -> 33 | AA4: Total Sequences in Block Summary | AB4: =SUM(Z7:Z14) -> 33 | AF4: Total Sequences in Block Summary | AG4: =SUM(AE7:AE14) -> 32 | AK4: Total Sequences in Block Summary | AL4: =SUM(AJ7:AJ14) -> 33 | AP4: Total Sequences in Block Summary | AQ4: =SUM(AO7:AO14) -> 33 | AU4: Total Sequences in Block Summary | AV4: =SUM(AT7:AT14) -> 33
T5: Block 1 | Y5: Block 2 | AD5: Block 3 | AI5: Block 4 | AN5: Block 5 | AS5: Block 6
A6: Sequence Component 1 | B6: Time 1 | C6: Sequence Component 2 | D6: Time 2 | E6: Sequence Component 3 | F6: Time 3 | G6: Sequence Component 4 | H6: Time 4 | I6: Sequence Component 5 | J6: Time 5 | K6: Correct? 0=No 1=Yes | L6: Sequence | N6: Frequency | P6: Relative Frequency | Q6: Variability | T6: Frequency | V6: Relative Frequency | W6: Variability | Y6: Frequency | AA6: Relative Frequency | AB6: Variability | AD6: Frequency | AF6: Relative Frequency | AG6: Variability | AI6: Frequency | AK6: Relative Frequency | AL6: Variability | AN6: Frequency | AP6: Relative Frequency | AQ6: Variability | AS6: Frequency | AU6: Relative Frequency | AV6: Variability
A7: 12 | B7: 7 | C7: 13 | D7: 17 | E7: 13 | F7: 24 | K7: 0 | L7: 111 | N7: 111 | O7: =COUNTIF($L$7:$L$500,N7) -> 194 | P7: =O7/$Q$4 -> 0.9847715736 | Q7: =IF(P7=0,0,(P7*((LOG(P7))/LOG(2)))) -> -0.02180183548 | T7: =N7 -> 111 | U7: =COUNTIF(L7:L39,T7) -> 33 | V7: =U7/(W4-U11) -> 1 | W7: =IF(V7=0,0,(V7*((LOG(V7))/LOG(2)))) -> 0 | Y7: =N7 -> 111 | Z7: =COUNTIF(L40:L72,Y7) -> 33 | AA7: =Z7/(AB4-Z11) -> 1 | AB7: =IF(AA7=0,0,(AA7*((LOG(AA7))/LOG(2)))) -> 0 | AD7: =N7 -> 111 | AE7: =COUNTIF(L73:L104,AD7) -> 31 | AF7: =AE7/(AG4-AE11) -> 0.96875 | AG7: =IF(AF7=0,0,(AF7*((LOG(AF7))/LOG(2)))) -> -0.04437232431 | AI7: =N7 -> 111 | AJ7: =COUNTIF(L105:L137,AI7) -> 32 | AK7: =AJ7/(AL4-AJ11) -> 0.9696969697 | AL7: =IF(AK7=0,0,(AK7*((LOG(AK7))/LOG(2)))) -> -0.04304884301 | AN7: =N7 -> 111 | AO7: =COUNTIF(L138:L170,AN7) -> 33 | AP7: =AO7/(AQ4-AO11) -> 1 | AQ7: =IF(AP7=0,0,(AP7*((LOG(AP7))/LOG(2)))) -> 0 | AS7: =N7 -> 111 | AT7: =COUNTIF(L171:L203,AS7) -> 32 | AU7: =AT7/(AV4-AT11) -> 0.9696969697 | AV7: =IF(AU7=0,0,(AU7*((LOG(AU7))/LOG(2)))) -> -0.04304884301
A8: 12 | B8: 126 | C8: 13 | D8: 135 | E8: 13 | F8: 144 | K8: 0 | L8: 111 | N8: 112 | O8: =COUNTIF($L$7:$L$500,N8) -> 0 | P8: =O8/$Q$4 -> 0 | Q8: =IF(P8=0,0,(P8*((LOG(P8))/LOG(2)))) -> 0 | T8: =N8 -> 112 | U8: =COUNTIF(L7:L39,T8) -> 0 | V8: =U8/(W4-U11) -> 0 | W8: =IF(V8=0,0,(V8*((LOG(V8))/LOG(2)))) -> 0 | Y8: =N8 -> 112 | Z8: =COUNTIF(L40:L72,Y8) -> 0 | AA8: =Z8/(AB4-Z11) -> 0 | AB8: =IF(AA8=0,0,(AA8*((LOG(AA8))/LOG(2)))) -> 0 | AD8: =N8 -> 112 | AE8: =COUNTIF(L73:L104,AD8) -> 0 | AF8: =AE8/(AG4-AE11) -> 0 | AG8: =IF(AF8=0,0,(AF8*((LOG(AF8))/LOG(2)))) -> 0 | AI8: =N8 -> 112 | AJ8: =COUNTIF(L105:L137,AI8) -> 0 | AK8: =AJ8/(AL4-AJ11) -> 0 | AL8: =IF(AK8=0,0,(AK8*((LOG(AK8))/LOG(2)))) -> 0 | AN8: =N8 -> 112 | AO8: =COUNTIF(L138:L170,AN8) -> 0 | AP8: =AO8/(AQ4-AO11) -> 0 | AQ8: =IF(AP8=0,0,(AP8*((LOG(AP8))/LOG(2)))) -> 0 | AS8: =N8 -> 112 | AT8: =COUNTIF(L171:L203,AS8) -> 0 | AU8: =AT8/(AV4-AT11) -> 0 | AV8: =IF(AU8=0,0,(AU8*((LOG(AU8))/LOG(2)))) -> 0
A9: 12 | B9: 250 | C9: 13 | D9: 256 | E9: 13 | F9: 261 | K9: 0 | L9: 111 | N9: 121 | O9: =COUNTIF($L$7:$L$500,N9) -> 0 | P9: =O9/$Q$4 -> 0 | Q9: =IF(P9=0,0,(P9*((LOG(P9))/LOG(2)))) -> 0 | T9: =N9 -> 121 | U9: =COUNTIF(L7:L39,T9) -> 0 | V9: =U9/(W4-U11) -> 0 | W9: =IF(V9=0,0,(V9*((LOG(V9))/LOG(2)))) -> 0 | Y9: =N9 -> 121 | Z9: =COUNTIF(L40:L72,Y9) -> 0 | AA9: =Z9/(AB4-Z11) -> 0 | AB9: =IF(AA9=0,0,(AA9*((LOG(AA9))/LOG(2)))) -> 0 | AD9: =N9 -> 121 | AE9: =COUNTIF(L73:L104,AD9) -> 0 | AF9: =AE9/(AG4-AE11) -> 0 | AG9: =IF(AF9=0,0,(AF9*((LOG(AF9))/LOG(2)))) -> 0 | AI9: =N9 -> 121 | AJ9: =COUNTIF(L105:L137,AI9) -> 0 | AK9: =AJ9/(AL4-AJ11) -> 0 | AL9: =IF(AK9=0,0,(AK9*((LOG(AK9))/LOG(2)))) -> 0 | AN9: =N9 -> 121 | AO9: =COUNTIF(L138:L170,AN9) -> 0 | AP9: =AO9/(AQ4-AO11) -> 0 | AQ9: =IF(AP9=0,0,(AP9*((LOG(AP9))/LOG(2)))) -> 0 | AS9: =N9 -> 121 | AT9: =COUNTIF(L171:L203,AS9) -> 0 | AU9: =AT9/(AV4-AT11) -> 0 | AV9: =IF(AU9=0,0,(AU9*((LOG(AU9))/LOG(2)))) -> 0
A10: 12 | B10: 364 | C10: 13 | D10: 382 | E10: 13 | F10: 389 | K10: 0 | L10: 111 | N10: 122 | O10: =COUNTIF($L$7:$L$500,N10) -> 3 | P10: =O10/$Q$4 -> 0.0152284264 | Q10: =IF(P10=0,0,(P10*((LOG(P10))/LOG(2)))) -> -0.09193537034 | T10: =N10 -> 122 | U10: =COUNTIF(L7:L39,T10) -> 0 | V10: =U10/(W4-U11) -> 0 | W10: =IF(V10=0,0,(V10*((LOG(V10))/LOG(2)))) -> 0 | Y10: =N10 -> 122 | Z10: =COUNTIF(L40:L72,Y10) -> 0 | AA10: =Z10/(AB4-Z11) -> 0 | AB10: =IF(AA10=0,0,(AA10*((LOG(AA10))/LOG(2)))) -> 0 | AD10: =N10 -> 122 | AE10: =COUNTIF(L73:L104,AD10) -> 1 | AF10: =AE10/(AG4-AE11) -> 0.03125 | AG10: =IF(AF10=0,0,(AF10*((LOG(AF10))/LOG(2)))) -> -0.15625 | AI10: =N10 -> 122 | AJ10: =COUNTIF(L105:L137,AI10) -> 1 | AK10: =AJ10/(AL4-AJ11) -> 0.0303030303 | AL10: =IF(AK10=0,0,(AK10*((LOG(AK10))/LOG(2)))) -> -0.1528604279 | AN10: =N10 -> 122 | AO10: =COUNTIF(L138:L170,AN10) -> 0 | AP10: =AO10/(AQ4-AO11) -> 0 | AQ10: =IF(AP10=0,0,(AP10*((LOG(AP10))/LOG(2)))) -> 0 | AS10: =N10 -> 122 | AT10: =COUNTIF(L171:L203,AS10) -> 1 | AU10: =AT10/(AV4-AT11) -> 0.0303030303 | AV10: =IF(AU10=0,0,(AU10*((LOG(AU10))/LOG(2)))) -> -0.1528604279
A11: 12 | B11: 503 | C11: 13 | D11: 509 | E11: 13 | F11: 518 | K11: 0 | L11: 111 | N11: 211 | O11: =COUNTIF($L$7:$L$500,N11) -> 0 | P11: =O11/$Q$4 -> 0 | Q11: =IF(P11=0,0,(P11*((LOG(P11))/LOG(2)))) -> 0 | T11: =N11 -> 211 | U11: =COUNTIF(L7:L39,T11) -> 0 | Y11: =N11 -> 211 | Z11: =COUNTIF(L40:L72,Y11) -> 0 | AD11: =N11 -> 211 | AE11: =COUNTIF(L73:L104,AD11) -> 0 | AI11: =N11 -> 211 | AJ11: =COUNTIF(L105:L137,AI11) -> 0 | AN11: =N11 -> 211 | AO11: =COUNTIF(L138:L170,AN11) -> 0 | AS11: =N11 -> 211 | AT11: =COUNTIF(L171:L203,AS11) -> 0
A12: 12 | B12: 627 | C12: 13 | D12: 634 | E12: 13 | F12: 641 | K12: 0 | L12: 111 | N12: 212 | O12: =COUNTIF($L$7:$L$500,N12) -> 0 | P12: =O12/$Q$4 -> 0 | Q12: =IF(P12=0,0,(P12*((LOG(P12))/LOG(2)))) -> 0 | T12: =N12 -> 212 | U12: =COUNTIF(L7:L39,T12) -> 0 | V12: =U12/(W4-U11) -> 0 | W12: =IF(V12=0,0,(V12*((LOG(V12))/LOG(2)))) -> 0 | Y12: =N12 -> 212 | Z12: =COUNTIF(L40:L72,Y12) -> 0 | AA12: =Z12/(AB4-Z11) -> 0 | AB12: =IF(AA12=0,0,(AA12*((LOG(AA12))/LOG(2)))) -> 0 | AD12: =N12 -> 212 | AE12: =COUNTIF(L73:L104,AD12) -> 0 | AF12: =AE12/(AG4-AE11) -> 0 | AG12: =IF(AF12=0,0,(AF12*((LOG(AF12))/LOG(2)))) -> 0 | AI12: =N12 -> 212 | AJ12: =COUNTIF(L105:L137,AI12) -> 0 | AK12: =AJ12/(AL4-AJ11) -> 0 | AL12: =IF(AK12=0,0,(AK12*((LOG(AK12))/LOG(2)))) -> 0 | AN12: =N12 -> 212 | AO12: =COUNTIF(L138:L170,AN12) -> 0 | AP12: =AO12/(AQ4-AO11) -> 0 | AQ12: =IF(AP12=0,0,(AP12*((LOG(AP12))/LOG(2)))) -> 0 | AS12: =N12 -> 212 | AT12: =COUNTIF(L171:L203,AS12) -> 0 | AU12: =AT12/(AV4-AT11) -> 0 | AV12: =IF(AU12=0,0,(AU12*((LOG(AU12))/LOG(2)))) -> 0
A13: 12 | B13: 749 | C13: 13 | D13: 756 | E13: 13 | F13: 770 | K13: 0 | L13: 111 | N13: 221 | O13: =COUNTIF($L$7:$L$500,N13) -> 0 | P13: =O13/$Q$4 -> 0 | Q13: =IF(P13=0,0,(P13*((LOG(P13))/LOG(2)))) -> 0 | T13: =N13 -> 221 | U13: =COUNTIF(L7:L39,T13) -> 0 | V13: =U13/(W4-U11) -> 0 | W13: =IF(V13=0,0,(V13*((LOG(V13))/LOG(2)))) -> 0 | Y13: =N13 -> 221 | Z13: =COUNTIF(L40:L72,Y13) -> 0 | AA13: =Z13/(AB4-Z11) -> 0 | AB13: =IF(AA13=0,0,(AA13*((LOG(AA13))/LOG(2)))) -> 0 | AD13: =N13 -> 221 | AE13: =COUNTIF(L73:L104,AD13) -> 0 | AF13: =AE13/(AG4-AE11) -> 0 | AG13: =IF(AF13=0,0,(AF13*((LOG(AF13))/LOG(2)))) -> 0 | AI13: =N13 -> 221 | AJ13: =COUNTIF(L105:L137,AI13) -> 0 | AK13: =AJ13/(AL4-AJ11) -> 0 | AL13: =IF(AK13=0,0,(AK13*((LOG(AK13))/LOG(2)))) -> 0 | AN13: =N13 -> 221 | AO13: =COUNTIF(L138:L170,AN13) -> 0 | AP13: =AO13/(AQ4-AO11) -> 0 | AQ13: =IF(AP13=0,0,(AP13*((LOG(AP13))/LOG(2)))) -> 0 | AS13: =N13 -> 221 | AT13: =COUNTIF(L171:L203,AS13) -> 0 | AU13: =AT13/(AV4-AT11) -> 0 | AV13: =IF(AU13=0,0,(AU13*((LOG(AU13))/LOG(2)))) -> 0
A14: 12 | B14: 877 | C14: 13 | D14: 883 | E14: 13 | F14: 892 | K14: 0 | L14: 111 | N14: 222 | O14: =COUNTIF($L$7:$L$500,N14) -> 0 | P14: =O14/$Q$4 -> 0 | Q14: =IF(P14=0,0,(P14*((LOG(P14))/LOG(2)))) -> 0 | T14: =N14 -> 222 | U14: =COUNTIF(L7:L39,T14) -> 0 | V14: =U14/(W4-U11) -> 0 | W14: =IF(V14=0,0,(V14*((LOG(V14))/LOG(2)))) -> 0 | Y14: =N14 -> 222 | Z14: =COUNTIF(L40:L72,Y14) -> 0 | AA14: =Z14/(AB4-Z11) -> 0 | AB14: =IF(AA14=0,0,(AA14*((LOG(AA14))/LOG(2)))) -> 0 | AD14: =N14 -> 222 | AE14: =COUNTIF(L73:L104,AD14) -> 0 | AF14: =AE14/(AG4-AE11) -> 0 | AG14: =IF(AF14=0,0,(AF14*((LOG(AF14))/LOG(2)))) -> 0 | AI14: =N14 -> 222 | AJ14: =COUNTIF(L105:L137,AI14) -> 0 | AK14: =AJ14/(AL4-AJ11) -> 0 | AL14: =IF(AK14=0,0,(AK14*((LOG(AK14))/LOG(2)))) -> 0 | AN14: =N14 -> 222 | AO14: =COUNTIF(L138:L170,AN14) -> 0 | AP14: =AO14/(AQ4-AO11) -> 0 | AQ14: =IF(AP14=0,0,(AP14*((LOG(AP14))/LOG(2)))) -> 0 | AS14: =N14 -> 222 | AT14: =COUNTIF(L171:L203,AS14) -> 0 | AU14: =AT14/(AV4-AT11) -> 0 | AV14: =IF(AU14=0,0,(AU14*((LOG(AU14))/LOG(2)))) -> 0
A15: 12 | B15: 1004 | C15: 13 | D15: 1010 | E15: 13 | F15: 1017 | K15: 0 | L15: 111 | P15: =SUM(P7:P14) -> 1 | Q15: =-SUM(Q7:Q14) -> 0.1137372058 | V15: =SUM(V7:V14) -> 1 | W15: =-SUM(W7:W14) -> 0 | AA15: =SUM(AA7:AA14) -> 1 | AB15: =-SUM(AB7:AB14) -> 0 | AF15: =SUM(AF7:AF14) -> 1 | AG15: =-SUM(AG7:AG14) -> 0.2006223243 | AK15: =SUM(AK7:AK14) -> 1 | AL15: =-SUM(AL7:AL14) -> 0.1959092709 | AP15: =SUM(AP7:AP14) -> 1 | AQ15: =-SUM(AQ7:AQ14) -> 0 | AU15: =SUM(AU7:AU14) -> 1 | AV15: =-SUM(AV7:AV14) -> 0.1959092709
A16: 12 | B16: 1121 | C16: 13 | D16: 1128 | E16: 13 | F16: 1136 | K16: 0 | L16: 111 | P16: U= | Q16: =Q15/(LOG(Q4)/LOG(2)) -> 0.01492212445 | V16: U1= | W16: =W15/(LOG(W4)/LOG(2)) -> 0 | AA16: U2= | AB16: =AB15/(LOG(AB4)/LOG(2)) -> 0 | AF16: U3= | AG16: =AG15/(LOG(AG4)/LOG(2)) -> 0.04012446486 | AK16: U4= | AL16: =AL15/(LOG(AL4)/LOG(2)) -> 0.03883702705 | AP16: U5= | AQ16: =AQ15/(LOG(AQ4)/LOG(2)) -> 0 | AU16: U6= | AV16: =AV15/(LOG(AV4)/LOG(2)) -> 0.03883702705
A17: 12 | B17: 1240 | C17: 13 | D17: 1245 | E17: 13 | F17: 1252 | K17: 0 | L17: 111
A18: 12 | B18: 1351 | C18: 13 | D18: 1358 | E18: 13 | F18: 1364 | K18: 0 | L18: 111
A19: 12 | B19: 1464 | C19: 13 | D19: 1470 | E19: 13 | F19: 1476 | K19: 0 | L19: 111 | N19: Total Target Seq
A20: 12 | B20: 1580 | C20: 13 | D20: 1593 | E20: 13 | F20: 1601 | K20: 0 | L20: 111 | N20: =COUNTIF(L7:L203,G3) -> 0 | P20: 33 | Q20: 33 | R20: 32 | S20: 33 | T20: 33 | U20: 33
A21: 12 | B21: 1698 | C21: 13 | D21: 1704 | E21: 13 | F21: 1721 | K21: 0 | L21: 111 | P21: % of reinforcement given in 6 equal intervals based on number of trials
A22: 12 | B22: 1840 | C22: 13 | D22: 1846 | E22: 13 | F22: 1854 | K22: 0 | L22: 111 | P22: %_1 | Q22: %_2 | R22: %_3 | S22: %_4 | T22: %_5 | U22: %_6
A23: 12 | B23: 1957 | C23: 13 | D23: 1962 | E23: 13 | F23: 1969 | K23: 0 | L23: 111 | O23: target sequence | P23: =$G$3 -> 211 | Q23: =$G$3 -> 211 | R23: =$G$3 -> 211 | S23: =$G$3 -> 211 | T23: =$G$3 -> 211 | U23: =$G$3 -> 211
A24: 12 | B24: 2074 | C24: 13 | D24: 2080 | E24: 13 | F24: 2086 | K24: 0 | L24: 111 | O24: total reinforcement | P24: =U11 -> 0 | Q24: =Z11 -> 0 | R24: =AE11 -> 0 | S24: =AJ11 -> 0 | T24: =AO11 -> 0 | U24: =AT11 -> 0
A25: 12 | B25: 2194 | C25: 13 | D25: 2202 | E25: 13 | F25: 2208 | K25: 0 | L25: 111 | O25: % target
A26: 12 | B26: 2308 | C26: 13 | D26: 2314 | E26: 13 | F26: 2321 | K26: 0 | L26: 111 | O26: CCRF
A27: 12 | B27: 2427 | C27: 13 | D27: 2433 | E27: 13 | F27: 2452 | K27: 0 | L27: 111 | O27: % CCRf
A28: 12 | B28: 2571 | C28: 13 | D28: 2577 | E28: 13 | F28: 2585 | K28: 0 | L28: 111 | O28: average response rate | P28: =F39/P20 -> 120 | Q28: =(F72-F39)/Q20 -> 122.0909091 | R28: =(F104-F72)/R20 -> 123.15625 | S28: =(F137-F104)/S20 -> 120.6060606 | T28: =(F170-F137)/T20 -> 121.4848485 | U28: =(F203-F170)/U20 -> 122.0909091
A29: 12 | B29: 2695 | C29: 13 | D29: 2700 | E29: 13 | F29: 2714 | K29: 0 | L29: 111
A30: 12 | B30: 2818 | C30: 13 | D30: 2824 | E30: 13 | F30: 2830 | K30: 0 | L30: 111
A31: 12 | B31: 2946 | C31: 13 | D31: 2951 | E31: 13 | F31: 2957 | K31: 0 | L31: 111
A32: 12 | B32: 3078 | C32: 13 | D32: 3084 | E32: 13 | F32: 3089 | K32: 0 | L32: 111
A33: 12 | B33: 3200 | C33: 13 | D33: 3206 | E33: 13 | F33: 3212 | K33: 0 | L33: 111
A34: 12 | B34: 3316 | C34: 13 | D34: 3322 | E34: 13 | F34: 3328 | K34: 0 | L34: 111
A35: 12 | B35: 3430 | C35: 13 | D35: 3437 | E35: 13 | F35: 3442 | K35: 0 | L35: 111
A36: 12 | B36: 3580 | C36: 13 | D36: 3588 | E36: 13 | F36: 3596 | K36: 0 | L36: 111
A37: 12 | B37: 3709 | C37: 13 | D37: 3716 | E37: 13 | F37: 3726 | K37: 0 | L37: 111
A38: 12 | B38: 3827 | C38: 13 | D38: 3832 | E38: 13 | F38: 3844 | K38: 0 | L38: 111
A39: 12 | B39: 3948 | C39: 13 | D39: 3954 | E39: 13 | F39: 3960 | K39: 0 | L39: 111
A40: 12 | B40: 4081 | C40: 13 | D40: 4087 | E40: 13 | F40: 4093 | K40: 0 | L40: 111
A41: 12 | B41: 4198 | C41: 13 | D41: 4203 | E41: 13 | F41: 4210 | K41: 0 | L41: 111
A42: 12 | B42: 4311 | C42: 13 | D42: 4316 | E42: 13 | F42: 4322 | K42: 0 | L42: 111
A43: 12 | B43: 4423 | C43: 13 | D43: 4429 | E43: 13 | F43: 4435 | K43: 0 | L43: 111
A44: 12 | B44: 4543 | C44: 13 | D44: 4549 | E44: 13 | F44: 4557 | K44: 0 | L44: 111
A45: 12 | B45: 4664 | C45: 13 | D45: 4670 | E45: 13 | F45: 4676 | K45: 0 | L45: 111
A46: 12 | B46: 4778 | C46: 13 | D46: 4783 | E46: 13 | F46: 4788 | K46: 0 | L46: 111
A47: 12 | B47: 4894 | C47: 13 | D47: 4899 | E47: 13 | F47: 4904 | K47: 0 | L47: 111
A48: 12 | B48: 5008 | C48: 13 | D48: 5018 | E48: 13 | F48: 5025 | K48: 0 | L48: 111
A49: 12 | B49: 5127 | C49: 13 | D49: 5137 | E49: 13 | F49: 5144 | K49: 0 | L49: 111
A50: 12 | B50: 5266 | C50: 13 | D50: 5279 | E50: 13 | F50: 5288 | K50: 0 | L50: 111
A51: 12 | B51: 5394 | C51: 13 | D51: 5411 | E51: 13 | F51: 5427 | K51: 0 | L51: 111
A52: 12 | B52: 5531 | C52: 13 | D52: 5540 | E52: 13 | F52: 5547 | K52: 0 | L52: 111
A53: 12 | B53: 5649 | C53: 13 | D53: 5660 | E53: 13 | F53: 5668 | K53: 0 | L53: 111
A54: 12 | B54: 5775 | C54: 13 | D54: 5788 | E54: 13 | F54: 5795 | K54: 0 | L54: 111
A55: 12 | B55: 5898 | C55: 13 | D55: 5903 | E55: 13 | F55: 5912 | K55: 0 | L55: 111
A56: 12 | B56: 6038 | C56: 13 | D56: 6043 | E56: 13 | F56: 6051 | K56: 0 | L56: 111
A57: 12 | B57: 6154 | C57: 13 | D57: 6160 | E57: 13 | F57: 6166 | K57: 0 | L57: 111
A58: 12 | B58: 6278 | C58: 13 | D58: 6287 | E58: 13 | F58: 6307 | K58: 0 | L58: 111
A59: 12 | B59: 6453 | C59: 13 | D59: 6462 | E59: 13 | F59: 6470 | K59: 0 | L59: 111
A60: 12 | B60: 6572 | C60: 13 | D60: 6578 | E60: 13 | F60: 6583 | K60: 0 | L60: 111
A61: 12 | B61: 6692 | C61: 13 | D61: 6698 | E61: 13 | F61: 6703 | K61: 0 | L61: 111
A62: 12 | B62: 6804 | C62: 13 | D62: 6810 | E62: 13 | F62: 6817 | K62: 0 | L62: 111
A63: 12 | B63: 6938 | C63: 13 | D63: 6946 | E63: 13 | F63: 6951 | K63: 0 | L63: 111
A64: 12 | B64: 7051 | C64: 13 | D64: 7063 | E64: 13 | F64: 7070 | K64: 0 | L64: 111
A65: 12 | B65: 7170 | C65: 13 | D65: 7177 | E65: 13 | F65: 7185 | K65: 0 | L65: 111
A66: 12 | B66: 7286 | C66: 13 | D66: 7292 | E66: 13 | F66: 7299 | K66: 0 | L66: 111
A67: 12 | B67: 7400 | C67: 13 | D67: 7410 | E67: 13 | F67: 7417 | K67: 0 | L67: 111
A68: 12 | B68: 7520 | C68: 13 | D68: 7526 | E68: 13 | F68: 7531 | K68: 0 | L68: 111
A69: 12 | B69: 7631 | C69: 13 | D69: 7638 | E69: 13 | F69: 7644 | K69: 0 | L69: 111
A70: 12 | B70: 7746 | C70: 13 | D70: 7751 | E70: 13 | F70: 7761 | K70: 0 | L70: 111
A71: 12 | B71: 7859 | C71: 13 | D71: 7866 | E71: 13 | F71: 7874 | K71: 0 | L71: 111
A72: 12 | B72: 7977 | C72: 13 | D72: 7983 | E72: 13 | F72: 7989 | K72: 0 | L72: 111
A73: 12 | B73: 8092 | C73: 13 | D73: 8107 | E73: 13 | F73: 8116 | K73: 0 | L73: 111
A74: 12 | B74: 8221 | C74: 13 | D74: 8226 | E74: 13 | F74: 8233 | K74: 0 | L74: 111
A75: 12 | B75: 8327 | C75: 13 | D75: 8339 | E75: 13 | F75: 8351 | K75: 0 | L75: 111
A76: 12 | B76: 8453 | C76: 13 | D76: 8465 | E76: 13 | F76: 8477 | K76: 0 | L76: 111
A77: 12 | B77: 8584 | C77: 24 | D77: 8598 | E77: 24 | F77: 8604 | K77: 0 | L77: 122
A78: 12 | B78: 8703 | C78: 13 | D78: 8720 | E78: 13 | F78: 8738 | K78: 0 | L78: 111
A79: 12 | B79: 8881 | C79: 13 | D79: 8888 | E79: 13 | F79: 8898 | K79: 0 | L79: 111
A80: 12 | B80: 8997 | C80: 13 | D80: 9003 | E80: 13 | F80: 9009 | K80: 0 | L80: 111
A81: 12 | B81: 9111 | C81: 13 | D81: 9117 | E81: 13 | F81: 9123 | K81: 0 | L81: 111
A82: 12 | B82: 9234 | C82: 13 | D82: 9243 | E82: 13 | F82: 9252 | K82: 0 | L82: 111
A83: 12 | B83: 9355 | C83: 13 | D83: 9363 | E83: 13 | F83: 9375 | K83: 0 | L83: 111
A84: 12 | B84: 9485 | C84: 13 | D84: 9491 | E84: 13 | F84: 9501 | K84: 0 | L84: 111
A85: 12 | B85: 9607 | C85: 13 | D85: 9612 | E85: 13 | F85: 9618 | K85: 0 | L85: 111
A86: 12 | B86: 9713 | C86: 13 | D86: 9719 | E86: 13 | F86: 9724 | K86: 0 | L86: 111
A87: 12 | B87: 9823 | C87: 13 | D87: 9828 | E87: 13 | F87: 9834 | K87: 0 | L87: 111
A88: 12 | B88: 9935 | C88: 13 | D88: 9946 | E88: 13 | F88: 9955 | K88: 0 | L88: 111
A89: 12 | B89: 10053 | C89: 13 | D89: 10059 | E89: 13 | F89: 10065 | K89: 0 | L89: 111
A90: 12 | B90: 10182 | C90: 13 | D90: 10199 | E90: 13 | F90: 10215 | K90: 0 | L90: 111
A91: 12 | B91: 10316 | C91: 13 | D91: 10321 | E91: 13 | F91: 10327 | K91: 0 | L91: 111
A92: 12 | B92: 10429 | C92: 13 | D92: 10440 | E92: 13 | F92: 10458 | K92: 0 | L92: 111
A93: 12 | B93: 10557 | C93: 13 | D93: 10567 | E93: 13 | F93: 10575 | K93: 0 | L93: 111
A94: 12 | B94: 10680 | C94: 13 | D94: 10686 | E94: 13 | F94: 10695 | K94: 0 | L94: 111
A95: 12 | B95: 10798 | C95: 13 | D95: 10804 | E95: 13 | F95: 10812 | K95: 0 | L95: 111
A96: 12 | B96: 10920 | C96: 13 | D96: 10932 | E96: 13 | F96: 10942 | K96: 0 | L96: 111
A97: 12 | B97: 11079 | C97: 13 | D97: 11088 | E97: 13 | F97: 11096 | K97: 0 | L97: 111
A98: 12 | B98: 11194 | C98: 13 | D98: 11201 | E98: 13 | F98: 11206 | K98: 0 | L98: 111
A99: 12 | B99: 11304 | C99: 13 | D99: 11310 | E99: 13 | F99: 11314 | K99: 0 | L99: 111
A100: 12 | B100: 11415 | C100: 13 | D100: 11422 | E100: 13 | F100: 11434 | K100: 0 | L100: 111
A101: 12 | B101: 11546 | C101: 13 | D101: 11556 | E101: 13 | F101: 11561 | K101: 0 | L101: 111
A102: 12 | B102: 11673 | C102: 13 | D102: 11678 | E102: 13 | F102: 11691 | K102: 0 | L102: 111
A103: 12 | B103: 11790 | C103: 13 | D103: 11803 | E103: 13 | F103: 11809 | K103: 0 | L103: 111
A104: 12 | B104: 11912 | C104: 13 | D104: 11918 | E104: 13 | F104: 11930 | K104: 0 | L104: 111
A105: 12 | B105: 12042 | C105: 13 | D105: 12052 | E105: 13 | F105: 12058 | K105: 0 | L105: 111
A106: 12 | B106: 12166 | C106: 13 | D106: 12190 | E106: 13 | F106: 12199 | K106: 0 | L106: 111
A107: 12 | B107: 12305 | C107: 13 | D107: 12311 | E107: 13 | F107: 12317 | K107: 0 | L107: 111
A108: 12 | B108: 12421 | C108: 13 | D108: 12430 | E108: 13 | F108: 12443 | K108: 0 | L108: 111
A109: 12 | B109: 12538 | C109: 13 | D109: 12544 | E109: 13 | F109: 12550 | K109: 0 | L109: 111
A110: 12 | B110: 12657 | C110: 13 | D110: 12661 | E110: 13 | F110: 12666 | K110: 0 | L110: 111
A111: 12 | B111: 12786 | C111: 13 | D111: 12802 | E111: 13 | F111: 12816 | K111: 0 | L111: 111
A112: 12 | B112: 12919 | C112: 24 | D112: 12953 | E112: 24 | F112: 12960 | K112: 0 | L112: 122
A113: 12 | B113: 13091 | C113: 13 | D113: 13104 | E113: 13 | F113: 13113 | K113: 0 | L113: 111
A114: 12 | B114: 13242 | C114: 13 | D114: 13247 | E114: 13 | F114: 13255 | K114: 0 | L114: 111
A115: 12 | B115: 13356 | C115: 13 | D115: 13363 | E115: 13 | F115: 13368 | K115: 0 | L115: 111
A116: 12 | B116: 13469 | C116: 13 | D116: 13482 | E116: 13 | F116: 13489 | K116: 0 | L116: 111
A117: 12 | B117: 13592 | C117: 13 | D117: 13598 | E117: 13 | F117: 13606 | K117: 0 | L117: 111
A118: 12 | B118: 13707 | C118: 13 | D118: 13712 | E118: 13 | F118: 13718 | K118: 0 | L118: 111
A119: 12 | B119: 13819 | C119: 13 | D119: 13824 | E119: 13 | F119: 13830 | K119: 0 | L119: 111
A120: 12 | B120: 13927 | C120: 13 | D120: 13932 | E120: 13 | F120: 13938 | K120: 0 | L120: 111
A121: 12 | B121: 14038 | C121: 13 | D121: 14046 | E121: 13 | F121: 14052 | K121: 0 | L121: 111
A122: 12 | B122: 14153 | C122: 13 | D122: 14157 | E122: 13 | F122: 14162 | K122: 0 | L122: 111
A123: 12 | B123: 14272 | C123: 13 | D123: 14285 | E123: 13 | F123: 14295 | K123: 0 | L123: 111
A124: 12 | B124: 14397 | C124: 13 | D124: 14408 | E124: 13 | F124: 14416 | K124: 0 | L124: 111
A125: 12 | B125: 14513 | C125: 13 | D125: 14518 | E125: 13 | F125: 14523 | K125: 0 | L125: 111
A126: 12 | B126: 14625 | C126: 13 | D126: 14630 | E126: 13 | F126: 14635 | K126: 0 | L126: 111
A127: 12 | B127: 14737 | C127: 13 | D127: 14743 | E127: 13 | F127: 14749 | K127: 0 | L127: 111
A128: 12 | B128: 14851 | C128: 13 | D128: 14858 | E128: 13 | F128: 14864 | K128: 0 | L128: 111
A129: 12 | B129: 14961 | C129: 13 | D129: 14967 | E129: 13 | F129: 14973 | K129: 0 | L129: 111
A130: 12 | B130: 15076 | C130: 13 | D130: 15087 | E130: 13 | F130: 15096 | K130: 0 | L130: 111
A131: 12 | B131: 15197 | C131: 13 | D131: 15202 | E131: 13 | F131: 15208 | K131: 0 | L131: 111
A132: 12 | B132: 15312 | C132: 13 | D132: 15318 | E132: 13 | F132: 15324 | K132: 0 | L132: 111
A133: 12 | B133: 15426 | C133: 13 | D133: 15432 | E133: 13 | F133: 15444 | K133: 0 | L133: 111
A134: 12 | B134: 15548 | C134: 13 | D134: 15553 | E134: 13 | F134: 15558 | K134: 0 | L134: 111
A135: 12 | B135: 15659 | C135: 13 | D135: 15665 | E135: 13 | F135: 15670 | K135: 0 | L135: 111
A136: 12 | B136: 15785 | C136: 13 | D136: 15791 | E136: 13 | F136: 15797 | K136: 0 | L136: 111
A137: 12 | B137: 15898 | C137: 13 | D137: 15904 | E137: 13 | F137: 15910 | K137: 0 | L137: 111
A138: 12 | B138: 16017 | C138: 13 | D138: 16023 | E138: 13 | F138: 16032 | K138: 0 | L138: 111
A139: 12 | B139: 16135 | C139: 13 | D139: 16144 | E139: 13 | F139: 16151 | K139: 0 | L139: 111
A140: 12 | B140: 16246 | C140: 13 | D140: 16251 | E140: 13 | F140: 16259 | K140: 0 | L140: 111
A141: 12 | B141: 16383 | C141: 13 | D141: 16392 | E141: 13 | F141: 16401 | K141: 0 | L141: 111
A142: 12 | B142: 16502 | C142: 13 | D142: 16508 | E142: 13 | F142: 16513 | K142: 0 | L142: 111
A143: 12 | B143: 16613 | C143: 13 | D143: 16624 | E143: 13 | F143: 16634 | K143: 0 | L143: 111
A144: 12 | B144: 16748 | C144: 13 | D144: 16754 | E144: 13 | F144: 16760 | K144: 0 | L144: 111
A145: 12 | B145: 16868 | C145: 13 | D145: 16881 | E145: 13 | F145: 16890 | K145: 0 | L145: 111
A146: 12 | B146: 16990 | C146: 13 | D146: 16995 | E146: 13 | F146: 17000 | K146: 0 | L146: 111
A147: 12 | B147: 17151 | C147: 13 | D147: 17160 | E147: 13 | F147: 17167 | K147: 0 | L147: 111
A148: 12 | B148: 17270 | C148: 13 | D148: 17276 | E148: 13 | F148: 17282 | K148: 0 | L148: 111
A149: 12 | B149: 17386 | C149: 13 | D149: 17397 | E149: 13 | F149: 17406 | K149: 0 | L149: 111
A150: 12 | B150: 17511 | C150: 13 | D150: 17517 | E150: 13 | F150: 17542 | K150: 0 | L150: 111
A151: 12 | B151: 17648 | C151: 13 | D151: 17660 | E151: 13 | F151: 17668 | K151: 0 | L151: 111
A152: 12 | B152: 17764 | C152: 13 | D152: 17770 | E152: 13 | F152: 17776 | K152: 0 | L152: 111
A153: 12 | B153: 17878 | C153: 13 | D153: 17883 | E153: 13 | F153: 17889 | K153: 0 | L153: 111
A154: 12 | B154: 17993 | C154: 13 | D154: 17999 | E154: 13 | F154: 18004 | K154: 0 | L154: 111
A155: 12 | B155: 18099 | C155: 13 | D155: 18104 | E155: 13 | F155: 18111 | K155: 0 | L155: 111
A156: 12 | B156: 18210 | C156: 13 | D156: 18215 | E156: 13 | F156: 18220 | K156: 0 | L156: 111
A157: 12 | B157: 18322 | C157: 13 | D157: 18329 | E157: 13 | F157: 18338 | K157: 0 | L157: 111
A158: 12 | B158: 18436 | C158: 13 | D158: 18442 | E158: 13 | F158: 18448 | K158: 0 | L158: 111
A159: 12 | B159: 18549 | C159: 13 | D159: 18555 | E159: 13 | F159: 18562 | K159: 0 | L159: 111
A160: 12 | B160: 18668 | C160: 13 | D160: 18677 | E160: 13 | F160: 18686 | K160: 0 | L160: 111
A161: 12 | B161: 18792 | C161: 13 | D161: 18797 | E161: 13 | F161: 18803 | K161: 0 | L161: 111
A162: 12 | B162: 18925 | C162: 13 | D162: 18930 | E162: 13 | F162: 18940 | K162: 0 | L162: 111
A163: 12 | B163: 19039 | C163: 13 | D163: 19044 | E163: 13 | F163: 19048 | K163: 0 | L163: 111
A164: 12 | B164: 19184 | C164: 13 | D164: 19189 | E164: 13 | F164: 19196 | K164: 0 | L164: 111
A165: 12 | B165: 19297 | C165: 13 | D165: 19310 | E165: 13 | F165: 19318 | K165: 0 | L165: 111
A166: 12 | B166: 19425 | C166: 13 | D166: 19430 | E166: 13 | F166: 19440 | K166: 0 | L166: 111
A167: 12 | B167: 19551 | C167: 13 | D167: 19557 | E167: 13 | F167: 19564 | K167: 0 | L167: 111
A168: 12 | B168: 19663 | C168: 13 | D168: 19669 | E168: 13 | F168: 19676 | K168: 0 | L168: 111
A169: 12 | B169: 19776 | C169: 13 | D169: 19783 | E169: 13 | F169: 19794 | K169: 0 | L169: 111
A170: 12 | B170: 19905 | C170: 13 | D170: 19913 | E170: 13 | F170: 19919 | K170: 0 | L170: 111
A171: 12 | B171: 20018 | C171: 13 | D171: 20023 | E171: 13 | F171: 20029 | K171: 0 | L171: 111
A172: 12 | B172: 20128 | C172: 13 | D172: 20138 | E172: 13 | F172: 20145 | K172: 0 | L172: 111
A173: 12 | B173: 20245 | C173: 13 | D173: 20251 | E173: 13 | F173: 20256 | K173: 0 | L173: 111
A174: 12 | B174: 20355 | C174: 13 | D174: 20361 | E174: 13 | F174: 20370 | K174: 0 | L174: 111
A175: 12 | B175: 20475 | C175: 13 | D175: 20491 | E175: 13 | F175: 20503 | K175: 0 | L175: 111
A176: 12 | B176: 20625 | C176: 13 | D176: 20630 | E176: 13 | F176: 20637 | K176: 0 | L176: 111
A177: 12 | B177: 20737 | C177: 13 | D177: 20747 | E177: 13 | F177: 20754 | K177: 0 | L177: 111
A178: 12 | B178: 20853 | C178: 13 | D178: 20859 | E178: 13 | F178: 20864 | K178: 0 | L178: 111
A179: 12 | B179: 20965 | C179: 13 | D179: 20970 | E179: 13 | F179: 20981 | K179: 0 | L179: 111
A180: 12 | B180: 21087 | C180: 13 | D180: 21092 | E180: 13 | F180: 21099 | K180: 0 | L180: 111
A181: 12 | B181: 21203 | C181: 13 | D181: 21213 | E181: 13 | F181: 21230 | K181: 0 | L181: 111
A182: 12 | B182: 21333 | C182: 13 | D182: 21344 | E182: 13 | F182: 21355 | K182: 0 | L182: 111
A183: 12 | B183: 21459 | C183: 13 | D183: 21465 | E183: 13 | F183: 21476 | K183: 0 | L183: 111
A184: 12 | B184: 21594 | C184: 24 | D184: 21607 | E184: 24 | F184: 21613 | K184: 0 | L184: 122
A185: 12 | B185: 21716 | C185: 13 | D185: 21721 | E185: 13 | F185: 21727 | K185: 0 | L185: 111
A186: 12 | B186: 21832 | C186: 13 | D186: 21843 | E186: 13 | F186: 21852 | K186: 0 | L186: 111
A187: 12 | B187: 21979 | C187: 13 | D187: 21985 | E187: 13 | F187: 21992 | K187: 0 | L187: 111
A188: 12 | B188: 22129 | C188: 13 | D188: 22135 | E188: 13 | F188: 22157 | K188: 0 | L188: 111
A189: 12 | B189: 22266 | C189: 13 | D189: 22278 | E189: 13 | F189: 22295 | K189: 0 | L189: 111
A190: 12 | B190: 22397 | C190: 13 | D190: 22402 | E190: 13 | F190: 22407 | K190: 0 | L190: 111
A191: 12 | B191: 22508 | C191: 13 | D191: 22513 | E191: 13 | F191: 22526 | K191: 0 | L191: 111
A192: 12 | B192: 22630 | C192: 13 | D192: 22654 | E192: 13 | F192: 22663 | K192: 0 | L192: 111
A193: 12 | B193: 22765 | C193: 13 | D193: 22771 | E193: 13 | F193: 22777 | K193: 0 | L193: 111
A194: 12 | B194: 22878 | C194: 13 | D194: 22883 | E194: 13 | F194: 22892 | K194: 0 | L194: 111
A195: 12 | B195: 22993 | C195: 13 | D195: 22999 | E195: 13 | F195: 23005 | K195: 0 | L195: 111
A196: 12 | B196: 23118 | C196: 13 | D196: 23123 | E196: 13 | F196: 23129 | K196: 0 | L196: 111
A197: 12 | B197: 23230 | C197: 13 | D197: 23236 | E197: 13 | F197: 23248 | K197: 0 | L197: 111
A198: 12 | B198: 23347 | C198: 13 | D198: 23353 | E198: 13 | F198: 23358 | K198: 0 | L198: 111
A199: 12 | B199: 23461 | C199: 13 | D199: 23466 | E199: 13 | F199: 23471 | K199: 0 | L199: 111
A200: 12 | B200: 23577 | C200: 13 | D200: 23583 | E200: 13 | F200: 23589 | K200: 0 | L200: 111
... 3 more rows

Sheet !N409910.010
A1: Report for:!N409910.010
A2: Date: | B2: <date>
A3: Hen: | B3: <hen> | F3: Correct Sequence | G3: =Start!J2 -> 211 | P3: Total Sequences in Data | Q3: =4994-COUNTBLANK(L7:L5000) -> 189 | V3: Total Sequences in Block Data | W3: =COUNTA(L7:L38) -> 32 | AA3: Total Sequences in Block Data | AB3: =COUNTA(L39:L69) -> 31 | AF3: Total Sequences in Block Data | AG3: =COUNTA(L70:L101) -> 32 | AK3: Total Sequences in Block Data | AL3: =COUNTA(L102:L132) -> 31 | AP3: Total Sequences in Block Data | AQ3: =COUNTA(L133:L164) -> 32 | AU3: Total Sequences in Block Data | AV3: =COUNTA(L165:L195) -> 31
P4: Total Sequences in Summary | Q4: =SUM(O7:O14) -> 188 | V4: Total Sequences in Block Summary | W4: =SUM(U7:U14) -> 32 | AA4: Total Sequences in Block Summary | AB4: =SUM(Z7:Z14) -> 31 | AF4: Total Sequences in Block Summary | AG4: =SUM(AE7:AE14) -> 32 | AK4: Total Sequences in Block Summary | AL4: =SUM(AJ7:AJ14) -> 31 | AP4: Total Sequences in Block Summary | AQ4: =SUM(AO7:AO14) -> 32 | AU4: Total Sequences in Block Summary | AV4: =SUM(AT7:AT14) -> 30
T5: Block 1 | Y5: Block 2 | AD5: Block 3 | AI5: Block 4 | AN5: Block 5 | AS5: Block 6
A6: Sequence Component 1 | B6: Time 1 | C6: Sequence Component 2 | D6: Time 2 | E6: Sequence Component 3 | F6: Time 3 | G6: Sequence Component 4 | H6: Time 4 | I6: Sequence Component 5 | J6: Time 5 | K6: Correct? 0=No 1=Yes | L6: Sequence | N6: Frequency | P6: Relative Frequency | Q6: Variability | T6: Frequency | V6: Relative Frequency | W6: Variability | Y6: Frequency | AA6: Relative Frequency | AB6: Variability | AD6: Frequency | AF6: Relative Frequency | AG6: Variability | AI6: Frequency | AK6: Relative Frequency | AL6: Variability | AN6: Frequency | AP6: Relative Frequency | AQ6: Variability | AS6: Frequency | AU6: Relative Frequency | AV6: Variability
A7: 21 | B7: 20 | C7: 11 | D7: 38 | E7: 11 | F7: 48 | K7: 0 | L7: 211 | N7: 111 | O7: =COUNTIF($L$7:$L$500,N7) -> 184 | P7: =O7/$Q$4 -> 0.9787234043 | Q7: =IF(P7=0,0,(P7*((LOG(P7))/LOG(2)))) -> -0.03036674891 | T7: =N7 -> 111 | U7: =COUNTIF(L7:L38,T7) -> 30 | V7: =U7/(W4-U11) -> 0.9677419355 | W7: =IF(V7=0,0,(V7*((LOG(V7))/LOG(2)))) -> -0.04577972398 | Y7: =N7 -> 111 | Z7: =COUNTIF(L39:L69,Y7) -> 31 | AA7: =Z7/(AB4-Z11) -> 1 | AB7: =IF(AA7=0,0,(AA7*((LOG(AA7))/LOG(2)))) -> 0 | AD7: =N7 -> 111 | AE7: =COUNTIF(L70:L101,AD7) -> 32 | AF7: =AE7/(AG4-AE11) -> 1 | AG7: =IF(AF7=0,0,(AF7*((LOG(AF7))/LOG(2)))) -> 0 | AI7: =N7 -> 111 | AJ7: =COUNTIF(L102:L132,AI7) -> 31 | AK7: =AJ7/(AL4-AJ11) -> 1 | AL7: =IF(AK7=0,0,(AK7*((LOG(AK7))/LOG(2)))) -> 0 | AN7: =N7 -> 111 | AO7: =COUNTIF(L133:L164,AN7) -> 31 | AP7: =AO7/(AQ4-AO11) -> 0.96875 | AQ7: =IF(AP7=0,0,(AP7*((LOG(AP7))/LOG(2)))) -> -0.04437232431 | AS7: =N7 -> 111 | AT7: =COUNTIF(L165:L195,AS7) -> 29 | AU7: =AT7/(AV4-AT11) -> 0.9666666667 | AV7: =IF(AU7=0,0,(AU7*((LOG(AU7))/LOG(2)))) -> -0.04727928046
A8: 12 | B8: 155 | C8: 13 | D8: 161 | E8: 13 | F8: 170 | K8: 0 | L8: 111 | N8: 112 | O8: =COUNTIF($L$7:$L$500,N8) -> 2 | P8: =O8/$Q$4 -> 0.01063829787 | Q8: =IF(P8=0,0,(P8*((LOG(P8))/LOG(2)))) -> -0.06972966863 | T8: =N8 -> 112 | U8: =COUNTIF(L7:L38,T8) -> 1 | V8: =U8/(W4-U11) -> 0.03225806452 | W8: =IF(V8=0,0,(V8*((LOG(V8))/LOG(2)))) -> -0.1598127842 | Y8: =N8 -> 112 | Z8: =COUNTIF(L39:L69,Y8) -> 0 | AA8: =Z8/(AB4-Z11) -> 0 | AB8: =IF(AA8=0,0,(AA8*((LOG(AA8))/LOG(2)))) -> 0 | AD8: =N8 -> 112 | AE8: =COUNTIF(L70:L101,AD8) -> 0 | AF8: =AE8/(AG4-AE11) -> 0 | AG8: =IF(AF8=0,0,(AF8*((LOG(AF8))/LOG(2)))) -> 0 | AI8: =N8 -> 112 | AJ8: =COUNTIF(L102:L132,AI8) -> 0 | AK8: =AJ8/(AL4-AJ11) -> 0 | AL8: =IF(AK8=0,0,(AK8*((LOG(AK8))/LOG(2)))) -> 0 | AN8: =N8 -> 112 | AO8: =COUNTIF(L133:L164,AN8) -> 1 | AP8: =AO8/(AQ4-AO11) -> 0.03125 | AQ8: =IF(AP8=0,0,(AP8*((LOG(AP8))/LOG(2)))) -> -0.15625 | AS8: =N8 -> 112 | AT8: =COUNTIF(L165:L195,AS8) -> 0 | AU8: =AT8/(AV4-AT11) -> 0 | AV8: =IF(AU8=0,0,(AU8*((LOG(AU8))/LOG(2)))) -> 0
A9: 12 | B9: 284 | C9: 13 | D9: 294 | E9: 13 | F9: 306 | K9: 0 | L9: 111 | N9: 121 | O9: =COUNTIF($L$7:$L$500,N9) -> 0 | P9: =O9/$Q$4 -> 0 | Q9: =IF(P9=0,0,(P9*((LOG(P9))/LOG(2)))) -> 0 | T9: =N9 -> 121 | U9: =COUNTIF(L7:L38,T9) -> 0 | V9: =U9/(W4-U11) -> 0 | W9: =IF(V9=0,0,(V9*((LOG(V9))/LOG(2)))) -> 0 | Y9: =N9 -> 121 | Z9: =COUNTIF(L39:L69,Y9) -> 0 | AA9: =Z9/(AB4-Z11) -> 0 | AB9: =IF(AA9=0,0,(AA9*((LOG(AA9))/LOG(2)))) -> 0 | AD9: =N9 -> 121 | AE9: =COUNTIF(L70:L101,AD9) -> 0 | AF9: =AE9/(AG4-AE11) -> 0 | AG9: =IF(AF9=0,0,(AF9*((LOG(AF9))/LOG(2)))) -> 0 | AI9: =N9 -> 121 | AJ9: =COUNTIF(L102:L132,AI9) -> 0 | AK9: =AJ9/(AL4-AJ11) -> 0 | AL9: =IF(AK9=0,0,(AK9*((LOG(AK9))/LOG(2)))) -> 0 | AN9: =N9 -> 121 | AO9: =COUNTIF(L133:L164,AN9) -> 0 | AP9: =AO9/(AQ4-AO11) -> 0 | AQ9: =IF(AP9=0,0,(AP9*((LOG(AP9))/LOG(2)))) -> 0 | AS9: =N9 -> 121 | AT9: =COUNTIF(L165:L195,AS9) -> 0 | AU9: =AT9/(AV4-AT11) -> 0 | AV9: =IF(AU9=0,0,(AU9*((LOG(AU9))/LOG(2)))) -> 0
A10: 12 | B10: 406 | C10: 13 | D10: 412 | E10: 13 | F10: 421 | K10: 0 | L10: 111 | N10: 122 | O10: =COUNTIF($L$7:$L$500,N10) -> 1 | P10: =O10/$Q$4 -> 0.005319148936 | Q10: =IF(P10=0,0,(P10*((LOG(P10))/LOG(2)))) -> -0.04018398325 | T10: =N10 -> 122 | U10: =COUNTIF(L7:L38,T10) -> 0 | V10: =U10/(W4-U11) -> 0 | W10: =IF(V10=0,0,(V10*((LOG(V10))/LOG(2)))) -> 0 | Y10: =N10 -> 122 | Z10: =COUNTIF(L39:L69,Y10) -> 0 | AA10: =Z10/(AB4-Z11) -> 0 | AB10: =IF(AA10=0,0,(AA10*((LOG(AA10))/LOG(2)))) -> 0 | AD10: =N10 -> 122 | AE10: =COUNTIF(L70:L101,AD10) -> 0 | AF10: =AE10/(AG4-AE11) -> 0 | AG10: =IF(AF10=0,0,(AF10*((LOG(AF10))/LOG(2)))) -> 0 | AI10: =N10 -> 122 | AJ10: =COUNTIF(L102:L132,AI10) -> 0 | AK10: =AJ10/(AL4-AJ11) -> 0 | AL10: =IF(AK10=0,0,(AK10*((LOG(AK10))/LOG(2)))) -> 0 | AN10: =N10 -> 122 | AO10: =COUNTIF(L133:L164,AN10) -> 0 | AP10: =AO10/(AQ4-AO11) -> 0 | AQ10: =IF(AP10=0,0,(AP10*((LOG(AP10))/LOG(2)))) -> 0 | AS10: =N10 -> 122 | AT10: =COUNTIF(L165:L195,AS10) -> 1 | AU10: =AT10/(AV4-AT11) -> 0.03333333333 | AV10: =IF(AU10=0,0,(AU10*((LOG(AU10))/LOG(2)))) -> -0.1635630199
A11: 12 | B11: 522 | C11: 13 | D11: 531 | E11: 13 | F11: 540 | K11: 0 | L11: 111 | N11: 211 | O11: =COUNTIF($L$7:$L$500,N11) -> 1 | P11: =O11/$Q$4 -> 0.005319148936 | Q11: =IF(P11=0,0,(P11*((LOG(P11))/LOG(2)))) -> -0.04018398325 | T11: =N11 -> 211 | U11: =COUNTIF(L7:L38,T11) -> 1 | Y11: =N11 -> 211 | Z11: =COUNTIF(L39:L69,Y11) -> 0 | AD11: =N11 -> 211 | AE11: =COUNTIF(L70:L101,AD11) -> 0 | AI11: =N11 -> 211 | AJ11: =COUNTIF(L102:L132,AI11) -> 0 | AN11: =N11 -> 211 | AO11: =COUNTIF(L133:L164,AN11) -> 0 | AS11: =N11 -> 211 | AT11: =COUNTIF(L165:L195,AS11) -> 0
A12: 12 | B12: 651 | C12: 13 | D12: 660 | E12: 13 | F12: 672 | K12: 0 | L12: 111 | N12: 212 | O12: =COUNTIF($L$7:$L$500,N12) -> 0 | P12: =O12/$Q$4 -> 0 | Q12: =IF(P12=0,0,(P12*((LOG(P12))/LOG(2)))) -> 0 | T12: =N12 -> 212 | U12: =COUNTIF(L7:L38,T12) -> 0 | V12: =U12/(W4-U11) -> 0 | W12: =IF(V12=0,0,(V12*((LOG(V12))/LOG(2)))) -> 0 | Y12: =N12 -> 212 | Z12: =COUNTIF(L39:L69,Y12) -> 0 | AA12: =Z12/(AB4-Z11) -> 0 | AB12: =IF(AA12=0,0,(AA12*((LOG(AA12))/LOG(2)))) -> 0 | AD12: =N12 -> 212 | AE12: =COUNTIF(L70:L101,AD12) -> 0 | AF12: =AE12/(AG4-AE11) -> 0 | AG12: =IF(AF12=0,0,(AF12*((LOG(AF12))/LOG(2)))) -> 0 | AI12: =N12 -> 212 | AJ12: =COUNTIF(L102:L132,AI12) -> 0 | AK12: =AJ12/(AL4-AJ11) -> 0 | AL12: =IF(AK12=0,0,(AK12*((LOG(AK12))/LOG(2)))) -> 0 | AN12: =N12 -> 212 | AO12: =COUNTIF(L133:L164,AN12) -> 0 | AP12: =AO12/(AQ4-AO11) -> 0 | AQ12: =IF(AP12=0,0,(AP12*((LOG(AP12))/LOG(2)))) -> 0 | AS12: =N12 -> 212 | AT12: =COUNTIF(L165:L195,AS12) -> 0 | AU12: =AT12/(AV4-AT11) -> 0 | AV12: =IF(AU12=0,0,(AU12*((LOG(AU12))/LOG(2)))) -> 0
A13: 12 | B13: 773 | C13: 13 | D13: 779 | E13: 13 | F13: 785 | K13: 0 | L13: 111 | N13: 221 | O13: =COUNTIF($L$7:$L$500,N13) -> 0 | P13: =O13/$Q$4 -> 0 | Q13: =IF(P13=0,0,(P13*((LOG(P13))/LOG(2)))) -> 0 | T13: =N13 -> 221 | U13: =COUNTIF(L7:L38,T13) -> 0 | V13: =U13/(W4-U11) -> 0 | W13: =IF(V13=0,0,(V13*((LOG(V13))/LOG(2)))) -> 0 | Y13: =N13 -> 221 | Z13: =COUNTIF(L39:L69,Y13) -> 0 | AA13: =Z13/(AB4-Z11) -> 0 | AB13: =IF(AA13=0,0,(AA13*((LOG(AA13))/LOG(2)))) -> 0 | AD13: =N13 -> 221 | AE13: =COUNTIF(L70:L101,AD13) -> 0 | AF13: =AE13/(AG4-AE11) -> 0 | AG13: =IF(AF13=0,0,(AF13*((LOG(AF13))/LOG(2)))) -> 0 | AI13: =N13 -> 221 | AJ13: =COUNTIF(L102:L132,AI13) -> 0 | AK13: =AJ13/(AL4-AJ11) -> 0 | AL13: =IF(AK13=0,0,(AK13*((LOG(AK13))/LOG(2)))) -> 0 | AN13: =N13 -> 221 | AO13: =COUNTIF(L133:L164,AN13) -> 0 | AP13: =AO13/(AQ4-AO11) -> 0 | AQ13: =IF(AP13=0,0,(AP13*((LOG(AP13))/LOG(2)))) -> 0 | AS13: =N13 -> 221 | AT13: =COUNTIF(L165:L195,AS13) -> 0 | AU13: =AT13/(AV4-AT11) -> 0 | AV13: =IF(AU13=0,0,(AU13*((LOG(AU13))/LOG(2)))) -> 0
A14: 12 | B14: 888 | C14: 13 | D14: 899 | E14: 13 | F14: 907 | K14: 0 | L14: 111 | N14: 222 | O14: =COUNTIF($L$7:$L$500,N14) -> 0 | P14: =O14/$Q$4 -> 0 | Q14: =IF(P14=0,0,(P14*((LOG(P14))/LOG(2)))) -> 0 | T14: =N14 -> 222 | U14: =COUNTIF(L7:L38,T14) -> 0 | V14: =U14/(W4-U11) -> 0 | W14: =IF(V14=0,0,(V14*((LOG(V14))/LOG(2)))) -> 0 | Y14: =N14 -> 222 | Z14: =COUNTIF(L39:L69,Y14) -> 0 | AA14: =Z14/(AB4-Z11) -> 0 | AB14: =IF(AA14=0,0,(AA14*((LOG(AA14))/LOG(2)))) -> 0 | AD14: =N14 -> 222 | AE14: =COUNTIF(L70:L101,AD14) -> 0 | AF14: =AE14/(AG4-AE11) -> 0 | AG14: =IF(AF14=0,0,(AF14*((LOG(AF14))/LOG(2)))) -> 0 | AI14: =N14 -> 222 | AJ14: =COUNTIF(L102:L132,AI14) -> 0 | AK14: =AJ14/(AL4-AJ11) -> 0 | AL14: =IF(AK14=0,0,(AK14*((LOG(AK14))/LOG(2)))) -> 0 | AN14: =N14 -> 222 | AO14: =COUNTIF(L133:L164,AN14) -> 0 | AP14: =AO14/(AQ4-AO11) -> 0 | AQ14: =IF(AP14=0,0,(AP14*((LOG(AP14))/LOG(2)))) -> 0 | AS14: =N14 -> 222 | AT14: =COUNTIF(L165:L195,AS14) -> 0 | AU14: =AT14/(AV4-AT11) -> 0 | AV14: =IF(AU14=0,0,(AU14*((LOG(AU14))/LOG(2)))) -> 0
A15: 12 | B15: 1007 | C15: 13 | D15: 1014 | E15: 13 | F15: 1023 | K15: 0 | L15: 111 | P15: =SUM(P7:P14) -> 1 | Q15: =-SUM(Q7:Q14) -> 0.180464384 | V15: =SUM(V7:V14) -> 1 | W15: =-SUM(W7:W14) -> 0.2055925082 | AA15: =SUM(AA7:AA14) -> 1 | AB15: =-SUM(AB7:AB14) -> 0 | AF15: =SUM(AF7:AF14) -> 1 | AG15: =-SUM(AG7:AG14) -> 0 | AK15: =SUM(AK7:AK14) -> 1 | AL15: =-SUM(AL7:AL14) -> 0 | AP15: =SUM(AP7:AP14) -> 1 | AQ15: =-SUM(AQ7:AQ14) -> 0.2006223243 | AU15: =SUM(AU7:AU14) -> 1 | AV15: =-SUM(AV7:AV14) -> 0.2108423003
A16: 12 | B16: 1131 | C16: 13 | D16: 1136 | E16: 13 | F16: 1144 | K16: 0 | L16: 111 | P16: U= | Q16: =Q15/(LOG(Q4)/LOG(2)) -> 0.02388804839 | V16: U1= | W16: =W15/(LOG(W4)/LOG(2)) -> 0.04111850164 | AA16: U2= | AB16: =AB15/(LOG(AB4)/LOG(2)) -> 0 | AF16: U3= | AG16: =AG15/(LOG(AG4)/LOG(2)) -> 0 | AK16: U4= | AL16: =AL15/(LOG(AL4)/LOG(2)) -> 0 | AP16: U5= | AQ16: =AQ15/(LOG(AQ4)/LOG(2)) -> 0.04012446486 | AU16: U6= | AV16: =AV15/(LOG(AV4)/LOG(2)) -> 0.04296861652
A17: 12 | B17: 1261 | C17: 13 | D17: 1267 | E17: 13 | F17: 1284 | K17: 0 | L17: 111
A18: 12 | B18: 1394 | C18: 13 | D18: 1400 | E18: 13 | F18: 1410 | K18: 0 | L18: 111
A19: 12 | B19: 1514 | C19: 13 | D19: 1522 | E19: 13 | F19: 1531 | K19: 0 | L19: 111 | N19: Total Target Seq
A20: 12 | B20: 1639 | C20: 13 | D20: 1645 | E20: 13 | F20: 1654 | K20: 0 | L20: 111 | N20: =COUNTIF(L7:L195,G3) -> 1 | P20: 32 | Q20: 31 | R20: 32 | S20: 31 | T20: 32 | U20: 31
A21: 12 | B21: 1765 | C21: 13 | D21: 1771 | E21: 13 | F21: 1779 | K21: 0 | L21: 111 | P21: % of reinforcement given in 6 equal intervals based on number of trials
A22: 12 | B22: 1901 | C22: 13 | D22: 1908 | E22: 13 | F22: 1916 | K22: 0 | L22: 111 | P22: %_1 | Q22: %_2 | R22: %_3 | S22: %_4 | T22: %_5 | U22: %_6
A23: 12 | B23: 2036 | C23: 13 | D23: 2042 | E23: 13 | F23: 2048 | K23: 0 | L23: 111 | O23: target sequence | P23: =$G$3 -> 211 | Q23: =$G$3 -> 211 | R23: =$G$3 -> 211 | S23: =$G$3 -> 211 | T23: =$G$3 -> 211 | U23: =$G$3 -> 211
A24: 12 | B24: 2173 | C24: 13 | D24: 2184 | E24: 13 | F24: 2200 | K24: 0 | L24: 111 | O24: total reinforcement | P24: =U11 -> 1 | Q24: =Z11 -> 0 | R24: =AE11 -> 0 | S24: =AJ11 -> 0 | T24: =AO11 -> 0 | U24: =AT11 -> 0
A25: 12 | B25: 2313 | C25: 13 | D25: 2325 | E25: 13 | F25: 2334 | K25: 0 | L25: 111 | O25: % target
A26: 12 | B26: 2458 | C26: 13 | D26: 2465 | E26: 13 | F26: 2471 | K26: 0 | L26: 111 | O26: CCRF
A27: 12 | B27: 2578 | C27: 13 | D27: 2584 | E27: 13 | F27: 2590 | K27: 0 | L27: 111 | O27: % CCRf
A28: 12 | B28: 2690 | C28: 13 | D28: 2695 | E28: 24 | F28: 2707 | K28: 0 | L28: 112 | O28: average response rate | P28: =F38/P20 -> 122.59375 | Q28: =(F69-F38)/Q20 -> 133.7419355 | R28: =(F101-F69)/R20 -> 129.03125 | S28: =(F132-F101)/S20 -> 123.8709677 | T28: =(F164-F132)/T20 -> 126.375 | U28: =(F195-F164)/U20 -> -647.8064516
A29: 12 | B29: 2810 | C29: 13 | D29: 2845 | E29: 13 | F29: 2854 | K29: 0 | L29: 111
A30: 12 | B30: 2953 | C30: 13 | D30: 2959 | E30: 13 | F30: 2964 | K30: 0 | L30: 111
A31: 12 | B31: 3071 | C31: 13 | D31: 3076 | E31: 13 | F31: 3082 | K31: 0 | L31: 111
A32: 12 | B32: 3186 | C32: 13 | D32: 3197 | E32: 13 | F32: 3206 | K32: 0 | L32: 111
A33: 12 | B33: 3312 | C33: 13 | D33: 3324 | E33: 13 | F33: 3333 | K33: 0 | L33: 111
A34: 12 | B34: 3432 | C34: 13 | D34: 3437 | E34: 13 | F34: 3462 | K34: 0 | L34: 111
A35: 12 | B35: 3563 | C35: 13 | D35: 3570 | E35: 13 | F35: 3577 | K35: 0 | L35: 111
